Workbook

Sheet 目次
B2: 自治体排出量カルテ 目次 | E2: =年度マスタ!J4 -> 東神楽町
B4: 項目 | C4: 表示形式 | D4: 対象年度 | E4: 具体内容
B5: 自治体排出量カルテ① CO2排出量の現状把握
B6: ○地方公共団体の部門・分野別CO2排出量（標準的手法）
B7: 1）部門・分野別CO2排出量構成比 平成17年度（2005年度） | C7: 円グラフ | D7: 2005年度 | E7: ・標準的手法に基づくCO2排出量推計データの部門・分野別排出量を集計
B8: 2）部門・分野別CO2排出量構成比 平成25年度（2013年度） | C8: 円グラフ | D8: 2013年度 | E8: ・標準的手法に基づくCO2排出量推計データの部門・分野別排出量を集計
B9: 3）部門・分野別CO2排出量構成比 令和4年度（2022年度） | C9: 円グラフ | D9: 2022年度 | E9: ・標準的手法に基づくCO2排出量推計データの部門・分野別排出量を集計
B10: 4）部門・分野別CO2排出量の推移 | C10: 積上げ縦棒グラフ | D10: 2009～2022年度 | E10: ・2009年度以降の部門・分野別CO2排出量の推移
B11: 5）部門・分野別CO2排出量構成比の比較（都道府県平均及び全国平均） | C11: 100％積上げ横棒グラフ | D11: 2022年度 | E11: ・地方公共団体と該当都道府県平均、全国平均の部門・分野別のCO2排出量構成比の比較
B13: 自治体排出量カルテ② 活動量の現状把握
B14: ○地方公共団体の活動量
B15: 1）部門・分野別指標の推移（廃棄物分野のみCO2排出量の推移） | C15: 折れ線グラフ・縦棒グラフ | D15: 2009～2022年度 | E15: ・標準的手法の部門・分野別の活動量の推移
B17: 自治体排出量カルテ③ 特定事業所の温室効果ガス排出量の現状把握
B18: 1 地方公共団体の特定事業所排出量
B19: 1）特定事業所の部門別排出量（令和3年度） | C19: 円グラフ | D19: 2021年度 | E19: ・特定事業所の部門別排出量構成比
B20: 2）特定事業所の部門別排出量の推移 | C20: 積上げ縦棒グラフ | D20: 2011~2021年度 | E20: ・2011年度以降の特定事業所の部門別排出量の推移
B21: 3）特定事業所のガス種別排出量（令和3年度） | C21: 円グラフ | D21: 2021年度 | E21: ・特定事業所のガス種別排出量構成比
B22: 4）特定事業所のガス種別排出量の推移 | C22: 積上げ縦棒グラフ | D22: 2011~2021年度 | E22: ・2011年度以降の特定事業所のガス種別排出量の推移
B23: 5）業種別の特定事業所の事業所数及び排出量（令和3年度） | C23: 横棒グラフ | D23: 2021年度 | E23: ・特定事業所の業種別事業所数及び排出量
B24: 2 地方公共団体の区域のCO2排出量との比較
B25: 6）区域のCO2排出量の推移及び特定事業所排出量のカバー率の推移 | C25: 積上げ縦棒・折れ線グラフ | D25: 2011~2021年度 | E25: ・区域の産業部門・業務その他部門の排出量の推移と特定事業所排出量が占める割合（カバー率）の推移
B26: 3 全国の1事業所当たりの排出傾向との比較
B27: 7）1事業所当たりの排出傾向（全国平均値との比較）（令和3年度） | C27: 横棒グラフ | D27: 2021年度 | E27: ・特定事業所1事業所当たりの排出量の全国平均との比較
B29: 自治体排出量カルテ④ 地方公共団体の再生可能エネルギー導入状況及び導入ポテンシャルの現状把握
B30: 1 地方公共団体のFIT・FIP制度による再生可能エネルギー（電気）
B31: 1）区域の再生可能エネルギーの導入設備容量（令和5年度） | C31: 円グラフ | D31: 2023年度 | E31: ・FIT・FIP公表情報の再生可能エネルギーの設備別の導入状況（導入設備容量）
B32: 2）区域の再生可能エネルギーによる発電電力量（令和5年度） | C32: 円グラフ | D32: 2023年度 | E32: ・FIT・FIP公表情報の再生可能エネルギーの設備別の導入状況（発電電力量）
B33: 3）区域の再生可能エネルギーの導入設備容量の推移（累積） | C33: 積上げ縦棒・折れ線グラフ | D33: 2015～2023年度 | E33: ・FIT・FIP公表情報の再生可能エネルギーの設備別導入設備容量の推移と区域の電気使用量に対するFIT・FIP太陽光導入比の推移
B34: 4）区域の太陽光発電（10kW未満）設備の導入件数の推移（累積） | C34: 縦棒グラフ | D34: 2015～2023年度 | E34: ・FIT・FIP公表情報の太陽光（10kW未満）の導入件数の推移
B35: 2 地方公共団体の再生可能エネルギーの導入ポテンシャル
B36: 5）導入ポテンシャル（電気のみ・設備容量） | C36: 円グラフ | D36: 2024年11月末時点 | E36: ・REPOSの再エネ導入ポテンシャル（電気のみ・設備容量）
B37: 6）導入ポテンシャル（発電電力量・利用可能熱量） | C37: 円グラフ | D37: 2024年11月末時点 | E37: ・REPOSの再エネ導入ポテンシャル（発電電力量・利用可能熱量）
B38: 3 区域のエネルギー消費量及び再生可能エネルギー導入ポテンシャル・導入量の比較（電気）
B39: 7）区域内のエネルギー消費量に対する再エネ導入ポテンシャル（電気） | C39: 縦棒グラフ | D39: 2023年度 | E39: ・区域の電気使用量に対する再エネ導入量、再エネ導入ポテンシャルの比較 ※区域の電気使用量は2022年度で代用
B40: 8）区域内の再エネ導入ポテンシャルと再エネ導入量（電気） | C40: 縦棒グラフ | D40: 2023年度 | E40: ・再エネ種別の再エネ導入ポテンシャルに対する再エネ導入量の比較
B42: ※人口が同程度の他の地方公共団体との排出量の比較シート、他の地方公共団体との再エネ導入量や再エネポテンシャルの比較シート、特定事業所集計表シートも付録しています。
B43: 自治体排出量カルテ 他の地方公共団体との比較（部門・分野別排出量）
B44: 1 部門・分野別排出量の比較（標準的手法）（令和3年度（2021年度）)
B45: 1）部門・分野別CO2排出量の比較 | C45: 積上げ横棒グラフ | D45: 2021年度 | E45: ・標準的手法に基づく区域の部門・分野別CO₂排出量を人口が同程度の28市区町村（都道府県の場合は47都道府県）と比較
B46: 2）部門・分野別CO2排出量構成比の比較 | C46: 100％積上げ横棒グラフ | D46: 2021年度 | E46: ・標準的手法に基づく区域の部門・分野別CO₂排出量構成比を人口が同程度の28市区町村（都道府県の場合は47都道府県）と比較
B47: 2 区域の排出量に占める特定事業所排出量比率の比較（令和3年度（2021年度）)
B48: 3）産業部門 | C48: 横棒グラフ | D48: 2021年度 | E48: ・標準的手法に基づく区域の産業部門排出量に対し特定事業所排出量が占める割合（カバー率）を人口が同程度の28市区町村（都道府県の場合は47都道府県）と比較
B49: 4）業務その他部門 | C49: 横棒グラフ | D49: 2021年度 | E49: ・標準的手法に基づく区域の業務その他部門排出量に対し特定事業所排出量が占める割合（カバー率）を人口が同程度の28市区町村（都道府県の場合は47都道府県）と比較
B50: 3 特定事業所排出量の比較（令和3年度（2021年度）)
B51: 5）特定事業所排出量の比較 | C51: 積上げ横棒グラフ | D51: 2021年度 | E51: ・特定事業所排出量を人口が同程度の28市区町村（都道府県の場合は47都道府県）と比較
B52: 6）特定事業所数の比較 | C52: 積上げ横棒グラフ | D52: 2021年度 | E52: ・特定事業所数を人口が同程度の28市区町村（都道府県の場合は47都道府県）と比較
B53: 7）特定事業所排出量の部門別構成比の比較 | C53: 100％積上げ横棒グラフ | D53: 2021年度 | E53: ・特定事業所排出量の部門別構成比を人口が同程度の28市区町村（都道府県の場合は47都道府県）と比較
B55: 自治体排出量カルテ 他の地方公共団体との比較（再エネ導入量・再エネポテンシャル）
B56: 1 再エネ導入量の比較（令和5年度（2023年度））
B57: 1）他の地方公共団体との再エネ別導入設備容量の比較 | C57: 積上げ横棒グラフ | D57: 2023年度 | E57: ・再エネ別導入設備容量を人口が同程度の28市区町村（都道府県の場合は47都道府県）と比較
B58: 2）他の地方公共団体との再エネ別発電電力量の比較 | C58: 積上げ横棒グラフ | D58: 2023年度 | E58: ・再エネ別発電電力量を人口が同程度の28市区町村（都道府県の場合は47都道府県）と比較
B59: 3）他の地方公共団体との対電気使用量FIT・FIP導入比の比較 | C59: 積上げ横棒グラフ | D59: 2023年度 | E59: ・対電気使用量FIT・FIP導入比を人口が同程度の28市区町村（都道府県の場合は47都道府県）と比較 ※区域の電気使用量は2022年度で代用
B60: 4）対世帯数FIT・FIP太陽光発電（10kW未満）導入比の比較 | C60: 横棒グラフ | D60: 2023年度 | E60: ・対世帯数FIT・FIP太陽光発電（10kW未満）導入比を人口が同程度の28市区町村（都道府県の場合は47都道府県）と比較 ※世帯数は2022年度で代用
B61: 2 再エネ導入ポテンシャルの比較
B62: 5）同一都道府県内における他の地方公共団体の再エネポテンシャル（発電電力量）の比較 | C62: 積上げ横棒グラフ | D62: 2024年11月末時点 | E62: ・他の地方公共団体の再エネポテンシャル（発電電力量）を同一都道府県内で比較
B63: 6）同一都道府県内における他の地方公共団体の電気使用量の比較 | C63: 横棒グラフ | D63: 2024年11月末時点 | E63: ・他の地方公共団体の電気使用量を同一都道府県内で比較（※2022年度で代用）
B64: 7）同一都道府県内の他の地方公共団体の再エネ不足量・余剰量の比較 | C64: 横棒グラフ | D64: 2024年11月末時点 | E64: ・他の地方公共団体の再エネ不足量・余剰量を同一都道府県内で比較 ※区域の電気使用量は2022年度で代用
B66: 特定事業所集計表シート
B67: 特定事業所集計表
B68: 特定事業所集計表 | C68: 表 | D68: 2011～2021年度 | E68: ・特定事業所の事業所数と排出量の集計表（日本標準産業分類別）

Sheet ①CO2排出量の現状把握
B1: 自治体排出量カルテ① CO2排出量の現状把握 | AK1: =年度マスタ!J4 -> 東神楽町 | AW1: グラフ用 | AY1: 1）～3） | AZ1: ※最新年度のグラフ名： | BB1: ="3）排出量の部門・分野別構成比 "&年度マスタ!K5&"（"&年度マスタ!J5&"年度）" -> 3）排出量の部門・分野別構成比 令和4年度（2022年度）
B3: ○地方公共団体の部門・分野別CO2排出量（標準的手法） | AZ3: 平成17年度 | BC3: 平成25年度 | BF3: =年度マスタ!K5 -> 令和4年度
C4: 1）部門・分野別CO2排出量構成比 平成17年度（2005年度） | T4: 4）部門・分野別CO2排出量の推移 | BA4: ［千t-CO2］
AY5: 産業部門 | BA5: =SUM(AZ6:AZ8) -> 30 | BD5: =SUM(BC6:BC8) -> 18 | BG5: =AK35 -> 16
K6: 部門・分野 | O6: 平成17年度 | P6: 構成比 | T6: [千t-CO2] | AX6: 製造業 | AY6: 製造業 | AZ6: =O11 -> 13 | BC6: =O32 -> 7 | BF6: =AK36 -> 7
O7: 排出量 | AX7: 建設業・鉱業 | AY7: 建設業・鉱業 | AZ7: =O12 -> 1 | BC7: =O33 -> 1 | BF7: =AK37 -> 1
O8: ［千t-CO2］ | AX8: 農林水産業 | AY8: 農林水産業 | AZ8: =O13 -> 16 | BC8: =O34 -> 10 | BF8: 9
K9: 合 計 | O9: =O10+O14+O15+O16+O22 -> 78.60487861 | P9: =P10+P14+P15+P16+P22 -> 100% | AX9: 業務その他部門 | AY9: 業務その他部門 | AZ9: =O14 -> 12 | BA9: =AZ9 -> 12 | BC9: =O35 -> 15 | BD9: =BC9 -> 15 | BF9: =AK39 -> 13 | BG9: =AK39 -> 13
L10: 産業部門 | O10: =SUM(O11:O13) -> 29.98080632 | P10: =O10/$O$9 -> 38% | AX10: 家庭部門 | AY10: 家庭部門 | AZ10: =O15 -> 16 | BA10: =AZ10 -> 16 | BC10: =O36 -> 21 | BD10: =BC10 -> 21 | BF10: =AK40 -> 19 | BG10: =AK40 -> 19
M11: 製造業 | O11: =VLOOKUP(年度マスタ!$K$4&"_"&O$6,データシート1!$A:$BT,MATCH("aa_"&$M11,データシート1!$A$1:$BT$1,0),0) -> 12.71320121 | P11: 16% | AX11: 運輸 | AY11: 運輸部門 | BA11: =SUM(AZ12:AZ14) -> 20 | BD11: =SUM(BC12:BC14) -> 20 | BG11: =AK41 -> 19
M12: 建設業・鉱業 | O12: =VLOOKUP(年度マスタ!$K$4&"_"&O$6,データシート1!$A:$BT,MATCH("aa_"&$M12,データシート1!$A$1:$BT$1,0),0) -> 1.163793895 | P12: 1% | AX12: 自動車 | AY12: 自動車 | AZ12: =O17 -> 19 | BC12: =O38 -> 19 | BF12: =AK42 -> 18
M13: 農林水産業 | O13: =VLOOKUP(年度マスタ!$K$4&"_"&O$6,データシート1!$A:$BT,MATCH("aa_"&$M13,データシート1!$A$1:$BT$1,0),0) -> 16.10381122 | P13: 20% | AX13: 鉄道 | AY13: 鉄道 | AZ13: =O20 -> 1 | BC13: =O41 -> 1 | BF13: =AK45 -> 1
L14: 業務その他部門 | O14: =VLOOKUP(年度マスタ!$K$4&"_"&O$6,データシート1!$A:$BT,MATCH("aa_"&$L14,データシート1!$A$1:$BT$1,0),0) -> 12.06917977 | P14: 15% | AX14: 船舶 | AY14: 船舶 | AZ14: =O21 -> 0 | BC14: =O42 -> 0 | BF14: =AK46 -> 0
L15: 家庭部門 | O15: =VLOOKUP(年度マスタ!$K$4&"_"&O$6,データシート1!$A:$BT,MATCH("aa_"&$L15,データシート1!$A$1:$BT$1,0),0) -> 16.41174657 | P15: 21% | AX15: 廃棄物 | AY15: 廃棄物分野（一般廃棄物） | AZ15: =O22 -> 1 | BA15: =AZ15 -> 1 | BC15: =O43 -> 1 | BD15: =BC15 -> 1 | BF15: =AK47 -> 2 | BG15: =AK47 -> 2
L16: 運輸部門 | O16: =SUM(O18:O21) -> 19.60370391 | P16: 25%
M17: 自動車 | O17: =SUM(O18:O19) -> 19.05008607 | P17: 24%
N18: 旅客 | O18: =VLOOKUP(年度マスタ!$K$4&"_"&O$6,データシート1!$A:$BT,MATCH("aa_"&$N18,データシート1!$A$1:$BT$1,0),0) -> 11.34114492 | P18: 14%
N19: 貨物 | O19: =VLOOKUP(年度マスタ!$K$4&"_"&O$6,データシート1!$A:$BT,MATCH("aa_"&$N19,データシート1!$A$1:$BT$1,0),0) -> 7.708941158 | P19: 10% | AX19: 4）
M20: 鉄道 | O20: =VLOOKUP(年度マスタ!$K$4&"_"&O$6,データシート1!$A:$BT,MATCH("aa_"&$M20,データシート1!$A$1:$BT$1,0),0) -> 0.5536178363 | P20: 1% | AY20: 2009年度 | AZ20: 2010年度 | BA20: 2011年度 | BB20: 2012年度 | BC20: 2013年度 | BD20: 2014年度 | BE20: 2015年度 | BF20: 2016年度 | BG20: 2017年度 | BH20: 2018年度 | BI20: 2019年度 | BJ20: 2020年度 | BK20: 2021年度 | BL20: 2022年度
M21: 船舶 | O21: =VLOOKUP(年度マスタ!$K$4&"_"&O$6,データシート1!$A:$BT,MATCH("aa_"&$M21,データシート1!$A$1:$BT$1,0),0) -> 0 | P21: 0% | AY21: 平成21年度 | AZ21: 平成22年度 | BA21: 平成23年度 | BB21: 平成24年度 | BC21: 平成25年度 | BD21: 平成26年度 | BE21: 平成27年度 | BF21: 平成28年度 | BG21: 平成29年度 | BH21: 平成30年度 | BI21: 令和元年度 | BJ21: 令和2年度 | BK21: 令和3年度 | BL21: 令和4年度
L22: 廃棄物分野（一般廃棄物） | O22: =VLOOKUP(年度マスタ!$K$4&"_"&O$6,データシート1!$A:$BT,MATCH("aa_"&$L22,データシート1!$A$1:$BT$1,0),0) -> 0.5394420359 | P22: 1% | AX22: 産業部門 | AY22: =X35 -> 23 | AZ22: 21 | BA22: 21 | BB22: 20 | BC22: 18 | BD22: 16 | BE22: 19 | BF22: 18 | BG22: 18 | BH22: 19 | BI22: 18 | BJ22: 19 | BK22: 19 | BL22: 16
Q23: ※表中の構成比は、四捨五入の関係で合計が100％にならない場合があります。 | AX23: 業務その他部門 | AY23: =X39 -> 11 | AZ23: =Y39 -> 10 | BA23: 13 | BB23: 16 | BC23: 15 | BD23: 16 | BE23: 15 | BF23: 13 | BG23: 13 | BH23: 13 | BI23: 12 | BJ23: 12 | BK23: 13 | BL23: 13
AX24: 家庭部門 | AY24: =X40 -> 15 | AZ24: =Y40 -> 15 | BA24: 19 | BB24: 22 | BC24: 21 | BD24: 23 | BE24: 22 | BF24: 23 | BG24: 22 | BH24: 21 | BI24: 21 | BJ24: 19 | BK24: 19 | BL24: 19
C25: 2）部門・分野別CO2排出量構成比 平成25年度（2013年度） | AX25: 運輸部門 | AY25: =X41 -> 19 | AZ25: =Y41 -> 19 | BA25: 19 | BB25: 19 | BC25: 20 | BD25: 20 | BE25: 21 | BF25: 21 | BG25: 21 | BH25: 21 | BI25: 21 | BJ25: 18 | BK25: 18 | BL25: 19
AX26: 廃棄物分野（一般廃棄物） | AY26: =X47 -> 1 | AZ26: 1 | BA26: 1 | BB26: 1 | BC26: 1 | BD26: 1 | BE26: 1 | BF26: 1 | BG26: 1 | BH26: 1 | BI26: 1 | BJ26: 1 | BK26: 1 | BL26: 2
K27: 部門・分野 | O27: 平成25年度 | P27: 構成比 | AX27: 合計 | AY27: =X34 -> 69 | AZ27: 67 | BA27: 73 | BB27: 78 | BC27: 75 | BD27: 77 | BE27: 78 | BF27: 77 | BG27: 76 | BH27: 76 | BI27: 73 | BJ27: 70 | BK27: 70 | BL27: 69
O28: 排出量
O29: ［千t-CO2］ | AX29: 5）
K30: 合 計 | O30: =O31+O35+O36+O37+O43 -> 74.79273698 | P30: =P31+P35+P36+P37+P43 -> 100% | AY30: データ（排出量）
L31: 産業部門 | O31: =SUM(O32:O34) -> 17.9260807 | P31: =O31/$O$30 -> 24% | AK31: ［千t-CO2］ | AY31: aa
M32: 製造業 | O32: =VLOOKUP(年度マスタ!$K$4&"_"&O$27,データシート1!$A:$BT,MATCH("aa_"&$M32,データシート1!$A$1:$BT$1,0),0) -> 7.068684775 | P32: 9% | T32: 部門・分野 | X32: 部門・分野別CO2排出量 | AY32: A.現況推計データ
M33: 建設業・鉱業 | O33: =VLOOKUP(年度マスタ!$K$4&"_"&O$27,データシート1!$A:$BT,MATCH("aa_"&$M33,データシート1!$A$1:$BT$1,0),0) -> 0.8879211404 | P33: 1% | X33: 平成21年度 | Y33: 平成22年度 | Z33: 平成23年度 | AA33: 平成24年度 | AB33: 平成25年度 | AC33: 平成26年度 | AD33: 平成27年度 | AE33: 平成28年度 | AF33: 平成29年度 | AG33: 平成30年度 | AH33: 令和元年度 | AI33: 令和2年度 | AJ33: 令和3年度 | AK33: 令和4年度 | AY33: =VLOOKUP(AY$32,年度マスタ!$I$5:$K$9,2,0) -> 2022
M34: 農林水産業 | O34: =VLOOKUP(年度マスタ!$K$4&"_"&O$27,データシート1!$A:$BT,MATCH("aa_"&$M34,データシート1!$A$1:$BT$1,0),0) -> 9.969474789 | P34: 13% | T34: 合 計 | X34: =X35+X39+X40+X41+X47 -> 69.18131025 | Y34: =Y35+Y39+Y40+Y41+Y47 -> 66.67512019 | Z34: 72.62995924 | AA34: 77.85435546 | AB34: 74.79273698 | AC34: 76.76893221 | AD34: 78.07106673 | AE34: 76.54136635 | AF34: 75.62584218 | AG34: 75.68003395 | AH34: 72.73921522 | AI34: 69.86063234 | AJ34: 70.36142813 | AK34: 68.63058368 | AY34: =VLOOKUP(AY$32,年度マスタ!$I$5:$K$9,3,0) -> 令和4年度
L35: 業務その他部門 | O35: =VLOOKUP(年度マスタ!$K$4&"_"&O$27,データシート1!$A:$BT,MATCH("aa_"&$L35,データシート1!$A$1:$BT$1,0),0) -> 14.78458523 | P35: 20% | U35: 産業部門 | X35: =SUM(X36:X38) -> 22.76802089 | Y35: =SUM(Y36:Y38) -> 20.68479395 | Z35: 20.51298536 | AA35: 19.88220348 | AB35: 17.9260807 | AC35: 16.06281085 | AD35: 18.9604041 | AE35: 18.49679185 | AF35: 17.57375508 | AG35: 19.25601033 | AH35: 17.8251309 | AI35: 19.04245411 | AJ35: 19.24968082 | AK35: 16.45942187
L36: 家庭部門 | O36: =VLOOKUP(年度マスタ!$K$4&"_"&O$27,データシート1!$A:$BT,MATCH("aa_"&$L36,データシート1!$A$1:$BT$1,0),0) -> 21.47832868 | P36: 29% | S36: 製造業 | V36: 製造業 | X36: =VLOOKUP(年度マスタ!$K$4&"_"&X$33,データシート1!$A:$BT,MATCH("aa_"&$S36,データシート1!$A$1:$BT$1,0),0) -> 8.943614984 | Y36: =VLOOKUP(年度マスタ!$K$4&"_"&Y$33,データシート1!$A:$BT,MATCH("aa_"&$S36,データシート1!$A$1:$BT$1,0),0) -> 8.012552466 | Z36: =VLOOKUP(年度マスタ!$K$4&"_"&Z$33,データシート1!$A:$BT,MATCH("aa_"&$S36,データシート1!$A$1:$BT$1,0),0) -> 8.370265898 | AA36: =VLOOKUP(年度マスタ!$K$4&"_"&AA$33,データシート1!$A:$BT,MATCH("aa_"&$S36,データシート1!$A$1:$BT$1,0),0) -> 7.518442885 | AB36: =VLOOKUP(年度マスタ!$K$4&"_"&AB$33,データシート1!$A:$BT,MATCH("aa_"&$S36,データシート1!$A$1:$BT$1,0),0) -> 7.068684775 | AC36: =VLOOKUP(年度マスタ!$K$4&"_"&AC$33,データシート1!$A:$BT,MATCH("aa_"&$S36,データシート1!$A$1:$BT$1,0),0) -> 6.701735402 | AD36: =VLOOKUP(年度マスタ!$K$4&"_"&AD$33,データシート1!$A:$BT,MATCH("aa_"&$S36,データシート1!$A$1:$BT$1,0),0) -> 9.193492559 | AE36: =VLOOKUP(年度マスタ!$K$4&"_"&AE$33,データシート1!$A:$BT,MATCH("aa_"&$S36,データシート1!$A$1:$BT$1,0),0) -> 8.110992299 | AF36: =VLOOKUP(年度マスタ!$K$4&"_"&AF$33,データシート1!$A:$BT,MATCH("aa_"&$S36,データシート1!$A$1:$BT$1,0),0) -> 8.09880432 | AG36: =VLOOKUP(年度マスタ!$K$4&"_"&AG$33,データシート1!$A:$BT,MATCH("aa_"&$S36,データシート1!$A$1:$BT$1,0),0) -> 10.55255401 | AH36: =VLOOKUP(年度マスタ!$K$4&"_"&AH$33,データシート1!$A:$BT,MATCH("aa_"&$S36,データシート1!$A$1:$BT$1,0),0) -> 9.143537641 | AI36: =VLOOKUP(年度マスタ!$K$4&"_"&AI$33,データシート1!$A:$BT,MATCH("aa_"&$S36,データシート1!$A$1:$BT$1,0),0) -> 7.479014471 | AJ36: =VLOOKUP(年度マスタ!$K$4&"_"&AJ$33,データシート1!$A:$BT,MATCH("aa_"&$S36,データシート1!$A$1:$BT$1,0),0) -> 8.657631336 | AK36: =VLOOKUP(年度マスタ!$K$4&"_"&AK$33,データシート1!$A:$BT,MATCH("aa_"&$S36,データシート1!$A$1:$BT$1,0),0) -> 6.917404512 | AX36: 列名 | AY36: 製造業 | AZ36: 建設業・鉱業 | BA36: 農林水産業 | BB36: 業務その他部門 | BC36: 家庭部門 | BD36: 旅客 | BE36: 貨物 | BF36: 鉄道 | BG36: 船舶 | BH36: 廃棄物分野（一般廃棄物）
L37: 運輸部門 | O37: =SUM(O39:O42) -> 20.00925599 | P37: 27% | S37: 建設業・鉱業 | V37: 建設業・鉱業 | X37: =VLOOKUP(年度マスタ!$K$4&"_"&X$33,データシート1!$A:$BT,MATCH("aa_"&$S37,データシート1!$A$1:$BT$1,0),0) -> 0.6525932667 | Y37: =VLOOKUP(年度マスタ!$K$4&"_"&Y$33,データシート1!$A:$BT,MATCH("aa_"&$S37,データシート1!$A$1:$BT$1,0),0) -> 0.68059358 | Z37: =VLOOKUP(年度マスタ!$K$4&"_"&Z$33,データシート1!$A:$BT,MATCH("aa_"&$S37,データシート1!$A$1:$BT$1,0),0) -> 0.9536382005 | AA37: =VLOOKUP(年度マスタ!$K$4&"_"&AA$33,データシート1!$A:$BT,MATCH("aa_"&$S37,データシート1!$A$1:$BT$1,0),0) -> 1.074310316 | AB37: =VLOOKUP(年度マスタ!$K$4&"_"&AB$33,データシート1!$A:$BT,MATCH("aa_"&$S37,データシート1!$A$1:$BT$1,0),0) -> 0.8879211404 | AC37: =VLOOKUP(年度マスタ!$K$4&"_"&AC$33,データシート1!$A:$BT,MATCH("aa_"&$S37,データシート1!$A$1:$BT$1,0),0) -> 0.9241120532 | AD37: =VLOOKUP(年度マスタ!$K$4&"_"&AD$33,データシート1!$A:$BT,MATCH("aa_"&$S37,データシート1!$A$1:$BT$1,0),0) -> 0.886127395 | AE37: =VLOOKUP(年度マスタ!$K$4&"_"&AE$33,データシート1!$A:$BT,MATCH("aa_"&$S37,データシート1!$A$1:$BT$1,0),0) -> 0.8358645283 | AF37: =VLOOKUP(年度マスタ!$K$4&"_"&AF$33,データシート1!$A:$BT,MATCH("aa_"&$S37,データシート1!$A$1:$BT$1,0),0) -> 0.8541283956 | AG37: =VLOOKUP(年度マスタ!$K$4&"_"&AG$33,データシート1!$A:$BT,MATCH("aa_"&$S37,データシート1!$A$1:$BT$1,0),0) -> 0.7949621921 | AH37: =VLOOKUP(年度マスタ!$K$4&"_"&AH$33,データシート1!$A:$BT,MATCH("aa_"&$S37,データシート1!$A$1:$BT$1,0),0) -> 0.7376663771 | AI37: =VLOOKUP(年度マスタ!$K$4&"_"&AI$33,データシート1!$A:$BT,MATCH("aa_"&$S37,データシート1!$A$1:$BT$1,0),0) -> 0.776945529 | AJ37: =VLOOKUP(年度マスタ!$K$4&"_"&AJ$33,データシート1!$A:$BT,MATCH("aa_"&$S37,データシート1!$A$1:$BT$1,0),0) -> 0.7484142113 | AK37: =VLOOKUP(年度マスタ!$K$4&"_"&AK$33,データシート1!$A:$BT,MATCH("aa_"&$S37,データシート1!$A$1:$BT$1,0),0) -> 0.7158986652 | AW37: 00 | AX37: 都道府県範囲(全国) | AY37: =VLOOKUP($AW37&"_"&$AY$34,データシート1!$A:$BT,MATCH($AY$31&"_"&AY$36,データシート1!$A$1:$BT$1,0),0) -> 374767.4341 | AZ37: =VLOOKUP($AW37&"_"&$AY$34,データシート1!$A:$BT,MATCH($AY$31&"_"&AZ$36,データシート1!$A$1:$BT$1,0),0) -> 8264.063512 | BA37: =VLOOKUP($AW37&"_"&$AY$34,データシート1!$A:$BT,MATCH($AY$31&"_"&BA$36,データシート1!$A$1:$BT$1,0),0) -> 15348.15635 | BB37: =VLOOKUP($AW37&"_"&$AY$34,データシート1!$A:$BT,MATCH($AY$31&"_"&BB$36,データシート1!$A$1:$BT$1,0),0) -> 181031.2943 | BC37: =VLOOKUP($AW37&"_"&$AY$34,データシート1!$A:$BT,MATCH($AY$31&"_"&BC$36,データシート1!$A$1:$BT$1,0),0) -> 170770.0373 | BD37: =VLOOKUP($AW37&"_"&$AY$34,データシート1!$A:$BT,MATCH($AY$31&"_"&BD$36,データシート1!$A$1:$BT$1,0),0) -> 91550.79553 | BE37: =VLOOKUP($AW37&"_"&$AY$34,データシート1!$A:$BT,MATCH($AY$31&"_"&BE$36,データシート1!$A$1:$BT$1,0),0) -> 72904.23852 | BF37: =VLOOKUP($AW37&"_"&$AY$34,データシート1!$A:$BT,MATCH($AY$31&"_"&BF$36,データシート1!$A$1:$BT$1,0),0) -> 7383.271797 | BG37: =VLOOKUP($AW37&"_"&$AY$34,データシート1!$A:$BT,MATCH($AY$31&"_"&BG$36,データシート1!$A$1:$BT$1,0),0) -> 10210.94777 | BH37: =VLOOKUP($AW37&"_"&$AY$34,データシート1!$A:$BT,MATCH($AY$31&"_"&BH$36,データシート1!$A$1:$BT$1,0),0) -> 14652.39616
M38: 自動車 | O38: =SUM(O39:O40) -> 19.23183931 | P38: 26% | S38: 農林水産業 | V38: 農林水産業 | X38: =VLOOKUP(年度マスタ!$K$4&"_"&X$33,データシート1!$A:$BT,MATCH("aa_"&$S38,データシート1!$A$1:$BT$1,0),0) -> 13.17181264 | Y38: =VLOOKUP(年度マスタ!$K$4&"_"&Y$33,データシート1!$A:$BT,MATCH("aa_"&$S38,データシート1!$A$1:$BT$1,0),0) -> 11.9916479 | Z38: =VLOOKUP(年度マスタ!$K$4&"_"&Z$33,データシート1!$A:$BT,MATCH("aa_"&$S38,データシート1!$A$1:$BT$1,0),0) -> 11.18908126 | AA38: =VLOOKUP(年度マスタ!$K$4&"_"&AA$33,データシート1!$A:$BT,MATCH("aa_"&$S38,データシート1!$A$1:$BT$1,0),0) -> 11.28945028 | AB38: =VLOOKUP(年度マスタ!$K$4&"_"&AB$33,データシート1!$A:$BT,MATCH("aa_"&$S38,データシート1!$A$1:$BT$1,0),0) -> 9.969474789 | AC38: =VLOOKUP(年度マスタ!$K$4&"_"&AC$33,データシート1!$A:$BT,MATCH("aa_"&$S38,データシート1!$A$1:$BT$1,0),0) -> 8.436963396 | AD38: =VLOOKUP(年度マスタ!$K$4&"_"&AD$33,データシート1!$A:$BT,MATCH("aa_"&$S38,データシート1!$A$1:$BT$1,0),0) -> 8.880784149 | AE38: =VLOOKUP(年度マスタ!$K$4&"_"&AE$33,データシート1!$A:$BT,MATCH("aa_"&$S38,データシート1!$A$1:$BT$1,0),0) -> 9.549935018 | AF38: =VLOOKUP(年度マスタ!$K$4&"_"&AF$33,データシート1!$A:$BT,MATCH("aa_"&$S38,データシート1!$A$1:$BT$1,0),0) -> 8.620822366 | AG38: =VLOOKUP(年度マスタ!$K$4&"_"&AG$33,データシート1!$A:$BT,MATCH("aa_"&$S38,データシート1!$A$1:$BT$1,0),0) -> 7.908494129 | AH38: =VLOOKUP(年度マスタ!$K$4&"_"&AH$33,データシート1!$A:$BT,MATCH("aa_"&$S38,データシート1!$A$1:$BT$1,0),0) -> 7.943926881 | AI38: =VLOOKUP(年度マスタ!$K$4&"_"&AI$33,データシート1!$A:$BT,MATCH("aa_"&$S38,データシート1!$A$1:$BT$1,0),0) -> 10.78649411 | AJ38: =VLOOKUP(年度マスタ!$K$4&"_"&AJ$33,データシート1!$A:$BT,MATCH("aa_"&$S38,データシート1!$A$1:$BT$1,0),0) -> 9.843635271 | AK38: =VLOOKUP(年度マスタ!$K$4&"_"&AK$33,データシート1!$A:$BT,MATCH("aa_"&$S38,データシート1!$A$1:$BT$1,0),0) -> 8.826118692 | AW38: =年度マスタ!H4 -> 01 | AX38: 都道府県範囲（都道府県） | AY38: =VLOOKUP($AW38&"_"&$AY$34,データシート1!$A:$BT,MATCH($AY$31&"_"&AY$36,データシート1!$A$1:$BT$1,0),0) -> 11290.28359 | AZ38: =VLOOKUP($AW38&"_"&$AY$34,データシート1!$A:$BT,MATCH($AY$31&"_"&AZ$36,データシート1!$A$1:$BT$1,0),0) -> 495.787979 | BA38: =VLOOKUP($AW38&"_"&$AY$34,データシート1!$A:$BT,MATCH($AY$31&"_"&BA$36,データシート1!$A$1:$BT$1,0),0) -> 1926.678099 | BB38: =VLOOKUP($AW38&"_"&$AY$34,データシート1!$A:$BT,MATCH($AY$31&"_"&BB$36,データシート1!$A$1:$BT$1,0),0) -> 9185.495001 | BC38: =VLOOKUP($AW38&"_"&$AY$34,データシート1!$A:$BT,MATCH($AY$31&"_"&BC$36,データシート1!$A$1:$BT$1,0),0) -> 12129.35878 | BD38: =VLOOKUP($AW38&"_"&$AY$34,データシート1!$A:$BT,MATCH($AY$31&"_"&BD$36,データシート1!$A$1:$BT$1,0),0) -> 4115.105739 | BE38: =VLOOKUP($AW38&"_"&$AY$34,データシート1!$A:$BT,MATCH($AY$31&"_"&BE$36,データシート1!$A$1:$BT$1,0),0) -> 3482.136648 | BF38: =VLOOKUP($AW38&"_"&$AY$34,データシート1!$A:$BT,MATCH($AY$31&"_"&BF$36,データシート1!$A$1:$BT$1,0),0) -> 302.5858688 | BG38: =VLOOKUP($AW38&"_"&$AY$34,データシート1!$A:$BT,MATCH($AY$31&"_"&BG$36,データシート1!$A$1:$BT$1,0),0) -> 962.887977 | BH38: =VLOOKUP($AW38&"_"&$AY$34,データシート1!$A:$BT,MATCH($AY$31&"_"&BH$36,データシート1!$A$1:$BT$1,0),0) -> 456.7800079
N39: 旅客 | O39: =VLOOKUP(年度マスタ!$K$4&"_"&O$27,データシート1!$A:$BT,MATCH("aa_"&$N39,データシート1!$A$1:$BT$1,0),0) -> 12.04850599 | P39: 16% | S39: 業務その他部門 | U39: 業務その他部門 | X39: =VLOOKUP(年度マスタ!$K$4&"_"&X$33,データシート1!$A:$BT,MATCH("aa_"&$S39,データシート1!$A$1:$BT$1,0),0) -> 11.31888968 | Y39: =VLOOKUP(年度マスタ!$K$4&"_"&Y$33,データシート1!$A:$BT,MATCH("aa_"&$S39,データシート1!$A$1:$BT$1,0),0) -> 10.13198489 | Z39: =VLOOKUP(年度マスタ!$K$4&"_"&Z$33,データシート1!$A:$BT,MATCH("aa_"&$S39,データシート1!$A$1:$BT$1,0),0) -> 12.79954546 | AA39: =VLOOKUP(年度マスタ!$K$4&"_"&AA$33,データシート1!$A:$BT,MATCH("aa_"&$S39,データシート1!$A$1:$BT$1,0),0) -> 15.8969948 | AB39: =VLOOKUP(年度マスタ!$K$4&"_"&AB$33,データシート1!$A:$BT,MATCH("aa_"&$S39,データシート1!$A$1:$BT$1,0),0) -> 14.78458523 | AC39: =VLOOKUP(年度マスタ!$K$4&"_"&AC$33,データシート1!$A:$BT,MATCH("aa_"&$S39,データシート1!$A$1:$BT$1,0),0) -> 15.93923941 | AD39: =VLOOKUP(年度マスタ!$K$4&"_"&AD$33,データシート1!$A:$BT,MATCH("aa_"&$S39,データシート1!$A$1:$BT$1,0),0) -> 15.42237517 | AE39: =VLOOKUP(年度マスタ!$K$4&"_"&AE$33,データシート1!$A:$BT,MATCH("aa_"&$S39,データシート1!$A$1:$BT$1,0),0) -> 13.22289812 | AF39: =VLOOKUP(年度マスタ!$K$4&"_"&AF$33,データシート1!$A:$BT,MATCH("aa_"&$S39,データシート1!$A$1:$BT$1,0),0) -> 13.25846733 | AG39: =VLOOKUP(年度マスタ!$K$4&"_"&AG$33,データシート1!$A:$BT,MATCH("aa_"&$S39,データシート1!$A$1:$BT$1,0),0) -> 13.3238591 | AH39: =VLOOKUP(年度マスタ!$K$4&"_"&AH$33,データシート1!$A:$BT,MATCH("aa_"&$S39,データシート1!$A$1:$BT$1,0),0) -> 11.95271146 | AI39: =VLOOKUP(年度マスタ!$K$4&"_"&AI$33,データシート1!$A:$BT,MATCH("aa_"&$S39,データシート1!$A$1:$BT$1,0),0) -> 12.41527133 | AJ39: =VLOOKUP(年度マスタ!$K$4&"_"&AJ$33,データシート1!$A:$BT,MATCH("aa_"&$S39,データシート1!$A$1:$BT$1,0),0) -> 12.60915434 | AK39: =VLOOKUP(年度マスタ!$K$4&"_"&AK$33,データシート1!$A:$BT,MATCH("aa_"&$S39,データシート1!$A$1:$BT$1,0),0) -> 12.85569397 | AW39: =年度マスタ!K4 -> 01453 | AX39: 市区町村範囲 | AY39: =VLOOKUP($AW39&"_"&$AY$34,データシート1!$A:$BT,MATCH($AY$31&"_"&AY$36,データシート1!$A$1:$BT$1,0),0) -> 6.917404512 | AZ39: =VLOOKUP($AW39&"_"&$AY$34,データシート1!$A:$BT,MATCH($AY$31&"_"&AZ$36,データシート1!$A$1:$BT$1,0),0) -> 0.7158986652 | BA39: =VLOOKUP($AW39&"_"&$AY$34,データシート1!$A:$BT,MATCH($AY$31&"_"&BA$36,データシート1!$A$1:$BT$1,0),0) -> 8.826118692 | BB39: =VLOOKUP($AW39&"_"&$AY$34,データシート1!$A:$BT,MATCH($AY$31&"_"&BB$36,データシート1!$A$1:$BT$1,0),0) -> 12.85569397 | BC39: =VLOOKUP($AW39&"_"&$AY$34,データシート1!$A:$BT,MATCH($AY$31&"_"&BC$36,データシート1!$A$1:$BT$1,0),0) -> 18.86696198 | BD39: =VLOOKUP($AW39&"_"&$AY$34,データシート1!$A:$BT,MATCH($AY$31&"_"&BD$36,データシート1!$A$1:$BT$1,0),0) -> 10.85039336 | BE39: =VLOOKUP($AW39&"_"&$AY$34,データシート1!$A:$BT,MATCH($AY$31&"_"&BE$36,データシート1!$A$1:$BT$1,0),0) -> 7.506015378 | BF39: =VLOOKUP($AW39&"_"&$AY$34,データシート1!$A:$BT,MATCH($AY$31&"_"&BF$36,データシート1!$A$1:$BT$1,0),0) -> 0.5854605837 | BG39: =VLOOKUP($AW39&"_"&$AY$34,データシート1!$A:$BT,MATCH($AY$31&"_"&BG$36,データシート1!$A$1:$BT$1,0),0) -> 0 | BH39: =VLOOKUP($AW39&"_"&$AY$34,データシート1!$A:$BT,MATCH($AY$31&"_"&BH$36,データシート1!$A$1:$BT$1,0),0) -> 1.506636536
N40: 貨物 | O40: =VLOOKUP(年度マスタ!$K$4&"_"&O$27,データシート1!$A:$BT,MATCH("aa_"&$N40,データシート1!$A$1:$BT$1,0),0) -> 7.183333317 | P40: 10% | S40: 家庭部門 | U40: 家庭部門 | X40: =VLOOKUP(年度マスタ!$K$4&"_"&X$33,データシート1!$A:$BT,MATCH("aa_"&$S40,データシート1!$A$1:$BT$1,0),0) -> 15.2793159 | Y40: =VLOOKUP(年度マスタ!$K$4&"_"&Y$33,データシート1!$A:$BT,MATCH("aa_"&$S40,データシート1!$A$1:$BT$1,0),0) -> 15.30816674 | Z40: =VLOOKUP(年度マスタ!$K$4&"_"&Z$33,データシート1!$A:$BT,MATCH("aa_"&$S40,データシート1!$A$1:$BT$1,0),0) -> 19.11659068 | AA40: =VLOOKUP(年度マスタ!$K$4&"_"&AA$33,データシート1!$A:$BT,MATCH("aa_"&$S40,データシート1!$A$1:$BT$1,0),0) -> 21.64198931 | AB40: =VLOOKUP(年度マスタ!$K$4&"_"&AB$33,データシート1!$A:$BT,MATCH("aa_"&$S40,データシート1!$A$1:$BT$1,0),0) -> 21.47832868 | AC40: =VLOOKUP(年度マスタ!$K$4&"_"&AC$33,データシート1!$A:$BT,MATCH("aa_"&$S40,データシート1!$A$1:$BT$1,0),0) -> 23.41318666 | AD40: =VLOOKUP(年度マスタ!$K$4&"_"&AD$33,データシート1!$A:$BT,MATCH("aa_"&$S40,データシート1!$A$1:$BT$1,0),0) -> 22.15606558 | AE40: =VLOOKUP(年度マスタ!$K$4&"_"&AE$33,データシート1!$A:$BT,MATCH("aa_"&$S40,データシート1!$A$1:$BT$1,0),0) -> 22.83436594 | AF40: =VLOOKUP(年度マスタ!$K$4&"_"&AF$33,データシート1!$A:$BT,MATCH("aa_"&$S40,データシート1!$A$1:$BT$1,0),0) -> 22.48004178 | AG40: =VLOOKUP(年度マスタ!$K$4&"_"&AG$33,データシート1!$A:$BT,MATCH("aa_"&$S40,データシート1!$A$1:$BT$1,0),0) -> 20.85030582 | AH40: =VLOOKUP(年度マスタ!$K$4&"_"&AH$33,データシート1!$A:$BT,MATCH("aa_"&$S40,データシート1!$A$1:$BT$1,0),0) -> 21.11265943 | AI40: =VLOOKUP(年度マスタ!$K$4&"_"&AI$33,データシート1!$A:$BT,MATCH("aa_"&$S40,データシート1!$A$1:$BT$1,0),0) -> 19.40873489 | AJ40: =VLOOKUP(年度マスタ!$K$4&"_"&AJ$33,データシート1!$A:$BT,MATCH("aa_"&$S40,データシート1!$A$1:$BT$1,0),0) -> 19.297989 | AK40: =VLOOKUP(年度マスタ!$K$4&"_"&AK$33,データシート1!$A:$BT,MATCH("aa_"&$S40,データシート1!$A$1:$BT$1,0),0) -> 18.86696198
M41: 鉄道 | O41: =VLOOKUP(年度マスタ!$K$4&"_"&O$27,データシート1!$A:$BT,MATCH("aa_"&$M41,データシート1!$A$1:$BT$1,0),0) -> 0.7774166827 | P41: 1% | S41: 運輸部門 | U41: 運輸部門 | X41: =X42+X45+X46 -> 18.9918848 | Y41: =Y42+Y45+Y46 -> 19.46195591 | Z41: 18.84875922 | AA41: 19.27351914 | AB41: 20.00925599 | AC41: 19.95188796 | AD41: 20.56765201 | AE41: 20.92550695 | AF41: 20.90525276 | AG41: 20.77488504 | AH41: 20.52064326 | AI41: =AI42+AI45+AI46 -> 18.105362 | AJ41: =AJ42+AJ45+AJ46 -> 17.97517123 | AK41: =AK42+AK45+AK46 -> 18.94186933
M42: 船舶 | O42: =VLOOKUP(年度マスタ!$K$4&"_"&O$27,データシート1!$A:$BT,MATCH("aa_"&$M42,データシート1!$A$1:$BT$1,0),0) -> 0 | P42: 0% | V42: 自動車 | X42: =SUM(X43:X44) -> 18.43887606 | Y42: =SUM(Y43:Y44) -> 18.88100462 | Z42: 18.16495412 | AA42: 18.51754062 | AB42: 19.23183931 | AC42: 19.1921243 | AD42: 19.81313956 | AE42: 20.19072196 | AF42: 20.19627029 | AG42: 20.12073146 | AH42: 19.88879233 | AI42: 17.50667482 | AJ42: 17.38487758 | AK42: 18.35640874 | AX42: 産業部門 | AY42: 業務その他部門 | AZ42: 家庭部門 | BA42: 運輸部門 | BB42: 廃棄物分野（一般廃棄物） | BC42: 合計
L43: 廃棄物分野（一般廃棄物） | O43: =VLOOKUP(年度マスタ!$K$4&"_"&O$27,データシート1!$A:$BT,MATCH("aa_"&$L43,データシート1!$A$1:$BT$1,0),0) -> 0.5944863709 | P43: 1% | S43: 旅客 | W43: 旅客 | X43: =VLOOKUP(年度マスタ!$K$4&"_"&X$33,データシート1!$A:$BT,MATCH("aa_"&$S43,データシート1!$A$1:$BT$1,0),0) -> 11.28926661 | Y43: =VLOOKUP(年度マスタ!$K$4&"_"&Y$33,データシート1!$A:$BT,MATCH("aa_"&$S43,データシート1!$A$1:$BT$1,0),0) -> 11.57374831 | Z43: =VLOOKUP(年度マスタ!$K$4&"_"&Z$33,データシート1!$A:$BT,MATCH("aa_"&$S43,データシート1!$A$1:$BT$1,0),0) -> 11.45484543 | AA43: =VLOOKUP(年度マスタ!$K$4&"_"&AA$33,データシート1!$A:$BT,MATCH("aa_"&$S43,データシート1!$A$1:$BT$1,0),0) -> 11.78916119 | AB43: =VLOOKUP(年度マスタ!$K$4&"_"&AB$33,データシート1!$A:$BT,MATCH("aa_"&$S43,データシート1!$A$1:$BT$1,0),0) -> 12.04850599 | AC43: =VLOOKUP(年度マスタ!$K$4&"_"&AC$33,データシート1!$A:$BT,MATCH("aa_"&$S43,データシート1!$A$1:$BT$1,0),0) -> 11.79068527 | AD43: =VLOOKUP(年度マスタ!$K$4&"_"&AD$33,データシート1!$A:$BT,MATCH("aa_"&$S43,データシート1!$A$1:$BT$1,0),0) -> 12.19981581 | AE43: =VLOOKUP(年度マスタ!$K$4&"_"&AE$33,データシート1!$A:$BT,MATCH("aa_"&$S43,データシート1!$A$1:$BT$1,0),0) -> 12.27100521 | AF43: =VLOOKUP(年度マスタ!$K$4&"_"&AF$33,データシート1!$A:$BT,MATCH("aa_"&$S43,データシート1!$A$1:$BT$1,0),0) -> 12.15774408 | AG43: =VLOOKUP(年度マスタ!$K$4&"_"&AG$33,データシート1!$A:$BT,MATCH("aa_"&$S43,データシート1!$A$1:$BT$1,0),0) -> 12.15744277 | AH43: =VLOOKUP(年度マスタ!$K$4&"_"&AH$33,データシート1!$A:$BT,MATCH("aa_"&$S43,データシート1!$A$1:$BT$1,0),0) -> 12.32296195 | AI43: =VLOOKUP(年度マスタ!$K$4&"_"&AI$33,データシート1!$A:$BT,MATCH("aa_"&$S43,データシート1!$A$1:$BT$1,0),0) -> 10.2480776 | AJ43: =VLOOKUP(年度マスタ!$K$4&"_"&AJ$33,データシート1!$A:$BT,MATCH("aa_"&$S43,データシート1!$A$1:$BT$1,0),0) -> 9.838783095 | AK43: =VLOOKUP(年度マスタ!$K$4&"_"&AK$33,データシート1!$A:$BT,MATCH("aa_"&$S43,データシート1!$A$1:$BT$1,0),0) -> 10.85039336 | AW43: =AW46 -> 全国 | AX43: =AX46/$BC46 -> 42% | AY43: 19% | AZ43: 18% | BA43: 19% | BB43: 2% | BC43: =SUM(AX43:BB43) -> 100%
Q44: ※表中の構成比は、四捨五入の関係で合計が100％にならない場合があります。 | S44: 貨物 | W44: 貨物 | X44: =VLOOKUP(年度マスタ!$K$4&"_"&X$33,データシート1!$A:$BT,MATCH("aa_"&$S44,データシート1!$A$1:$BT$1,0),0) -> 7.149609448 | Y44: =VLOOKUP(年度マスタ!$K$4&"_"&Y$33,データシート1!$A:$BT,MATCH("aa_"&$S44,データシート1!$A$1:$BT$1,0),0) -> 7.307256314 | Z44: =VLOOKUP(年度マスタ!$K$4&"_"&Z$33,データシート1!$A:$BT,MATCH("aa_"&$S44,データシート1!$A$1:$BT$1,0),0) -> 6.710108693 | AA44: =VLOOKUP(年度マスタ!$K$4&"_"&AA$33,データシート1!$A:$BT,MATCH("aa_"&$S44,データシート1!$A$1:$BT$1,0),0) -> 6.728379437 | AB44: =VLOOKUP(年度マスタ!$K$4&"_"&AB$33,データシート1!$A:$BT,MATCH("aa_"&$S44,データシート1!$A$1:$BT$1,0),0) -> 7.183333317 | AC44: =VLOOKUP(年度マスタ!$K$4&"_"&AC$33,データシート1!$A:$BT,MATCH("aa_"&$S44,データシート1!$A$1:$BT$1,0),0) -> 7.401439032 | AD44: =VLOOKUP(年度マスタ!$K$4&"_"&AD$33,データシート1!$A:$BT,MATCH("aa_"&$S44,データシート1!$A$1:$BT$1,0),0) -> 7.613323746 | AE44: =VLOOKUP(年度マスタ!$K$4&"_"&AE$33,データシート1!$A:$BT,MATCH("aa_"&$S44,データシート1!$A$1:$BT$1,0),0) -> 7.919716753 | AF44: =VLOOKUP(年度マスタ!$K$4&"_"&AF$33,データシート1!$A:$BT,MATCH("aa_"&$S44,データシート1!$A$1:$BT$1,0),0) -> 8.038526203 | AG44: =VLOOKUP(年度マスタ!$K$4&"_"&AG$33,データシート1!$A:$BT,MATCH("aa_"&$S44,データシート1!$A$1:$BT$1,0),0) -> 7.963288691 | AH44: =VLOOKUP(年度マスタ!$K$4&"_"&AH$33,データシート1!$A:$BT,MATCH("aa_"&$S44,データシート1!$A$1:$BT$1,0),0) -> 7.56583037 | AI44: =VLOOKUP(年度マスタ!$K$4&"_"&AI$33,データシート1!$A:$BT,MATCH("aa_"&$S44,データシート1!$A$1:$BT$1,0),0) -> 7.258597216 | AJ44: =VLOOKUP(年度マスタ!$K$4&"_"&AJ$33,データシート1!$A:$BT,MATCH("aa_"&$S44,データシート1!$A$1:$BT$1,0),0) -> 7.54609448 | AK44: =VLOOKUP(年度マスタ!$K$4&"_"&AK$33,データシート1!$A:$BT,MATCH("aa_"&$S44,データシート1!$A$1:$BT$1,0),0) -> 7.506015378 | AW44: =AW47 -> 北海道 | AX44: 31% | AY44: 21% | AZ44: 27% | BA44: 20% | BB44: 1% | BC44: =SUM(AX44:BB44) -> 100%
S45: 鉄道 | V45: 鉄道 | X45: =VLOOKUP(年度マスタ!$K$4&"_"&X$33,データシート1!$A:$BT,MATCH("aa_"&$S45,データシート1!$A$1:$BT$1,0),0) -> 0.5530087414 | Y45: =VLOOKUP(年度マスタ!$K$4&"_"&Y$33,データシート1!$A:$BT,MATCH("aa_"&$S45,データシート1!$A$1:$BT$1,0),0) -> 0.5809512883 | Z45: =VLOOKUP(年度マスタ!$K$4&"_"&Z$33,データシート1!$A:$BT,MATCH("aa_"&$S45,データシート1!$A$1:$BT$1,0),0) -> 0.6838050953 | AA45: =VLOOKUP(年度マスタ!$K$4&"_"&AA$33,データシート1!$A:$BT,MATCH("aa_"&$S45,データシート1!$A$1:$BT$1,0),0) -> 0.7559785135 | AB45: =VLOOKUP(年度マスタ!$K$4&"_"&AB$33,データシート1!$A:$BT,MATCH("aa_"&$S45,データシート1!$A$1:$BT$1,0),0) -> 0.7774166827 | AC45: =VLOOKUP(年度マスタ!$K$4&"_"&AC$33,データシート1!$A:$BT,MATCH("aa_"&$S45,データシート1!$A$1:$BT$1,0),0) -> 0.7597636578 | AD45: =VLOOKUP(年度マスタ!$K$4&"_"&AD$33,データシート1!$A:$BT,MATCH("aa_"&$S45,データシート1!$A$1:$BT$1,0),0) -> 0.7545124566 | AE45: =VLOOKUP(年度マスタ!$K$4&"_"&AE$33,データシート1!$A:$BT,MATCH("aa_"&$S45,データシート1!$A$1:$BT$1,0),0) -> 0.7347849857 | AF45: =VLOOKUP(年度マスタ!$K$4&"_"&AF$33,データシート1!$A:$BT,MATCH("aa_"&$S45,データシート1!$A$1:$BT$1,0),0) -> 0.7089824737 | AG45: =VLOOKUP(年度マスタ!$K$4&"_"&AG$33,データシート1!$A:$BT,MATCH("aa_"&$S45,データシート1!$A$1:$BT$1,0),0) -> 0.6541535813 | AH45: =VLOOKUP(年度マスタ!$K$4&"_"&AH$33,データシート1!$A:$BT,MATCH("aa_"&$S45,データシート1!$A$1:$BT$1,0),0) -> 0.6318509379 | AI45: =VLOOKUP(年度マスタ!$K$4&"_"&AI$33,データシート1!$A:$BT,MATCH("aa_"&$S45,データシート1!$A$1:$BT$1,0),0) -> 0.5986871854 | AJ45: =VLOOKUP(年度マスタ!$K$4&"_"&AJ$33,データシート1!$A:$BT,MATCH("aa_"&$S45,データシート1!$A$1:$BT$1,0),0) -> 0.5902936558 | AK45: =VLOOKUP(年度マスタ!$K$4&"_"&AK$33,データシート1!$A:$BT,MATCH("aa_"&$S45,データシート1!$A$1:$BT$1,0),0) -> 0.5854605837 | AW45: =AW48 -> 東神楽町 | AX45: =AX48/$BC48 -> 24% | AY45: 19% | AZ45: 27% | BA45: 28% | BB45: 2% | BC45: =SUM(AX45:BB45) -> 100%
C46: 3）部門・分野別CO2排出量構成比 令和4年度（2022年度） | S46: 船舶 | V46: 船舶 | X46: =VLOOKUP(年度マスタ!$K$4&"_"&X$33,データシート1!$A:$BT,MATCH("aa_"&$S46,データシート1!$A$1:$BT$1,0),0) -> 0 | Y46: =VLOOKUP(年度マスタ!$K$4&"_"&Y$33,データシート1!$A:$BT,MATCH("aa_"&$S46,データシート1!$A$1:$BT$1,0),0) -> 0 | Z46: =VLOOKUP(年度マスタ!$K$4&"_"&Z$33,データシート1!$A:$BT,MATCH("aa_"&$S46,データシート1!$A$1:$BT$1,0),0) -> 0 | AA46: =VLOOKUP(年度マスタ!$K$4&"_"&AA$33,データシート1!$A:$BT,MATCH("aa_"&$S46,データシート1!$A$1:$BT$1,0),0) -> 0 | AB46: =VLOOKUP(年度マスタ!$K$4&"_"&AB$33,データシート1!$A:$BT,MATCH("aa_"&$S46,データシート1!$A$1:$BT$1,0),0) -> 0 | AC46: =VLOOKUP(年度マスタ!$K$4&"_"&AC$33,データシート1!$A:$BT,MATCH("aa_"&$S46,データシート1!$A$1:$BT$1,0),0) -> 0 | AD46: =VLOOKUP(年度マスタ!$K$4&"_"&AD$33,データシート1!$A:$BT,MATCH("aa_"&$S46,データシート1!$A$1:$BT$1,0),0) -> 0 | AE46: =VLOOKUP(年度マスタ!$K$4&"_"&AE$33,データシート1!$A:$BT,MATCH("aa_"&$S46,データシート1!$A$1:$BT$1,0),0) -> 0 | AF46: =VLOOKUP(年度マスタ!$K$4&"_"&AF$33,データシート1!$A:$BT,MATCH("aa_"&$S46,データシート1!$A$1:$BT$1,0),0) -> 0 | AG46: =VLOOKUP(年度マスタ!$K$4&"_"&AG$33,データシート1!$A:$BT,MATCH("aa_"&$S46,データシート1!$A$1:$BT$1,0),0) -> 0 | AH46: =VLOOKUP(年度マスタ!$K$4&"_"&AH$33,データシート1!$A:$BT,MATCH("aa_"&$S46,データシート1!$A$1:$BT$1,0),0) -> 0 | AI46: =VLOOKUP(年度マスタ!$K$4&"_"&AI$33,データシート1!$A:$BT,MATCH("aa_"&$S46,データシート1!$A$1:$BT$1,0),0) -> 0 | AJ46: =VLOOKUP(年度マスタ!$K$4&"_"&AJ$33,データシート1!$A:$BT,MATCH("aa_"&$S46,データシート1!$A$1:$BT$1,0),0) -> 0 | AK46: =VLOOKUP(年度マスタ!$K$4&"_"&AK$33,データシート1!$A:$BT,MATCH("aa_"&$S46,データシート1!$A$1:$BT$1,0),0) -> 0 | AW46: 全国 | AX46: =SUM(AY37:BA37) -> 398,380 | AY46: =BB37 -> 181,031 | AZ46: 170,770 | BA46: =SUM(BD37:BG37) -> 182,049 | BB46: =BH37 -> 14,652 | BC46: =SUM(AX46:BB46) -> 946,883
C47: =BB1 -> 3）排出量の部門・分野別構成比 令和4年度（2022年度） | S47: 廃棄物分野（一般廃棄物） | U47: 廃棄物分野（一般廃棄物） | X47: =VLOOKUP(年度マスタ!$K$4&"_"&X$33,データシート1!$A:$BT,MATCH("aa_"&$S47,データシート1!$A$1:$BT$1,0),0) -> 0.8231989821 | Y47: =VLOOKUP(年度マスタ!$K$4&"_"&Y$33,データシート1!$A:$BT,MATCH("aa_"&$S47,データシート1!$A$1:$BT$1,0),0) -> 1.088218697 | Z47: =VLOOKUP(年度マスタ!$K$4&"_"&Z$33,データシート1!$A:$BT,MATCH("aa_"&$S47,データシート1!$A$1:$BT$1,0),0) -> 1.352078518 | AA47: =VLOOKUP(年度マスタ!$K$4&"_"&AA$33,データシート1!$A:$BT,MATCH("aa_"&$S47,データシート1!$A$1:$BT$1,0),0) -> 1.159648742 | AB47: =VLOOKUP(年度マスタ!$K$4&"_"&AB$33,データシート1!$A:$BT,MATCH("aa_"&$S47,データシート1!$A$1:$BT$1,0),0) -> 0.5944863709 | AC47: =VLOOKUP(年度マスタ!$K$4&"_"&AC$33,データシート1!$A:$BT,MATCH("aa_"&$S47,データシート1!$A$1:$BT$1,0),0) -> 1.401807329 | AD47: =VLOOKUP(年度マスタ!$K$4&"_"&AD$33,データシート1!$A:$BT,MATCH("aa_"&$S47,データシート1!$A$1:$BT$1,0),0) -> 0.9645698551 | AE47: =VLOOKUP(年度マスタ!$K$4&"_"&AE$33,データシート1!$A:$BT,MATCH("aa_"&$S47,データシート1!$A$1:$BT$1,0),0) -> 1.061803499 | AF47: =VLOOKUP(年度マスタ!$K$4&"_"&AF$33,データシート1!$A:$BT,MATCH("aa_"&$S47,データシート1!$A$1:$BT$1,0),0) -> 1.40832523 | AG47: =VLOOKUP(年度マスタ!$K$4&"_"&AG$33,データシート1!$A:$BT,MATCH("aa_"&$S47,データシート1!$A$1:$BT$1,0),0) -> 1.474973655 | AH47: =VLOOKUP(年度マスタ!$K$4&"_"&AH$33,データシート1!$A:$BT,MATCH("aa_"&$S47,データシート1!$A$1:$BT$1,0),0) -> 1.328070164 | AI47: =VLOOKUP(年度マスタ!$K$4&"_"&AI$33,データシート1!$A:$BT,MATCH("aa_"&$S47,データシート1!$A$1:$BT$1,0),0) -> 0.8888100056 | AJ47: =VLOOKUP(年度マスタ!$K$4&"_"&AJ$33,データシート1!$A:$BT,MATCH("aa_"&$S47,データシート1!$A$1:$BT$1,0),0) -> 1.229432741 | AK47: =VLOOKUP(年度マスタ!$K$4&"_"&AK$33,データシート1!$A:$BT,MATCH("aa_"&$S47,データシート1!$A$1:$BT$1,0),0) -> 1.506636536 | AW47: =年度マスタ!I4 -> 北海道 | AX47: =SUM(AY38:BA38) -> 13,713 | AY47: 9,185 | AZ47: 12,129 | BA47: =SUM(BD38:BG38) -> 8,863 | BB47: =BH38 -> 457 | BC47: =SUM(AX47:BB47) -> 44,347
K48: 部門・分野 | O48: =年度マスタ!K5 -> 令和4年度 | P48: 構成比 | AK48: ※表中の内訳と小計・合計は、四捨五入の関係で一致しない場合があります。 | AW48: =年度マスタ!J4 -> 東神楽町 | AX48: =SUM(AY39:BA39) -> 16 | AY48: =BB39 -> 13 | AZ48: =BC39 -> 19 | BA48: =SUM(BD39:BG39) -> 19 | BB48: =BH39 -> 2 | BC48: =SUM(AX48:BB48) -> 69
O49: 排出量
O50: ［千t-CO2］ | T50: 5）部門・分野別CO2排出量構成比の比較（都道府県平均及び全国平均）
K51: 合 計 | O51: =O52+O56+O57+O58+O64 -> 68.63058368 | P51: =P52+P56+P57+P58+P64 -> 100% | AK51: ="（"&年度マスタ!$K$5&"）" -> （令和4年度）
L52: 産業部門 | O52: =SUM(O53:O55) -> 16.45942187 | P52: =O52/$O$51 -> 24%
J53: 製造業 | M53: 製造業 | O53: =AK36 -> 6.917404512 | P53: 10%
J54: 建設業・鉱業 | M54: 建設業・鉱業 | O54: =AK37 -> 0.7158986652 | P54: 1%
J55: 農林水産業 | M55: 農林水産業 | O55: =AK38 -> 8.826118692 | P55: 13%
J56: 業務その他部門 | L56: 業務その他部門 | O56: =AK39 -> 12.85569397 | P56: 19%
J57: 家庭部門 | L57: 家庭部門 | O57: =AK40 -> 18.86696198 | P57: 27%
L58: 運輸部門 | O58: =SUM(O60:O63) -> 18.94186933 | P58: 28%
M59: 自動車 | O59: =SUM(O60:O61) -> 18.35640874 | P59: 27%
J60: 旅客 | N60: 旅客 | O60: =AK43 -> 10.85039336 | P60: 16%
J61: 貨物 | N61: 貨物 | O61: =AK44 -> 7.506015378 | P61: 11%
J62: 鉄道 | M62: 鉄道 | O62: =AK45 -> 0.5854605837 | P62: 1%
J63: 船舶 | M63: 船舶 | O63: =AK46 -> 0 | P63: 0%
J64: 廃棄物分野（一般廃棄物） | L64: 廃棄物分野（一般廃棄物） | O64: =AK47 -> 1.506636536 | P64: 2%
Q65: ※表中の構成比は、四捨五入の関係で合計が100％にならない場合があります。
B67: 区域のCO2排出量は、環境省「地方公共団体実行計画（区域施策編）策定･実施マニュアル」の標準的手法に基づき、統計資料の按分により地方公共団体別部門・分野別CO2排出量を推計した値です。なお、一般廃棄物のCO2排出量は、一般廃棄物処理実態調査結果の焼却施設ごとの年間処理量等から推計しています。 各地方公共団体の過年度のデータは、地方公共団体実行計画策定・実施支援サイト「部門別CO2排出量の現況推計(部門別データ)」（https://www.env.go.jp/policy/local_keikaku/tools/suikei2.html）を御参照ください。 本カルテに掲載している推計年度は、地方公共団体実行計画（区域施策編）で地域の温室効果ガス排出量の目標を策定する際に基準年度や現状年度として選択できます。令和4年度（2022年度）は最新の現況推計年度です。各部門・分野別CO2排出量構成比を分析することで施策の検討に役立てることができます。

Sheet ②活動量の現状把握
B1: 自治体排出量カルテ② 活動量の現状把握 | Z1: =年度マスタ!J4 -> 東神楽町
AH2: 製造業 | AI2: 建設業・鉱業 | AJ2: 農林水産業 | AK2: 業務その他 | AL2: 家庭 | AM2: 旅客自動車 | AN2: 貨物自動車 | AO2: 鉄道 | AP2: 船舶 | AQ2: 廃棄物
B3: ○地方公共団体の活動量 | AG3: １）部門・分野別指標の推移（廃棄物のみ排出量の推移）
AG4: 年度 | AH4: 製造業 | AI4: 建設業・鉱業 | AJ4: 農林水産業 | AK4: 業務その他 | AL4: 家庭 | AM4: 自動車 | AO4: 鉄道 | AP4: 船舶 | AQ4: 廃棄物分野（一般廃棄物）
C5: 1）部門・分野別指標の推移（廃棄物分野のみCO2排出量の推移） | AH5: 製造品出荷額等 | AI5: 従業者数 | AJ5: 従業者数 | AK5: 従業者数 | AL5: 世帯数 | AM5: 旅客 | AN5: 貨物 | AO5: 人口 | AP5: 入港船舶総トン数 | AQ5: CO2排出量
D6: 産業部門（製造業）- 製造品出荷額等 | L6: 産業部門（建設業・鉱業）- 従業者数 | T6: 産業部門（農林水産業）- 従業者数 | AH6: ［億円］ | AI6: ［人］ | AJ6: ［人］ | AK6: ［人］ | AL6: ［世帯］ | AM6: ［台］ | AN6: ［台］ | AO6: ［人］ | AP6: ［トン］ | AQ6: ［千t-CO2］
D7: =AH6 -> ［億円］ | L7: =AI6 -> ［人］ | T7: =AJ6 -> ［人］ | AF7: 2009 | AG7: 平成21年度 | AH7: =VLOOKUP(年度マスタ!$K$4&"_"&$AG7,データシート1!$A:$BT,MATCH("ab_"&$AH$2,データシート1!$A$1:$BT$1,0),0)/10^4 -> 31 | AI7: =VLOOKUP(年度マスタ!$K$4&"_"&$AG7,データシート1!$A:$BT,MATCH("ab_"&AI$2,データシート1!$A$1:$BT$1,0),0) -> 303 | AJ7: =VLOOKUP(年度マスタ!$K$4&"_"&$AG7,データシート1!$A:$BT,MATCH("ab_"&AJ$2,データシート1!$A$1:$BT$1,0),0) -> 213 | AK7: =VLOOKUP(年度マスタ!$K$4&"_"&$AG7,データシート1!$A:$BT,MATCH("ab_"&AK$2,データシート1!$A$1:$BT$1,0),0) -> 2,485 | AL7: =VLOOKUP(年度マスタ!$K$4&"_"&$AG7,データシート1!$A:$BT,MATCH("ab_"&AL$2,データシート1!$A$1:$BT$1,0),0) -> 3,588 | AM7: =VLOOKUP(年度マスタ!$K$4&"_"&$AG7,データシート1!$A:$BT,MATCH("ab_"&AM$2,データシート1!$A$1:$BT$1,0),0) -> 5,707 | AN7: =VLOOKUP(年度マスタ!$K$4&"_"&$AG7,データシート1!$A:$BT,MATCH("ab_"&AN$2,データシート1!$A$1:$BT$1,0),0) -> 1,439 | AO7: =VLOOKUP(年度マスタ!$K$4&"_"&$AG7,データシート1!$A:$BT,MATCH("ab_"&AO$2,データシート1!$A$1:$BT$1,0),0) -> 9,486 | AP7: =VLOOKUP(年度マスタ!$K$4&"_"&$AG7,データシート1!$A:$BT,MATCH("ab_"&AP$2,データシート1!$A$1:$BT$1,0),0) -> 0 | AQ7: =VLOOKUP(年度マスタ!$K$4&"_"&$AG7,データシート1!$A:$BT,MATCH("ab_"&AQ$2,データシート1!$A$1:$BT$1,0),0) -> 0.8231989821
AF8: 2010 | AG8: 平成22年度 | AH8: =VLOOKUP(年度マスタ!$K$4&"_"&$AG8,データシート1!$A:$BT,MATCH("ab_"&$AH$2,データシート1!$A$1:$BT$1,0),0)/10^4 -> 31 | AI8: =VLOOKUP(年度マスタ!$K$4&"_"&$AG8,データシート1!$A:$BT,MATCH("ab_"&AI$2,データシート1!$A$1:$BT$1,0),0) -> 303 | AJ8: =VLOOKUP(年度マスタ!$K$4&"_"&$AG8,データシート1!$A:$BT,MATCH("ab_"&AJ$2,データシート1!$A$1:$BT$1,0),0) -> 213 | AK8: =VLOOKUP(年度マスタ!$K$4&"_"&$AG8,データシート1!$A:$BT,MATCH("ab_"&AK$2,データシート1!$A$1:$BT$1,0),0) -> 2,485 | AL8: =VLOOKUP(年度マスタ!$K$4&"_"&$AG8,データシート1!$A:$BT,MATCH("ab_"&AL$2,データシート1!$A$1:$BT$1,0),0) -> 3,656 | AM8: =VLOOKUP(年度マスタ!$K$4&"_"&$AG8,データシート1!$A:$BT,MATCH("ab_"&AM$2,データシート1!$A$1:$BT$1,0),0) -> 5,878 | AN8: =VLOOKUP(年度マスタ!$K$4&"_"&$AG8,データシート1!$A:$BT,MATCH("ab_"&AN$2,データシート1!$A$1:$BT$1,0),0) -> 1,434 | AO8: =VLOOKUP(年度マスタ!$K$4&"_"&$AG8,データシート1!$A:$BT,MATCH("ab_"&AO$2,データシート1!$A$1:$BT$1,0),0) -> 9,549 | AP8: =VLOOKUP(年度マスタ!$K$4&"_"&$AG8,データシート1!$A:$BT,MATCH("ab_"&AP$2,データシート1!$A$1:$BT$1,0),0) -> 0 | AQ8: =VLOOKUP(年度マスタ!$K$4&"_"&$AG8,データシート1!$A:$BT,MATCH("ab_"&AQ$2,データシート1!$A$1:$BT$1,0),0) -> 1.088218697
AF9: 2011 | AG9: 平成23年度 | AH9: =VLOOKUP(年度マスタ!$K$4&"_"&$AG9,データシート1!$A:$BT,MATCH("ab_"&$AH$2,データシート1!$A$1:$BT$1,0),0)/10^4 -> 31 | AI9: =VLOOKUP(年度マスタ!$K$4&"_"&$AG9,データシート1!$A:$BT,MATCH("ab_"&AI$2,データシート1!$A$1:$BT$1,0),0) -> 303 | AJ9: =VLOOKUP(年度マスタ!$K$4&"_"&$AG9,データシート1!$A:$BT,MATCH("ab_"&AJ$2,データシート1!$A$1:$BT$1,0),0) -> 213 | AK9: =VLOOKUP(年度マスタ!$K$4&"_"&$AG9,データシート1!$A:$BT,MATCH("ab_"&AK$2,データシート1!$A$1:$BT$1,0),0) -> 2,485 | AL9: =VLOOKUP(年度マスタ!$K$4&"_"&$AG9,データシート1!$A:$BT,MATCH("ab_"&AL$2,データシート1!$A$1:$BT$1,0),0) -> 3,793 | AM9: =VLOOKUP(年度マスタ!$K$4&"_"&$AG9,データシート1!$A:$BT,MATCH("ab_"&AM$2,データシート1!$A$1:$BT$1,0),0) -> 5,944 | AN9: =VLOOKUP(年度マスタ!$K$4&"_"&$AG9,データシート1!$A:$BT,MATCH("ab_"&AN$2,データシート1!$A$1:$BT$1,0),0) -> 1,356 | AO9: =VLOOKUP(年度マスタ!$K$4&"_"&$AG9,データシート1!$A:$BT,MATCH("ab_"&AO$2,データシート1!$A$1:$BT$1,0),0) -> 9,744 | AP9: =VLOOKUP(年度マスタ!$K$4&"_"&$AG9,データシート1!$A:$BT,MATCH("ab_"&AP$2,データシート1!$A$1:$BT$1,0),0) -> 0 | AQ9: =VLOOKUP(年度マスタ!$K$4&"_"&$AG9,データシート1!$A:$BT,MATCH("ab_"&AQ$2,データシート1!$A$1:$BT$1,0),0) -> 1.352078518
AF10: 2012 | AG10: 平成24年度 | AH10: =VLOOKUP(年度マスタ!$K$4&"_"&$AG10,データシート1!$A:$BT,MATCH("ab_"&$AH$2,データシート1!$A$1:$BT$1,0),0)/10^4 -> 26 | AI10: =VLOOKUP(年度マスタ!$K$4&"_"&$AG10,データシート1!$A:$BT,MATCH("ab_"&AI$2,データシート1!$A$1:$BT$1,0),0) -> 303 | AJ10: =VLOOKUP(年度マスタ!$K$4&"_"&$AG10,データシート1!$A:$BT,MATCH("ab_"&AJ$2,データシート1!$A$1:$BT$1,0),0) -> 213 | AK10: =VLOOKUP(年度マスタ!$K$4&"_"&$AG10,データシート1!$A:$BT,MATCH("ab_"&AK$2,データシート1!$A$1:$BT$1,0),0) -> 2,485 | AL10: =VLOOKUP(年度マスタ!$K$4&"_"&$AG10,データシート1!$A:$BT,MATCH("ab_"&AL$2,データシート1!$A$1:$BT$1,0),0) -> 3,909 | AM10: =VLOOKUP(年度マスタ!$K$4&"_"&$AG10,データシート1!$A:$BT,MATCH("ab_"&AM$2,データシート1!$A$1:$BT$1,0),0) -> 6,166 | AN10: =VLOOKUP(年度マスタ!$K$4&"_"&$AG10,データシート1!$A:$BT,MATCH("ab_"&AN$2,データシート1!$A$1:$BT$1,0),0) -> 1,352 | AO10: =VLOOKUP(年度マスタ!$K$4&"_"&$AG10,データシート1!$A:$BT,MATCH("ab_"&AO$2,データシート1!$A$1:$BT$1,0),0) -> 9,915 | AP10: =VLOOKUP(年度マスタ!$K$4&"_"&$AG10,データシート1!$A:$BT,MATCH("ab_"&AP$2,データシート1!$A$1:$BT$1,0),0) -> 0 | AQ10: =VLOOKUP(年度マスタ!$K$4&"_"&$AG10,データシート1!$A:$BT,MATCH("ab_"&AQ$2,データシート1!$A$1:$BT$1,0),0) -> 1.159648742
AF11: 2013 | AG11: 平成25年度 | AH11: =VLOOKUP(年度マスタ!$K$4&"_"&$AG11,データシート1!$A:$BT,MATCH("ab_"&$AH$2,データシート1!$A$1:$BT$1,0),0)/10^4 -> 25 | AI11: =VLOOKUP(年度マスタ!$K$4&"_"&$AG11,データシート1!$A:$BT,MATCH("ab_"&AI$2,データシート1!$A$1:$BT$1,0),0) -> 303 | AJ11: =VLOOKUP(年度マスタ!$K$4&"_"&$AG11,データシート1!$A:$BT,MATCH("ab_"&AJ$2,データシート1!$A$1:$BT$1,0),0) -> 213 | AK11: =VLOOKUP(年度マスタ!$K$4&"_"&$AG11,データシート1!$A:$BT,MATCH("ab_"&AK$2,データシート1!$A$1:$BT$1,0),0) -> 2,485 | AL11: =VLOOKUP(年度マスタ!$K$4&"_"&$AG11,データシート1!$A:$BT,MATCH("ab_"&AL$2,データシート1!$A$1:$BT$1,0),0) -> 4,003 | AM11: =VLOOKUP(年度マスタ!$K$4&"_"&$AG11,データシート1!$A:$BT,MATCH("ab_"&AM$2,データシート1!$A$1:$BT$1,0),0) -> 6,583 | AN11: =VLOOKUP(年度マスタ!$K$4&"_"&$AG11,データシート1!$A:$BT,MATCH("ab_"&AN$2,データシート1!$A$1:$BT$1,0),0) -> 1,438 | AO11: =VLOOKUP(年度マスタ!$K$4&"_"&$AG11,データシート1!$A:$BT,MATCH("ab_"&AO$2,データシート1!$A$1:$BT$1,0),0) -> 10,050 | AP11: =VLOOKUP(年度マスタ!$K$4&"_"&$AG11,データシート1!$A:$BT,MATCH("ab_"&AP$2,データシート1!$A$1:$BT$1,0),0) -> 0 | AQ11: =VLOOKUP(年度マスタ!$K$4&"_"&$AG11,データシート1!$A:$BT,MATCH("ab_"&AQ$2,データシート1!$A$1:$BT$1,0),0) -> 0.5944863709
AF12: 2014 | AG12: 平成26年度 | AH12: =VLOOKUP(年度マスタ!$K$4&"_"&$AG12,データシート1!$A:$BT,MATCH("ab_"&$AH$2,データシート1!$A$1:$BT$1,0),0)/10^4 -> 27 | AI12: =VLOOKUP(年度マスタ!$K$4&"_"&$AG12,データシート1!$A:$BT,MATCH("ab_"&AI$2,データシート1!$A$1:$BT$1,0),0) -> 274 | AJ12: =VLOOKUP(年度マスタ!$K$4&"_"&$AG12,データシート1!$A:$BT,MATCH("ab_"&AJ$2,データシート1!$A$1:$BT$1,0),0) -> 184 | AK12: =VLOOKUP(年度マスタ!$K$4&"_"&$AG12,データシート1!$A:$BT,MATCH("ab_"&AK$2,データシート1!$A$1:$BT$1,0),0) -> 2,547 | AL12: =VLOOKUP(年度マスタ!$K$4&"_"&$AG12,データシート1!$A:$BT,MATCH("ab_"&AL$2,データシート1!$A$1:$BT$1,0),0) -> 4,121 | AM12: =VLOOKUP(年度マスタ!$K$4&"_"&$AG12,データシート1!$A:$BT,MATCH("ab_"&AM$2,データシート1!$A$1:$BT$1,0),0) -> 6,785 | AN12: =VLOOKUP(年度マスタ!$K$4&"_"&$AG12,データシート1!$A:$BT,MATCH("ab_"&AN$2,データシート1!$A$1:$BT$1,0),0) -> 1,474 | AO12: =VLOOKUP(年度マスタ!$K$4&"_"&$AG12,データシート1!$A:$BT,MATCH("ab_"&AO$2,データシート1!$A$1:$BT$1,0),0) -> 10,237 | AP12: =VLOOKUP(年度マスタ!$K$4&"_"&$AG12,データシート1!$A:$BT,MATCH("ab_"&AP$2,データシート1!$A$1:$BT$1,0),0) -> 0 | AQ12: =VLOOKUP(年度マスタ!$K$4&"_"&$AG12,データシート1!$A:$BT,MATCH("ab_"&AQ$2,データシート1!$A$1:$BT$1,0),0) -> 1.401807329
AF13: 2015 | AG13: 平成27年度 | AH13: =VLOOKUP(年度マスタ!$K$4&"_"&$AG13,データシート1!$A:$BT,MATCH("ab_"&$AH$2,データシート1!$A$1:$BT$1,0),0)/10^4 -> 37 | AI13: =VLOOKUP(年度マスタ!$K$4&"_"&$AG13,データシート1!$A:$BT,MATCH("ab_"&AI$2,データシート1!$A$1:$BT$1,0),0) -> 274 | AJ13: =VLOOKUP(年度マスタ!$K$4&"_"&$AG13,データシート1!$A:$BT,MATCH("ab_"&AJ$2,データシート1!$A$1:$BT$1,0),0) -> 184 | AK13: =VLOOKUP(年度マスタ!$K$4&"_"&$AG13,データシート1!$A:$BT,MATCH("ab_"&AK$2,データシート1!$A$1:$BT$1,0),0) -> 2,547 | AL13: =VLOOKUP(年度マスタ!$K$4&"_"&$AG13,データシート1!$A:$BT,MATCH("ab_"&AL$2,データシート1!$A$1:$BT$1,0),0) -> 4,237 | AM13: =VLOOKUP(年度マスタ!$K$4&"_"&$AG13,データシート1!$A:$BT,MATCH("ab_"&AM$2,データシート1!$A$1:$BT$1,0),0) -> 7,088 | AN13: =VLOOKUP(年度マスタ!$K$4&"_"&$AG13,データシート1!$A:$BT,MATCH("ab_"&AN$2,データシート1!$A$1:$BT$1,0),0) -> 1,515 | AO13: =VLOOKUP(年度マスタ!$K$4&"_"&$AG13,データシート1!$A:$BT,MATCH("ab_"&AO$2,データシート1!$A$1:$BT$1,0),0) -> 10,385 | AP13: =VLOOKUP(年度マスタ!$K$4&"_"&$AG13,データシート1!$A:$BT,MATCH("ab_"&AP$2,データシート1!$A$1:$BT$1,0),0) -> 0 | AQ13: =VLOOKUP(年度マスタ!$K$4&"_"&$AG13,データシート1!$A:$BT,MATCH("ab_"&AQ$2,データシート1!$A$1:$BT$1,0),0) -> 0.9645698551
AF14: 2016 | AG14: 平成28年度 | AH14: =VLOOKUP(年度マスタ!$K$4&"_"&$AG14,データシート1!$A:$BT,MATCH("ab_"&$AH$2,データシート1!$A$1:$BT$1,0),0)/10^4 -> 31 | AI14: =VLOOKUP(年度マスタ!$K$4&"_"&$AG14,データシート1!$A:$BT,MATCH("ab_"&AI$2,データシート1!$A$1:$BT$1,0),0) -> 274 | AJ14: =VLOOKUP(年度マスタ!$K$4&"_"&$AG14,データシート1!$A:$BT,MATCH("ab_"&AJ$2,データシート1!$A$1:$BT$1,0),0) -> 184 | AK14: =VLOOKUP(年度マスタ!$K$4&"_"&$AG14,データシート1!$A:$BT,MATCH("ab_"&AK$2,データシート1!$A$1:$BT$1,0),0) -> 2,547 | AL14: =VLOOKUP(年度マスタ!$K$4&"_"&$AG14,データシート1!$A:$BT,MATCH("ab_"&AL$2,データシート1!$A$1:$BT$1,0),0) -> 4,294 | AM14: =VLOOKUP(年度マスタ!$K$4&"_"&$AG14,データシート1!$A:$BT,MATCH("ab_"&AM$2,データシート1!$A$1:$BT$1,0),0) -> 7,217 | AN14: =VLOOKUP(年度マスタ!$K$4&"_"&$AG14,データシート1!$A:$BT,MATCH("ab_"&AN$2,データシート1!$A$1:$BT$1,0),0) -> 1,630 | AO14: =VLOOKUP(年度マスタ!$K$4&"_"&$AG14,データシート1!$A:$BT,MATCH("ab_"&AO$2,データシート1!$A$1:$BT$1,0),0) -> 10,403 | AP14: =VLOOKUP(年度マスタ!$K$4&"_"&$AG14,データシート1!$A:$BT,MATCH("ab_"&AP$2,データシート1!$A$1:$BT$1,0),0) -> 0 | AQ14: =VLOOKUP(年度マスタ!$K$4&"_"&$AG14,データシート1!$A:$BT,MATCH("ab_"&AQ$2,データシート1!$A$1:$BT$1,0),0) -> 1.061803499
AF15: 2017 | AG15: 平成29年度 | AH15: =VLOOKUP(年度マスタ!$K$4&"_"&$AG15,データシート1!$A:$BT,MATCH("ab_"&$AH$2,データシート1!$A$1:$BT$1,0),0)/10^4 -> 30 | AI15: =VLOOKUP(年度マスタ!$K$4&"_"&$AG15,データシート1!$A:$BT,MATCH("ab_"&AI$2,データシート1!$A$1:$BT$1,0),0) -> 274 | AJ15: =VLOOKUP(年度マスタ!$K$4&"_"&$AG15,データシート1!$A:$BT,MATCH("ab_"&AJ$2,データシート1!$A$1:$BT$1,0),0) -> 184 | AK15: =VLOOKUP(年度マスタ!$K$4&"_"&$AG15,データシート1!$A:$BT,MATCH("ab_"&AK$2,データシート1!$A$1:$BT$1,0),0) -> 2,547 | AL15: =VLOOKUP(年度マスタ!$K$4&"_"&$AG15,データシート1!$A:$BT,MATCH("ab_"&AL$2,データシート1!$A$1:$BT$1,0),0) -> 4,320 | AM15: =VLOOKUP(年度マスタ!$K$4&"_"&$AG15,データシート1!$A:$BT,MATCH("ab_"&AM$2,データシート1!$A$1:$BT$1,0),0) -> 7,269 | AN15: =VLOOKUP(年度マスタ!$K$4&"_"&$AG15,データシート1!$A:$BT,MATCH("ab_"&AN$2,データシート1!$A$1:$BT$1,0),0) -> 1,665 | AO15: =VLOOKUP(年度マスタ!$K$4&"_"&$AG15,データシート1!$A:$BT,MATCH("ab_"&AO$2,データシート1!$A$1:$BT$1,0),0) -> 10,380 | AP15: =VLOOKUP(年度マスタ!$K$4&"_"&$AG15,データシート1!$A:$BT,MATCH("ab_"&AP$2,データシート1!$A$1:$BT$1,0),0) -> 0 | AQ15: =VLOOKUP(年度マスタ!$K$4&"_"&$AG15,データシート1!$A:$BT,MATCH("ab_"&AQ$2,データシート1!$A$1:$BT$1,0),0) -> 1.40832523
AF16: 2018 | AG16: 平成30年度 | AH16: =VLOOKUP(年度マスタ!$K$4&"_"&$AG16,データシート1!$A:$BT,MATCH("ab_"&$AH$2,データシート1!$A$1:$BT$1,0),0)/10^4 -> 41 | AI16: =VLOOKUP(年度マスタ!$K$4&"_"&$AG16,データシート1!$A:$BT,MATCH("ab_"&AI$2,データシート1!$A$1:$BT$1,0),0) -> 274 | AJ16: =VLOOKUP(年度マスタ!$K$4&"_"&$AG16,データシート1!$A:$BT,MATCH("ab_"&AJ$2,データシート1!$A$1:$BT$1,0),0) -> 184 | AK16: =VLOOKUP(年度マスタ!$K$4&"_"&$AG16,データシート1!$A:$BT,MATCH("ab_"&AK$2,データシート1!$A$1:$BT$1,0),0) -> 2,547 | AL16: =VLOOKUP(年度マスタ!$K$4&"_"&$AG16,データシート1!$A:$BT,MATCH("ab_"&AL$2,データシート1!$A$1:$BT$1,0),0) -> 4,352 | AM16: =VLOOKUP(年度マスタ!$K$4&"_"&$AG16,データシート1!$A:$BT,MATCH("ab_"&AM$2,データシート1!$A$1:$BT$1,0),0) -> 7,408 | AN16: =VLOOKUP(年度マスタ!$K$4&"_"&$AG16,データシート1!$A:$BT,MATCH("ab_"&AN$2,データシート1!$A$1:$BT$1,0),0) -> 1,666 | AO16: =VLOOKUP(年度マスタ!$K$4&"_"&$AG16,データシート1!$A:$BT,MATCH("ab_"&AO$2,データシート1!$A$1:$BT$1,0),0) -> 10,321 | AP16: =VLOOKUP(年度マスタ!$K$4&"_"&$AG16,データシート1!$A:$BT,MATCH("ab_"&AP$2,データシート1!$A$1:$BT$1,0),0) -> 0 | AQ16: =VLOOKUP(年度マスタ!$K$4&"_"&$AG16,データシート1!$A:$BT,MATCH("ab_"&AQ$2,データシート1!$A$1:$BT$1,0),0) -> 1.474973655
AF17: 2019 | AG17: 令和元年度 | AH17: =VLOOKUP(年度マスタ!$K$4&"_"&$AG17,データシート1!$A:$BT,MATCH("ab_"&$AH$2,データシート1!$A$1:$BT$1,0),0)/10^4 -> 38 | AI17: =VLOOKUP(年度マスタ!$K$4&"_"&$AG17,データシート1!$A:$BT,MATCH("ab_"&AI$2,データシート1!$A$1:$BT$1,0),0) -> 274 | AJ17: =VLOOKUP(年度マスタ!$K$4&"_"&$AG17,データシート1!$A:$BT,MATCH("ab_"&AJ$2,データシート1!$A$1:$BT$1,0),0) -> 184 | AK17: =VLOOKUP(年度マスタ!$K$4&"_"&$AG17,データシート1!$A:$BT,MATCH("ab_"&AK$2,データシート1!$A$1:$BT$1,0),0) -> 2,547 | AL17: =VLOOKUP(年度マスタ!$K$4&"_"&$AG17,データシート1!$A:$BT,MATCH("ab_"&AL$2,データシート1!$A$1:$BT$1,0),0) -> 4,353 | AM17: =VLOOKUP(年度マスタ!$K$4&"_"&$AG17,データシート1!$A:$BT,MATCH("ab_"&AM$2,データシート1!$A$1:$BT$1,0),0) -> 7,715 | AN17: =VLOOKUP(年度マスタ!$K$4&"_"&$AG17,データシート1!$A:$BT,MATCH("ab_"&AN$2,データシート1!$A$1:$BT$1,0),0) -> 1,571 | AO17: =VLOOKUP(年度マスタ!$K$4&"_"&$AG17,データシート1!$A:$BT,MATCH("ab_"&AO$2,データシート1!$A$1:$BT$1,0),0) -> 10,239 | AP17: =VLOOKUP(年度マスタ!$K$4&"_"&$AG17,データシート1!$A:$BT,MATCH("ab_"&AP$2,データシート1!$A$1:$BT$1,0),0) -> 0 | AQ17: =VLOOKUP(年度マスタ!$K$4&"_"&$AG17,データシート1!$A:$BT,MATCH("ab_"&AQ$2,データシート1!$A$1:$BT$1,0),0) -> 1.328070164
AF18: 2020 | AG18: 令和2年度 | AH18: =VLOOKUP(年度マスタ!$K$4&"_"&$AG18,データシート1!$A:$BT,MATCH("ab_"&$AH$2,データシート1!$A$1:$BT$1,0),0)/10^4 -> 35 | AI18: =VLOOKUP(年度マスタ!$K$4&"_"&$AG18,データシート1!$A:$BT,MATCH("ab_"&AI$2,データシート1!$A$1:$BT$1,0),0) -> 267 | AJ18: =VLOOKUP(年度マスタ!$K$4&"_"&$AG18,データシート1!$A:$BT,MATCH("ab_"&AJ$2,データシート1!$A$1:$BT$1,0),0) -> 222 | AK18: =VLOOKUP(年度マスタ!$K$4&"_"&$AG18,データシート1!$A:$BT,MATCH("ab_"&AK$2,データシート1!$A$1:$BT$1,0),0) -> 2,782 | AL18: =VLOOKUP(年度マスタ!$K$4&"_"&$AG18,データシート1!$A:$BT,MATCH("ab_"&AL$2,データシート1!$A$1:$BT$1,0),0) -> 4,366 | AM18: =VLOOKUP(年度マスタ!$K$4&"_"&$AG18,データシート1!$A:$BT,MATCH("ab_"&AM$2,データシート1!$A$1:$BT$1,0),0) -> 7,323 | AN18: =VLOOKUP(年度マスタ!$K$4&"_"&$AG18,データシート1!$A:$BT,MATCH("ab_"&AN$2,データシート1!$A$1:$BT$1,0),0) -> 1,602 | AO18: =VLOOKUP(年度マスタ!$K$4&"_"&$AG18,データシート1!$A:$BT,MATCH("ab_"&AO$2,データシート1!$A$1:$BT$1,0),0) -> 10,154 | AP18: =VLOOKUP(年度マスタ!$K$4&"_"&$AG18,データシート1!$A:$BT,MATCH("ab_"&AP$2,データシート1!$A$1:$BT$1,0),0) -> 0 | AQ18: =VLOOKUP(年度マスタ!$K$4&"_"&$AG18,データシート1!$A:$BT,MATCH("ab_"&AQ$2,データシート1!$A$1:$BT$1,0),0) -> 0.8888100056
AF19: 2021 | AG19: 令和3年度 | AH19: =VLOOKUP(年度マスタ!$K$4&"_"&$AG19,データシート1!$A:$BT,MATCH("ab_"&$AH$2,データシート1!$A$1:$BT$1,0),0)/10^4 -> 41 | AI19: =VLOOKUP(年度マスタ!$K$4&"_"&$AG19,データシート1!$A:$BT,MATCH("ab_"&AI$2,データシート1!$A$1:$BT$1,0),0) -> 267 | AJ19: =VLOOKUP(年度マスタ!$K$4&"_"&$AG19,データシート1!$A:$BT,MATCH("ab_"&AJ$2,データシート1!$A$1:$BT$1,0),0) -> 222 | AK19: =VLOOKUP(年度マスタ!$K$4&"_"&$AG19,データシート1!$A:$BT,MATCH("ab_"&AK$2,データシート1!$A$1:$BT$1,0),0) -> 2,782 | AL19: =VLOOKUP(年度マスタ!$K$4&"_"&$AG19,データシート1!$A:$BT,MATCH("ab_"&AL$2,データシート1!$A$1:$BT$1,0),0) -> 4,394 | AM19: =VLOOKUP(年度マスタ!$K$4&"_"&$AG19,データシート1!$A:$BT,MATCH("ab_"&AM$2,データシート1!$A$1:$BT$1,0),0) -> 7,239 | AN19: =VLOOKUP(年度マスタ!$K$4&"_"&$AG19,データシート1!$A:$BT,MATCH("ab_"&AN$2,データシート1!$A$1:$BT$1,0),0) -> 1,624 | AO19: =VLOOKUP(年度マスタ!$K$4&"_"&$AG19,データシート1!$A:$BT,MATCH("ab_"&AO$2,データシート1!$A$1:$BT$1,0),0) -> 10,110 | AP19: =VLOOKUP(年度マスタ!$K$4&"_"&$AG19,データシート1!$A:$BT,MATCH("ab_"&AP$2,データシート1!$A$1:$BT$1,0),0) -> 0 | AQ19: =VLOOKUP(年度マスタ!$K$4&"_"&$AG19,データシート1!$A:$BT,MATCH("ab_"&AQ$2,データシート1!$A$1:$BT$1,0),0) -> 1.229432741
D20: 業務その他部門 - 従業者数 | L20: 家庭部門 - 世帯数 | T20: 運輸部門（自動車）- 自動車保有台数 | AF20: 2022 | AG20: 令和4年度 | AH20: =VLOOKUP(年度マスタ!$K$4&"_"&$AG20,データシート1!$A:$BT,MATCH("ab_"&$AH$2,データシート1!$A$1:$BT$1,0),0)/10^4 -> 41 | AI20: =VLOOKUP(年度マスタ!$K$4&"_"&$AG20,データシート1!$A:$BT,MATCH("ab_"&AI$2,データシート1!$A$1:$BT$1,0),0) -> 267 | AJ20: =VLOOKUP(年度マスタ!$K$4&"_"&$AG20,データシート1!$A:$BT,MATCH("ab_"&AJ$2,データシート1!$A$1:$BT$1,0),0) -> 222 | AK20: =VLOOKUP(年度マスタ!$K$4&"_"&$AG20,データシート1!$A:$BT,MATCH("ab_"&AK$2,データシート1!$A$1:$BT$1,0),0) -> 2,782 | AL20: =VLOOKUP(年度マスタ!$K$4&"_"&$AG20,データシート1!$A:$BT,MATCH("ab_"&AL$2,データシート1!$A$1:$BT$1,0),0) -> 4,362 | AM20: =VLOOKUP(年度マスタ!$K$4&"_"&$AG20,データシート1!$A:$BT,MATCH("ab_"&AM$2,データシート1!$A$1:$BT$1,0),0) -> 7,585 | AN20: =VLOOKUP(年度マスタ!$K$4&"_"&$AG20,データシート1!$A:$BT,MATCH("ab_"&AN$2,データシート1!$A$1:$BT$1,0),0) -> 1,640 | AO20: =VLOOKUP(年度マスタ!$K$4&"_"&$AG20,データシート1!$A:$BT,MATCH("ab_"&AO$2,データシート1!$A$1:$BT$1,0),0) -> 9,945 | AP20: =VLOOKUP(年度マスタ!$K$4&"_"&$AG20,データシート1!$A:$BT,MATCH("ab_"&AP$2,データシート1!$A$1:$BT$1,0),0) -> 0 | AQ20: =VLOOKUP(年度マスタ!$K$4&"_"&$AG20,データシート1!$A:$BT,MATCH("ab_"&AQ$2,データシート1!$A$1:$BT$1,0),0) -> 1.506636536
D21: =AK6 -> ［人］ | L21: =AL6 -> ［世帯］ | T21: =AM6 -> ［台］
D34: 運輸部門（鉄道）- 人口 | L34: 運輸部門（船舶）- 入港船舶総トン数 | T34: 廃棄物分野（一般廃棄物） - CO2排出量
D35: =AO6 -> ［人］ | L35: =AP6 -> ［トン］ | T35: [千t-CO2]
B50: 部門・分野別活動量の推移で示す各指標は、部門・分野別CO2排出量の推計に用いた按分指標です。それぞれの指標の経年変化を分析することで、CO2排出量の要因となる活動量がどのように増減しているかを把握することができます。 各指標の引用元は次のとおりです。製造品出荷額等（製造業）：令和元年度までは工業統計調査・令和2年度は経済センサス（活動調査）・令和3年度以降は経済構造実態調査， 従業者数（建設業・鉱業、農林水産業、業務その他部門）：令和元年度までは経済センサス（基礎調査）・令和2年度以降は経済センサス（活動調査）， 世帯数（家庭部門）：住民基本台帳に基づく人口、人口動態及び世帯数調査， 自動車保有台数（運輸部門）：一般財団法人自動車検査登録情報協会「市区町村別自動車保有車両数」及び一般社団法人全国軽自動車協会連合会「市区町村別軽自動車車両数」， 人口（鉄道）：住民基本台帳に基づく人口、人口動態及び世帯数調査， 入港船舶総トン数（船舶）：港湾統計年報 なお、従業者数は経済センサス（基礎調査）を使用し、「平成20年度」、「平成21年度～平成25年度」、「平成26年度～令和元年度」をそれぞれ同じ統計から集計（廃置分合等により数値が同値でない場合もあります）していましたが、令和3年経済センサスからは活動調査で把握されることとなり、令和2年度以降の従業者数は経済センサス（活動調査）から集計しています。廃棄物分野は按分ではなく一般廃棄物処理実態調査結果の焼却施設ごとの年間処理量等から推計しているため、推計したCO2排出量の推移を掲載しています。

Sheet ③特定事業所の現状把握
B2: 自治体排出量カルテ③ 特定事業所の温室効果ガス排出量の現状把握 | AP2: =年度マスタ!J4 -> 東神楽町
B3: 1 地方公共団体の特定事業所排出量 | AB3: 2 地方公共団体の区域のCO2排出量との比較
AV4: データ（特定事業所件数） | AW4: データ（特定事業所排出量）
AV5: bb | AW5: ba
AV6: _ene | AW6: _ene
AV7: B.SHKデータ | AW7: B.SHKデータ
AV8: =年度マスタ!K6 -> 令和3年度 | AW8: =年度マスタ!K6 -> 令和3年度
AV9: =年度マスタ!J6 -> 2021 | AW9: =年度マスタ!J6 -> 2021
AV11: 円グラフの作成
AV12: 部門別
AW13: 産業部門 | AY13: =SUM(AX14:AX16) -> 0 | BE13: =年度マスタ!K4 -> 01453 | BF13: =年度マスタ!K4 -> 01453 | BG13: =年度マスタ!K4 -> 01453 | BH13: 00 | BI13: 00 | BJ13: 00 | BK13: =年度マスタ!K4 -> 01453
AV14: 製造業 | AW14: 製造業 | AX14: =P23 -> 0 | BE14: =AP2 -> 東神楽町 | BF14: =AP2 -> 東神楽町 | BG14: =AP2 -> 東神楽町 | BH14: 全国 | BI14: 全国 | BJ14: 全国 | BK14: =AP2 -> 東神楽町
AV15: 建設業・鉱業 | AW15: 建設業・鉱業 | AX15: 0 | BA15: 参照用 | BB15: 大分類 | BC15: 中分類 | BD15: グラフ表示用 | BE15: 事業所数 | BF15: 特定事業所排出量 | BG15: 1事業所当たり | BH15: 事業所数 | BI15: 特定事業所排出量 | BJ15: 1事業所当たり | BK15: 全国平均との比較
AV16: 農林水産業 | AW16: 農林水産業 | AX16: 0 | BA16: 14 | BB16: エネルギー多消費業種 （エネルギー転換部門を除く） | BC16: 14：パルプ・紙・紙加工品製造業 | BD16: =BC16&"(N="&BE16&")" -> 14：パルプ・紙・紙加工品製造業(N=0) | BE16: =VLOOKUP(BE$13&"_"&$AV$8,データシート2!$A:$SI,MATCH($AV$5&"_"&$BA16&$AV$6,データシート2!$A$1:$SI$1,0),0) -> 0 | BF16: =VLOOKUP(BF$13&"_"&$AW$8,データシート2!$A:$SI,MATCH($AW$5&"_"&$BA16&$AW$6,データシート2!$A$1:$SI$1,0),0) -> 0 | BG16: =BF16/BE16 ->  | BH16: =VLOOKUP(BH$13&"_"&$AV$8,データシート2!$A:$SI,MATCH($AV$5&"_"&$BA16&$AV$6,データシート2!$A$1:$SI$1,0),0) -> 390 | BI16: =VLOOKUP(BI$13&"_"&$AW$8,データシート2!$A:$SI,MATCH($AW$5&"_"&$BA16&$AW$6,データシート2!$A$1:$SI$1,0),0) -> 23,128 | BJ16: =BI16/BH16 -> 59 | BK16: =BG16/BJ16 -> 
AW17: 業務その他部門 | AX17: =P26 -> 0 | AY17: =AX17 -> 0 | BA17: 16 | BC17: 16：化学工業 | BD17: =BC17&"(N="&BE17&")" -> 16：化学工業(N=0) | BE17: =VLOOKUP(BE$13&"_"&$AV$8,データシート2!$A:$SI,MATCH($AV$5&"_"&$BA17&$AV$6,データシート2!$A$1:$SI$1,0),0) -> 0 | BF17: =VLOOKUP(BF$13&"_"&$AW$8,データシート2!$A:$SI,MATCH($AW$5&"_"&$BA17&$AW$6,データシート2!$A$1:$SI$1,0),0) -> 0 | BG17: =BF17/BE17 ->  | BH17: =VLOOKUP(BH$13&"_"&$AV$8,データシート2!$A:$SI,MATCH($AV$5&"_"&$BA17&$AV$6,データシート2!$A$1:$SI$1,0),0) -> 1,191 | BI17: =VLOOKUP(BI$13&"_"&$AW$8,データシート2!$A:$SI,MATCH($AW$5&"_"&$BA17&$AW$6,データシート2!$A$1:$SI$1,0),0) -> 68,902 | BJ17: =BI17/BH17 -> 58 | BK17: =BG17/BJ17 -> 
AW18: エネルギー転換部門 | AX18: 0 | AY18: =AX18 -> 0 | BA18: 17 | BC18: 17：石油製品・石炭製品製造業 | BD18: 17：石油製品・石炭製品製造業(N=0) | BE18: =VLOOKUP(BE$13&"_"&$AV$8,データシート2!$A:$SI,MATCH($AV$5&"_"&$BA18&$AV$6,データシート2!$A$1:$SI$1,0),0) -> 0 | BF18: =VLOOKUP(BF$13&"_"&$AW$8,データシート2!$A:$SI,MATCH($AW$5&"_"&$BA18&$AW$6,データシート2!$A$1:$SI$1,0),0) -> 0 | BH18: =VLOOKUP(BH$13&"_"&$AV$8,データシート2!$A:$SI,MATCH($AV$5&"_"&$BA18&$AV$6,データシート2!$A$1:$SI$1,0),0) -> 98 | BI18: =VLOOKUP(BI$13&"_"&$AW$8,データシート2!$A:$SI,MATCH($AW$5&"_"&$BA18&$AW$6,データシート2!$A$1:$SI$1,0),0) -> 685 | BJ18: 7
P19: ［千t-CO2］ | AW19: 分類不能 | AX19: =P28 -> 0 | AY19: =AX19 -> 0 | BA19: 21 | BC19: 21：窯業・土石製品製造業 | BD19: 21：窯業・土石製品製造業(N=0) | BE19: =VLOOKUP(BE$13&"_"&$AV$8,データシート2!$A:$SI,MATCH($AV$5&"_"&$BA19&$AV$6,データシート2!$A$1:$SI$1,0),0) -> 0 | BF19: =VLOOKUP(BF$13&"_"&$AW$8,データシート2!$A:$SI,MATCH($AW$5&"_"&$BA19&$AW$6,データシート2!$A$1:$SI$1,0),0) -> 0 | BH19: =VLOOKUP(BH$13&"_"&$AV$8,データシート2!$A:$SI,MATCH($AV$5&"_"&$BA19&$AV$6,データシート2!$A$1:$SI$1,0),0) -> 465 | BI19: =VLOOKUP(BI$13&"_"&$AW$8,データシート2!$A:$SI,MATCH($AW$5&"_"&$BA19&$AW$6,データシート2!$A$1:$SI$1,0),0) -> 53,491 | BJ19: 115
C20: 部門 | F20: 平成23年度 | G20: 平成24年度 | H20: 平成25年度 | I20: 平成26年度 | J20: 平成27年度 | K20: 平成28年度 | L20: 平成29年度 | M20: 平成30年度 | N20: 令和元年度 | O20: 令和2年度 | P20: 令和3年度 | BA20: 22 | BC20: 22：鉄鋼業 | BD20: 22：鉄鋼業(N=0) | BE20: =VLOOKUP(BE$13&"_"&$AV$8,データシート2!$A:$SI,MATCH($AV$5&"_"&$BA20&$AV$6,データシート2!$A$1:$SI$1,0),0) -> 0 | BF20: =VLOOKUP(BF$13&"_"&$AW$8,データシート2!$A:$SI,MATCH($AW$5&"_"&$BA20&$AW$6,データシート2!$A$1:$SI$1,0),0) -> 0 | BH20: =VLOOKUP(BH$13&"_"&$AV$8,データシート2!$A:$SI,MATCH($AV$5&"_"&$BA20&$AV$6,データシート2!$A$1:$SI$1,0),0) -> 475 | BI20: =VLOOKUP(BI$13&"_"&$AW$8,データシート2!$A:$SI,MATCH($AW$5&"_"&$BA20&$AW$6,データシート2!$A$1:$SI$1,0),0) -> 171,964 | BJ20: 362
C21: 合計 | F21: =SUM(F22,F26,F27,F28) -> 0 | G21: =SUM(G22,G26,G27,G28) -> 0 | H21: 0 | I21: 0 | J21: 0 | K21: 0 | L21: 0 | M21: 0 | N21: 0 | O21: 0 | P21: =SUM(P22,P26,P27,P28) -> 0 | AV21: ガス種別 | BA21: 9 | BB21: エネルギー多消費業種以外 （エネルギー転換部門を除く） | BC21: 9：食料品製造業 | BD21: 9：食料品製造業(N=0) | BE21: =VLOOKUP(BE$13&"_"&$AV$8,データシート2!$A:$SI,MATCH($AV$5&"_"&$BA21&$AV$6,データシート2!$A$1:$SI$1,0),0) -> 0 | BF21: =VLOOKUP(BF$13&"_"&$AW$8,データシート2!$A:$SI,MATCH($AW$5&"_"&$BA21&$AW$6,データシート2!$A$1:$SI$1,0),0) -> 0 | BH21: =VLOOKUP(BH$13&"_"&$AV$8,データシート2!$A:$SI,MATCH($AV$5&"_"&$BA21&$AV$6,データシート2!$A$1:$SI$1,0),0) -> 1,407 | BI21: =VLOOKUP(BI$13&"_"&$AW$8,データシート2!$A:$SI,MATCH($AW$5&"_"&$BA21&$AW$6,データシート2!$A$1:$SI$1,0),0) -> 12,164 | BJ21: 9
D22: 産業部門 | F22: =SUM(F23:F25) -> 0 | G22: =SUM(G23:G25) -> 0 | H22: 0 | I22: 0 | J22: 0 | K22: 0 | L22: 0 | M22: 0 | N22: 0 | O22: 0 | P22: 0 | AC22: 区域のエネルギー起源CO2排出量 | AP22: ［千t-CO2］ | AV22: =AW22 -> エネルギー起源CO2 | AW22: =D56 -> エネルギー起源CO2 | AX22: =P56 -> 0 | AY22: =AX22 -> 0 | BA22: 10 | BC22: 10：飲料・たばこ・飼料製造業 | BD22: 10：飲料・たばこ・飼料製造業(N=0) | BE22: =VLOOKUP(BE$13&"_"&$AV$8,データシート2!$A:$SI,MATCH($AV$5&"_"&$BA22&$AV$6,データシート2!$A$1:$SI$1,0),0) -> 0 | BF22: =VLOOKUP(BF$13&"_"&$AW$8,データシート2!$A:$SI,MATCH($AW$5&"_"&$BA22&$AW$6,データシート2!$A$1:$SI$1,0),0) -> 0 | BH22: =VLOOKUP(BH$13&"_"&$AV$8,データシート2!$A:$SI,MATCH($AV$5&"_"&$BA22&$AV$6,データシート2!$A$1:$SI$1,0),0) -> 322 | BI22: =VLOOKUP(BI$13&"_"&$AW$8,データシート2!$A:$SI,MATCH($AW$5&"_"&$BA22&$AW$6,データシート2!$A$1:$SI$1,0),0) -> 3,405 | BJ22: 11
E23: 製造業 | F23: =IFERROR(VLOOKUP(年度マスタ!$K$4&"_"&F$20,データシート1!$A:$BU,MATCH("ba_"&$E23,データシート1!$A$1:$BU$1,0),0),0) -> 0 | G23: =IFERROR(VLOOKUP(年度マスタ!$K$4&"_"&G$20,データシート1!$A:$BU,MATCH("ba_"&$E23,データシート1!$A$1:$BU$1,0),0),0) -> 0 | H23: =IFERROR(VLOOKUP(年度マスタ!$K$4&"_"&H$20,データシート1!$A:$BU,MATCH("ba_"&$E23,データシート1!$A$1:$BU$1,0),0),0) -> 0 | I23: =IFERROR(VLOOKUP(年度マスタ!$K$4&"_"&I$20,データシート1!$A:$BU,MATCH("ba_"&$E23,データシート1!$A$1:$BU$1,0),0),0) -> 0 | J23: =IFERROR(VLOOKUP(年度マスタ!$K$4&"_"&J$20,データシート1!$A:$BU,MATCH("ba_"&$E23,データシート1!$A$1:$BU$1,0),0),0) -> 0 | K23: =IFERROR(VLOOKUP(年度マスタ!$K$4&"_"&K$20,データシート1!$A:$BU,MATCH("ba_"&$E23,データシート1!$A$1:$BU$1,0),0),0) -> 0 | L23: =IFERROR(VLOOKUP(年度マスタ!$K$4&"_"&L$20,データシート1!$A:$BU,MATCH("ba_"&$E23,データシート1!$A$1:$BU$1,0),0),0) -> 0 | M23: =IFERROR(VLOOKUP(年度マスタ!$K$4&"_"&M$20,データシート1!$A:$BU,MATCH("ba_"&$E23,データシート1!$A$1:$BU$1,0),0),0) -> 0 | N23: =IFERROR(VLOOKUP(年度マスタ!$K$4&"_"&N$20,データシート1!$A:$BU,MATCH("ba_"&$E23,データシート1!$A$1:$BU$1,0),0),0) -> 0 | O23: =IFERROR(VLOOKUP(年度マスタ!$K$4&"_"&O$20,データシート1!$A:$BU,MATCH("ba_"&$E23,データシート1!$A$1:$BU$1,0),0),0) -> 0 | P23: =IFERROR(VLOOKUP(年度マスタ!$K$4&"_"&P$20,データシート1!$A:$BU,MATCH("ba_"&$E23,データシート1!$A$1:$BU$1,0),0),0) -> 0 | AC23: 部門 | AF23: 平成23年度 | AG23: 平成24年度 | AH23: 平成25年度 | AI23: 平成26年度 | AJ23: 平成27年度 | AK23: 平成28年度 | AL23: 平成29年度 | AM23: 平成30年度 | AN23: 令和元年度 | AO23: 令和2年度 | AP23: 令和3年度 | AV23: =AW23 -> 非エネルギー起源CO2 | AW23: =D57 -> 非エネルギー起源CO2 | AY23: =P57 -> 0 | BA23: 11 | BC23: 11：繊維工業 | BD23: =BC23&"(N="&BE23&")" -> 11：繊維工業(N=0) | BE23: =VLOOKUP(BE$13&"_"&$AV$8,データシート2!$A:$SI,MATCH($AV$5&"_"&$BA23&$AV$6,データシート2!$A$1:$SI$1,0),0) -> 0 | BF23: =VLOOKUP(BF$13&"_"&$AW$8,データシート2!$A:$SI,MATCH($AW$5&"_"&$BA23&$AW$6,データシート2!$A$1:$SI$1,0),0) -> 0 | BG23: =BF23/BE23 ->  | BH23: =VLOOKUP(BH$13&"_"&$AV$8,データシート2!$A:$SI,MATCH($AV$5&"_"&$BA23&$AV$6,データシート2!$A$1:$SI$1,0),0) -> 230 | BI23: =VLOOKUP(BI$13&"_"&$AW$8,データシート2!$A:$SI,MATCH($AW$5&"_"&$BA23&$AW$6,データシート2!$A$1:$SI$1,0),0) -> 4,563 | BJ23: =BI23/BH23 -> 20 | BK23: =BG23/BJ23 -> 
E24: 建設業・鉱業 | F24: =IFERROR(VLOOKUP(年度マスタ!$K$4&"_"&F$20,データシート1!$A:$BU,MATCH("ba_"&$E24,データシート1!$A$1:$BU$1,0),0),0) -> 0 | G24: =IFERROR(VLOOKUP(年度マスタ!$K$4&"_"&G$20,データシート1!$A:$BU,MATCH("ba_"&$E24,データシート1!$A$1:$BU$1,0),0),0) -> 0 | H24: =IFERROR(VLOOKUP(年度マスタ!$K$4&"_"&H$20,データシート1!$A:$BU,MATCH("ba_"&$E24,データシート1!$A$1:$BU$1,0),0),0) -> 0 | I24: =IFERROR(VLOOKUP(年度マスタ!$K$4&"_"&I$20,データシート1!$A:$BU,MATCH("ba_"&$E24,データシート1!$A$1:$BU$1,0),0),0) -> 0 | J24: =IFERROR(VLOOKUP(年度マスタ!$K$4&"_"&J$20,データシート1!$A:$BU,MATCH("ba_"&$E24,データシート1!$A$1:$BU$1,0),0),0) -> 0 | K24: =IFERROR(VLOOKUP(年度マスタ!$K$4&"_"&K$20,データシート1!$A:$BU,MATCH("ba_"&$E24,データシート1!$A$1:$BU$1,0),0),0) -> 0 | L24: =IFERROR(VLOOKUP(年度マスタ!$K$4&"_"&L$20,データシート1!$A:$BU,MATCH("ba_"&$E24,データシート1!$A$1:$BU$1,0),0),0) -> 0 | M24: =IFERROR(VLOOKUP(年度マスタ!$K$4&"_"&M$20,データシート1!$A:$BU,MATCH("ba_"&$E24,データシート1!$A$1:$BU$1,0),0),0) -> 0 | N24: =IFERROR(VLOOKUP(年度マスタ!$K$4&"_"&N$20,データシート1!$A:$BU,MATCH("ba_"&$E24,データシート1!$A$1:$BU$1,0),0),0) -> 0 | O24: =IFERROR(VLOOKUP(年度マスタ!$K$4&"_"&O$20,データシート1!$A:$BU,MATCH("ba_"&$E24,データシート1!$A$1:$BU$1,0),0),0) -> 0 | P24: =IFERROR(VLOOKUP(年度マスタ!$K$4&"_"&P$20,データシート1!$A:$BU,MATCH("ba_"&$E24,データシート1!$A$1:$BU$1,0),0),0) -> 0 | AC24: 産業・業務部門の合計 | AF24: =AF25+AF29 -> 33.31253083 | AG24: =AG25+AG29 -> 35.77919828 | AH24: 32.71066593 | AI24: 32.00205026 | AJ24: 34.38277927 | AK24: 31.71968997 | AL24: 30.83222241 | AM24: 32.57986943 | AN24: 29.77784236 | AO24: 31.45772544 | AP24: 31.85883516 | AV24: =AW24 -> 廃棄物原燃料 | AW24: =E58 -> 廃棄物原燃料 | AX24: =P58 -> 0 | BA24: 12 | BC24: 12：木材・木製品製造業 | BD24: 12：木材・木製品製造業(N=0) | BE24: =VLOOKUP(BE$13&"_"&$AV$8,データシート2!$A:$SI,MATCH($AV$5&"_"&$BA24&$AV$6,データシート2!$A$1:$SI$1,0),0) -> 0 | BF24: =VLOOKUP(BF$13&"_"&$AW$8,データシート2!$A:$SI,MATCH($AW$5&"_"&$BA24&$AW$6,データシート2!$A$1:$SI$1,0),0) -> 0 | BH24: =VLOOKUP(BH$13&"_"&$AV$8,データシート2!$A:$SI,MATCH($AV$5&"_"&$BA24&$AV$6,データシート2!$A$1:$SI$1,0),0) -> 62 | BI24: =VLOOKUP(BI$13&"_"&$AW$8,データシート2!$A:$SI,MATCH($AW$5&"_"&$BA24&$AW$6,データシート2!$A$1:$SI$1,0),0) -> 542 | BJ24: 9
E25: 農林水産業 | F25: =IFERROR(VLOOKUP(年度マスタ!$K$4&"_"&F$20,データシート1!$A:$BU,MATCH("ba_"&$E25,データシート1!$A$1:$BU$1,0),0),0) -> 0 | G25: =IFERROR(VLOOKUP(年度マスタ!$K$4&"_"&G$20,データシート1!$A:$BU,MATCH("ba_"&$E25,データシート1!$A$1:$BU$1,0),0),0) -> 0 | H25: =IFERROR(VLOOKUP(年度マスタ!$K$4&"_"&H$20,データシート1!$A:$BU,MATCH("ba_"&$E25,データシート1!$A$1:$BU$1,0),0),0) -> 0 | I25: =IFERROR(VLOOKUP(年度マスタ!$K$4&"_"&I$20,データシート1!$A:$BU,MATCH("ba_"&$E25,データシート1!$A$1:$BU$1,0),0),0) -> 0 | J25: =IFERROR(VLOOKUP(年度マスタ!$K$4&"_"&J$20,データシート1!$A:$BU,MATCH("ba_"&$E25,データシート1!$A$1:$BU$1,0),0),0) -> 0 | K25: =IFERROR(VLOOKUP(年度マスタ!$K$4&"_"&K$20,データシート1!$A:$BU,MATCH("ba_"&$E25,データシート1!$A$1:$BU$1,0),0),0) -> 0 | L25: =IFERROR(VLOOKUP(年度マスタ!$K$4&"_"&L$20,データシート1!$A:$BU,MATCH("ba_"&$E25,データシート1!$A$1:$BU$1,0),0),0) -> 0 | M25: =IFERROR(VLOOKUP(年度マスタ!$K$4&"_"&M$20,データシート1!$A:$BU,MATCH("ba_"&$E25,データシート1!$A$1:$BU$1,0),0),0) -> 0 | N25: =IFERROR(VLOOKUP(年度マスタ!$K$4&"_"&N$20,データシート1!$A:$BU,MATCH("ba_"&$E25,データシート1!$A$1:$BU$1,0),0),0) -> 0 | O25: =IFERROR(VLOOKUP(年度マスタ!$K$4&"_"&O$20,データシート1!$A:$BU,MATCH("ba_"&$E25,データシート1!$A$1:$BU$1,0),0),0) -> 0 | P25: =IFERROR(VLOOKUP(年度マスタ!$K$4&"_"&P$20,データシート1!$A:$BU,MATCH("ba_"&$E25,データシート1!$A$1:$BU$1,0),0),0) -> 0 | AD25: 産業部門 | AF25: =①CO2排出量の現状把握!Z35 -> 20.51298536 | AG25: =①CO2排出量の現状把握!AA35 -> 19.88220348 | AH25: =①CO2排出量の現状把握!AB35 -> 17.9260807 | AI25: =①CO2排出量の現状把握!AC35 -> 16.06281085 | AJ25: =①CO2排出量の現状把握!AD35 -> 18.9604041 | AK25: =①CO2排出量の現状把握!AE35 -> 18.49679185 | AL25: =①CO2排出量の現状把握!AF35 -> 17.57375508 | AM25: =①CO2排出量の現状把握!AG35 -> 19.25601033 | AN25: =①CO2排出量の現状把握!AH35 -> 17.8251309 | AO25: =①CO2排出量の現状把握!AI35 -> 19.04245411 | AP25: =①CO2排出量の現状把握!AJ35 -> 19.24968082 | AV25: =AW25 -> 廃棄物原燃料以外 | AW25: =E59 -> 廃棄物原燃料以外 | AX25: 0 | BA25: 13 | BC25: 13：家具・装備品製造業 | BD25: 13：家具・装備品製造業(N=0) | BE25: =VLOOKUP(BE$13&"_"&$AV$8,データシート2!$A:$SI,MATCH($AV$5&"_"&$BA25&$AV$6,データシート2!$A$1:$SI$1,0),0) -> 0 | BF25: =VLOOKUP(BF$13&"_"&$AW$8,データシート2!$A:$SI,MATCH($AW$5&"_"&$BA25&$AW$6,データシート2!$A$1:$SI$1,0),0) -> 0 | BH25: =VLOOKUP(BH$13&"_"&$AV$8,データシート2!$A:$SI,MATCH($AV$5&"_"&$BA25&$AV$6,データシート2!$A$1:$SI$1,0),0) -> 24 | BI25: =VLOOKUP(BI$13&"_"&$AW$8,データシート2!$A:$SI,MATCH($AW$5&"_"&$BA25&$AW$6,データシート2!$A$1:$SI$1,0),0) -> 112 | BJ25: 5
D26: 業務その他部門 | F26: =IFERROR(VLOOKUP(年度マスタ!$K$4&"_"&F$20,データシート1!$A:$BU,MATCH("ba_"&$D26,データシート1!$A$1:$BU$1,0),0),0) -> 0 | G26: =IFERROR(VLOOKUP(年度マスタ!$K$4&"_"&G$20,データシート1!$A:$BU,MATCH("ba_"&$D26,データシート1!$A$1:$BU$1,0),0),0) -> 0 | H26: =IFERROR(VLOOKUP(年度マスタ!$K$4&"_"&H$20,データシート1!$A:$BU,MATCH("ba_"&$D26,データシート1!$A$1:$BU$1,0),0),0) -> 0 | I26: =IFERROR(VLOOKUP(年度マスタ!$K$4&"_"&I$20,データシート1!$A:$BU,MATCH("ba_"&$D26,データシート1!$A$1:$BU$1,0),0),0) -> 0 | J26: =IFERROR(VLOOKUP(年度マスタ!$K$4&"_"&J$20,データシート1!$A:$BU,MATCH("ba_"&$D26,データシート1!$A$1:$BU$1,0),0),0) -> 0 | K26: =IFERROR(VLOOKUP(年度マスタ!$K$4&"_"&K$20,データシート1!$A:$BU,MATCH("ba_"&$D26,データシート1!$A$1:$BU$1,0),0),0) -> 0 | L26: =IFERROR(VLOOKUP(年度マスタ!$K$4&"_"&L$20,データシート1!$A:$BU,MATCH("ba_"&$D26,データシート1!$A$1:$BU$1,0),0),0) -> 0 | M26: =IFERROR(VLOOKUP(年度マスタ!$K$4&"_"&M$20,データシート1!$A:$BU,MATCH("ba_"&$D26,データシート1!$A$1:$BU$1,0),0),0) -> 0 | N26: =IFERROR(VLOOKUP(年度マスタ!$K$4&"_"&N$20,データシート1!$A:$BU,MATCH("ba_"&$D26,データシート1!$A$1:$BU$1,0),0),0) -> 0 | O26: =IFERROR(VLOOKUP(年度マスタ!$K$4&"_"&O$20,データシート1!$A:$BU,MATCH("ba_"&$D26,データシート1!$A$1:$BU$1,0),0),0) -> 0 | P26: =IFERROR(VLOOKUP(年度マスタ!$K$4&"_"&P$20,データシート1!$A:$BU,MATCH("ba_"&$D26,データシート1!$A$1:$BU$1,0),0),0) -> 0 | AE26: 製造業 | AF26: =①CO2排出量の現状把握!Z36 -> 8.370265898 | AG26: =①CO2排出量の現状把握!AA36 -> 7.518442885 | AH26: =①CO2排出量の現状把握!AB36 -> 7.068684775 | AI26: =①CO2排出量の現状把握!AC36 -> 6.701735402 | AJ26: =①CO2排出量の現状把握!AD36 -> 9.193492559 | AK26: =①CO2排出量の現状把握!AE36 -> 8.110992299 | AL26: =①CO2排出量の現状把握!AF36 -> 8.09880432 | AM26: =①CO2排出量の現状把握!AG36 -> 10.55255401 | AN26: =①CO2排出量の現状把握!AH36 -> 9.143537641 | AO26: =①CO2排出量の現状把握!AI36 -> 7.479014471 | AP26: =①CO2排出量の現状把握!AJ36 -> 8.657631336 | AV26: =AW26 -> CH4 | AW26: =D60 -> CH4 | AX26: 0 | AY26: =AX26 -> 0 | BA26: 15 | BC26: 15：印刷・同関連業 | BD26: 15：印刷・同関連業(N=0) | BE26: =VLOOKUP(BE$13&"_"&$AV$8,データシート2!$A:$SI,MATCH($AV$5&"_"&$BA26&$AV$6,データシート2!$A$1:$SI$1,0),0) -> 0 | BF26: =VLOOKUP(BF$13&"_"&$AW$8,データシート2!$A:$SI,MATCH($AW$5&"_"&$BA26&$AW$6,データシート2!$A$1:$SI$1,0),0) -> 0 | BH26: =VLOOKUP(BH$13&"_"&$AV$8,データシート2!$A:$SI,MATCH($AV$5&"_"&$BA26&$AV$6,データシート2!$A$1:$SI$1,0),0) -> 189 | BI26: =VLOOKUP(BI$13&"_"&$AW$8,データシート2!$A:$SI,MATCH($AW$5&"_"&$BA26&$AW$6,データシート2!$A$1:$SI$1,0),0) -> 1,412 | BJ26: 7
D27: エネルギー転換部門 | F27: =IFERROR(VLOOKUP(年度マスタ!$K$4&"_"&F$20,データシート1!$A:$BU,MATCH("ba_"&$D27,データシート1!$A$1:$BU$1,0),0),0) -> 0 | G27: =IFERROR(VLOOKUP(年度マスタ!$K$4&"_"&G$20,データシート1!$A:$BU,MATCH("ba_"&$D27,データシート1!$A$1:$BU$1,0),0),0) -> 0 | H27: =IFERROR(VLOOKUP(年度マスタ!$K$4&"_"&H$20,データシート1!$A:$BU,MATCH("ba_"&$D27,データシート1!$A$1:$BU$1,0),0),0) -> 0 | I27: =IFERROR(VLOOKUP(年度マスタ!$K$4&"_"&I$20,データシート1!$A:$BU,MATCH("ba_"&$D27,データシート1!$A$1:$BU$1,0),0),0) -> 0 | J27: =IFERROR(VLOOKUP(年度マスタ!$K$4&"_"&J$20,データシート1!$A:$BU,MATCH("ba_"&$D27,データシート1!$A$1:$BU$1,0),0),0) -> 0 | K27: =IFERROR(VLOOKUP(年度マスタ!$K$4&"_"&K$20,データシート1!$A:$BU,MATCH("ba_"&$D27,データシート1!$A$1:$BU$1,0),0),0) -> 0 | L27: =IFERROR(VLOOKUP(年度マスタ!$K$4&"_"&L$20,データシート1!$A:$BU,MATCH("ba_"&$D27,データシート1!$A$1:$BU$1,0),0),0) -> 0 | M27: =IFERROR(VLOOKUP(年度マスタ!$K$4&"_"&M$20,データシート1!$A:$BU,MATCH("ba_"&$D27,データシート1!$A$1:$BU$1,0),0),0) -> 0 | N27: =IFERROR(VLOOKUP(年度マスタ!$K$4&"_"&N$20,データシート1!$A:$BU,MATCH("ba_"&$D27,データシート1!$A$1:$BU$1,0),0),0) -> 0 | O27: =IFERROR(VLOOKUP(年度マスタ!$K$4&"_"&O$20,データシート1!$A:$BU,MATCH("ba_"&$D27,データシート1!$A$1:$BU$1,0),0),0) -> 0 | P27: =IFERROR(VLOOKUP(年度マスタ!$K$4&"_"&P$20,データシート1!$A:$BU,MATCH("ba_"&$D27,データシート1!$A$1:$BU$1,0),0),0) -> 0 | AE27: 建設業・鉱業 | AF27: =①CO2排出量の現状把握!Z37 -> 0.9536382005 | AG27: =①CO2排出量の現状把握!AA37 -> 1.074310316 | AH27: =①CO2排出量の現状把握!AB37 -> 0.8879211404 | AI27: =①CO2排出量の現状把握!AC37 -> 0.9241120532 | AJ27: =①CO2排出量の現状把握!AD37 -> 0.886127395 | AK27: =①CO2排出量の現状把握!AE37 -> 0.8358645283 | AL27: =①CO2排出量の現状把握!AF37 -> 0.8541283956 | AM27: =①CO2排出量の現状把握!AG37 -> 0.7949621921 | AN27: =①CO2排出量の現状把握!AH37 -> 0.7376663771 | AO27: =①CO2排出量の現状把握!AI37 -> 0.776945529 | AP27: =①CO2排出量の現状把握!AJ37 -> 0.7484142113 | AV27: =AW27 -> N2O | AW27: N2O | AX27: 0 | AY27: =AX27 -> 0 | BA27: 18 | BC27: 18：プラスチック製品製造業 | BD27: 18：プラスチック製品製造業(N=0) | BE27: =VLOOKUP(BE$13&"_"&$AV$8,データシート2!$A:$SI,MATCH($AV$5&"_"&$BA27&$AV$6,データシート2!$A$1:$SI$1,0),0) -> 0 | BF27: =VLOOKUP(BF$13&"_"&$AW$8,データシート2!$A:$SI,MATCH($AW$5&"_"&$BA27&$AW$6,データシート2!$A$1:$SI$1,0),0) -> 0 | BH27: =VLOOKUP(BH$13&"_"&$AV$8,データシート2!$A:$SI,MATCH($AV$5&"_"&$BA27&$AV$6,データシート2!$A$1:$SI$1,0),0) -> 706 | BI27: =VLOOKUP(BI$13&"_"&$AW$8,データシート2!$A:$SI,MATCH($AW$5&"_"&$BA27&$AW$6,データシート2!$A$1:$SI$1,0),0) -> 6,123 | BJ27: 9
D28: 分類不能 | F28: =IFERROR(VLOOKUP(年度マスタ!$K$4&"_"&F$20,データシート1!$A:$BU,MATCH("ba_"&$D28,データシート1!$A$1:$BU$1,0),0),0) -> 0 | G28: =IFERROR(VLOOKUP(年度マスタ!$K$4&"_"&G$20,データシート1!$A:$BU,MATCH("ba_"&$D28,データシート1!$A$1:$BU$1,0),0),0) -> 0 | H28: =IFERROR(VLOOKUP(年度マスタ!$K$4&"_"&H$20,データシート1!$A:$BU,MATCH("ba_"&$D28,データシート1!$A$1:$BU$1,0),0),0) -> 0 | I28: =IFERROR(VLOOKUP(年度マスタ!$K$4&"_"&I$20,データシート1!$A:$BU,MATCH("ba_"&$D28,データシート1!$A$1:$BU$1,0),0),0) -> 0 | J28: =IFERROR(VLOOKUP(年度マスタ!$K$4&"_"&J$20,データシート1!$A:$BU,MATCH("ba_"&$D28,データシート1!$A$1:$BU$1,0),0),0) -> 0 | K28: =IFERROR(VLOOKUP(年度マスタ!$K$4&"_"&K$20,データシート1!$A:$BU,MATCH("ba_"&$D28,データシート1!$A$1:$BU$1,0),0),0) -> 0 | L28: =IFERROR(VLOOKUP(年度マスタ!$K$4&"_"&L$20,データシート1!$A:$BU,MATCH("ba_"&$D28,データシート1!$A$1:$BU$1,0),0),0) -> 0 | M28: =IFERROR(VLOOKUP(年度マスタ!$K$4&"_"&M$20,データシート1!$A:$BU,MATCH("ba_"&$D28,データシート1!$A$1:$BU$1,0),0),0) -> 0 | N28: =IFERROR(VLOOKUP(年度マスタ!$K$4&"_"&N$20,データシート1!$A:$BU,MATCH("ba_"&$D28,データシート1!$A$1:$BU$1,0),0),0) -> 0 | O28: =IFERROR(VLOOKUP(年度マスタ!$K$4&"_"&O$20,データシート1!$A:$BU,MATCH("ba_"&$D28,データシート1!$A$1:$BU$1,0),0),0) -> 0 | P28: =IFERROR(VLOOKUP(年度マスタ!$K$4&"_"&P$20,データシート1!$A:$BU,MATCH("ba_"&$D28,データシート1!$A$1:$BU$1,0),0),0) -> 0 | AE28: 農林水産業 | AF28: =①CO2排出量の現状把握!Z38 -> 11.18908126 | AG28: =①CO2排出量の現状把握!AA38 -> 11.28945028 | AH28: =①CO2排出量の現状把握!AB38 -> 9.969474789 | AI28: =①CO2排出量の現状把握!AC38 -> 8.436963396 | AJ28: =①CO2排出量の現状把握!AD38 -> 8.880784149 | AK28: =①CO2排出量の現状把握!AE38 -> 9.549935018 | AL28: =①CO2排出量の現状把握!AF38 -> 8.620822366 | AM28: =①CO2排出量の現状把握!AG38 -> 7.908494129 | AN28: =①CO2排出量の現状把握!AH38 -> 7.943926881 | AO28: =①CO2排出量の現状把握!AI38 -> 10.78649411 | AP28: =①CO2排出量の現状把握!AJ38 -> 9.843635271 | AV28: HFC | AW28: HFC | AX28: 0 | AY28: 0 | BA28: 19 | BC28: 19：ゴム製品製造業 | BD28: 19：ゴム製品製造業(N=0) | BE28: =VLOOKUP(BE$13&"_"&$AV$8,データシート2!$A:$SI,MATCH($AV$5&"_"&$BA28&$AV$6,データシート2!$A$1:$SI$1,0),0) -> 0 | BF28: =VLOOKUP(BF$13&"_"&$AW$8,データシート2!$A:$SI,MATCH($AW$5&"_"&$BA28&$AW$6,データシート2!$A$1:$SI$1,0),0) -> 0 | BH28: =VLOOKUP(BH$13&"_"&$AV$8,データシート2!$A:$SI,MATCH($AV$5&"_"&$BA28&$AV$6,データシート2!$A$1:$SI$1,0),0) -> 148 | BI28: =VLOOKUP(BI$13&"_"&$AW$8,データシート2!$A:$SI,MATCH($AW$5&"_"&$BA28&$AW$6,データシート2!$A$1:$SI$1,0),0) -> 2,145 | BJ28: 14
AD29: 業務その他部門 | AF29: =①CO2排出量の現状把握!Z39 -> 12.79954546 | AG29: =①CO2排出量の現状把握!AA39 -> 15.8969948 | AH29: =①CO2排出量の現状把握!AB39 -> 14.78458523 | AI29: =①CO2排出量の現状把握!AC39 -> 15.93923941 | AJ29: =①CO2排出量の現状把握!AD39 -> 15.42237517 | AK29: =①CO2排出量の現状把握!AE39 -> 13.22289812 | AL29: =①CO2排出量の現状把握!AF39 -> 13.25846733 | AM29: =①CO2排出量の現状把握!AG39 -> 13.3238591 | AN29: =①CO2排出量の現状把握!AH39 -> 11.95271146 | AO29: =①CO2排出量の現状把握!AI39 -> 12.41527133 | AP29: =①CO2排出量の現状把握!AJ39 -> 12.60915434 | AV29: PFC | AW29: PFC | AX29: 0 | AY29: 0 | BA29: 20 | BC29: 20：なめし革・同製品・毛皮製造業 | BD29: 20：なめし革・同製品・毛皮製造業(N=0) | BE29: =VLOOKUP(BE$13&"_"&$AV$8,データシート2!$A:$SI,MATCH($AV$5&"_"&$BA29&$AV$6,データシート2!$A$1:$SI$1,0),0) -> 0 | BF29: =VLOOKUP(BF$13&"_"&$AW$8,データシート2!$A:$SI,MATCH($AW$5&"_"&$BA29&$AW$6,データシート2!$A$1:$SI$1,0),0) -> 0 | BH29: =VLOOKUP(BH$13&"_"&$AV$8,データシート2!$A:$SI,MATCH($AV$5&"_"&$BA29&$AV$6,データシート2!$A$1:$SI$1,0),0) -> 1 | BI29: =VLOOKUP(BI$13&"_"&$AW$8,データシート2!$A:$SI,MATCH($AW$5&"_"&$BA29&$AW$6,データシート2!$A$1:$SI$1,0),0) -> 6 | BJ29: 6
AC30: 区域のエネルギー起源CO2排出量における特定事業所の温室効果ガス排出量のカバー率 | AV30: SF6 | AW30: SF6 | AX30: 0 | AY30: 0 | BA30: 23 | BC30: 23：非鉄金属製造業 | BD30: 23：非鉄金属製造業(N=0) | BE30: =VLOOKUP(BE$13&"_"&$AV$8,データシート2!$A:$SI,MATCH($AV$5&"_"&$BA30&$AV$6,データシート2!$A$1:$SI$1,0),0) -> 0 | BF30: =VLOOKUP(BF$13&"_"&$AW$8,データシート2!$A:$SI,MATCH($AW$5&"_"&$BA30&$AW$6,データシート2!$A$1:$SI$1,0),0) -> 0 | BH30: =VLOOKUP(BH$13&"_"&$AV$8,データシート2!$A:$SI,MATCH($AV$5&"_"&$BA30&$AV$6,データシート2!$A$1:$SI$1,0),0) -> 325 | BI30: =VLOOKUP(BI$13&"_"&$AW$8,データシート2!$A:$SI,MATCH($AW$5&"_"&$BA30&$AW$6,データシート2!$A$1:$SI$1,0),0) -> 8,872 | BJ30: 27
AC31: 部門 | AF31: 平成23年度 | AG31: 平成24年度 | AH31: 平成25年度 | AI31: 平成26年度 | AJ31: 平成27年度 | AK31: 平成28年度 | AL31: 平成29年度 | AM31: 平成30年度 | AN31: 令和元年度 | AO31: 令和2年度 | AP31: 令和3年度 | AV31: NF3 | AW31: NF3 | AX31: 0 | AY31: 0 | BA31: 24 | BC31: 24：金属製品製造業 | BD31: 24：金属製品製造業(N=0) | BE31: =VLOOKUP(BE$13&"_"&$AV$8,データシート2!$A:$SI,MATCH($AV$5&"_"&$BA31&$AV$6,データシート2!$A$1:$SI$1,0),0) -> 0 | BF31: =VLOOKUP(BF$13&"_"&$AW$8,データシート2!$A:$SI,MATCH($AW$5&"_"&$BA31&$AW$6,データシート2!$A$1:$SI$1,0),0) -> 0 | BH31: =VLOOKUP(BH$13&"_"&$AV$8,データシート2!$A:$SI,MATCH($AV$5&"_"&$BA31&$AV$6,データシート2!$A$1:$SI$1,0),0) -> 435 | BI31: =VLOOKUP(BI$13&"_"&$AW$8,データシート2!$A:$SI,MATCH($AW$5&"_"&$BA31&$AW$6,データシート2!$A$1:$SI$1,0),0) -> 3,684 | BJ31: 8
AC32: 産業・業務部門の合計 | AF32: =IFERROR(IF(SUM(F23:F26)/AF24>1,1,SUM(F23:F26)/AF24),0) -> 0% | AG32: 0% | AH32: 0% | AI32: 0% | AJ32: 0% | AK32: 0% | AL32: 0% | AM32: 0% | AN32: 0% | AO32: 0% | AP32: 0% | BA32: 25 | BC32: 25：はん用機械器具製造業 | BD32: 25：はん用機械器具製造業(N=0) | BE32: =VLOOKUP(BE$13&"_"&$AV$8,データシート2!$A:$SI,MATCH($AV$5&"_"&$BA32&$AV$6,データシート2!$A$1:$SI$1,0),0) -> 0 | BF32: =VLOOKUP(BF$13&"_"&$AW$8,データシート2!$A:$SI,MATCH($AW$5&"_"&$BA32&$AW$6,データシート2!$A$1:$SI$1,0),0) -> 0 | BH32: =VLOOKUP(BH$13&"_"&$AV$8,データシート2!$A:$SI,MATCH($AV$5&"_"&$BA32&$AV$6,データシート2!$A$1:$SI$1,0),0) -> 205 | BI32: =VLOOKUP(BI$13&"_"&$AW$8,データシート2!$A:$SI,MATCH($AW$5&"_"&$BA32&$AW$6,データシート2!$A$1:$SI$1,0),0) -> 3,259 | BJ32: 16
AD33: 産業部門 | AF33: =IFERROR(IF(F22/AF25>1,1,F22/AF25),0) -> 0% | AG33: =IFERROR(IF(G22/AG25>1,1,G22/AG25),0) -> 0% | AH33: 0% | AI33: 0% | AJ33: 0% | AK33: 0% | AL33: 0% | AM33: 0% | AN33: =IFERROR(IF(N22/AN25>1,1,N22/AN25),0) -> 0% | AO33: 0% | AP33: 0% | BA33: 26 | BC33: 26：生産用機械器具製造業 | BD33: 26：生産用機械器具製造業(N=0) | BE33: =VLOOKUP(BE$13&"_"&$AV$8,データシート2!$A:$SI,MATCH($AV$5&"_"&$BA33&$AV$6,データシート2!$A$1:$SI$1,0),0) -> 0 | BF33: =VLOOKUP(BF$13&"_"&$AW$8,データシート2!$A:$SI,MATCH($AW$5&"_"&$BA33&$AW$6,データシート2!$A$1:$SI$1,0),0) -> 0 | BH33: =VLOOKUP(BH$13&"_"&$AV$8,データシート2!$A:$SI,MATCH($AV$5&"_"&$BA33&$AV$6,データシート2!$A$1:$SI$1,0),0) -> 212 | BI33: =VLOOKUP(BI$13&"_"&$AW$8,データシート2!$A:$SI,MATCH($AW$5&"_"&$BA33&$AW$6,データシート2!$A$1:$SI$1,0),0) -> 1,659 | BJ33: 8
AE34: 製造業 | AF34: =IFERROR(IF(F23/AF26>1,1,F23/AF26),0) -> 0% | AG34: =IFERROR(IF(G23/AG26>1,1,G23/AG26),0) -> 0% | AH34: 0% | AI34: 0% | AJ34: 0% | AK34: 0% | AL34: 0% | AM34: 0% | AN34: 0% | AO34: 0% | AP34: 0% | BA34: 27 | BC34: 27：業務用機械器具製造業 | BD34: 27：業務用機械器具製造業(N=0) | BE34: =VLOOKUP(BE$13&"_"&$AV$8,データシート2!$A:$SI,MATCH($AV$5&"_"&$BA34&$AV$6,データシート2!$A$1:$SI$1,0),0) -> 0 | BF34: =VLOOKUP(BF$13&"_"&$AW$8,データシート2!$A:$SI,MATCH($AW$5&"_"&$BA34&$AW$6,データシート2!$A$1:$SI$1,0),0) -> 0 | BH34: =VLOOKUP(BH$13&"_"&$AV$8,データシート2!$A:$SI,MATCH($AV$5&"_"&$BA34&$AV$6,データシート2!$A$1:$SI$1,0),0) -> 114 | BI34: =VLOOKUP(BI$13&"_"&$AW$8,データシート2!$A:$SI,MATCH($AW$5&"_"&$BA34&$AW$6,データシート2!$A$1:$SI$1,0),0) -> 1,183 | BJ34: 10
B35: =D35 -> 0 | AE35: 建設業・鉱業 | AF35: =IFERROR(IF(F24/AF27>1,1,F24/AF27),0) -> 0% | AG35: 0% | AH35: =IFERROR(IF(H24/AH27>1,1,H24/AH27),0) -> 0% | AI35: 0% | AJ35: 0% | AK35: 0% | AL35: 0% | AM35: 0% | AN35: 0% | AO35: 0% | AP35: 0% | BA35: 28 | BC35: 28：電子部品等製造業 | BD35: 28：電子部品等製造業(N=0) | BE35: =VLOOKUP(BE$13&"_"&$AV$8,データシート2!$A:$SI,MATCH($AV$5&"_"&$BA35&$AV$6,データシート2!$A$1:$SI$1,0),0) -> 0 | BF35: =VLOOKUP(BF$13&"_"&$AW$8,データシート2!$A:$SI,MATCH($AW$5&"_"&$BA35&$AW$6,データシート2!$A$1:$SI$1,0),0) -> 0 | BH35: =VLOOKUP(BH$13&"_"&$AV$8,データシート2!$A:$SI,MATCH($AV$5&"_"&$BA35&$AV$6,データシート2!$A$1:$SI$1,0),0) -> 484 | BI35: =VLOOKUP(BI$13&"_"&$AW$8,データシート2!$A:$SI,MATCH($AW$5&"_"&$BA35&$AW$6,データシート2!$A$1:$SI$1,0),0) -> 16,441 | BJ35: 34
B36: 0 | AE36: 農林水産業 | AF36: 0% | AG36: 0% | AH36: 0% | AI36: 0% | AJ36: 0% | AK36: 0% | AL36: 0% | AM36: 0% | AN36: 0% | AO36: 0% | AP36: 0% | BA36: 29 | BC36: 29：電気機械器具製造業 | BD36: 29：電気機械器具製造業(N=0) | BE36: =VLOOKUP(BE$13&"_"&$AV$8,データシート2!$A:$SI,MATCH($AV$5&"_"&$BA36&$AV$6,データシート2!$A$1:$SI$1,0),0) -> 0 | BF36: =VLOOKUP(BF$13&"_"&$AW$8,データシート2!$A:$SI,MATCH($AW$5&"_"&$BA36&$AW$6,データシート2!$A$1:$SI$1,0),0) -> 0 | BH36: =VLOOKUP(BH$13&"_"&$AV$8,データシート2!$A:$SI,MATCH($AV$5&"_"&$BA36&$AV$6,データシート2!$A$1:$SI$1,0),0) -> 316 | BI36: =VLOOKUP(BI$13&"_"&$AW$8,データシート2!$A:$SI,MATCH($AW$5&"_"&$BA36&$AW$6,データシート2!$A$1:$SI$1,0),0) -> 3,825 | BJ36: 12
AD37: 業務その他部門 | AF37: =IFERROR(IF(F26/AF29>1,1,F26/AF29),0) -> 0% | AG37: =IFERROR(IF(G26/AG29>1,1,G26/AG29),0) -> 0% | AH37: 0% | AI37: 0% | AJ37: 0% | AK37: 0% | AL37: 0% | AM37: 0% | AN37: 0% | AO37: 0% | AP37: 0% | BA37: 30 | BC37: 30：情報通信機械器具製造業 | BD37: 30：情報通信機械器具製造業(N=0) | BE37: =VLOOKUP(BE$13&"_"&$AV$8,データシート2!$A:$SI,MATCH($AV$5&"_"&$BA37&$AV$6,データシート2!$A$1:$SI$1,0),0) -> 0 | BF37: =VLOOKUP(BF$13&"_"&$AW$8,データシート2!$A:$SI,MATCH($AW$5&"_"&$BA37&$AW$6,データシート2!$A$1:$SI$1,0),0) -> 0 | BH37: =VLOOKUP(BH$13&"_"&$AV$8,データシート2!$A:$SI,MATCH($AV$5&"_"&$BA37&$AV$6,データシート2!$A$1:$SI$1,0),0) -> 61 | BI37: =VLOOKUP(BI$13&"_"&$AW$8,データシート2!$A:$SI,MATCH($AW$5&"_"&$BA37&$AW$6,データシート2!$A$1:$SI$1,0),0) -> 410 | BJ37: 7
BA38: 31 | BC38: 31：輸送用機械器具製造業 | BD38: 31：輸送用機械器具製造業(N=0) | BE38: =VLOOKUP(BE$13&"_"&$AV$8,データシート2!$A:$SI,MATCH($AV$5&"_"&$BA38&$AV$6,データシート2!$A$1:$SI$1,0),0) -> 0 | BF38: =VLOOKUP(BF$13&"_"&$AW$8,データシート2!$A:$SI,MATCH($AW$5&"_"&$BA38&$AW$6,データシート2!$A$1:$SI$1,0),0) -> 0 | BH38: =VLOOKUP(BH$13&"_"&$AV$8,データシート2!$A:$SI,MATCH($AV$5&"_"&$BA38&$AV$6,データシート2!$A$1:$SI$1,0),0) -> 1,054 | BI38: =VLOOKUP(BI$13&"_"&$AW$8,データシート2!$A:$SI,MATCH($AW$5&"_"&$BA38&$AW$6,データシート2!$A$1:$SI$1,0),0) -> 14,506 | BJ38: 14
BA39: 32 | BC39: 32：その他の製造業 | BD39: 32：その他の製造業(N=0) | BE39: =VLOOKUP(BE$13&"_"&$AV$8,データシート2!$A:$SI,MATCH($AV$5&"_"&$BA39&$AV$6,データシート2!$A$1:$SI$1,0),0) -> 0 | BF39: =VLOOKUP(BF$13&"_"&$AW$8,データシート2!$A:$SI,MATCH($AW$5&"_"&$BA39&$AW$6,データシート2!$A$1:$SI$1,0),0) -> 0 | BH39: =VLOOKUP(BH$13&"_"&$AV$8,データシート2!$A:$SI,MATCH($AV$5&"_"&$BA39&$AV$6,データシート2!$A$1:$SI$1,0),0) -> 78 | BI39: =VLOOKUP(BI$13&"_"&$AW$8,データシート2!$A:$SI,MATCH($AW$5&"_"&$BA39&$AW$6,データシート2!$A$1:$SI$1,0),0) -> 685 | BJ39: 9
BA40: F | BB40: 業務その他部門 | BC40: F：電気・ガス・熱供給・水道業 | BD40: F：電気・ガス・熱供給・水道業(N=0) | BE40: =VLOOKUP(BE$13&"_"&$AV$8,データシート2!$A:$SI,MATCH($AV$5&"_"&$BA40&$AV$6,データシート2!$A$1:$SI$1,0),0) -> 0 | BF40: =VLOOKUP(BF$13&"_"&$AW$8,データシート2!$A:$SI,MATCH($AW$5&"_"&$BA40&$AW$6,データシート2!$A$1:$SI$1,0),0) -> 0 | BG40: =BF40/BE40 ->  | BH40: =VLOOKUP(BH$13&"_"&$AV$8,データシート2!$A:$SI,MATCH($AV$5&"_"&$BA40&$AV$6,データシート2!$A$1:$SI$1,0),0) -> 488 | BI40: =VLOOKUP(BI$13&"_"&$AW$8,データシート2!$A:$SI,MATCH($AW$5&"_"&$BA40&$AW$6,データシート2!$A$1:$SI$1,0),0) -> 4,823 | BJ40: =BI40/BH40 -> 10 | BK40: =BG40/BJ40 -> 
BA41: G | BC41: G：情報通信業 | BD41: G：情報通信業(N=0) | BE41: =VLOOKUP(BE$13&"_"&$AV$8,データシート2!$A:$SI,MATCH($AV$5&"_"&$BA41&$AV$6,データシート2!$A$1:$SI$1,0),0) -> 0 | BF41: =VLOOKUP(BF$13&"_"&$AW$8,データシート2!$A:$SI,MATCH($AW$5&"_"&$BA41&$AW$6,データシート2!$A$1:$SI$1,0),0) -> 0 | BH41: =VLOOKUP(BH$13&"_"&$AV$8,データシート2!$A:$SI,MATCH($AV$5&"_"&$BA41&$AV$6,データシート2!$A$1:$SI$1,0),0) -> 436 | BI41: =VLOOKUP(BI$13&"_"&$AW$8,データシート2!$A:$SI,MATCH($AW$5&"_"&$BA41&$AW$6,データシート2!$A$1:$SI$1,0),0) -> 3,694 | BJ41: 8
AB42: 3 全国の1事業所当たりの排出傾向との比較 | BA42: H | BC42: H：運輸業，郵便業 | BD42: H：運輸業，郵便業(N=0) | BE42: =VLOOKUP(BE$13&"_"&$AV$8,データシート2!$A:$SI,MATCH($AV$5&"_"&$BA42&$AV$6,データシート2!$A$1:$SI$1,0),0) -> 0 | BF42: =VLOOKUP(BF$13&"_"&$AW$8,データシート2!$A:$SI,MATCH($AW$5&"_"&$BA42&$AW$6,データシート2!$A$1:$SI$1,0),0) -> 0 | BH42: =VLOOKUP(BH$13&"_"&$AV$8,データシート2!$A:$SI,MATCH($AV$5&"_"&$BA42&$AV$6,データシート2!$A$1:$SI$1,0),0) -> 181 | BI42: =VLOOKUP(BI$13&"_"&$AW$8,データシート2!$A:$SI,MATCH($AW$5&"_"&$BA42&$AW$6,データシート2!$A$1:$SI$1,0),0) -> 1,207 | BJ42: 7
BA43: I | BC43: I：卸売業，小売業 | BD43: I：卸売業，小売業(N=0) | BE43: =VLOOKUP(BE$13&"_"&$AV$8,データシート2!$A:$SI,MATCH($AV$5&"_"&$BA43&$AV$6,データシート2!$A$1:$SI$1,0),0) -> 0 | BF43: =VLOOKUP(BF$13&"_"&$AW$8,データシート2!$A:$SI,MATCH($AW$5&"_"&$BA43&$AW$6,データシート2!$A$1:$SI$1,0),0) -> 0 | BH43: =VLOOKUP(BH$13&"_"&$AV$8,データシート2!$A:$SI,MATCH($AV$5&"_"&$BA43&$AV$6,データシート2!$A$1:$SI$1,0),0) -> 613 | BI43: =VLOOKUP(BI$13&"_"&$AW$8,データシート2!$A:$SI,MATCH($AW$5&"_"&$BA43&$AW$6,データシート2!$A$1:$SI$1,0),0) -> 2,526 | BJ43: 4
BA44: J | BC44: J：金融業，保険業 | BD44: J：金融業，保険業(N=0) | BE44: =VLOOKUP(BE$13&"_"&$AV$8,データシート2!$A:$SI,MATCH($AV$5&"_"&$BA44&$AV$6,データシート2!$A$1:$SI$1,0),0) -> 0 | BF44: =VLOOKUP(BF$13&"_"&$AW$8,データシート2!$A:$SI,MATCH($AW$5&"_"&$BA44&$AW$6,データシート2!$A$1:$SI$1,0),0) -> 0 | BH44: =VLOOKUP(BH$13&"_"&$AV$8,データシート2!$A:$SI,MATCH($AV$5&"_"&$BA44&$AV$6,データシート2!$A$1:$SI$1,0),0) -> 157 | BI44: =VLOOKUP(BI$13&"_"&$AW$8,データシート2!$A:$SI,MATCH($AW$5&"_"&$BA44&$AW$6,データシート2!$A$1:$SI$1,0),0) -> 767 | BJ44: 5
BA45: K | BC45: K：不動産業，物品賃貸業 | BD45: K：不動産業，物品賃貸業(N=0) | BE45: =VLOOKUP(BE$13&"_"&$AV$8,データシート2!$A:$SI,MATCH($AV$5&"_"&$BA45&$AV$6,データシート2!$A$1:$SI$1,0),0) -> 0 | BF45: =VLOOKUP(BF$13&"_"&$AW$8,データシート2!$A:$SI,MATCH($AW$5&"_"&$BA45&$AW$6,データシート2!$A$1:$SI$1,0),0) -> 0 | BH45: =VLOOKUP(BH$13&"_"&$AV$8,データシート2!$A:$SI,MATCH($AV$5&"_"&$BA45&$AV$6,データシート2!$A$1:$SI$1,0),0) -> 687 | BI45: =VLOOKUP(BI$13&"_"&$AW$8,データシート2!$A:$SI,MATCH($AW$5&"_"&$BA45&$AW$6,データシート2!$A$1:$SI$1,0),0) -> 3,705 | BJ45: 5
BA46: L | BC46: L：学術研究,専門･技術ｻｰﾋﾞｽ業 | BD46: L：学術研究,専門･技術ｻｰﾋﾞｽ業(N=0) | BE46: =VLOOKUP(BE$13&"_"&$AV$8,データシート2!$A:$SI,MATCH($AV$5&"_"&$BA46&$AV$6,データシート2!$A$1:$SI$1,0),0) -> 0 | BF46: =VLOOKUP(BF$13&"_"&$AW$8,データシート2!$A:$SI,MATCH($AW$5&"_"&$BA46&$AW$6,データシート2!$A$1:$SI$1,0),0) -> 0 | BH46: =VLOOKUP(BH$13&"_"&$AV$8,データシート2!$A:$SI,MATCH($AV$5&"_"&$BA46&$AV$6,データシート2!$A$1:$SI$1,0),0) -> 127 | BI46: =VLOOKUP(BI$13&"_"&$AW$8,データシート2!$A:$SI,MATCH($AW$5&"_"&$BA46&$AW$6,データシート2!$A$1:$SI$1,0),0) -> 1,532 | BJ46: 12
BA47: M | BC47: M：宿泊業，飲食サービス業 | BD47: M：宿泊業，飲食サービス業(N=0) | BE47: =VLOOKUP(BE$13&"_"&$AV$8,データシート2!$A:$SI,MATCH($AV$5&"_"&$BA47&$AV$6,データシート2!$A$1:$SI$1,0),0) -> 0 | BF47: =VLOOKUP(BF$13&"_"&$AW$8,データシート2!$A:$SI,MATCH($AW$5&"_"&$BA47&$AW$6,データシート2!$A$1:$SI$1,0),0) -> 0 | BH47: =VLOOKUP(BH$13&"_"&$AV$8,データシート2!$A:$SI,MATCH($AV$5&"_"&$BA47&$AV$6,データシート2!$A$1:$SI$1,0),0) -> 380 | BI47: =VLOOKUP(BI$13&"_"&$AW$8,データシート2!$A:$SI,MATCH($AW$5&"_"&$BA47&$AW$6,データシート2!$A$1:$SI$1,0),0) -> 1,783 | BJ47: 5
BA48: N | BC48: N：生活関連ｻｰﾋﾞｽ業,娯楽業 | BD48: N：生活関連ｻｰﾋﾞｽ業,娯楽業(N=0) | BE48: =VLOOKUP(BE$13&"_"&$AV$8,データシート2!$A:$SI,MATCH($AV$5&"_"&$BA48&$AV$6,データシート2!$A$1:$SI$1,0),0) -> 0 | BF48: =VLOOKUP(BF$13&"_"&$AW$8,データシート2!$A:$SI,MATCH($AW$5&"_"&$BA48&$AW$6,データシート2!$A$1:$SI$1,0),0) -> 0 | BH48: =VLOOKUP(BH$13&"_"&$AV$8,データシート2!$A:$SI,MATCH($AV$5&"_"&$BA48&$AV$6,データシート2!$A$1:$SI$1,0),0) -> 202 | BI48: =VLOOKUP(BI$13&"_"&$AW$8,データシート2!$A:$SI,MATCH($AW$5&"_"&$BA48&$AW$6,データシート2!$A$1:$SI$1,0),0) -> 1,002 | BJ48: 5
BA49: O | BC49: O：教育，学習支援業 | BD49: O：教育，学習支援業(N=0) | BE49: =VLOOKUP(BE$13&"_"&$AV$8,データシート2!$A:$SI,MATCH($AV$5&"_"&$BA49&$AV$6,データシート2!$A$1:$SI$1,0),0) -> 0 | BF49: =VLOOKUP(BF$13&"_"&$AW$8,データシート2!$A:$SI,MATCH($AW$5&"_"&$BA49&$AW$6,データシート2!$A$1:$SI$1,0),0) -> 0 | BH49: =VLOOKUP(BH$13&"_"&$AV$8,データシート2!$A:$SI,MATCH($AV$5&"_"&$BA49&$AV$6,データシート2!$A$1:$SI$1,0),0) -> 393 | BI49: =VLOOKUP(BI$13&"_"&$AW$8,データシート2!$A:$SI,MATCH($AW$5&"_"&$BA49&$AW$6,データシート2!$A$1:$SI$1,0),0) -> 3,356 | BJ49: 9
BA50: P | BC50: P：医療，福祉 | BD50: P：医療，福祉(N=0) | BE50: =VLOOKUP(BE$13&"_"&$AV$8,データシート2!$A:$SI,MATCH($AV$5&"_"&$BA50&$AV$6,データシート2!$A$1:$SI$1,0),0) -> 0 | BF50: =VLOOKUP(BF$13&"_"&$AW$8,データシート2!$A:$SI,MATCH($AW$5&"_"&$BA50&$AW$6,データシート2!$A$1:$SI$1,0),0) -> 0 | BH50: =VLOOKUP(BH$13&"_"&$AV$8,データシート2!$A:$SI,MATCH($AV$5&"_"&$BA50&$AV$6,データシート2!$A$1:$SI$1,0),0) -> 813 | BI50: =VLOOKUP(BI$13&"_"&$AW$8,データシート2!$A:$SI,MATCH($AW$5&"_"&$BA50&$AW$6,データシート2!$A$1:$SI$1,0),0) -> 4,507 | BJ50: 6
BA51: Q | BC51: Q：複合サービス事業 | BD51: Q：複合サービス事業(N=0) | BE51: =VLOOKUP(BE$13&"_"&$AV$8,データシート2!$A:$SI,MATCH($AV$5&"_"&$BA51&$AV$6,データシート2!$A$1:$SI$1,0),0) -> 0 | BF51: =VLOOKUP(BF$13&"_"&$AW$8,データシート2!$A:$SI,MATCH($AW$5&"_"&$BA51&$AW$6,データシート2!$A$1:$SI$1,0),0) -> 0 | BH51: =VLOOKUP(BH$13&"_"&$AV$8,データシート2!$A:$SI,MATCH($AV$5&"_"&$BA51&$AV$6,データシート2!$A$1:$SI$1,0),0) -> 3 | BI51: =VLOOKUP(BI$13&"_"&$AW$8,データシート2!$A:$SI,MATCH($AW$5&"_"&$BA51&$AW$6,データシート2!$A$1:$SI$1,0),0) -> 17 | BJ51: 6
BA52: R | BC52: R：ｻｰﾋﾞｽ業(他に分類されない) | BD52: =BC52&"(N="&BE52&")" -> R：ｻｰﾋﾞｽ業(他に分類されない)(N=0) | BE52: =VLOOKUP(BE$13&"_"&$AV$8,データシート2!$A:$SI,MATCH($AV$5&"_"&$BA52&$AV$6,データシート2!$A$1:$SI$1,0),0) -> 0 | BF52: =VLOOKUP(BF$13&"_"&$AW$8,データシート2!$A:$SI,MATCH($AW$5&"_"&$BA52&$AW$6,データシート2!$A$1:$SI$1,0),0) -> 0 | BG52: =BF52/BE52 ->  | BH52: =VLOOKUP(BH$13&"_"&$AV$8,データシート2!$A:$SI,MATCH($AV$5&"_"&$BA52&$AV$6,データシート2!$A$1:$SI$1,0),0) -> 641 | BI52: =VLOOKUP(BI$13&"_"&$AW$8,データシート2!$A:$SI,MATCH($AW$5&"_"&$BA52&$AW$6,データシート2!$A$1:$SI$1,0),0) -> 17,095 | BJ52: =BI52/BH52 -> 27 | BK52: =BG52/BJ52 -> 
P53: ［千t-CO2］ | BA53: S | BC53: S：公務 | BD53: =BC53&"(N="&BE53&")" -> S：公務(N=0) | BE53: =VLOOKUP(BE$13&"_"&$AV$8,データシート2!$A:$SI,MATCH($AV$5&"_"&$BA53&$AV$6,データシート2!$A$1:$SI$1,0),0) -> 0 | BF53: =VLOOKUP(BF$13&"_"&$AW$8,データシート2!$A:$SI,MATCH($AW$5&"_"&$BA53&$AW$6,データシート2!$A$1:$SI$1,0),0) -> 0 | BG53: =BF53/BE53 ->  | BH53: =VLOOKUP(BH$13&"_"&$AV$8,データシート2!$A:$SI,MATCH($AV$5&"_"&$BA53&$AV$6,データシート2!$A$1:$SI$1,0),0) -> 228 | BI53: =VLOOKUP(BI$13&"_"&$AW$8,データシート2!$A:$SI,MATCH($AW$5&"_"&$BA53&$AW$6,データシート2!$A$1:$SI$1,0),0) -> 1,056 | BJ53: =BI53/BH53 -> 5 | BK53: =BG53/BJ53 -> 
C54: 温室効果ガス種 | F54: 平成23年度 | G54: 平成24年度 | H54: 平成25年度 | I54: 平成26年度 | J54: 平成27年度 | K54: 平成28年度 | L54: 平成29年度 | M54: 平成30年度 | N54: 令和元年度 | O54: 令和2年度 | P54: 令和3年度 | BA54: 1711+1731 | BB54: エネルギー転換部門 | BC54: 石油精製業・コークス製造業 | BD54: =BC54&"(N="&BE54&")" -> 石油精製業・コークス製造業(N=0) | BE54: =BE58+BE59 -> 0 | BF54: =BF58+BF59 -> 0 | BH54: =BH58+BH59 -> 31 | BI54: =BI58+BI59 -> 27,295 | BJ54: 880
C55: 合計 | F55: =SUM(F56,F57,F60,F61,F62,F63,F64,F65,) -> 0 | G55: =SUM(G56,G57,G60,G61,G62,G63,G64,G65,) -> 0 | H55: 0 | I55: 0 | J55: 0 | K55: 0 | L55: 0 | M55: 0 | N55: 0 | O55: 0 | P55: 0 | BA55: 3311+3312 | BC55: 発電所・変電所 | BD55: =BC55&"(N="&BE55&")" -> 発電所・変電所(N=0) | BE55: =BE60+BE61 -> 0 | BF55: =BF60+BF61 -> 0 | BH55: =BH60+BH61 -> 231 | BI55: =BI60+BI61 -> 22,953 | BJ55: 99
C56: =D56 -> エネルギー起源CO2 | D56: エネルギー起源CO2 | F56: =IFERROR(VLOOKUP(年度マスタ!$K$4&"_"&F$54,データシート1!$A:$CE,MATCH("bc_"&$C56,データシート1!$A$1:$CE$1,0),0),0) -> 0 | G56: =IFERROR(VLOOKUP(年度マスタ!$K$4&"_"&G$54,データシート1!$A:$CE,MATCH("bc_"&$C56,データシート1!$A$1:$CE$1,0),0),0) -> 0 | H56: =IFERROR(VLOOKUP(年度マスタ!$K$4&"_"&H$54,データシート1!$A:$CE,MATCH("bc_"&$C56,データシート1!$A$1:$CE$1,0),0),0) -> 0 | I56: =IFERROR(VLOOKUP(年度マスタ!$K$4&"_"&I$54,データシート1!$A:$CE,MATCH("bc_"&$C56,データシート1!$A$1:$CE$1,0),0),0) -> 0 | J56: =IFERROR(VLOOKUP(年度マスタ!$K$4&"_"&J$54,データシート1!$A:$CE,MATCH("bc_"&$C56,データシート1!$A$1:$CE$1,0),0),0) -> 0 | K56: =IFERROR(VLOOKUP(年度マスタ!$K$4&"_"&K$54,データシート1!$A:$CE,MATCH("bc_"&$C56,データシート1!$A$1:$CE$1,0),0),0) -> 0 | L56: =IFERROR(VLOOKUP(年度マスタ!$K$4&"_"&L$54,データシート1!$A:$CE,MATCH("bc_"&$C56,データシート1!$A$1:$CE$1,0),0),0) -> 0 | M56: =IFERROR(VLOOKUP(年度マスタ!$K$4&"_"&M$54,データシート1!$A:$CE,MATCH("bc_"&$C56,データシート1!$A$1:$CE$1,0),0),0) -> 0 | N56: =IFERROR(VLOOKUP(年度マスタ!$K$4&"_"&N$54,データシート1!$A:$CE,MATCH("bc_"&$C56,データシート1!$A$1:$CE$1,0),0),0) -> 0 | O56: =IFERROR(VLOOKUP(年度マスタ!$K$4&"_"&O$54,データシート1!$A:$CE,MATCH("bc_"&$C56,データシート1!$A$1:$CE$1,0),0),0) -> 0 | P56: =IFERROR(VLOOKUP(年度マスタ!$K$4&"_"&P$54,データシート1!$A:$CE,MATCH("bc_"&$C56,データシート1!$A$1:$CE$1,0),0),0) -> 0 | BA56: 3411 | BC56: ガス製造工場 | BD56: ガス製造工場(N=0) | BE56: =BE62 -> 0 | BF56: =BF62 -> 0 | BH56: =BH62 -> 30 | BI56: =BI62 -> 751 | BJ56: 25
D57: 非エネルギー起源CO2 | F57: =SUM(F58:F59) -> 0 | G57: =SUM(G58:G59) -> 0 | H57: 0 | I57: 0 | J57: 0 | K57: =SUM(K58:K59) -> 0 | L57: 0 | M57: 0 | N57: 0 | O57: 0 | P57: =SUM(P58:P59) -> 0 | BA57: 3511 | BC57: 熱供給業 | BD57: 熱供給業(N=0) | BE57: =BE63 -> 0 | BF57: =BF63 -> 0 | BH57: =BH63 -> 137 | BI57: =BI63 -> 553 | BJ57: 4
C58: 非エネルギー起源CO2（廃棄物の原燃料使用） | E58: 廃棄物原燃料 | F58: =IFERROR(VLOOKUP(年度マスタ!$K$4&"_"&F$54,データシート1!$A:$CE,MATCH("bc_"&$C58,データシート1!$A$1:$CE$1,0),0),0) -> 0 | G58: =IFERROR(VLOOKUP(年度マスタ!$K$4&"_"&G$54,データシート1!$A:$CE,MATCH("bc_"&$C58,データシート1!$A$1:$CE$1,0),0),0) -> 0 | H58: =IFERROR(VLOOKUP(年度マスタ!$K$4&"_"&H$54,データシート1!$A:$CE,MATCH("bc_"&$C58,データシート1!$A$1:$CE$1,0),0),0) -> 0 | I58: =IFERROR(VLOOKUP(年度マスタ!$K$4&"_"&I$54,データシート1!$A:$CE,MATCH("bc_"&$C58,データシート1!$A$1:$CE$1,0),0),0) -> 0 | J58: =IFERROR(VLOOKUP(年度マスタ!$K$4&"_"&J$54,データシート1!$A:$CE,MATCH("bc_"&$C58,データシート1!$A$1:$CE$1,0),0),0) -> 0 | K58: =IFERROR(VLOOKUP(年度マスタ!$K$4&"_"&K$54,データシート1!$A:$CE,MATCH("bc_"&$C58,データシート1!$A$1:$CE$1,0),0),0) -> 0 | L58: =IFERROR(VLOOKUP(年度マスタ!$K$4&"_"&L$54,データシート1!$A:$CE,MATCH("bc_"&$C58,データシート1!$A$1:$CE$1,0),0),0) -> 0 | M58: =IFERROR(VLOOKUP(年度マスタ!$K$4&"_"&M$54,データシート1!$A:$CE,MATCH("bc_"&$C58,データシート1!$A$1:$CE$1,0),0),0) -> 0 | N58: =IFERROR(VLOOKUP(年度マスタ!$K$4&"_"&N$54,データシート1!$A:$CE,MATCH("bc_"&$C58,データシート1!$A$1:$CE$1,0),0),0) -> 0 | O58: =IFERROR(VLOOKUP(年度マスタ!$K$4&"_"&O$54,データシート1!$A:$CE,MATCH("bc_"&$C58,データシート1!$A$1:$CE$1,0),0),0) -> 0 | P58: =IFERROR(VLOOKUP(年度マスタ!$K$4&"_"&P$54,データシート1!$A:$CE,MATCH("bc_"&$C58,データシート1!$A$1:$CE$1,0),0),0) -> 0 | BA58: 1711 | BD58: 石油精製業 | BE58: =VLOOKUP(BE$13&"_"&$AV$8,データシート2!$A:$SI,MATCH($AV$5&"_"&$BA58,データシート2!$A$1:$SI$1,0),0) -> 0 | BF58: =VLOOKUP(BF$13&"_"&$AW$8,データシート2!$A:$SI,MATCH($AW$5&"_"&$BA58,データシート2!$A$1:$SI$1,0),0) -> 0 | BH58: =VLOOKUP(BH$13&"_"&$AV$8,データシート2!$A:$SI,MATCH($AV$5&"_"&$BA58,データシート2!$A$1:$SI$1,0),0) -> 28 | BI58: =VLOOKUP(BI$13&"_"&$AW$8,データシート2!$A:$SI,MATCH($AW$5&"_"&$BA58,データシート2!$A$1:$SI$1,0),0) -> 25,772 | BJ58: 920
C59: 非エネルギー起源CO2 | E59: 廃棄物原燃料以外 | F59: =IFERROR(VLOOKUP(年度マスタ!$K$4&"_"&F$54,データシート1!$A:$CE,MATCH("bc_"&$C59,データシート1!$A$1:$CE$1,0),0),0) -> 0 | G59: =IFERROR(VLOOKUP(年度マスタ!$K$4&"_"&G$54,データシート1!$A:$CE,MATCH("bc_"&$C59,データシート1!$A$1:$CE$1,0),0),0) -> 0 | H59: =IFERROR(VLOOKUP(年度マスタ!$K$4&"_"&H$54,データシート1!$A:$CE,MATCH("bc_"&$C59,データシート1!$A$1:$CE$1,0),0),0) -> 0 | I59: =IFERROR(VLOOKUP(年度マスタ!$K$4&"_"&I$54,データシート1!$A:$CE,MATCH("bc_"&$C59,データシート1!$A$1:$CE$1,0),0),0) -> 0 | J59: =IFERROR(VLOOKUP(年度マスタ!$K$4&"_"&J$54,データシート1!$A:$CE,MATCH("bc_"&$C59,データシート1!$A$1:$CE$1,0),0),0) -> 0 | K59: =IFERROR(VLOOKUP(年度マスタ!$K$4&"_"&K$54,データシート1!$A:$CE,MATCH("bc_"&$C59,データシート1!$A$1:$CE$1,0),0),0) -> 0 | L59: =IFERROR(VLOOKUP(年度マスタ!$K$4&"_"&L$54,データシート1!$A:$CE,MATCH("bc_"&$C59,データシート1!$A$1:$CE$1,0),0),0) -> 0 | M59: =IFERROR(VLOOKUP(年度マスタ!$K$4&"_"&M$54,データシート1!$A:$CE,MATCH("bc_"&$C59,データシート1!$A$1:$CE$1,0),0),0) -> 0 | N59: =IFERROR(VLOOKUP(年度マスタ!$K$4&"_"&N$54,データシート1!$A:$CE,MATCH("bc_"&$C59,データシート1!$A$1:$CE$1,0),0),0) -> 0 | O59: =IFERROR(VLOOKUP(年度マスタ!$K$4&"_"&O$54,データシート1!$A:$CE,MATCH("bc_"&$C59,データシート1!$A$1:$CE$1,0),0),0) -> 0 | P59: =IFERROR(VLOOKUP(年度マスタ!$K$4&"_"&P$54,データシート1!$A:$CE,MATCH("bc_"&$C59,データシート1!$A$1:$CE$1,0),0),0) -> 0 | BA59: 1731 | BD59: コークス製造業 | BE59: =VLOOKUP(BE$13&"_"&$AV$8,データシート2!$A:$SI,MATCH($AV$5&"_"&$BA59,データシート2!$A$1:$SI$1,0),0) -> 0 | BF59: =VLOOKUP(BF$13&"_"&$AW$8,データシート2!$A:$SI,MATCH($AW$5&"_"&$BA59,データシート2!$A$1:$SI$1,0),0) -> 0 | BH59: =VLOOKUP(BH$13&"_"&$AV$8,データシート2!$A:$SI,MATCH($AV$5&"_"&$BA59,データシート2!$A$1:$SI$1,0),0) -> 3 | BI59: =VLOOKUP(BI$13&"_"&$AW$8,データシート2!$A:$SI,MATCH($AW$5&"_"&$BA59,データシート2!$A$1:$SI$1,0),0) -> 1,523 | BJ59: 508
C60: =D60 -> CH4 | D60: CH4 | F60: =IFERROR(VLOOKUP(年度マスタ!$K$4&"_"&F$54,データシート1!$A:$CE,MATCH("bc_"&$C60,データシート1!$A$1:$CE$1,0),0),0) -> 0 | G60: =IFERROR(VLOOKUP(年度マスタ!$K$4&"_"&G$54,データシート1!$A:$CE,MATCH("bc_"&$C60,データシート1!$A$1:$CE$1,0),0),0) -> 0 | H60: =IFERROR(VLOOKUP(年度マスタ!$K$4&"_"&H$54,データシート1!$A:$CE,MATCH("bc_"&$C60,データシート1!$A$1:$CE$1,0),0),0) -> 0 | I60: =IFERROR(VLOOKUP(年度マスタ!$K$4&"_"&I$54,データシート1!$A:$CE,MATCH("bc_"&$C60,データシート1!$A$1:$CE$1,0),0),0) -> 0 | J60: =IFERROR(VLOOKUP(年度マスタ!$K$4&"_"&J$54,データシート1!$A:$CE,MATCH("bc_"&$C60,データシート1!$A$1:$CE$1,0),0),0) -> 0 | K60: =IFERROR(VLOOKUP(年度マスタ!$K$4&"_"&K$54,データシート1!$A:$CE,MATCH("bc_"&$C60,データシート1!$A$1:$CE$1,0),0),0) -> 0 | L60: =IFERROR(VLOOKUP(年度マスタ!$K$4&"_"&L$54,データシート1!$A:$CE,MATCH("bc_"&$C60,データシート1!$A$1:$CE$1,0),0),0) -> 0 | M60: =IFERROR(VLOOKUP(年度マスタ!$K$4&"_"&M$54,データシート1!$A:$CE,MATCH("bc_"&$C60,データシート1!$A$1:$CE$1,0),0),0) -> 0 | N60: =IFERROR(VLOOKUP(年度マスタ!$K$4&"_"&N$54,データシート1!$A:$CE,MATCH("bc_"&$C60,データシート1!$A$1:$CE$1,0),0),0) -> 0 | O60: =IFERROR(VLOOKUP(年度マスタ!$K$4&"_"&O$54,データシート1!$A:$CE,MATCH("bc_"&$C60,データシート1!$A$1:$CE$1,0),0),0) -> 0 | P60: =IFERROR(VLOOKUP(年度マスタ!$K$4&"_"&P$54,データシート1!$A:$CE,MATCH("bc_"&$C60,データシート1!$A$1:$CE$1,0),0),0) -> 0 | BA60: 3311 | BD60: 発電所 | BE60: =VLOOKUP(BE$13&"_"&$AV$8,データシート2!$A:$SI,MATCH($AV$5&"_"&$BA60,データシート2!$A$1:$SI$1,0),0) -> 0 | BF60: =VLOOKUP(BF$13&"_"&$AW$8,データシート2!$A:$SI,MATCH($AW$5&"_"&$BA60,データシート2!$A$1:$SI$1,0),0) -> 0 | BH60: =VLOOKUP(BH$13&"_"&$AV$8,データシート2!$A:$SI,MATCH($AV$5&"_"&$BA60,データシート2!$A$1:$SI$1,0),0) -> 228 | BI60: =VLOOKUP(BI$13&"_"&$AW$8,データシート2!$A:$SI,MATCH($AW$5&"_"&$BA60,データシート2!$A$1:$SI$1,0),0) -> 22,932 | BJ60: 101
B61: =AE32 -> 0 | C61: =D61 -> N2O | D61: N2O | F61: =IFERROR(VLOOKUP(年度マスタ!$K$4&"_"&F$54,データシート1!$A:$CE,MATCH("bc_"&$C61,データシート1!$A$1:$CE$1,0),0),0) -> 0 | G61: =IFERROR(VLOOKUP(年度マスタ!$K$4&"_"&G$54,データシート1!$A:$CE,MATCH("bc_"&$C61,データシート1!$A$1:$CE$1,0),0),0) -> 0 | H61: =IFERROR(VLOOKUP(年度マスタ!$K$4&"_"&H$54,データシート1!$A:$CE,MATCH("bc_"&$C61,データシート1!$A$1:$CE$1,0),0),0) -> 0 | I61: =IFERROR(VLOOKUP(年度マスタ!$K$4&"_"&I$54,データシート1!$A:$CE,MATCH("bc_"&$C61,データシート1!$A$1:$CE$1,0),0),0) -> 0 | J61: =IFERROR(VLOOKUP(年度マスタ!$K$4&"_"&J$54,データシート1!$A:$CE,MATCH("bc_"&$C61,データシート1!$A$1:$CE$1,0),0),0) -> 0 | K61: =IFERROR(VLOOKUP(年度マスタ!$K$4&"_"&K$54,データシート1!$A:$CE,MATCH("bc_"&$C61,データシート1!$A$1:$CE$1,0),0),0) -> 0 | L61: =IFERROR(VLOOKUP(年度マスタ!$K$4&"_"&L$54,データシート1!$A:$CE,MATCH("bc_"&$C61,データシート1!$A$1:$CE$1,0),0),0) -> 0 | M61: =IFERROR(VLOOKUP(年度マスタ!$K$4&"_"&M$54,データシート1!$A:$CE,MATCH("bc_"&$C61,データシート1!$A$1:$CE$1,0),0),0) -> 0 | N61: =IFERROR(VLOOKUP(年度マスタ!$K$4&"_"&N$54,データシート1!$A:$CE,MATCH("bc_"&$C61,データシート1!$A$1:$CE$1,0),0),0) -> 0 | O61: =IFERROR(VLOOKUP(年度マスタ!$K$4&"_"&O$54,データシート1!$A:$CE,MATCH("bc_"&$C61,データシート1!$A$1:$CE$1,0),0),0) -> 0 | P61: =IFERROR(VLOOKUP(年度マスタ!$K$4&"_"&P$54,データシート1!$A:$CE,MATCH("bc_"&$C61,データシート1!$A$1:$CE$1,0),0),0) -> 0 | BA61: 3312 | BD61: 変電所 | BE61: =VLOOKUP(BE$13&"_"&$AV$8,データシート2!$A:$SI,MATCH($AV$5&"_"&$BA61,データシート2!$A$1:$SI$1,0),0) -> 0 | BF61: =VLOOKUP(BF$13&"_"&$AW$8,データシート2!$A:$SI,MATCH($AW$5&"_"&$BA61,データシート2!$A$1:$SI$1,0),0) -> 0 | BH61: =VLOOKUP(BH$13&"_"&$AV$8,データシート2!$A:$SI,MATCH($AV$5&"_"&$BA61,データシート2!$A$1:$SI$1,0),0) -> 3 | BI61: =VLOOKUP(BI$13&"_"&$AW$8,データシート2!$A:$SI,MATCH($AW$5&"_"&$BA61,データシート2!$A$1:$SI$1,0),0) -> 20 | BJ61: 7
B62: =AE33 -> 0 | C62: HFC | D62: HFC | F62: =IFERROR(VLOOKUP(年度マスタ!$K$4&"_"&F$54,データシート1!$A:$CE,MATCH("bc_"&$C62,データシート1!$A$1:$CE$1,0),0),0) -> 0 | G62: =IFERROR(VLOOKUP(年度マスタ!$K$4&"_"&G$54,データシート1!$A:$CE,MATCH("bc_"&$C62,データシート1!$A$1:$CE$1,0),0),0) -> 0 | H62: =IFERROR(VLOOKUP(年度マスタ!$K$4&"_"&H$54,データシート1!$A:$CE,MATCH("bc_"&$C62,データシート1!$A$1:$CE$1,0),0),0) -> 0 | I62: =IFERROR(VLOOKUP(年度マスタ!$K$4&"_"&I$54,データシート1!$A:$CE,MATCH("bc_"&$C62,データシート1!$A$1:$CE$1,0),0),0) -> 0 | J62: =IFERROR(VLOOKUP(年度マスタ!$K$4&"_"&J$54,データシート1!$A:$CE,MATCH("bc_"&$C62,データシート1!$A$1:$CE$1,0),0),0) -> 0 | K62: =IFERROR(VLOOKUP(年度マスタ!$K$4&"_"&K$54,データシート1!$A:$CE,MATCH("bc_"&$C62,データシート1!$A$1:$CE$1,0),0),0) -> 0 | L62: =IFERROR(VLOOKUP(年度マスタ!$K$4&"_"&L$54,データシート1!$A:$CE,MATCH("bc_"&$C62,データシート1!$A$1:$CE$1,0),0),0) -> 0 | M62: =IFERROR(VLOOKUP(年度マスタ!$K$4&"_"&M$54,データシート1!$A:$CE,MATCH("bc_"&$C62,データシート1!$A$1:$CE$1,0),0),0) -> 0 | N62: =IFERROR(VLOOKUP(年度マスタ!$K$4&"_"&N$54,データシート1!$A:$CE,MATCH("bc_"&$C62,データシート1!$A$1:$CE$1,0),0),0) -> 0 | O62: =IFERROR(VLOOKUP(年度マスタ!$K$4&"_"&O$54,データシート1!$A:$CE,MATCH("bc_"&$C62,データシート1!$A$1:$CE$1,0),0),0) -> 0 | P62: =IFERROR(VLOOKUP(年度マスタ!$K$4&"_"&P$54,データシート1!$A:$CE,MATCH("bc_"&$C62,データシート1!$A$1:$CE$1,0),0),0) -> 0 | BA62: 3411 | BD62: ガス製造工場 | BE62: =VLOOKUP(BE$13&"_"&$AV$8,データシート2!$A:$SI,MATCH($AV$5&"_"&$BA62,データシート2!$A$1:$SI$1,0),0) -> 0 | BF62: =VLOOKUP(BF$13&"_"&$AW$8,データシート2!$A:$SI,MATCH($AW$5&"_"&$BA62,データシート2!$A$1:$SI$1,0),0) -> 0 | BH62: =VLOOKUP(BH$13&"_"&$AV$8,データシート2!$A:$SI,MATCH($AV$5&"_"&$BA62,データシート2!$A$1:$SI$1,0),0) -> 30 | BI62: =VLOOKUP(BI$13&"_"&$AW$8,データシート2!$A:$SI,MATCH($AW$5&"_"&$BA62,データシート2!$A$1:$SI$1,0),0) -> 751 | BJ62: 25
B63: =AD34 -> 0 | C63: PFC | D63: PFC | F63: =IFERROR(VLOOKUP(年度マスタ!$K$4&"_"&F$54,データシート1!$A:$CE,MATCH("bc_"&$C63,データシート1!$A$1:$CE$1,0),0),0) -> 0 | G63: =IFERROR(VLOOKUP(年度マスタ!$K$4&"_"&G$54,データシート1!$A:$CE,MATCH("bc_"&$C63,データシート1!$A$1:$CE$1,0),0),0) -> 0 | H63: =IFERROR(VLOOKUP(年度マスタ!$K$4&"_"&H$54,データシート1!$A:$CE,MATCH("bc_"&$C63,データシート1!$A$1:$CE$1,0),0),0) -> 0 | I63: =IFERROR(VLOOKUP(年度マスタ!$K$4&"_"&I$54,データシート1!$A:$CE,MATCH("bc_"&$C63,データシート1!$A$1:$CE$1,0),0),0) -> 0 | J63: =IFERROR(VLOOKUP(年度マスタ!$K$4&"_"&J$54,データシート1!$A:$CE,MATCH("bc_"&$C63,データシート1!$A$1:$CE$1,0),0),0) -> 0 | K63: =IFERROR(VLOOKUP(年度マスタ!$K$4&"_"&K$54,データシート1!$A:$CE,MATCH("bc_"&$C63,データシート1!$A$1:$CE$1,0),0),0) -> 0 | L63: =IFERROR(VLOOKUP(年度マスタ!$K$4&"_"&L$54,データシート1!$A:$CE,MATCH("bc_"&$C63,データシート1!$A$1:$CE$1,0),0),0) -> 0 | M63: =IFERROR(VLOOKUP(年度マスタ!$K$4&"_"&M$54,データシート1!$A:$CE,MATCH("bc_"&$C63,データシート1!$A$1:$CE$1,0),0),0) -> 0 | N63: =IFERROR(VLOOKUP(年度マスタ!$K$4&"_"&N$54,データシート1!$A:$CE,MATCH("bc_"&$C63,データシート1!$A$1:$CE$1,0),0),0) -> 0 | O63: =IFERROR(VLOOKUP(年度マスタ!$K$4&"_"&O$54,データシート1!$A:$CE,MATCH("bc_"&$C63,データシート1!$A$1:$CE$1,0),0),0) -> 0 | P63: =IFERROR(VLOOKUP(年度マスタ!$K$4&"_"&P$54,データシート1!$A:$CE,MATCH("bc_"&$C63,データシート1!$A$1:$CE$1,0),0),0) -> 0 | BA63: 3511 | BD63: 熱供給業 | BE63: =VLOOKUP(BE$13&"_"&$AV$8,データシート2!$A:$SI,MATCH($AV$5&"_"&$BA63,データシート2!$A$1:$SI$1,0),0) -> 0 | BF63: =VLOOKUP(BF$13&"_"&$AW$8,データシート2!$A:$SI,MATCH($AW$5&"_"&$BA63,データシート2!$A$1:$SI$1,0),0) -> 0 | BH63: =VLOOKUP(BH$13&"_"&$AV$8,データシート2!$A:$SI,MATCH($AV$5&"_"&$BA63,データシート2!$A$1:$SI$1,0),0) -> 137 | BI63: =VLOOKUP(BI$13&"_"&$AW$8,データシート2!$A:$SI,MATCH($AW$5&"_"&$BA63,データシート2!$A$1:$SI$1,0),0) -> 553 | BJ63: 4
B64: =AD35 -> 0 | C64: SF6 | D64: SF6 | F64: =IFERROR(VLOOKUP(年度マスタ!$K$4&"_"&F$54,データシート1!$A:$CE,MATCH("bc_"&$C64,データシート1!$A$1:$CE$1,0),0),0) -> 0 | G64: =IFERROR(VLOOKUP(年度マスタ!$K$4&"_"&G$54,データシート1!$A:$CE,MATCH("bc_"&$C64,データシート1!$A$1:$CE$1,0),0),0) -> 0 | H64: =IFERROR(VLOOKUP(年度マスタ!$K$4&"_"&H$54,データシート1!$A:$CE,MATCH("bc_"&$C64,データシート1!$A$1:$CE$1,0),0),0) -> 0 | I64: =IFERROR(VLOOKUP(年度マスタ!$K$4&"_"&I$54,データシート1!$A:$CE,MATCH("bc_"&$C64,データシート1!$A$1:$CE$1,0),0),0) -> 0 | J64: =IFERROR(VLOOKUP(年度マスタ!$K$4&"_"&J$54,データシート1!$A:$CE,MATCH("bc_"&$C64,データシート1!$A$1:$CE$1,0),0),0) -> 0 | K64: =IFERROR(VLOOKUP(年度マスタ!$K$4&"_"&K$54,データシート1!$A:$CE,MATCH("bc_"&$C64,データシート1!$A$1:$CE$1,0),0),0) -> 0 | L64: =IFERROR(VLOOKUP(年度マスタ!$K$4&"_"&L$54,データシート1!$A:$CE,MATCH("bc_"&$C64,データシート1!$A$1:$CE$1,0),0),0) -> 0 | M64: =IFERROR(VLOOKUP(年度マスタ!$K$4&"_"&M$54,データシート1!$A:$CE,MATCH("bc_"&$C64,データシート1!$A$1:$CE$1,0),0),0) -> 0 | N64: =IFERROR(VLOOKUP(年度マスタ!$K$4&"_"&N$54,データシート1!$A:$CE,MATCH("bc_"&$C64,データシート1!$A$1:$CE$1,0),0),0) -> 0 | O64: =IFERROR(VLOOKUP(年度マスタ!$K$4&"_"&O$54,データシート1!$A:$CE,MATCH("bc_"&$C64,データシート1!$A$1:$CE$1,0),0),0) -> 0 | P64: =IFERROR(VLOOKUP(年度マスタ!$K$4&"_"&P$54,データシート1!$A:$CE,MATCH("bc_"&$C64,データシート1!$A$1:$CE$1,0),0),0) -> 0
C65: NF3 | D65: NF3 | F65: =IFERROR(VLOOKUP(年度マスタ!$K$4&"_"&F$54,データシート1!$A:$CE,MATCH("bc_"&$C65,データシート1!$A$1:$CE$1,0),0),0) -> 0 | G65: =IFERROR(VLOOKUP(年度マスタ!$K$4&"_"&G$54,データシート1!$A:$CE,MATCH("bc_"&$C65,データシート1!$A$1:$CE$1,0),0),0) -> 0 | H65: =IFERROR(VLOOKUP(年度マスタ!$K$4&"_"&H$54,データシート1!$A:$CE,MATCH("bc_"&$C65,データシート1!$A$1:$CE$1,0),0),0) -> 0 | I65: =IFERROR(VLOOKUP(年度マスタ!$K$4&"_"&I$54,データシート1!$A:$CE,MATCH("bc_"&$C65,データシート1!$A$1:$CE$1,0),0),0) -> 0 | J65: =IFERROR(VLOOKUP(年度マスタ!$K$4&"_"&J$54,データシート1!$A:$CE,MATCH("bc_"&$C65,データシート1!$A$1:$CE$1,0),0),0) -> 0 | K65: =IFERROR(VLOOKUP(年度マスタ!$K$4&"_"&K$54,データシート1!$A:$CE,MATCH("bc_"&$C65,データシート1!$A$1:$CE$1,0),0),0) -> 0 | L65: =IFERROR(VLOOKUP(年度マスタ!$K$4&"_"&L$54,データシート1!$A:$CE,MATCH("bc_"&$C65,データシート1!$A$1:$CE$1,0),0),0) -> 0 | M65: =IFERROR(VLOOKUP(年度マスタ!$K$4&"_"&M$54,データシート1!$A:$CE,MATCH("bc_"&$C65,データシート1!$A$1:$CE$1,0),0),0) -> 0 | N65: =IFERROR(VLOOKUP(年度マスタ!$K$4&"_"&N$54,データシート1!$A:$CE,MATCH("bc_"&$C65,データシート1!$A$1:$CE$1,0),0),0) -> 0 | O65: =IFERROR(VLOOKUP(年度マスタ!$K$4&"_"&O$54,データシート1!$A:$CE,MATCH("bc_"&$C65,データシート1!$A$1:$CE$1,0),0),0) -> 0 | P65: =IFERROR(VLOOKUP(年度マスタ!$K$4&"_"&P$54,データシート1!$A:$CE,MATCH("bc_"&$C65,データシート1!$A$1:$CE$1,0),0),0) -> 0
B66: =AD36 -> 0

Sheet ④再エネ導入量・ポテンシャルの現状把握
B1: 自治体排出量カルテ④ 地方公共団体の再生可能エネルギー導入状況及び導入ポテンシャルの現状把握 | AE1: =年度マスタ!J4 -> 東神楽町
B2: 1 地方公共団体のFIT・FIP制度による再生可能エネルギー（電気）※1 | U2: 2 地方公共団体の再生可能エネルギーの導入ポテンシャル※7
R3: ［kW］
C4: 1）区域の再生可能エネルギーの導入設備容量 | J4: 区域の再生可能エネルギーの導入設備容量 | V4: 5）導入ポテンシャル（電気のみ・設備容量） | AC4: 設備容量 ［kW］ | AD4: 発電電力量［MWh/年］ | AE4: 導入ポテンシャル ［億MJ/年］
C5: （令和5年度） | J5: 平成27年度 | K5: 平成28年度 | L5: 平成29年度 | M5: 平成30年度 | N5: 令和元年度 | O5: 令和2年度 | P5: 令和3年度 | Q5: 令和4年度 | R5: 令和5年度
G6: 太陽光発電（10kW未満） | J6: =VLOOKUP(年度マスタ!$K$4&"_"&J$5,データシート1!$A:$BT,MATCH("cb_"&$G6,データシート1!$A$1:$BT$1,0),0) -> 476 | K6: =VLOOKUP(年度マスタ!$K$4&"_"&K$5,データシート1!$A:$BT,MATCH("cb_"&$G6,データシート1!$A$1:$BT$1,0),0) -> 507 | L6: =VLOOKUP(年度マスタ!$K$4&"_"&L$5,データシート1!$A:$BT,MATCH("cb_"&$G6,データシート1!$A$1:$BT$1,0),0) -> 552 | M6: =VLOOKUP(年度マスタ!$K$4&"_"&M$5,データシート1!$A:$BT,MATCH("cb_"&$G6,データシート1!$A$1:$BT$1,0),0) -> 596 | N6: =VLOOKUP(年度マスタ!$K$4&"_"&N$5,データシート1!$A:$BT,MATCH("cb_"&$G6,データシート1!$A$1:$BT$1,0),0) -> 619 | O6: =VLOOKUP(年度マスタ!$K$4&"_"&O$5,データシート1!$A:$BT,MATCH("cb_"&$G6,データシート1!$A$1:$BT$1,0),0) -> 622 | P6: =VLOOKUP(年度マスタ!$K$4&"_"&P$5,データシート1!$A:$BT,MATCH("cb_"&$G6,データシート1!$A$1:$BT$1,0),0) -> 641 | Q6: =VLOOKUP(年度マスタ!$K$4&"_"&Q$5,データシート1!$A:$BT,MATCH("cb_"&$G6,データシート1!$A$1:$BT$1,0),0) -> 719 | R6: =VLOOKUP(年度マスタ!$K$4&"_"&R$5,データシート1!$A:$BT,MATCH("cb_"&$G6,データシート1!$A$1:$BT$1,0),0) -> 737 | Y6: 太陽光発電（合計） | Z6: 太陽光発電 | AC6: =SUM(AC7:AC8) -> 1,017,405 | AD6: =SUM(AD7:AD8) -> 1,171,812 | AE6: =$AD6*3600/100000000 -> 42
G7: 太陽光発電（10kW以上） | J7: =VLOOKUP(年度マスタ!$K$4&"_"&J$5,データシート1!$A:$BT,MATCH("cb_"&$G7,データシート1!$A$1:$BT$1,0),0) -> 1,383 | K7: =VLOOKUP(年度マスタ!$K$4&"_"&K$5,データシート1!$A:$BT,MATCH("cb_"&$G7,データシート1!$A$1:$BT$1,0),0) -> 1,488 | L7: =VLOOKUP(年度マスタ!$K$4&"_"&L$5,データシート1!$A:$BT,MATCH("cb_"&$G7,データシート1!$A$1:$BT$1,0),0) -> 1,498 | M7: =VLOOKUP(年度マスタ!$K$4&"_"&M$5,データシート1!$A:$BT,MATCH("cb_"&$G7,データシート1!$A$1:$BT$1,0),0) -> 1,498 | N7: =VLOOKUP(年度マスタ!$K$4&"_"&N$5,データシート1!$A:$BT,MATCH("cb_"&$G7,データシート1!$A$1:$BT$1,0),0) -> 1,498 | O7: =VLOOKUP(年度マスタ!$K$4&"_"&O$5,データシート1!$A:$BT,MATCH("cb_"&$G7,データシート1!$A$1:$BT$1,0),0) -> 1,498 | P7: =VLOOKUP(年度マスタ!$K$4&"_"&P$5,データシート1!$A:$BT,MATCH("cb_"&$G7,データシート1!$A$1:$BT$1,0),0) -> 1,498 | Q7: =VLOOKUP(年度マスタ!$K$4&"_"&Q$5,データシート1!$A:$BT,MATCH("cb_"&$G7,データシート1!$A$1:$BT$1,0),0) -> 1,498 | R7: =VLOOKUP(年度マスタ!$K$4&"_"&R$5,データシート1!$A:$BT,MATCH("cb_"&$G7,データシート1!$A$1:$BT$1,0),0) -> 1,498 | Y7: 太陽光（建物系） | Z7: 建物系 | AC7: =VLOOKUP(年度マスタ!$K$4&"_"&年度マスタ!$K$9,データシート3!A:AB,MATCH("ea_"&$Y7&"_設備",データシート3!$A$1:$AB$1,0),0) -> 57,892 | AD7: =VLOOKUP(年度マスタ!$K$4&"_"&年度マスタ!$K$9,データシート3!A:AB,MATCH("ea_"&$Y7&"_年間発電",データシート3!$A$1:$AB$1,0),0)/10^3 -> 66,888 | AE7: =$AD7*3600/100000000 -> 2
G8: 風力発電 | J8: =VLOOKUP(年度マスタ!$K$4&"_"&J$5,データシート1!$A:$BT,MATCH("cb_"&$G8,データシート1!$A$1:$BT$1,0),0) -> 0 | K8: =VLOOKUP(年度マスタ!$K$4&"_"&K$5,データシート1!$A:$BT,MATCH("cb_"&$G8,データシート1!$A$1:$BT$1,0),0) -> 0 | L8: =VLOOKUP(年度マスタ!$K$4&"_"&L$5,データシート1!$A:$BT,MATCH("cb_"&$G8,データシート1!$A$1:$BT$1,0),0) -> 0 | M8: =VLOOKUP(年度マスタ!$K$4&"_"&M$5,データシート1!$A:$BT,MATCH("cb_"&$G8,データシート1!$A$1:$BT$1,0),0) -> 0 | N8: =VLOOKUP(年度マスタ!$K$4&"_"&N$5,データシート1!$A:$BT,MATCH("cb_"&$G8,データシート1!$A$1:$BT$1,0),0) -> 0 | O8: =VLOOKUP(年度マスタ!$K$4&"_"&O$5,データシート1!$A:$BT,MATCH("cb_"&$G8,データシート1!$A$1:$BT$1,0),0) -> 0 | P8: =VLOOKUP(年度マスタ!$K$4&"_"&P$5,データシート1!$A:$BT,MATCH("cb_"&$G8,データシート1!$A$1:$BT$1,0),0) -> 0 | Q8: =VLOOKUP(年度マスタ!$K$4&"_"&Q$5,データシート1!$A:$BT,MATCH("cb_"&$G8,データシート1!$A$1:$BT$1,0),0) -> 0 | R8: =VLOOKUP(年度マスタ!$K$4&"_"&R$5,データシート1!$A:$BT,MATCH("cb_"&$G8,データシート1!$A$1:$BT$1,0),0) -> 0 | Y8: 太陽光（土地系） | Z8: 土地系 | AC8: =VLOOKUP(年度マスタ!$K$4&"_"&年度マスタ!$K$9,データシート3!A:AB,MATCH("ea_"&$Y8&"_設備",データシート3!$A$1:$AB$1,0),0) -> 959,513 | AD8: =VLOOKUP(年度マスタ!$K$4&"_"&年度マスタ!$K$9,データシート3!A:AB,MATCH("ea_"&$Y8&"_年間発電",データシート3!$A$1:$AB$1,0),0)/10^3 -> 1,104,924 | AE8: 40
G9: 水力発電 | J9: =VLOOKUP(年度マスタ!$K$4&"_"&J$5,データシート1!$A:$BT,MATCH("cb_"&$G9,データシート1!$A$1:$BT$1,0),0) -> 0 | K9: =VLOOKUP(年度マスタ!$K$4&"_"&K$5,データシート1!$A:$BT,MATCH("cb_"&$G9,データシート1!$A$1:$BT$1,0),0) -> 0 | L9: =VLOOKUP(年度マスタ!$K$4&"_"&L$5,データシート1!$A:$BT,MATCH("cb_"&$G9,データシート1!$A$1:$BT$1,0),0) -> 0 | M9: =VLOOKUP(年度マスタ!$K$4&"_"&M$5,データシート1!$A:$BT,MATCH("cb_"&$G9,データシート1!$A$1:$BT$1,0),0) -> 0 | N9: =VLOOKUP(年度マスタ!$K$4&"_"&N$5,データシート1!$A:$BT,MATCH("cb_"&$G9,データシート1!$A$1:$BT$1,0),0) -> 0 | O9: =VLOOKUP(年度マスタ!$K$4&"_"&O$5,データシート1!$A:$BT,MATCH("cb_"&$G9,データシート1!$A$1:$BT$1,0),0) -> 0 | P9: =VLOOKUP(年度マスタ!$K$4&"_"&P$5,データシート1!$A:$BT,MATCH("cb_"&$G9,データシート1!$A$1:$BT$1,0),0) -> 0 | Q9: =VLOOKUP(年度マスタ!$K$4&"_"&Q$5,データシート1!$A:$BT,MATCH("cb_"&$G9,データシート1!$A$1:$BT$1,0),0) -> 0 | R9: =VLOOKUP(年度マスタ!$K$4&"_"&R$5,データシート1!$A:$BT,MATCH("cb_"&$G9,データシート1!$A$1:$BT$1,0),0) -> 0 | Y9: 風力（陸上） | Z9: 風力発電 | AC9: =VLOOKUP(年度マスタ!$K$4&"_"&年度マスタ!$K$9,データシート3!A:AB,MATCH("ea_"&$Y9&"_設備",データシート3!$A$1:$AB$1,0),0) -> 3,000 | AD9: =VLOOKUP(年度マスタ!$K$4&"_"&年度マスタ!$K$9,データシート3!A:AB,MATCH("ea_"&$Y9&"_年間発電",データシート3!$A$1:$AB$1,0),0)/10^3 -> 4,854 | AE9: 0
G10: 地熱発電 | J10: =VLOOKUP(年度マスタ!$K$4&"_"&J$5,データシート1!$A:$BT,MATCH("cb_"&$G10,データシート1!$A$1:$BT$1,0),0) -> 0 | K10: =VLOOKUP(年度マスタ!$K$4&"_"&K$5,データシート1!$A:$BT,MATCH("cb_"&$G10,データシート1!$A$1:$BT$1,0),0) -> 0 | L10: =VLOOKUP(年度マスタ!$K$4&"_"&L$5,データシート1!$A:$BT,MATCH("cb_"&$G10,データシート1!$A$1:$BT$1,0),0) -> 0 | M10: =VLOOKUP(年度マスタ!$K$4&"_"&M$5,データシート1!$A:$BT,MATCH("cb_"&$G10,データシート1!$A$1:$BT$1,0),0) -> 0 | N10: =VLOOKUP(年度マスタ!$K$4&"_"&N$5,データシート1!$A:$BT,MATCH("cb_"&$G10,データシート1!$A$1:$BT$1,0),0) -> 0 | O10: =VLOOKUP(年度マスタ!$K$4&"_"&O$5,データシート1!$A:$BT,MATCH("cb_"&$G10,データシート1!$A$1:$BT$1,0),0) -> 0 | P10: =VLOOKUP(年度マスタ!$K$4&"_"&P$5,データシート1!$A:$BT,MATCH("cb_"&$G10,データシート1!$A$1:$BT$1,0),0) -> 0 | Q10: =VLOOKUP(年度マスタ!$K$4&"_"&Q$5,データシート1!$A:$BT,MATCH("cb_"&$G10,データシート1!$A$1:$BT$1,0),0) -> 0 | R10: =VLOOKUP(年度マスタ!$K$4&"_"&R$5,データシート1!$A:$BT,MATCH("cb_"&$G10,データシート1!$A$1:$BT$1,0),0) -> 0 | Y10: 中小水力発電（合計） | Z10: 中小水力発電 | AC10: =SUM(AC11:AC12) -> 1,760 | AD10: =SUM(AD11:AD12) -> 8,419 | AE10: 0
G11: バイオマス発電 | I11: ※2 | J11: =VLOOKUP(年度マスタ!$K$4&"_"&J$5,データシート1!$A:$BT,MATCH("cb_"&$G11,データシート1!$A$1:$BT$1,0),0) -> 0 | K11: =VLOOKUP(年度マスタ!$K$4&"_"&K$5,データシート1!$A:$BT,MATCH("cb_"&$G11,データシート1!$A$1:$BT$1,0),0) -> 0 | L11: =VLOOKUP(年度マスタ!$K$4&"_"&L$5,データシート1!$A:$BT,MATCH("cb_"&$G11,データシート1!$A$1:$BT$1,0),0) -> 0 | M11: =VLOOKUP(年度マスタ!$K$4&"_"&M$5,データシート1!$A:$BT,MATCH("cb_"&$G11,データシート1!$A$1:$BT$1,0),0) -> 0 | N11: =VLOOKUP(年度マスタ!$K$4&"_"&N$5,データシート1!$A:$BT,MATCH("cb_"&$G11,データシート1!$A$1:$BT$1,0),0) -> 0 | O11: =VLOOKUP(年度マスタ!$K$4&"_"&O$5,データシート1!$A:$BT,MATCH("cb_"&$G11,データシート1!$A$1:$BT$1,0),0) -> 0 | P11: =VLOOKUP(年度マスタ!$K$4&"_"&P$5,データシート1!$A:$BT,MATCH("cb_"&$G11,データシート1!$A$1:$BT$1,0),0) -> 0 | Q11: =VLOOKUP(年度マスタ!$K$4&"_"&Q$5,データシート1!$A:$BT,MATCH("cb_"&$G11,データシート1!$A$1:$BT$1,0),0) -> 0 | R11: =VLOOKUP(年度マスタ!$K$4&"_"&R$5,データシート1!$A:$BT,MATCH("cb_"&$G11,データシート1!$A$1:$BT$1,0),0) -> 0 | Y11: 中小水（河川） | Z11: 河川 | AC11: =VLOOKUP(年度マスタ!$K$4&"_"&年度マスタ!$K$9,データシート3!A:AB,MATCH("ea_"&$Y11&"_設備",データシート3!$A$1:$AB$1,0),0) -> 1,760 | AD11: =VLOOKUP(年度マスタ!$K$4&"_"&年度マスタ!$K$9,データシート3!A:AB,MATCH("ea_"&$Y11&"_年間発電",データシート3!$A$1:$AB$1,0),0)/10^3 -> 8,419 | AE11: 0
G12: 再生可能エネルギー合計 | J12: =SUM(J6:J11) -> 1,859 | K12: =SUM(K6:K11) -> 1,995 | L12: 2,050 | M12: 2,094 | N12: 2,118 | O12: 2,120 | P12: 2,139 | Q12: 2,217 | R12: =SUM(R6:R11) -> 2,235 | Y12: 中小水（農業用水路） | Z12: 農業用水路 | AC12: =VLOOKUP(年度マスタ!$K$4&"_"&年度マスタ!$K$9,データシート3!A:AB,MATCH("ea_"&$Y12&"_設備",データシート3!$A$1:$AB$1,0),0) -> 0 | AD12: =VLOOKUP(年度マスタ!$K$4&"_"&年度マスタ!$K$9,データシート3!A:AB,MATCH("ea_"&$Y12&"_年間発電",データシート3!$A$1:$AB$1,0),0)/10^3 -> 0 | AE12: 0
Y13: 地熱発電（合計） | Z13: 地熱発電 | AC13: =SUM(AC14:AC16) -> 0 | AD13: =SUM(AD14:AD16) -> 0 | AE13: 0 | AF13: =AF15 -> 0
Y14: 地熱（蒸気フラッシュ発電） | Z14: 蒸気フラッシュ発電 | AC14: =VLOOKUP(年度マスタ!$K$4&"_"&年度マスタ!$K$9,データシート3!A:AB,MATCH("ea_"&$Y14&"_設備",データシート3!$A$1:$AB$1,0),0) -> 0 | AD14: =VLOOKUP(年度マスタ!$K$4&"_"&年度マスタ!$K$9,データシート3!A:AB,MATCH("ea_"&$Y14&"_年間発電",データシート3!$A$1:$AB$1,0),0)/10^3 -> 0 | AE14: 0
Y15: 地熱（バイナリー発電） | Z15: バイナリー発電 | AC15: =VLOOKUP(年度マスタ!$K$4&"_"&年度マスタ!$K$9,データシート3!A:AB,MATCH("ea_"&$Y15&"_設備",データシート3!$A$1:$AB$1,0),0) -> 0 | AD15: =VLOOKUP(年度マスタ!$K$4&"_"&年度マスタ!$K$9,データシート3!A:AB,MATCH("ea_"&$Y15&"_年間発電",データシート3!$A$1:$AB$1,0),0)/10^3 -> 0 | AE15: 0
R16: ［MWh/年］ | Y16: 地熱（低温バイナリー発電） | Z16: 低温バイナリー発電 | AC16: =VLOOKUP(年度マスタ!$K$4&"_"&年度マスタ!$K$9,データシート3!A:AB,MATCH("ea_"&$Y16&"_設備",データシート3!$A$1:$AB$1,0),0) -> 0 | AD16: =VLOOKUP(年度マスタ!$K$4&"_"&年度マスタ!$K$9,データシート3!A:AB,MATCH("ea_"&$Y16&"_年間発電",データシート3!$A$1:$AB$1,0),0)/10^3 -> 0 | AE16: 0
J17: 区域の再生可能エネルギーによる発電電力量※3 | V17: 6）導入ポテンシャル（発電電力量・利用可能熱量） | Y17: 太陽熱 | Z17: 太陽熱 | AC17: － | AD17: － | AE17: =VLOOKUP(年度マスタ!$K$4&"_"&年度マスタ!$K$9,データシート3!A:AB,MATCH("ea_"&$Y17&"_設備",データシート3!$A$1:$AB$1,0),0)/10^8 -> 1
J18: 平成27年度 | K18: 平成28年度 | L18: 平成29年度 | M18: 平成30年度 | N18: 令和元年度 | O18: 令和2年度 | P18: 令和3年度 | Q18: 令和4年度 | R18: 令和5年度 | Y18: 地中熱 | Z18: 地中熱 | AC18: － | AD18: － | AE18: =VLOOKUP(年度マスタ!$K$4&"_"&年度マスタ!$K$9,データシート3!A:AB,MATCH("ea_"&$Y18&"_設備",データシート3!$A$1:$AB$1,0),0)/10^8 -> 3
C19: 2）区域の再生可能エネルギーによる発電電力量 | G19: 太陽光発電（10kW未満） | J19: =J6*別紙!$C5/100*別紙!$E5/10^3 -> 571 | K19: =K6*別紙!$C5/100*別紙!$E5/10^3 -> 609 | L19: =L6*別紙!$C5/100*別紙!$E5/10^3 -> 662 | M19: =M6*別紙!$C5/100*別紙!$E5/10^3 -> 716 | N19: =N6*別紙!$C5/100*別紙!$E5/10^3 -> 743 | O19: =O6*別紙!$C5/100*別紙!$E5/10^3 -> 747 | P19: =P6*別紙!$C5/100*別紙!$E5/10^3 -> 769 | Q19: =Q6*別紙!$C5/100*別紙!$E5/10^3 -> 863 | R19: =R6*別紙!$C5/100*別紙!$E5/10^3 -> 884 | Z19: 再生可能エネルギー合計 | AC19: =SUM($AC$6,$AC$9,$AC$10,$AC$13) -> 1,022,165 | AD19: =SUM($AD$6,$AD$9,$AD$10,$AD$13) -> 1,185,085 | AE19: =SUM($AE$6,$AE$9,$AE$10,$AE$13,$AE$17,$AE$18) -> 47
C20: （令和5年度） | G20: 太陽光発電（10kW以上） | J20: =J7*別紙!$C6/100*別紙!$E6/10^3 -> 1,830 | K20: =K7*別紙!$C6/100*別紙!$E6/10^3 -> 1,969 | L20: =L7*別紙!$C6/100*別紙!$E6/10^3 -> 1,982 | M20: =M7*別紙!$C6/100*別紙!$E6/10^3 -> 1,981 | N20: =N7*別紙!$C6/100*別紙!$E6/10^3 -> 1,982 | O20: =O7*別紙!$C6/100*別紙!$E6/10^3 -> 1,982 | P20: =P7*別紙!$C6/100*別紙!$E6/10^3 -> 1,982 | Q20: =Q7*別紙!$C6/100*別紙!$E6/10^3 -> 1,982 | R20: =R7*別紙!$C6/100*別紙!$E6/10^3 -> 1,982
G21: 風力発電 | J21: =J8*別紙!$C7/100*別紙!$E7/10^3 -> 0 | K21: =K8*別紙!$C7/100*別紙!$E7/10^3 -> 0 | L21: =L8*別紙!$C7/100*別紙!$E7/10^3 -> 0 | M21: =M8*別紙!$C7/100*別紙!$E7/10^3 -> 0 | N21: =N8*別紙!$C7/100*別紙!$E7/10^3 -> 0 | O21: =O8*別紙!$C7/100*別紙!$E7/10^3 -> 0 | P21: =P8*別紙!$C7/100*別紙!$E7/10^3 -> 0 | Q21: =Q8*別紙!$C7/100*別紙!$E7/10^3 -> 0 | R21: =R8*別紙!$C7/100*別紙!$E7/10^3 -> 0
G22: 水力発電 | J22: =J9*別紙!$C8/100*別紙!$E8/10^3 -> 0 | K22: =K9*別紙!$C8/100*別紙!$E8/10^3 -> 0 | L22: =L9*別紙!$C8/100*別紙!$E8/10^3 -> 0 | M22: =M9*別紙!$C8/100*別紙!$E8/10^3 -> 0 | N22: =N9*別紙!$C8/100*別紙!$E8/10^3 -> 0 | O22: =O9*別紙!$C8/100*別紙!$E8/10^3 -> 0 | P22: =P9*別紙!$C8/100*別紙!$E8/10^3 -> 0 | Q22: =Q9*別紙!$C8/100*別紙!$E8/10^3 -> 0 | R22: =R9*別紙!$C8/100*別紙!$E8/10^3 -> 0 | Z22: 参考）再エネ導入ポテンシャルと再エネ導入量の集計対象の整理※8
G23: 地熱発電 | J23: =J10*別紙!$C9/100*別紙!$E9/10^3 -> 0 | K23: =K10*別紙!$C9/100*別紙!$E9/10^3 -> 0 | L23: =L10*別紙!$C9/100*別紙!$E9/10^3 -> 0 | M23: =M10*別紙!$C9/100*別紙!$E9/10^3 -> 0 | N23: =N10*別紙!$C9/100*別紙!$E9/10^3 -> 0 | O23: =O10*別紙!$C9/100*別紙!$E9/10^3 -> 0 | P23: =P10*別紙!$C9/100*別紙!$E9/10^3 -> 0 | Q23: =Q10*別紙!$C9/100*別紙!$E9/10^3 -> 0 | R23: =R10*別紙!$C9/100*別紙!$E9/10^3 -> 0 | AA23: 再エネ導入ポテンシャル | AD23: 再エネ導入量
G24: バイオマス発電 | I24: ※2 | J24: =J11*別紙!$C10/100*別紙!$E10/10^3 -> 0 | K24: =K11*別紙!$C10/100*別紙!$E10/10^3 -> 0 | L24: =L11*別紙!$C10/100*別紙!$E10/10^3 -> 0 | M24: =M11*別紙!$C10/100*別紙!$E10/10^3 -> 0 | N24: =N11*別紙!$C10/100*別紙!$E10/10^3 -> 0 | O24: =O11*別紙!$C10/100*別紙!$E10/10^3 -> 0 | P24: =P11*別紙!$C10/100*別紙!$E10/10^3 -> 0 | Q24: =Q11*別紙!$C10/100*別紙!$E10/10^3 -> 0 | R24: =R11*別紙!$C10/100*別紙!$E10/10^3 -> 0 | Z24: データ出所 | AA24: REPOS（ポテンシャル情報） | AD24: 再エネ特措法 情報公表用ウェブサイト （全国・都道府県はA表、市町村はB表）
G25: 再生可能エネルギー合計 | J25: =SUM(J19:J24) -> 2,400 | K25: 2,577 | L25: 2,644 | M25: 2,697 | N25: 2,725 | O25: 2,728 | P25: 2,751 | Q25: 2,845 | R25: =SUM(R19:R24) -> 2,866
G26: 区域の電気使用量 ※4 | J26: =(VLOOKUP(年度マスタ!$K$4&"_"&J$18,データシート1!$A:$BT,MATCH("da_合計",データシート1!$A$1:$BT$1,0),0))/10^3 -> 40,958 | K26: =(VLOOKUP(年度マスタ!$K$4&"_"&K$18,データシート1!$A:$BT,MATCH("da_合計",データシート1!$A$1:$BT$1,0),0))/10^3 -> 40,565 | L26: =(VLOOKUP(年度マスタ!$K$4&"_"&L$18,データシート1!$A:$BT,MATCH("da_合計",データシート1!$A$1:$BT$1,0),0))/10^3 -> 38,637 | M26: =(VLOOKUP(年度マスタ!$K$4&"_"&M$18,データシート1!$A:$BT,MATCH("da_合計",データシート1!$A$1:$BT$1,0),0))/10^3 -> 38,653 | N26: =(VLOOKUP(年度マスタ!$K$4&"_"&N$18,データシート1!$A:$BT,MATCH("da_合計",データシート1!$A$1:$BT$1,0),0))/10^3 -> 38,927 | O26: =(VLOOKUP(年度マスタ!$K$4&"_"&O$18,データシート1!$A:$BT,MATCH("da_合計",データシート1!$A$1:$BT$1,0),0))/10^3 -> 40,027 | P26: =(VLOOKUP(年度マスタ!$K$4&"_"&P$18,データシート1!$A:$BT,MATCH("da_合計",データシート1!$A$1:$BT$1,0),0))/10^3 -> 41,528 | Q26: =(VLOOKUP(年度マスタ!$K$4&"_"&Q$18,データシート1!$A:$BT,MATCH("da_合計",データシート1!$A$1:$BT$1,0),0))/10^3 -> 41,316 | R26: =Q26 -> 41,316 | Z26: 太陽光発電 | AA26: 太陽光発電（建物系・土地系） | AD26: 太陽光発電（10kW未満・10kW以上）
G27: 対電気使用量FIT・FIP導入比※5 | J27: =J25/J26 -> 5.9% | K27: =K25/K26 -> 6.4% | L27: 6.8% | M27: 7.0% | N27: 7.0% | O27: 6.8% | P27: 6.6% | Q27: =Q25/Q26 -> 6.9% | R27: =R25/R26 -> 6.9% | Z27: 風力発電 | AA27: 風力発電（陸上） | AD27: 風力発電（20kW未満・20kW以上のうち洋上風力を除く）
Z29: 水力発電 | AA29: 中小水力発電(河川・農業用水路) | AD29: 水力発電
Z30: 地熱発電 | AA30: 蒸気フラッシュ発電・バイナリー発電・低温バイナリー発電 | AD30: 地熱発電
C34: 3）区域の再生可能エネルギーの導入設備容量の推移（累積） | K34: 4） 区域の太陽光発電（10kW未満※6）設備の導入件数の推移（累積） | U34: 3 区域のエネルギー消費量及び再生可能エネルギー導入ポテンシャル・導入量の比較（電気）
V35: 7）区域内のエネルギー消費量に対する再エネ導入ポテンシャル（電気） | AB35: 8）区域内の再エネ導入ポテンシャルと再エネ導入量（電気）
V50: 区域のエネルギー消費量と再エネ導入ポテンシャル（電気） | AC50: 再エネ導入ポテンシャル［MWh/年］ | AD50: 再エネ導入量［MWh/年］ | AE50: 再エネポテンシャルに占める導入割合 | AI50: グラフ作成用
V51: 対電気使用量FIT・FIP導入比（再エネ自給率） | Z51: =R27 -> 6.9% | AI51: 区域の太陽光発電（10kW未満）設備の導入件数累積の経年変化
V52: 対電気使用量再エネ導入ポテンシャル比 ※9 | Z52: =AD19/R26 -> 2868.3% | AB52: 太陽光発電 | AC52: =$AD6 -> 1,171,812 | AD52: =R19+R20 -> 2,866 | AE52: =IFERROR(AD52/AC52,"-") -> 0.2%
V53: 再エネ | W53: =IF($AD$19<$Q$26,"不足量","余剰量")&"[MWh/年]" -> 余剰量[MWh/年] | X53: ※10 | Y53: =IF($AD$19<$R$26,(-1)*($AD$19-$R$26),$AD$19-$R$26) -> 1,143,769 | AB53: 風力発電 | AC53: =$AD9 -> 4,854 | AD53: =R21 -> 0 | AE53: 0.0% | AJ53: 平成27年度 | AK53: 平成28年度 | AL53: 平成29年度 | AM53: 平成30年度 | AN53: 令和元年度 | AO53: 令和2年度 | AP53: 令和3年度 | AQ53: 令和4年度 | AR53: 令和5年度
AB54: 水力発電 | AC54: =$AD10 -> 8,419 | AD54: =R22 -> 0 | AE54: 0.0% | AI54: 導入件数 | AJ54: =VLOOKUP(年度マスタ!$K$4&"_"&AJ$53,データシート1!$A$1:$BT$2000,MATCH("ca_太陽光発電（10kW未満）",データシート1!$A$1:$BT$1,0),0) -> 117 | AK54: =VLOOKUP(年度マスタ!$K$4&"_"&AK$53,データシート1!$A$1:$BT$2000,MATCH("ca_太陽光発電（10kW未満）",データシート1!$A$1:$BT$1,0),0) -> 123 | AL54: =VLOOKUP(年度マスタ!$K$4&"_"&AL$53,データシート1!$A$1:$BT$2000,MATCH("ca_太陽光発電（10kW未満）",データシート1!$A$1:$BT$1,0),0) -> 133 | AM54: =VLOOKUP(年度マスタ!$K$4&"_"&AM$53,データシート1!$A$1:$BT$2000,MATCH("ca_太陽光発電（10kW未満）",データシート1!$A$1:$BT$1,0),0) -> 139 | AN54: =VLOOKUP(年度マスタ!$K$4&"_"&AN$53,データシート1!$A$1:$BT$2000,MATCH("ca_太陽光発電（10kW未満）",データシート1!$A$1:$BT$1,0),0) -> 143 | AO54: =VLOOKUP(年度マスタ!$K$4&"_"&AO$53,データシート1!$A$1:$BT$2000,MATCH("ca_太陽光発電（10kW未満）",データシート1!$A$1:$BT$1,0),0) -> 144 | AP54: =VLOOKUP(年度マスタ!$K$4&"_"&AP$53,データシート1!$A$1:$BT$2000,MATCH("ca_太陽光発電（10kW未満）",データシート1!$A$1:$BT$1,0),0) -> 147 | AQ54: =VLOOKUP(年度マスタ!$K$4&"_"&AQ$53,データシート1!$A$1:$BT$2000,MATCH("ca_太陽光発電（10kW未満）",データシート1!$A$1:$BT$1,0),0) -> 161 | AR54: =VLOOKUP(年度マスタ!$K$4&"_"&AR$53,データシート1!$A$1:$BT$2000,MATCH("ca_太陽光発電（10kW未満）",データシート1!$A$1:$BT$1,0),0) -> 164
AB55: 地熱発電 | AC55: =$AD13 -> 0 | AD55: =R23 -> 0 | AE55: =IFERROR(AD55/AC55,"-") -> -

Sheet 排出量比較シート
B1: 自治体排出量カルテ 他の地方公共団体との比較（部門・分野別排出量） | AT1: =AY12 -> 東神楽町
B2: ="1 部門・分野別排出量の比較（標準的手法）（" & $BC$14 & "（" & $BC$15 & "年度））" -> 1 部門・分野別排出量の比較（標準的手法）（令和3年度（2021年度）） | AC2: ="2 区域の排出量に占める特定事業所排出量比率の比較（"&BC14&"（"&BC15&"年度））" -> 2 区域の排出量に占める特定事業所排出量比率の比較（令和3年度（2021年度））
B3: 1）部門・分野別CO2排出量の比較 | O3: 2）部門・分野別CO2排出量構成比の比較 | AC3: 3）産業部門 | AL3: 4）業務その他部門
AX11: 年度マスタ | BC11: データ（排出量） | CW11: データ（特定事業所排出量） | DF11: データ（特定事業所件数）
AX12: =年度マスタ!$I4 -> 北海道 | AY12: =年度マスタ!$J4 -> 東神楽町 | AZ12: =年度マスタ!$K4 -> 01453 | BC12: aa | CW12: ba | DF12: bb
AX13: =年度マスタ!$I5 -> A.現況推計データ | AY13: =年度マスタ!$J5 -> 2022 | AZ13: =年度マスタ!$K5 -> 令和4年度 | BC13: A.現況推計データ | CW13: B.SHKデータ | DF13: B.SHKデータ
AX14: =年度マスタ!$I6 -> B.SHKデータ | AY14: =年度マスタ!$J6 -> 2021 | AZ14: =年度マスタ!$K6 -> 令和3年度 | BC14: =AZ14 -> 令和3年度 | BD14: ←SHKデータと同じ年度を利用 | CW14: =VLOOKUP(CW13,$AX$12:$AZ$16,3,0) -> 令和3年度 | DF14: =VLOOKUP(DF13,$AX$12:$AZ$16,3,0) -> 令和3年度
AX15: =年度マスタ!$I7 -> C.FITデータ | AY15: =年度マスタ!$J7 -> 2023 | AZ15: =年度マスタ!$K7 -> 令和5年度 | BC15: =AY14 -> 2021 | CW15: =VLOOKUP(CW13,$AX$12:$AZ$16,2,0) -> 2021 | DF15: =VLOOKUP(DF13,$AX$12:$AZ$16,2,0) -> 2021
AX16: =年度マスタ!$I8 -> D.区域電力使用量データ | AY16: =年度マスタ!$J8 -> 2022 | AZ16: =年度マスタ!$K8 -> 令和4年度 | CK16: ３)産業部門
BB17: １）部門・分野別の温室効果ガス（CO2）排出量の比較 | BR17: 千t-CO2 | BT17: ２）部門・分野別の温室効果ガス（CO2）構成比の比較 | CK17: ４)業務その他部門 | CW17: ５)特定事業所排出量の比較 | DF17: ６)特定事業所数の比較 | DN17: ７)特定事業所排出量の部門別構成比の比較
BE18: 産業部門 | BI18: 業務その他部門 | BJ18: 家庭部門 | BK18: 運輸部門 | BQ18: 廃棄物分野（一般廃棄物） | BV18: 産業部門 | BZ18: 業務その他部門 | CA18: 家庭部門 | CB18: 運輸部門 | CH18: 廃棄物分野（一般廃棄物） | CL18: 標準的手法に基づく排出量（単位：千t-CO2) | CW18: 特定事業所排出量（産業別）（単位：千t-CO2) | DF18: 特定事業所数（産業別）（単位：箇所) | DN18: 特定事業所排出量の部門別構成比
BF19: 製造業 | BG19: 建設業・鉱業 | BH19: 農林水産業 | BL19: 自動車 | BO19: 鉄道 | BP19: 船舶 | BW19: 製造業 | BX19: 建設業・鉱業 | BY19: 農林水産業 | CC19: 自動車 | CF19: 鉄道 | CG19: 船舶 | CW19: 産業部門 | CX19: 製造業 | CY19: 建設業・鉱業 | CZ19: 農林水産業 | DA19: 業務その他部門 | DB19: エネルギー転換部門 | DC19: 分類不能 | DD19: 合計 | DF19: 製造業 | DG19: 建設業・鉱業 | DH19: 農林水産業 | DI19: 業務その他部門 | DJ19: エネルギー転換部門 | DK19: 分類不能 | DL19: 合計 | DN19: 製造業 | DO19: 建設業・鉱業 | DP19: 農林水産業 | DQ19: 業務その他部門 | DR19: エネルギー転換部門 | DS19: 分類不能
AX20: 該当コード | AY20: 該当地域名 | BC20: グラフ 作成用 | BD20: 合計 | BE20: 産業部門 | BF20: 製造業 | BG20: 建設業・鉱業 | BH20: 農林水産業 | BI20: 業務その他部門 | BJ20: 家庭部門 | BK20: 運輸部門 | BL20: 自動車 | BM20: 旅客 | BN20: 貨物 | BO20: 鉄道 | BP20: 船舶 | BQ20: 廃棄物分野（一般廃棄物） | BR20: 合計 | BU20: 合計 | BV20: 産業部門 | BW20: 製造業 | BX20: 建設業・鉱業 | BY20: 農林水産業 | BZ20: 業務その他部門 | CA20: 家庭部門 | CB20: 運輸部門 | CC20: 自動車 | CD20: 旅客 | CE20: 貨物 | CF20: 鉄道 | CG20: 船舶 | CH20: 廃棄物分野（一般廃棄物） | CI20: 合計 | CK20: グラフ 作成用 | CL20: 産業部門 | CM20: (カバー率) | CN20: 製造業 | CO20: (カバー率) | CP20: 建設業・鉱業 | CQ20: (カバー率) | CR20: 農林水産業 | CS20: (カバー率) | CT20: 業務その他部門 | CU20: (カバー率) | CW20: 産業部門 | CX20: 製造業 | CY20: 建設業・鉱業 | CZ20: 農林水産業 | DA20: 業務その他部門 | DB20: エネルギー転換部門 | DC20: 分類不能 | DD20: 合計 | DF20: 製造業 | DG20: 建設業・鉱業 | DH20: 農林水産業 | DI20: 業務その他部門 | DJ20: エネルギー転換部門 | DK20: 分類不能 | DL20: 合計 | DN20: 製造業 | DO20: 建設業・鉱業 | DP20: 農林水産業 | DQ20: 業務その他部門 | DR20: エネルギー転換部門 | DS20: 分類不能
AX21: =比較地域マスタ!$Y6 -> 11365 | AY21: =IF(IFERROR(比較地域マスタ!$Z6,"")=0,"",IFERROR(比較地域マスタ!$Z6,"")) -> 小鹿野町 | BB21: =AX21 -> 11365 | BC21: 小鹿野町 | BD21: =SUM(BE21,BI21:BK21,BQ21) -> 68 | BE21: =SUM(BF21:BH21) -> 18 | BF21: =VLOOKUP($AX21&"_"&$BC$14,データシート1!$A:$BT,MATCH($BC$12&"_"&BF$20,データシート1!$A$1:$BT$1,0),0) -> 12 | BG21: =VLOOKUP($AX21&"_"&$BC$14,データシート1!$A:$BT,MATCH($BC$12&"_"&BG$20,データシート1!$A$1:$BT$1,0),0) -> 1 | BH21: =VLOOKUP($AX21&"_"&$BC$14,データシート1!$A:$BT,MATCH($BC$12&"_"&BH$20,データシート1!$A$1:$BT$1,0),0) -> 6 | BI21: =VLOOKUP($AX21&"_"&$BC$14,データシート1!$A:$BT,MATCH($BC$12&"_"&BI$20,データシート1!$A$1:$BT$1,0),0) -> 11 | BJ21: =VLOOKUP($AX21&"_"&$BC$14,データシート1!$A:$BT,MATCH($BC$12&"_"&BJ$20,データシート1!$A$1:$BT$1,0),0) -> 11 | BK21: =SUM(BL21,BO21:BP21) -> 25 | BL21: =SUM(BM21:BN21) -> 25 | BM21: =VLOOKUP($AX21&"_"&$BC$14,データシート1!$A:$BT,MATCH($BC$12&"_"&BM$20,データシート1!$A$1:$BT$1,0),0) -> 11 | BN21: =VLOOKUP($AX21&"_"&$BC$14,データシート1!$A:$BT,MATCH($BC$12&"_"&BN$20,データシート1!$A$1:$BT$1,0),0) -> 14 | BO21: =VLOOKUP($AX21&"_"&$BC$14,データシート1!$A:$BT,MATCH($BC$12&"_"&BO$20,データシート1!$A$1:$BT$1,0),0) -> 1 | BP21: =VLOOKUP($AX21&"_"&$BC$14,データシート1!$A:$BT,MATCH($BC$12&"_"&BP$20,データシート1!$A$1:$BT$1,0),0) -> 0 | BQ21: =VLOOKUP($AX21&"_"&$BC$14,データシート1!$A:$BT,MATCH($BC$12&"_"&BQ$20,データシート1!$A$1:$BT$1,0),0) -> 2 | BR21: =BD21 -> 68 | BT21: =AY21 -> 小鹿野町 | BU21: =BD21 -> 68 | BV21: =BE21/$BR21 -> 27% | BW21: =BF21/$BR21 -> 18% | BX21: 1% | BY21: 8% | BZ21: 16% | CA21: 17% | CB21: 38% | CC21: 37% | CD21: 16% | CE21: 21% | CF21: 1% | CG21: 0% | CH21: =BQ21/$BR21 -> 3% | CI21: =BR21/$BR21 -> 100% | CK21: =AY21 -> 小鹿野町 | CL21: =CN21+CP21+CR21 -> 18 | CM21: =IF(IF(CL21=0,0,CW21/CL21)>1,1,IF(CL21=0,0,CW21/CL21)) -> (44%) | CN21: =BF21 -> 12 | CO21: =IF(IF(CN21=0,0,CX21/CN21)>1,1,IF(CN21=0,0,CX21/CN21)) -> (68%) | CP21: =BG21 -> 1 | CQ21: =IF(IF(CP21=0,0,CY21/CP21)>1,1,IF(CP21=0,0,CY21/CP21)) -> 0 | CR21: =BH21 -> 6 | CS21: =IF(IF(CR21=0,0,CZ21/CR21)>1,1,IF(CR21=0,0,CZ21/CR21)) -> 0 | CT21: =BI21 -> 11 | CU21: =IF(IF(CT21=0,0,DA21/CT21)>1,1,IF(CT21=0,0,DA21/CT21)) -> 0 | CW21: =SUM(CX21:CZ21) -> 8.176 | CX21: =VLOOKUP($AX21&"_"&$CW$14,データシート1!$A:$BT,MATCH($CW$12&"_"&CX$20,データシート1!$A$1:$BT$1,0),0) -> 8.176 | CY21: =VLOOKUP($AX21&"_"&$CW$14,データシート1!$A:$BT,MATCH($CW$12&"_"&CY$20,データシート1!$A$1:$BT$1,0),0) -> 0 | CZ21: =VLOOKUP($AX21&"_"&$CW$14,データシート1!$A:$BT,MATCH($CW$12&"_"&CZ$20,データシート1!$A$1:$BT$1,0),0) -> 0 | DA21: =VLOOKUP($AX21&"_"&$CW$14,データシート1!$A:$BT,MATCH($CW$12&"_"&DA$20,データシート1!$A$1:$BT$1,0),0) -> 0 | DB21: =VLOOKUP($AX21&"_"&$CW$14,データシート1!$A:$BT,MATCH($CW$12&"_"&DB$20,データシート1!$A$1:$BT$1,0),0) -> 0 | DC21: =VLOOKUP($AX21&"_"&$CW$14,データシート1!$A:$BT,MATCH($CW$12&"_"&DC$20,データシート1!$A$1:$BT$1,0),0) -> 0 | DD21: =SUM(CX21:DC21) -> 8.176 | DF21: =VLOOKUP($AX21&"_"&$DF$14,データシート1!$A:$BT,MATCH($DF$12&"_"&DF$20,データシート1!$A$1:$BT$1,0),0) -> 2 | DG21: =VLOOKUP($AX21&"_"&$DF$14,データシート1!$A:$BT,MATCH($DF$12&"_"&DG$20,データシート1!$A$1:$BT$1,0),0) -> 0 | DH21: =VLOOKUP($AX21&"_"&$DF$14,データシート1!$A:$BT,MATCH($DF$12&"_"&DH$20,データシート1!$A$1:$BT$1,0),0) -> 0 | DI21: =VLOOKUP($AX21&"_"&$DF$14,データシート1!$A:$BT,MATCH($DF$12&"_"&DI$20,データシート1!$A$1:$BT$1,0),0) -> 0 | DJ21: =VLOOKUP($AX21&"_"&$DF$14,データシート1!$A:$BT,MATCH($DF$12&"_"&DJ$20,データシート1!$A$1:$BT$1,0),0) -> 0 | DK21: =VLOOKUP($AX21&"_"&$DF$14,データシート1!$A:$BT,MATCH($DF$12&"_"&DK$20,データシート1!$A$1:$BT$1,0),0) -> 0 | DL21: =SUM(DF21:DK21) -> 2 | DN21: =IF($DD21=0,0,ROUND(CX21/$DD21,2)) -> 100.0% | DO21: =IF($DD21=0,0,ROUND(CY21/$DD21,2)) -> 0 | DP21: =IF($DD21=0,0,ROUND(CZ21/$DD21,2)) -> 0 | DQ21: 0 | DR21: 0 | DS21: =IF($DD21=0,0,ROUND(DC21/$DD21,2)) -> 0
AX22: =比較地域マスタ!$Y7 -> 24562 | AY22: =IF(IFERROR(比較地域マスタ!$Z7,"")=0,"",IFERROR(比較地域マスタ!$Z7,"")) -> 紀宝町 | BB22: 24562 | BC22: 紀宝町 | BD22: =SUM(BE22,BI22:BK22,BQ22) -> 95 | BE22: =SUM(BF22:BH22) -> 50 | BF22: =VLOOKUP($AX22&"_"&$BC$14,データシート1!$A:$BT,MATCH($BC$12&"_"&BF$20,データシート1!$A$1:$BT$1,0),0) -> 46 | BG22: =VLOOKUP($AX22&"_"&$BC$14,データシート1!$A:$BT,MATCH($BC$12&"_"&BG$20,データシート1!$A$1:$BT$1,0),0) -> 1 | BH22: =VLOOKUP($AX22&"_"&$BC$14,データシート1!$A:$BT,MATCH($BC$12&"_"&BH$20,データシート1!$A$1:$BT$1,0),0) -> 3 | BI22: =VLOOKUP($AX22&"_"&$BC$14,データシート1!$A:$BT,MATCH($BC$12&"_"&BI$20,データシート1!$A$1:$BT$1,0),0) -> 8 | BJ22: =VLOOKUP($AX22&"_"&$BC$14,データシート1!$A:$BT,MATCH($BC$12&"_"&BJ$20,データシート1!$A$1:$BT$1,0),0) -> 15 | BK22: 22 | BL22: 20 | BM22: =VLOOKUP($AX22&"_"&$BC$14,データシート1!$A:$BT,MATCH($BC$12&"_"&BM$20,データシート1!$A$1:$BT$1,0),0) -> 9 | BN22: =VLOOKUP($AX22&"_"&$BC$14,データシート1!$A:$BT,MATCH($BC$12&"_"&BN$20,データシート1!$A$1:$BT$1,0),0) -> 11 | BO22: =VLOOKUP($AX22&"_"&$BC$14,データシート1!$A:$BT,MATCH($BC$12&"_"&BO$20,データシート1!$A$1:$BT$1,0),0) -> 1 | BP22: =VLOOKUP($AX22&"_"&$BC$14,データシート1!$A:$BT,MATCH($BC$12&"_"&BP$20,データシート1!$A$1:$BT$1,0),0) -> 2 | BQ22: =VLOOKUP($AX22&"_"&$BC$14,データシート1!$A:$BT,MATCH($BC$12&"_"&BQ$20,データシート1!$A$1:$BT$1,0),0) -> 0 | BR22: 95 | BT22: 紀宝町 | BU22: =BD22 -> 95 | BV22: =BE22/$BR22 -> 52% | BW22: 48% | BX22: 1% | BY22: 3% | BZ22: 8% | CA22: 16% | CB22: 23% | CC22: 21% | CD22: 10% | CE22: 11% | CF22: 1% | CG22: 2% | CH22: 0% | CI22: 100% | CK22: 紀宝町 | CL22: =CN22+CP22+CR22 -> 50 | CM22: =IF(IF(CL22=0,0,CW22/CL22)>1,1,IF(CL22=0,0,CW22/CL22)) -> (100%) | CN22: =BF22 -> 46 | CO22: =IF(IF(CN22=0,0,CX22/CN22)>1,1,IF(CN22=0,0,CX22/CN22)) -> (100%) | CP22: 1 | CQ22: =IF(IF(CP22=0,0,CY22/CP22)>1,1,IF(CP22=0,0,CY22/CP22)) -> 0 | CR22: 3 | CS22: =IF(IF(CR22=0,0,CZ22/CR22)>1,1,IF(CR22=0,0,CZ22/CR22)) -> 0 | CT22: 8 | CU22: =IF(IF(CT22=0,0,DA22/CT22)>1,1,IF(CT22=0,0,DA22/CT22)) -> 0 | CW22: =SUM(CX22:CZ22) -> 110.26 | CX22: =VLOOKUP($AX22&"_"&$CW$14,データシート1!$A:$BT,MATCH($CW$12&"_"&CX$20,データシート1!$A$1:$BT$1,0),0) -> 110.26 | CY22: =VLOOKUP($AX22&"_"&$CW$14,データシート1!$A:$BT,MATCH($CW$12&"_"&CY$20,データシート1!$A$1:$BT$1,0),0) -> 0 | CZ22: =VLOOKUP($AX22&"_"&$CW$14,データシート1!$A:$BT,MATCH($CW$12&"_"&CZ$20,データシート1!$A$1:$BT$1,0),0) -> 0 | DA22: =VLOOKUP($AX22&"_"&$CW$14,データシート1!$A:$BT,MATCH($CW$12&"_"&DA$20,データシート1!$A$1:$BT$1,0),0) -> 0 | DB22: =VLOOKUP($AX22&"_"&$CW$14,データシート1!$A:$BT,MATCH($CW$12&"_"&DB$20,データシート1!$A$1:$BT$1,0),0) -> 0 | DC22: =VLOOKUP($AX22&"_"&$CW$14,データシート1!$A:$BT,MATCH($CW$12&"_"&DC$20,データシート1!$A$1:$BT$1,0),0) -> 0 | DD22: 110.26 | DF22: =VLOOKUP($AX22&"_"&$DF$14,データシート1!$A:$BT,MATCH($DF$12&"_"&DF$20,データシート1!$A$1:$BT$1,0),0) -> 1 | DG22: =VLOOKUP($AX22&"_"&$DF$14,データシート1!$A:$BT,MATCH($DF$12&"_"&DG$20,データシート1!$A$1:$BT$1,0),0) -> 0 | DH22: =VLOOKUP($AX22&"_"&$DF$14,データシート1!$A:$BT,MATCH($DF$12&"_"&DH$20,データシート1!$A$1:$BT$1,0),0) -> 0 | DI22: =VLOOKUP($AX22&"_"&$DF$14,データシート1!$A:$BT,MATCH($DF$12&"_"&DI$20,データシート1!$A$1:$BT$1,0),0) -> 0 | DJ22: =VLOOKUP($AX22&"_"&$DF$14,データシート1!$A:$BT,MATCH($DF$12&"_"&DJ$20,データシート1!$A$1:$BT$1,0),0) -> 0 | DK22: =VLOOKUP($AX22&"_"&$DF$14,データシート1!$A:$BT,MATCH($DF$12&"_"&DK$20,データシート1!$A$1:$BT$1,0),0) -> 0 | DL22: 1 | DN22: =IF($DD22=0,0,ROUND(CX22/$DD22,2)) -> 100.0% | DO22: =IF($DD22=0,0,ROUND(CY22/$DD22,2)) -> 0 | DP22: 0 | DQ22: 0 | DR22: 0 | DS22: =IF($DD22=0,0,ROUND(DC22/$DD22,2)) -> 0
AX23: =比較地域マスタ!$Y8 -> 20309 | AY23: =IF(IFERROR(比較地域マスタ!$Z8,"")=0,"",IFERROR(比較地域マスタ!$Z8,"")) -> 佐久穂町 | BB23: 20309 | BC23: 佐久穂町 | BD23: 57 | BE23: 7 | BF23: =VLOOKUP($AX23&"_"&$BC$14,データシート1!$A:$BT,MATCH($BC$12&"_"&BF$20,データシート1!$A$1:$BT$1,0),0) -> 3 | BG23: =VLOOKUP($AX23&"_"&$BC$14,データシート1!$A:$BT,MATCH($BC$12&"_"&BG$20,データシート1!$A$1:$BT$1,0),0) -> 1 | BH23: =VLOOKUP($AX23&"_"&$BC$14,データシート1!$A:$BT,MATCH($BC$12&"_"&BH$20,データシート1!$A$1:$BT$1,0),0) -> 2 | BI23: =VLOOKUP($AX23&"_"&$BC$14,データシート1!$A:$BT,MATCH($BC$12&"_"&BI$20,データシート1!$A$1:$BT$1,0),0) -> 7 | BJ23: =VLOOKUP($AX23&"_"&$BC$14,データシート1!$A:$BT,MATCH($BC$12&"_"&BJ$20,データシート1!$A$1:$BT$1,0),0) -> 16 | BK23: 27 | BL23: 27 | BM23: =VLOOKUP($AX23&"_"&$BC$14,データシート1!$A:$BT,MATCH($BC$12&"_"&BM$20,データシート1!$A$1:$BT$1,0),0) -> 10 | BN23: =VLOOKUP($AX23&"_"&$BC$14,データシート1!$A:$BT,MATCH($BC$12&"_"&BN$20,データシート1!$A$1:$BT$1,0),0) -> 16 | BO23: =VLOOKUP($AX23&"_"&$BC$14,データシート1!$A:$BT,MATCH($BC$12&"_"&BO$20,データシート1!$A$1:$BT$1,0),0) -> 1 | BP23: =VLOOKUP($AX23&"_"&$BC$14,データシート1!$A:$BT,MATCH($BC$12&"_"&BP$20,データシート1!$A$1:$BT$1,0),0) -> 0 | BQ23: =VLOOKUP($AX23&"_"&$BC$14,データシート1!$A:$BT,MATCH($BC$12&"_"&BQ$20,データシート1!$A$1:$BT$1,0),0) -> 0 | BR23: 57 | BT23: 佐久穂町 | BU23: =BD23 -> 57 | BV23: 12% | BW23: 6% | BX23: 2% | BY23: 4% | BZ23: 12% | CA23: 29% | CB23: 47% | CC23: 46% | CD23: 18% | CE23: 28% | CF23: 1% | CG23: 0% | CH23: 0% | CI23: 100% | CK23: 佐久穂町 | CL23: 7 | CM23: 0 | CN23: 3 | CO23: 0 | CP23: 1 | CQ23: 0 | CR23: 2 | CS23: 0 | CT23: 7 | CU23: 0 | CW23: 0 | CX23: =VLOOKUP($AX23&"_"&$CW$14,データシート1!$A:$BT,MATCH($CW$12&"_"&CX$20,データシート1!$A$1:$BT$1,0),0) -> 0 | CY23: =VLOOKUP($AX23&"_"&$CW$14,データシート1!$A:$BT,MATCH($CW$12&"_"&CY$20,データシート1!$A$1:$BT$1,0),0) -> 0 | CZ23: =VLOOKUP($AX23&"_"&$CW$14,データシート1!$A:$BT,MATCH($CW$12&"_"&CZ$20,データシート1!$A$1:$BT$1,0),0) -> 0 | DA23: =VLOOKUP($AX23&"_"&$CW$14,データシート1!$A:$BT,MATCH($CW$12&"_"&DA$20,データシート1!$A$1:$BT$1,0),0) -> 0 | DB23: =VLOOKUP($AX23&"_"&$CW$14,データシート1!$A:$BT,MATCH($CW$12&"_"&DB$20,データシート1!$A$1:$BT$1,0),0) -> 0 | DC23: =VLOOKUP($AX23&"_"&$CW$14,データシート1!$A:$BT,MATCH($CW$12&"_"&DC$20,データシート1!$A$1:$BT$1,0),0) -> 0 | DD23: 0 | DF23: =VLOOKUP($AX23&"_"&$DF$14,データシート1!$A:$BT,MATCH($DF$12&"_"&DF$20,データシート1!$A$1:$BT$1,0),0) -> 0 | DG23: =VLOOKUP($AX23&"_"&$DF$14,データシート1!$A:$BT,MATCH($DF$12&"_"&DG$20,データシート1!$A$1:$BT$1,0),0) -> 0 | DH23: =VLOOKUP($AX23&"_"&$DF$14,データシート1!$A:$BT,MATCH($DF$12&"_"&DH$20,データシート1!$A$1:$BT$1,0),0) -> 0 | DI23: =VLOOKUP($AX23&"_"&$DF$14,データシート1!$A:$BT,MATCH($DF$12&"_"&DI$20,データシート1!$A$1:$BT$1,0),0) -> 0 | DJ23: =VLOOKUP($AX23&"_"&$DF$14,データシート1!$A:$BT,MATCH($DF$12&"_"&DJ$20,データシート1!$A$1:$BT$1,0),0) -> 0 | DK23: =VLOOKUP($AX23&"_"&$DF$14,データシート1!$A:$BT,MATCH($DF$12&"_"&DK$20,データシート1!$A$1:$BT$1,0),0) -> 0 | DL23: 0 | DN23: =IF($DD23=0,0,ROUND(CX23/$DD23,2)) -> 0 | DO23: =IF($DD23=0,0,ROUND(CY23/$DD23,2)) -> 0 | DP23: 0 | DQ23: 0 | DR23: 0 | DS23: =IF($DD23=0,0,ROUND(DC23/$DD23,2)) -> 0
AX24: =比較地域マスタ!$Y9 -> 31390 | AY24: =IF(IFERROR(比較地域マスタ!$Z9,"")=0,"",IFERROR(比較地域マスタ!$Z9,"")) -> 伯耆町 | BB24: 31390 | BC24: 伯耆町 | BD24: 61 | BE24: 12 | BF24: =VLOOKUP($AX24&"_"&$BC$14,データシート1!$A:$BT,MATCH($BC$12&"_"&BF$20,データシート1!$A$1:$BT$1,0),0) -> 6 | BG24: =VLOOKUP($AX24&"_"&$BC$14,データシート1!$A:$BT,MATCH($BC$12&"_"&BG$20,データシート1!$A$1:$BT$1,0),0) -> 0 | BH24: =VLOOKUP($AX24&"_"&$BC$14,データシート1!$A:$BT,MATCH($BC$12&"_"&BH$20,データシート1!$A$1:$BT$1,0),0) -> 5 | BI24: =VLOOKUP($AX24&"_"&$BC$14,データシート1!$A:$BT,MATCH($BC$12&"_"&BI$20,データシート1!$A$1:$BT$1,0),0) -> 13 | BJ24: =VLOOKUP($AX24&"_"&$BC$14,データシート1!$A:$BT,MATCH($BC$12&"_"&BJ$20,データシート1!$A$1:$BT$1,0),0) -> 14 | BK24: 22 | BL24: 21 | BM24: =VLOOKUP($AX24&"_"&$BC$14,データシート1!$A:$BT,MATCH($BC$12&"_"&BM$20,データシート1!$A$1:$BT$1,0),0) -> 9 | BN24: =VLOOKUP($AX24&"_"&$BC$14,データシート1!$A:$BT,MATCH($BC$12&"_"&BN$20,データシート1!$A$1:$BT$1,0),0) -> 12 | BO24: =VLOOKUP($AX24&"_"&$BC$14,データシート1!$A:$BT,MATCH($BC$12&"_"&BO$20,データシート1!$A$1:$BT$1,0),0) -> 1 | BP24: =VLOOKUP($AX24&"_"&$BC$14,データシート1!$A:$BT,MATCH($BC$12&"_"&BP$20,データシート1!$A$1:$BT$1,0),0) -> 0 | BQ24: =VLOOKUP($AX24&"_"&$BC$14,データシート1!$A:$BT,MATCH($BC$12&"_"&BQ$20,データシート1!$A$1:$BT$1,0),0) -> 1 | BR24: 61 | BT24: 伯耆町 | BU24: 61 | BV24: 20% | BW24: 10% | BX24: 1% | BY24: 9% | BZ24: 21% | CA24: 23% | CB24: 35% | CC24: 34% | CD24: 15% | CE24: 19% | CF24: 1% | CG24: 0% | CH24: 1% | CI24: 100% | CK24: 伯耆町 | CL24: 12 | CM24: (55%) | CN24: 6 | CO24: (100%) | CP24: 0 | CQ24: 0 | CR24: 5 | CS24: 0 | CT24: 13 | CU24: 0 | CW24: 6.637 | CX24: =VLOOKUP($AX24&"_"&$CW$14,データシート1!$A:$BT,MATCH($CW$12&"_"&CX$20,データシート1!$A$1:$BT$1,0),0) -> 6.637 | CY24: =VLOOKUP($AX24&"_"&$CW$14,データシート1!$A:$BT,MATCH($CW$12&"_"&CY$20,データシート1!$A$1:$BT$1,0),0) -> 0 | CZ24: =VLOOKUP($AX24&"_"&$CW$14,データシート1!$A:$BT,MATCH($CW$12&"_"&CZ$20,データシート1!$A$1:$BT$1,0),0) -> 0 | DA24: =VLOOKUP($AX24&"_"&$CW$14,データシート1!$A:$BT,MATCH($CW$12&"_"&DA$20,データシート1!$A$1:$BT$1,0),0) -> 0 | DB24: =VLOOKUP($AX24&"_"&$CW$14,データシート1!$A:$BT,MATCH($CW$12&"_"&DB$20,データシート1!$A$1:$BT$1,0),0) -> 0 | DC24: =VLOOKUP($AX24&"_"&$CW$14,データシート1!$A:$BT,MATCH($CW$12&"_"&DC$20,データシート1!$A$1:$BT$1,0),0) -> 0 | DD24: 6.637 | DF24: =VLOOKUP($AX24&"_"&$DF$14,データシート1!$A:$BT,MATCH($DF$12&"_"&DF$20,データシート1!$A$1:$BT$1,0),0) -> 1 | DG24: =VLOOKUP($AX24&"_"&$DF$14,データシート1!$A:$BT,MATCH($DF$12&"_"&DG$20,データシート1!$A$1:$BT$1,0),0) -> 0 | DH24: =VLOOKUP($AX24&"_"&$DF$14,データシート1!$A:$BT,MATCH($DF$12&"_"&DH$20,データシート1!$A$1:$BT$1,0),0) -> 0 | DI24: =VLOOKUP($AX24&"_"&$DF$14,データシート1!$A:$BT,MATCH($DF$12&"_"&DI$20,データシート1!$A$1:$BT$1,0),0) -> 0 | DJ24: =VLOOKUP($AX24&"_"&$DF$14,データシート1!$A:$BT,MATCH($DF$12&"_"&DJ$20,データシート1!$A$1:$BT$1,0),0) -> 0 | DK24: =VLOOKUP($AX24&"_"&$DF$14,データシート1!$A:$BT,MATCH($DF$12&"_"&DK$20,データシート1!$A$1:$BT$1,0),0) -> 0 | DL24: 1 | DN24: 100.0% | DO24: 0 | DP24: 0 | DQ24: 0 | DR24: 0 | DS24: 0
AX25: =比較地域マスタ!$Y10 -> 31389 | AY25: =IF(IFERROR(比較地域マスタ!$Z10,"")=0,"",IFERROR(比較地域マスタ!$Z10,"")) -> 南部町 | BB25: 31389 | BC25: 南部町 | BD25: 86 | BE25: 41 | BF25: =VLOOKUP($AX25&"_"&$BC$14,データシート1!$A:$BT,MATCH($BC$12&"_"&BF$20,データシート1!$A$1:$BT$1,0),0) -> 35 | BG25: =VLOOKUP($AX25&"_"&$BC$14,データシート1!$A:$BT,MATCH($BC$12&"_"&BG$20,データシート1!$A$1:$BT$1,0),0) -> 1 | BH25: =VLOOKUP($AX25&"_"&$BC$14,データシート1!$A:$BT,MATCH($BC$12&"_"&BH$20,データシート1!$A$1:$BT$1,0),0) -> 6 | BI25: =VLOOKUP($AX25&"_"&$BC$14,データシート1!$A:$BT,MATCH($BC$12&"_"&BI$20,データシート1!$A$1:$BT$1,0),0) -> 10 | BJ25: =VLOOKUP($AX25&"_"&$BC$14,データシート1!$A:$BT,MATCH($BC$12&"_"&BJ$20,データシート1!$A$1:$BT$1,0),0) -> 14 | BK25: 21 | BL25: 20 | BM25: =VLOOKUP($AX25&"_"&$BC$14,データシート1!$A:$BT,MATCH($BC$12&"_"&BM$20,データシート1!$A$1:$BT$1,0),0) -> 9 | BN25: =VLOOKUP($AX25&"_"&$BC$14,データシート1!$A:$BT,MATCH($BC$12&"_"&BN$20,データシート1!$A$1:$BT$1,0),0) -> 11 | BO25: =VLOOKUP($AX25&"_"&$BC$14,データシート1!$A:$BT,MATCH($BC$12&"_"&BO$20,データシート1!$A$1:$BT$1,0),0) -> 1 | BP25: =VLOOKUP($AX25&"_"&$BC$14,データシート1!$A:$BT,MATCH($BC$12&"_"&BP$20,データシート1!$A$1:$BT$1,0),0) -> 0 | BQ25: =VLOOKUP($AX25&"_"&$BC$14,データシート1!$A:$BT,MATCH($BC$12&"_"&BQ$20,データシート1!$A$1:$BT$1,0),0) -> 1 | BR25: 86 | BT25: 南部町 | BU25: 86 | BV25: 48% | BW25: 40% | BX25: 1% | BY25: 7% | BZ25: 11% | CA25: 16% | CB25: 24% | CC25: 23% | CD25: 11% | CE25: 12% | CF25: 1% | CG25: 0% | CH25: 1% | CI25: 100% | CK25: 南部町 | CL25: 41 | CM25: (52%) | CN25: 35 | CO25: (62%) | CP25: 1 | CQ25: 0 | CR25: 6 | CS25: 0 | CT25: 10 | CU25: 0 | CW25: 21.357 | CX25: =VLOOKUP($AX25&"_"&$CW$14,データシート1!$A:$BT,MATCH($CW$12&"_"&CX$20,データシート1!$A$1:$BT$1,0),0) -> 21.357 | CY25: =VLOOKUP($AX25&"_"&$CW$14,データシート1!$A:$BT,MATCH($CW$12&"_"&CY$20,データシート1!$A$1:$BT$1,0),0) -> 0 | CZ25: =VLOOKUP($AX25&"_"&$CW$14,データシート1!$A:$BT,MATCH($CW$12&"_"&CZ$20,データシート1!$A$1:$BT$1,0),0) -> 0 | DA25: =VLOOKUP($AX25&"_"&$CW$14,データシート1!$A:$BT,MATCH($CW$12&"_"&DA$20,データシート1!$A$1:$BT$1,0),0) -> 0 | DB25: =VLOOKUP($AX25&"_"&$CW$14,データシート1!$A:$BT,MATCH($CW$12&"_"&DB$20,データシート1!$A$1:$BT$1,0),0) -> 0 | DC25: =VLOOKUP($AX25&"_"&$CW$14,データシート1!$A:$BT,MATCH($CW$12&"_"&DC$20,データシート1!$A$1:$BT$1,0),0) -> 0 | DD25: 21.357 | DF25: =VLOOKUP($AX25&"_"&$DF$14,データシート1!$A:$BT,MATCH($DF$12&"_"&DF$20,データシート1!$A$1:$BT$1,0),0) -> 1 | DG25: =VLOOKUP($AX25&"_"&$DF$14,データシート1!$A:$BT,MATCH($DF$12&"_"&DG$20,データシート1!$A$1:$BT$1,0),0) -> 0 | DH25: =VLOOKUP($AX25&"_"&$DF$14,データシート1!$A:$BT,MATCH($DF$12&"_"&DH$20,データシート1!$A$1:$BT$1,0),0) -> 0 | DI25: =VLOOKUP($AX25&"_"&$DF$14,データシート1!$A:$BT,MATCH($DF$12&"_"&DI$20,データシート1!$A$1:$BT$1,0),0) -> 0 | DJ25: =VLOOKUP($AX25&"_"&$DF$14,データシート1!$A:$BT,MATCH($DF$12&"_"&DJ$20,データシート1!$A$1:$BT$1,0),0) -> 0 | DK25: =VLOOKUP($AX25&"_"&$DF$14,データシート1!$A:$BT,MATCH($DF$12&"_"&DK$20,データシート1!$A$1:$BT$1,0),0) -> 0 | DL25: 1 | DN25: 100.0% | DO25: 0 | DP25: 0 | DQ25: 0 | DR25: 0 | DS25: 0
AX26: =比較地域マスタ!$Y11 -> 43501 | AY26: =IF(IFERROR(比較地域マスタ!$Z11,"")=0,"",IFERROR(比較地域マスタ!$Z11,"")) -> 錦町 | BB26: 43501 | BC26: 錦町 | BD26: 64 | BE26: 25 | BF26: =VLOOKUP($AX26&"_"&$BC$14,データシート1!$A:$BT,MATCH($BC$12&"_"&BF$20,データシート1!$A$1:$BT$1,0),0) -> 18 | BG26: =VLOOKUP($AX26&"_"&$BC$14,データシート1!$A:$BT,MATCH($BC$12&"_"&BG$20,データシート1!$A$1:$BT$1,0),0) -> 1 | BH26: =VLOOKUP($AX26&"_"&$BC$14,データシート1!$A:$BT,MATCH($BC$12&"_"&BH$20,データシート1!$A$1:$BT$1,0),0) -> 6 | BI26: =VLOOKUP($AX26&"_"&$BC$14,データシート1!$A:$BT,MATCH($BC$12&"_"&BI$20,データシート1!$A$1:$BT$1,0),0) -> 8 | BJ26: =VLOOKUP($AX26&"_"&$BC$14,データシート1!$A:$BT,MATCH($BC$12&"_"&BJ$20,データシート1!$A$1:$BT$1,0),0) -> 7 | BK26: 22 | BL26: 22 | BM26: =VLOOKUP($AX26&"_"&$BC$14,データシート1!$A:$BT,MATCH($BC$12&"_"&BM$20,データシート1!$A$1:$BT$1,0),0) -> 9 | BN26: =VLOOKUP($AX26&"_"&$BC$14,データシート1!$A:$BT,MATCH($BC$12&"_"&BN$20,データシート1!$A$1:$BT$1,0),0) -> 13 | BO26: =VLOOKUP($AX26&"_"&$BC$14,データシート1!$A:$BT,MATCH($BC$12&"_"&BO$20,データシート1!$A$1:$BT$1,0),0) -> 1 | BP26: =VLOOKUP($AX26&"_"&$BC$14,データシート1!$A:$BT,MATCH($BC$12&"_"&BP$20,データシート1!$A$1:$BT$1,0),0) -> 0 | BQ26: =VLOOKUP($AX26&"_"&$BC$14,データシート1!$A:$BT,MATCH($BC$12&"_"&BQ$20,データシート1!$A$1:$BT$1,0),0) -> 1 | BR26: 64 | BT26: 錦町 | BU26: 64 | BV26: 39% | BW26: 28% | BX26: 1% | BY26: 9% | BZ26: 13% | CA26: 11% | CB26: 35% | CC26: 34% | CD26: 14% | CE26: 20% | CF26: 1% | CG26: 0% | CH26: 2% | CI26: 100% | CK26: 錦町 | CL26: 25 | CM26: (76%) | CN26: 18 | CO26: (100%) | CP26: 1 | CQ26: 0 | CR26: 6 | CS26: 0 | CT26: 8 | CU26: 0 | CW26: 18.753 | CX26: =VLOOKUP($AX26&"_"&$CW$14,データシート1!$A:$BT,MATCH($CW$12&"_"&CX$20,データシート1!$A$1:$BT$1,0),0) -> 18.753 | CY26: =VLOOKUP($AX26&"_"&$CW$14,データシート1!$A:$BT,MATCH($CW$12&"_"&CY$20,データシート1!$A$1:$BT$1,0),0) -> 0 | CZ26: =VLOOKUP($AX26&"_"&$CW$14,データシート1!$A:$BT,MATCH($CW$12&"_"&CZ$20,データシート1!$A$1:$BT$1,0),0) -> 0 | DA26: =VLOOKUP($AX26&"_"&$CW$14,データシート1!$A:$BT,MATCH($CW$12&"_"&DA$20,データシート1!$A$1:$BT$1,0),0) -> 0 | DB26: =VLOOKUP($AX26&"_"&$CW$14,データシート1!$A:$BT,MATCH($CW$12&"_"&DB$20,データシート1!$A$1:$BT$1,0),0) -> 0 | DC26: =VLOOKUP($AX26&"_"&$CW$14,データシート1!$A:$BT,MATCH($CW$12&"_"&DC$20,データシート1!$A$1:$BT$1,0),0) -> 0 | DD26: 18.753 | DF26: =VLOOKUP($AX26&"_"&$DF$14,データシート1!$A:$BT,MATCH($DF$12&"_"&DF$20,データシート1!$A$1:$BT$1,0),0) -> 2 | DG26: =VLOOKUP($AX26&"_"&$DF$14,データシート1!$A:$BT,MATCH($DF$12&"_"&DG$20,データシート1!$A$1:$BT$1,0),0) -> 0 | DH26: =VLOOKUP($AX26&"_"&$DF$14,データシート1!$A:$BT,MATCH($DF$12&"_"&DH$20,データシート1!$A$1:$BT$1,0),0) -> 0 | DI26: =VLOOKUP($AX26&"_"&$DF$14,データシート1!$A:$BT,MATCH($DF$12&"_"&DI$20,データシート1!$A$1:$BT$1,0),0) -> 0 | DJ26: =VLOOKUP($AX26&"_"&$DF$14,データシート1!$A:$BT,MATCH($DF$12&"_"&DJ$20,データシート1!$A$1:$BT$1,0),0) -> 0 | DK26: =VLOOKUP($AX26&"_"&$DF$14,データシート1!$A:$BT,MATCH($DF$12&"_"&DK$20,データシート1!$A$1:$BT$1,0),0) -> 0 | DL26: 2 | DN26: 100.0% | DO26: 0 | DP26: 0 | DQ26: 0 | DR26: 0 | DS26: 0
AX27: =比較地域マスタ!$Y12 -> 40601 | AY27: =IF(IFERROR(比較地域マスタ!$Z12,"")=0,"",IFERROR(比較地域マスタ!$Z12,"")) -> 香春町 | BB27: 40601 | BC27: 香春町 | BD27: 57 | BE27: 17 | BF27: =VLOOKUP($AX27&"_"&$BC$14,データシート1!$A:$BT,MATCH($BC$12&"_"&BF$20,データシート1!$A$1:$BT$1,0),0) -> 16 | BG27: =VLOOKUP($AX27&"_"&$BC$14,データシート1!$A:$BT,MATCH($BC$12&"_"&BG$20,データシート1!$A$1:$BT$1,0),0) -> 1 | BH27: =VLOOKUP($AX27&"_"&$BC$14,データシート1!$A:$BT,MATCH($BC$12&"_"&BH$20,データシート1!$A$1:$BT$1,0),0) -> 0 | BI27: =VLOOKUP($AX27&"_"&$BC$14,データシート1!$A:$BT,MATCH($BC$12&"_"&BI$20,データシート1!$A$1:$BT$1,0),0) -> 7 | BJ27: =VLOOKUP($AX27&"_"&$BC$14,データシート1!$A:$BT,MATCH($BC$12&"_"&BJ$20,データシート1!$A$1:$BT$1,0),0) -> 10 | BK27: 22 | BL27: 22 | BM27: =VLOOKUP($AX27&"_"&$BC$14,データシート1!$A:$BT,MATCH($BC$12&"_"&BM$20,データシート1!$A$1:$BT$1,0),0) -> 10 | BN27: =VLOOKUP($AX27&"_"&$BC$14,データシート1!$A:$BT,MATCH($BC$12&"_"&BN$20,データシート1!$A$1:$BT$1,0),0) -> 12 | BO27: =VLOOKUP($AX27&"_"&$BC$14,データシート1!$A:$BT,MATCH($BC$12&"_"&BO$20,データシート1!$A$1:$BT$1,0),0) -> 1 | BP27: =VLOOKUP($AX27&"_"&$BC$14,データシート1!$A:$BT,MATCH($BC$12&"_"&BP$20,データシート1!$A$1:$BT$1,0),0) -> 0 | BQ27: =VLOOKUP($AX27&"_"&$BC$14,データシート1!$A:$BT,MATCH($BC$12&"_"&BQ$20,データシート1!$A$1:$BT$1,0),0) -> 1 | BR27: 57 | BT27: 香春町 | BU27: 57 | BV27: 29% | BW27: 28% | BX27: 1% | BY27: 1% | BZ27: 12% | CA27: 17% | CB27: 39% | CC27: 38% | CD27: 18% | CE27: 20% | CF27: 1% | CG27: 0% | CH27: 2% | CI27: 100% | CK27: 香春町 | CL27: 17 | CM27: (56%) | CN27: 16 | CO27: (23%) | CP27: 1 | CQ27: (100%) | CR27: 0 | CS27: 0 | CT27: 7 | CU27: 0 | CW27: 9.369 | CX27: =VLOOKUP($AX27&"_"&$CW$14,データシート1!$A:$BT,MATCH($CW$12&"_"&CX$20,データシート1!$A$1:$BT$1,0),0) -> 3.705 | CY27: =VLOOKUP($AX27&"_"&$CW$14,データシート1!$A:$BT,MATCH($CW$12&"_"&CY$20,データシート1!$A$1:$BT$1,0),0) -> 5.664 | CZ27: =VLOOKUP($AX27&"_"&$CW$14,データシート1!$A:$BT,MATCH($CW$12&"_"&CZ$20,データシート1!$A$1:$BT$1,0),0) -> 0 | DA27: =VLOOKUP($AX27&"_"&$CW$14,データシート1!$A:$BT,MATCH($CW$12&"_"&DA$20,データシート1!$A$1:$BT$1,0),0) -> 0 | DB27: =VLOOKUP($AX27&"_"&$CW$14,データシート1!$A:$BT,MATCH($CW$12&"_"&DB$20,データシート1!$A$1:$BT$1,0),0) -> 0 | DC27: =VLOOKUP($AX27&"_"&$CW$14,データシート1!$A:$BT,MATCH($CW$12&"_"&DC$20,データシート1!$A$1:$BT$1,0),0) -> 0 | DD27: 9.369 | DF27: =VLOOKUP($AX27&"_"&$DF$14,データシート1!$A:$BT,MATCH($DF$12&"_"&DF$20,データシート1!$A$1:$BT$1,0),0) -> 1 | DG27: =VLOOKUP($AX27&"_"&$DF$14,データシート1!$A:$BT,MATCH($DF$12&"_"&DG$20,データシート1!$A$1:$BT$1,0),0) -> 1 | DH27: =VLOOKUP($AX27&"_"&$DF$14,データシート1!$A:$BT,MATCH($DF$12&"_"&DH$20,データシート1!$A$1:$BT$1,0),0) -> 0 | DI27: =VLOOKUP($AX27&"_"&$DF$14,データシート1!$A:$BT,MATCH($DF$12&"_"&DI$20,データシート1!$A$1:$BT$1,0),0) -> 0 | DJ27: =VLOOKUP($AX27&"_"&$DF$14,データシート1!$A:$BT,MATCH($DF$12&"_"&DJ$20,データシート1!$A$1:$BT$1,0),0) -> 0 | DK27: =VLOOKUP($AX27&"_"&$DF$14,データシート1!$A:$BT,MATCH($DF$12&"_"&DK$20,データシート1!$A$1:$BT$1,0),0) -> 0 | DL27: 2 | DN27: 40.0% | DO27: 60.0% | DP27: 0 | DQ27: 0 | DR27: 0 | DS27: 0
AX28: =比較地域マスタ!$Y13 -> 43442 | AY28: =IF(IFERROR(比較地域マスタ!$Z13,"")=0,"",IFERROR(比較地域マスタ!$Z13,"")) -> 嘉島町 | BB28: 43442 | BC28: 嘉島町 | BD28: 74 | BE28: 25 | BF28: =VLOOKUP($AX28&"_"&$BC$14,データシート1!$A:$BT,MATCH($BC$12&"_"&BF$20,データシート1!$A$1:$BT$1,0),0) -> 21 | BG28: =VLOOKUP($AX28&"_"&$BC$14,データシート1!$A:$BT,MATCH($BC$12&"_"&BG$20,データシート1!$A$1:$BT$1,0),0) -> 1 | BH28: =VLOOKUP($AX28&"_"&$BC$14,データシート1!$A:$BT,MATCH($BC$12&"_"&BH$20,データシート1!$A$1:$BT$1,0),0) -> 2 | BI28: =VLOOKUP($AX28&"_"&$BC$14,データシート1!$A:$BT,MATCH($BC$12&"_"&BI$20,データシート1!$A$1:$BT$1,0),0) -> 20 | BJ28: =VLOOKUP($AX28&"_"&$BC$14,データシート1!$A:$BT,MATCH($BC$12&"_"&BJ$20,データシート1!$A$1:$BT$1,0),0) -> 7 | BK28: 21 | BL28: 21 | BM28: =VLOOKUP($AX28&"_"&$BC$14,データシート1!$A:$BT,MATCH($BC$12&"_"&BM$20,データシート1!$A$1:$BT$1,0),0) -> 9 | BN28: =VLOOKUP($AX28&"_"&$BC$14,データシート1!$A:$BT,MATCH($BC$12&"_"&BN$20,データシート1!$A$1:$BT$1,0),0) -> 12 | BO28: =VLOOKUP($AX28&"_"&$BC$14,データシート1!$A:$BT,MATCH($BC$12&"_"&BO$20,データシート1!$A$1:$BT$1,0),0) -> 1 | BP28: =VLOOKUP($AX28&"_"&$BC$14,データシート1!$A:$BT,MATCH($BC$12&"_"&BP$20,データシート1!$A$1:$BT$1,0),0) -> 0 | BQ28: =VLOOKUP($AX28&"_"&$BC$14,データシート1!$A:$BT,MATCH($BC$12&"_"&BQ$20,データシート1!$A$1:$BT$1,0),0) -> 1 | BR28: 74 | BT28: 嘉島町 | BU28: 74 | BV28: 33% | BW28: 29% | BX28: 1% | BY28: 3% | BZ28: 27% | CA28: 10% | CB28: 29% | CC28: 28% | CD28: 13% | CE28: 16% | CF28: 1% | CG28: 0% | CH28: 2% | CI28: 100% | CK28: 嘉島町 | CL28: 25 | CM28: (12%) | CN28: 21 | CO28: (14%) | CP28: 1 | CQ28: 0 | CR28: 2 | CS28: 0 | CT28: 20 | CU28: (21%) | CW28: 3.031 | CX28: =VLOOKUP($AX28&"_"&$CW$14,データシート1!$A:$BT,MATCH($CW$12&"_"&CX$20,データシート1!$A$1:$BT$1,0),0) -> 3.031 | CY28: =VLOOKUP($AX28&"_"&$CW$14,データシート1!$A:$BT,MATCH($CW$12&"_"&CY$20,データシート1!$A$1:$BT$1,0),0) -> 0 | CZ28: =VLOOKUP($AX28&"_"&$CW$14,データシート1!$A:$BT,MATCH($CW$12&"_"&CZ$20,データシート1!$A$1:$BT$1,0),0) -> 0 | DA28: =VLOOKUP($AX28&"_"&$CW$14,データシート1!$A:$BT,MATCH($CW$12&"_"&DA$20,データシート1!$A$1:$BT$1,0),0) -> 4.18 | DB28: =VLOOKUP($AX28&"_"&$CW$14,データシート1!$A:$BT,MATCH($CW$12&"_"&DB$20,データシート1!$A$1:$BT$1,0),0) -> 0 | DC28: =VLOOKUP($AX28&"_"&$CW$14,データシート1!$A:$BT,MATCH($CW$12&"_"&DC$20,データシート1!$A$1:$BT$1,0),0) -> 0 | DD28: 7.211 | DF28: =VLOOKUP($AX28&"_"&$DF$14,データシート1!$A:$BT,MATCH($DF$12&"_"&DF$20,データシート1!$A$1:$BT$1,0),0) -> 1 | DG28: =VLOOKUP($AX28&"_"&$DF$14,データシート1!$A:$BT,MATCH($DF$12&"_"&DG$20,データシート1!$A$1:$BT$1,0),0) -> 0 | DH28: =VLOOKUP($AX28&"_"&$DF$14,データシート1!$A:$BT,MATCH($DF$12&"_"&DH$20,データシート1!$A$1:$BT$1,0),0) -> 0 | DI28: =VLOOKUP($AX28&"_"&$DF$14,データシート1!$A:$BT,MATCH($DF$12&"_"&DI$20,データシート1!$A$1:$BT$1,0),0) -> 2 | DJ28: =VLOOKUP($AX28&"_"&$DF$14,データシート1!$A:$BT,MATCH($DF$12&"_"&DJ$20,データシート1!$A$1:$BT$1,0),0) -> 0 | DK28: =VLOOKUP($AX28&"_"&$DF$14,データシート1!$A:$BT,MATCH($DF$12&"_"&DK$20,データシート1!$A$1:$BT$1,0),0) -> 0 | DL28: 3 | DN28: 42.0% | DO28: 0 | DP28: 0 | DQ28: 58.0% | DR28: 0 | DS28: 0
AX29: =比較地域マスタ!$Y14 -> 45406 | AY29: =IF(IFERROR(比較地域マスタ!$Z14,"")=0,"",IFERROR(比較地域マスタ!$Z14,"")) -> 都農町 | BB29: 45406 | BC29: 都農町 | BD29: 69 | BE29: 30 | BF29: =VLOOKUP($AX29&"_"&$BC$14,データシート1!$A:$BT,MATCH($BC$12&"_"&BF$20,データシート1!$A$1:$BT$1,0),0) -> 21 | BG29: =VLOOKUP($AX29&"_"&$BC$14,データシート1!$A:$BT,MATCH($BC$12&"_"&BG$20,データシート1!$A$1:$BT$1,0),0) -> 0 | BH29: =VLOOKUP($AX29&"_"&$BC$14,データシート1!$A:$BT,MATCH($BC$12&"_"&BH$20,データシート1!$A$1:$BT$1,0),0) -> 9 | BI29: =VLOOKUP($AX29&"_"&$BC$14,データシート1!$A:$BT,MATCH($BC$12&"_"&BI$20,データシート1!$A$1:$BT$1,0),0) -> 7 | BJ29: =VLOOKUP($AX29&"_"&$BC$14,データシート1!$A:$BT,MATCH($BC$12&"_"&BJ$20,データシート1!$A$1:$BT$1,0),0) -> 9 | BK29: 24 | BL29: 23 | BM29: =VLOOKUP($AX29&"_"&$BC$14,データシート1!$A:$BT,MATCH($BC$12&"_"&BM$20,データシート1!$A$1:$BT$1,0),0) -> 9 | BN29: =VLOOKUP($AX29&"_"&$BC$14,データシート1!$A:$BT,MATCH($BC$12&"_"&BN$20,データシート1!$A$1:$BT$1,0),0) -> 14 | BO29: =VLOOKUP($AX29&"_"&$BC$14,データシート1!$A:$BT,MATCH($BC$12&"_"&BO$20,データシート1!$A$1:$BT$1,0),0) -> 1 | BP29: =VLOOKUP($AX29&"_"&$BC$14,データシート1!$A:$BT,MATCH($BC$12&"_"&BP$20,データシート1!$A$1:$BT$1,0),0) -> 0 | BQ29: =VLOOKUP($AX29&"_"&$BC$14,データシート1!$A:$BT,MATCH($BC$12&"_"&BQ$20,データシート1!$A$1:$BT$1,0),0) -> 0 | BR29: 69 | BT29: 都農町 | BU29: 69 | BV29: 43% | BW29: 30% | BX29: 1% | BY29: 12% | BZ29: 10% | CA29: 12% | CB29: 34% | CC29: 34% | CD29: 14% | CE29: 20% | CF29: 1% | CG29: 0% | CH29: 0% | CI29: 100% | CK29: 都農町 | CL29: 30 | CM29: (15%) | CN29: 21 | CO29: (21%) | CP29: 0 | CQ29: 0 | CR29: 9 | CS29: 0 | CT29: 7 | CU29: 0 | CW29: 4.299 | CX29: =VLOOKUP($AX29&"_"&$CW$14,データシート1!$A:$BT,MATCH($CW$12&"_"&CX$20,データシート1!$A$1:$BT$1,0),0) -> 4.299 | CY29: =VLOOKUP($AX29&"_"&$CW$14,データシート1!$A:$BT,MATCH($CW$12&"_"&CY$20,データシート1!$A$1:$BT$1,0),0) -> 0 | CZ29: =VLOOKUP($AX29&"_"&$CW$14,データシート1!$A:$BT,MATCH($CW$12&"_"&CZ$20,データシート1!$A$1:$BT$1,0),0) -> 0 | DA29: =VLOOKUP($AX29&"_"&$CW$14,データシート1!$A:$BT,MATCH($CW$12&"_"&DA$20,データシート1!$A$1:$BT$1,0),0) -> 0 | DB29: =VLOOKUP($AX29&"_"&$CW$14,データシート1!$A:$BT,MATCH($CW$12&"_"&DB$20,データシート1!$A$1:$BT$1,0),0) -> 0 | DC29: =VLOOKUP($AX29&"_"&$CW$14,データシート1!$A:$BT,MATCH($CW$12&"_"&DC$20,データシート1!$A$1:$BT$1,0),0) -> 0 | DD29: 4.299 | DF29: =VLOOKUP($AX29&"_"&$DF$14,データシート1!$A:$BT,MATCH($DF$12&"_"&DF$20,データシート1!$A$1:$BT$1,0),0) -> 1 | DG29: =VLOOKUP($AX29&"_"&$DF$14,データシート1!$A:$BT,MATCH($DF$12&"_"&DG$20,データシート1!$A$1:$BT$1,0),0) -> 0 | DH29: =VLOOKUP($AX29&"_"&$DF$14,データシート1!$A:$BT,MATCH($DF$12&"_"&DH$20,データシート1!$A$1:$BT$1,0),0) -> 0 | DI29: =VLOOKUP($AX29&"_"&$DF$14,データシート1!$A:$BT,MATCH($DF$12&"_"&DI$20,データシート1!$A$1:$BT$1,0),0) -> 0 | DJ29: =VLOOKUP($AX29&"_"&$DF$14,データシート1!$A:$BT,MATCH($DF$12&"_"&DJ$20,データシート1!$A$1:$BT$1,0),0) -> 0 | DK29: =VLOOKUP($AX29&"_"&$DF$14,データシート1!$A:$BT,MATCH($DF$12&"_"&DK$20,データシート1!$A$1:$BT$1,0),0) -> 0 | DL29: 1 | DN29: 100.0% | DO29: 0 | DP29: 0 | DQ29: 0 | DR29: 0 | DS29: 0
AX30: =比較地域マスタ!$Y15 -> 43444 | AY30: =IF(IFERROR(比較地域マスタ!$Z15,"")=0,"",IFERROR(比較地域マスタ!$Z15,"")) -> 甲佐町 | BB30: 43444 | BC30: 甲佐町 | BD30: 57 | BE30: 14 | BF30: =VLOOKUP($AX30&"_"&$BC$14,データシート1!$A:$BT,MATCH($BC$12&"_"&BF$20,データシート1!$A$1:$BT$1,0),0) -> 8 | BG30: =VLOOKUP($AX30&"_"&$BC$14,データシート1!$A:$BT,MATCH($BC$12&"_"&BG$20,データシート1!$A$1:$BT$1,0),0) -> 1 | BH30: =VLOOKUP($AX30&"_"&$BC$14,データシート1!$A:$BT,MATCH($BC$12&"_"&BH$20,データシート1!$A$1:$BT$1,0),0) -> 6 | BI30: =VLOOKUP($AX30&"_"&$BC$14,データシート1!$A:$BT,MATCH($BC$12&"_"&BI$20,データシート1!$A$1:$BT$1,0),0) -> 8 | BJ30: =VLOOKUP($AX30&"_"&$BC$14,データシート1!$A:$BT,MATCH($BC$12&"_"&BJ$20,データシート1!$A$1:$BT$1,0),0) -> 8 | BK30: 26 | BL30: 25 | BM30: =VLOOKUP($AX30&"_"&$BC$14,データシート1!$A:$BT,MATCH($BC$12&"_"&BM$20,データシート1!$A$1:$BT$1,0),0) -> 10 | BN30: =VLOOKUP($AX30&"_"&$BC$14,データシート1!$A:$BT,MATCH($BC$12&"_"&BN$20,データシート1!$A$1:$BT$1,0),0) -> 15 | BO30: =VLOOKUP($AX30&"_"&$BC$14,データシート1!$A:$BT,MATCH($BC$12&"_"&BO$20,データシート1!$A$1:$BT$1,0),0) -> 1 | BP30: =VLOOKUP($AX30&"_"&$BC$14,データシート1!$A:$BT,MATCH($BC$12&"_"&BP$20,データシート1!$A$1:$BT$1,0),0) -> 0 | BQ30: =VLOOKUP($AX30&"_"&$BC$14,データシート1!$A:$BT,MATCH($BC$12&"_"&BQ$20,データシート1!$A$1:$BT$1,0),0) -> 1 | BR30: 57 | BT30: 甲佐町 | BU30: 57 | BV30: 25% | BW30: 13% | BX30: 2% | BY30: 10% | BZ30: 14% | CA30: 14% | CB30: 45% | CC30: 44% | CD30: 17% | CE30: 27% | CF30: 1% | CG30: 0% | CH30: 2% | CI30: 100% | CK30: 甲佐町 | CL30: 14 | CM30: 0 | CN30: 8 | CO30: 0 | CP30: 1 | CQ30: 0 | CR30: 6 | CS30: 0 | CT30: 8 | CU30: 0 | CW30: 0 | CX30: =VLOOKUP($AX30&"_"&$CW$14,データシート1!$A:$BT,MATCH($CW$12&"_"&CX$20,データシート1!$A$1:$BT$1,0),0) -> 0 | CY30: =VLOOKUP($AX30&"_"&$CW$14,データシート1!$A:$BT,MATCH($CW$12&"_"&CY$20,データシート1!$A$1:$BT$1,0),0) -> 0 | CZ30: =VLOOKUP($AX30&"_"&$CW$14,データシート1!$A:$BT,MATCH($CW$12&"_"&CZ$20,データシート1!$A$1:$BT$1,0),0) -> 0 | DA30: =VLOOKUP($AX30&"_"&$CW$14,データシート1!$A:$BT,MATCH($CW$12&"_"&DA$20,データシート1!$A$1:$BT$1,0),0) -> 0 | DB30: =VLOOKUP($AX30&"_"&$CW$14,データシート1!$A:$BT,MATCH($CW$12&"_"&DB$20,データシート1!$A$1:$BT$1,0),0) -> 0 | DC30: =VLOOKUP($AX30&"_"&$CW$14,データシート1!$A:$BT,MATCH($CW$12&"_"&DC$20,データシート1!$A$1:$BT$1,0),0) -> 0 | DD30: 0 | DF30: =VLOOKUP($AX30&"_"&$DF$14,データシート1!$A:$BT,MATCH($DF$12&"_"&DF$20,データシート1!$A$1:$BT$1,0),0) -> 0 | DG30: =VLOOKUP($AX30&"_"&$DF$14,データシート1!$A:$BT,MATCH($DF$12&"_"&DG$20,データシート1!$A$1:$BT$1,0),0) -> 0 | DH30: =VLOOKUP($AX30&"_"&$DF$14,データシート1!$A:$BT,MATCH($DF$12&"_"&DH$20,データシート1!$A$1:$BT$1,0),0) -> 0 | DI30: =VLOOKUP($AX30&"_"&$DF$14,データシート1!$A:$BT,MATCH($DF$12&"_"&DI$20,データシート1!$A$1:$BT$1,0),0) -> 0 | DJ30: =VLOOKUP($AX30&"_"&$DF$14,データシート1!$A:$BT,MATCH($DF$12&"_"&DJ$20,データシート1!$A$1:$BT$1,0),0) -> 0 | DK30: =VLOOKUP($AX30&"_"&$DF$14,データシート1!$A:$BT,MATCH($DF$12&"_"&DK$20,データシート1!$A$1:$BT$1,0),0) -> 0 | DL30: 0 | DN30: 0 | DO30: 0 | DP30: 0 | DQ30: 0 | DR30: 0 | DS30: 0
AX31: =比較地域マスタ!$Y16 -> 43433 | AY31: =IF(IFERROR(比較地域マスタ!$Z16,"")=0,"",IFERROR(比較地域マスタ!$Z16,"")) -> 南阿蘇村 | BB31: 43433 | BC31: 南阿蘇村 | BD31: 54 | BE31: 11 | BF31: =VLOOKUP($AX31&"_"&$BC$14,データシート1!$A:$BT,MATCH($BC$12&"_"&BF$20,データシート1!$A$1:$BT$1,0),0) -> 4 | BG31: =VLOOKUP($AX31&"_"&$BC$14,データシート1!$A:$BT,MATCH($BC$12&"_"&BG$20,データシート1!$A$1:$BT$1,0),0) -> 1 | BH31: =VLOOKUP($AX31&"_"&$BC$14,データシート1!$A:$BT,MATCH($BC$12&"_"&BH$20,データシート1!$A$1:$BT$1,0),0) -> 5 | BI31: =VLOOKUP($AX31&"_"&$BC$14,データシート1!$A:$BT,MATCH($BC$12&"_"&BI$20,データシート1!$A$1:$BT$1,0),0) -> 8 | BJ31: =VLOOKUP($AX31&"_"&$BC$14,データシート1!$A:$BT,MATCH($BC$12&"_"&BJ$20,データシート1!$A$1:$BT$1,0),0) -> 9 | BK31: 26 | BL31: 26 | BM31: =VLOOKUP($AX31&"_"&$BC$14,データシート1!$A:$BT,MATCH($BC$12&"_"&BM$20,データシート1!$A$1:$BT$1,0),0) -> 10 | BN31: =VLOOKUP($AX31&"_"&$BC$14,データシート1!$A:$BT,MATCH($BC$12&"_"&BN$20,データシート1!$A$1:$BT$1,0),0) -> 16 | BO31: =VLOOKUP($AX31&"_"&$BC$14,データシート1!$A:$BT,MATCH($BC$12&"_"&BO$20,データシート1!$A$1:$BT$1,0),0) -> 1 | BP31: =VLOOKUP($AX31&"_"&$BC$14,データシート1!$A:$BT,MATCH($BC$12&"_"&BP$20,データシート1!$A$1:$BT$1,0),0) -> 0 | BQ31: =VLOOKUP($AX31&"_"&$BC$14,データシート1!$A:$BT,MATCH($BC$12&"_"&BQ$20,データシート1!$A$1:$BT$1,0),0) -> 0 | BR31: 54 | BT31: 南阿蘇村 | BU31: 54 | BV31: 20% | BW31: 8% | BX31: 1% | BY31: 10% | BZ31: 16% | CA31: 16% | CB31: 49% | CC31: 48% | CD31: 19% | CE31: 29% | CF31: 1% | CG31: 0% | CH31: 0% | CI31: 100% | CK31: 南阿蘇村 | CL31: 11 | CM31: 0 | CN31: 4 | CO31: 0 | CP31: 1 | CQ31: 0 | CR31: 5 | CS31: 0 | CT31: 8 | CU31: (41%) | CW31: 0 | CX31: =VLOOKUP($AX31&"_"&$CW$14,データシート1!$A:$BT,MATCH($CW$12&"_"&CX$20,データシート1!$A$1:$BT$1,0),0) -> 0 | CY31: =VLOOKUP($AX31&"_"&$CW$14,データシート1!$A:$BT,MATCH($CW$12&"_"&CY$20,データシート1!$A$1:$BT$1,0),0) -> 0 | CZ31: =VLOOKUP($AX31&"_"&$CW$14,データシート1!$A:$BT,MATCH($CW$12&"_"&CZ$20,データシート1!$A$1:$BT$1,0),0) -> 0 | DA31: =VLOOKUP($AX31&"_"&$CW$14,データシート1!$A:$BT,MATCH($CW$12&"_"&DA$20,データシート1!$A$1:$BT$1,0),0) -> 3.496 | DB31: =VLOOKUP($AX31&"_"&$CW$14,データシート1!$A:$BT,MATCH($CW$12&"_"&DB$20,データシート1!$A$1:$BT$1,0),0) -> 0 | DC31: =VLOOKUP($AX31&"_"&$CW$14,データシート1!$A:$BT,MATCH($CW$12&"_"&DC$20,データシート1!$A$1:$BT$1,0),0) -> 0 | DD31: 3.496 | DF31: =VLOOKUP($AX31&"_"&$DF$14,データシート1!$A:$BT,MATCH($DF$12&"_"&DF$20,データシート1!$A$1:$BT$1,0),0) -> 0 | DG31: =VLOOKUP($AX31&"_"&$DF$14,データシート1!$A:$BT,MATCH($DF$12&"_"&DG$20,データシート1!$A$1:$BT$1,0),0) -> 0 | DH31: =VLOOKUP($AX31&"_"&$DF$14,データシート1!$A:$BT,MATCH($DF$12&"_"&DH$20,データシート1!$A$1:$BT$1,0),0) -> 0 | DI31: =VLOOKUP($AX31&"_"&$DF$14,データシート1!$A:$BT,MATCH($DF$12&"_"&DI$20,データシート1!$A$1:$BT$1,0),0) -> 1 | DJ31: =VLOOKUP($AX31&"_"&$DF$14,データシート1!$A:$BT,MATCH($DF$12&"_"&DJ$20,データシート1!$A$1:$BT$1,0),0) -> 0 | DK31: =VLOOKUP($AX31&"_"&$DF$14,データシート1!$A:$BT,MATCH($DF$12&"_"&DK$20,データシート1!$A$1:$BT$1,0),0) -> 0 | DL31: 1 | DN31: 0 | DO31: 0 | DP31: 0 | DQ31: 100.0% | DR31: 0 | DS31: 0
AX32: =比較地域マスタ!$Y17 -> 39428 | AY32: =IF(IFERROR(比較地域マスタ!$Z17,"")=0,"",IFERROR(比較地域マスタ!$Z17,"")) -> 黒潮町 | BB32: 39428 | BC32: 黒潮町 | BD32: 75 | BE32: 28 | BF32: =VLOOKUP($AX32&"_"&$BC$14,データシート1!$A:$BT,MATCH($BC$12&"_"&BF$20,データシート1!$A$1:$BT$1,0),0) -> 12 | BG32: =VLOOKUP($AX32&"_"&$BC$14,データシート1!$A:$BT,MATCH($BC$12&"_"&BG$20,データシート1!$A$1:$BT$1,0),0) -> 1 | BH32: =VLOOKUP($AX32&"_"&$BC$14,データシート1!$A:$BT,MATCH($BC$12&"_"&BH$20,データシート1!$A$1:$BT$1,0),0) -> 14 | BI32: =VLOOKUP($AX32&"_"&$BC$14,データシート1!$A:$BT,MATCH($BC$12&"_"&BI$20,データシート1!$A$1:$BT$1,0),0) -> 10 | BJ32: =VLOOKUP($AX32&"_"&$BC$14,データシート1!$A:$BT,MATCH($BC$12&"_"&BJ$20,データシート1!$A$1:$BT$1,0),0) -> 13 | BK32: 23 | BL32: 22 | BM32: =VLOOKUP($AX32&"_"&$BC$14,データシート1!$A:$BT,MATCH($BC$12&"_"&BM$20,データシート1!$A$1:$BT$1,0),0) -> 9 | BN32: =VLOOKUP($AX32&"_"&$BC$14,データシート1!$A:$BT,MATCH($BC$12&"_"&BN$20,データシート1!$A$1:$BT$1,0),0) -> 13 | BO32: =VLOOKUP($AX32&"_"&$BC$14,データシート1!$A:$BT,MATCH($BC$12&"_"&BO$20,データシート1!$A$1:$BT$1,0),0) -> 1 | BP32: =VLOOKUP($AX32&"_"&$BC$14,データシート1!$A:$BT,MATCH($BC$12&"_"&BP$20,データシート1!$A$1:$BT$1,0),0) -> 0 | BQ32: =VLOOKUP($AX32&"_"&$BC$14,データシート1!$A:$BT,MATCH($BC$12&"_"&BQ$20,データシート1!$A$1:$BT$1,0),0) -> 1 | BR32: 75 | BT32: 黒潮町 | BU32: 75 | BV32: 37% | BW32: 17% | BX32: 2% | BY32: 19% | BZ32: 13% | CA32: 18% | CB32: 30% | CC32: 29% | CD32: 12% | CE32: 18% | CF32: 1% | CG32: 0% | CH32: 2% | CI32: 100% | CK32: 黒潮町 | CL32: 28 | CM32: 0 | CN32: 12 | CO32: 0 | CP32: 1 | CQ32: 0 | CR32: 14 | CS32: 0 | CT32: 10 | CU32: 0 | CW32: 0 | CX32: =VLOOKUP($AX32&"_"&$CW$14,データシート1!$A:$BT,MATCH($CW$12&"_"&CX$20,データシート1!$A$1:$BT$1,0),0) -> 0 | CY32: =VLOOKUP($AX32&"_"&$CW$14,データシート1!$A:$BT,MATCH($CW$12&"_"&CY$20,データシート1!$A$1:$BT$1,0),0) -> 0 | CZ32: =VLOOKUP($AX32&"_"&$CW$14,データシート1!$A:$BT,MATCH($CW$12&"_"&CZ$20,データシート1!$A$1:$BT$1,0),0) -> 0 | DA32: =VLOOKUP($AX32&"_"&$CW$14,データシート1!$A:$BT,MATCH($CW$12&"_"&DA$20,データシート1!$A$1:$BT$1,0),0) -> 0 | DB32: =VLOOKUP($AX32&"_"&$CW$14,データシート1!$A:$BT,MATCH($CW$12&"_"&DB$20,データシート1!$A$1:$BT$1,0),0) -> 0 | DC32: =VLOOKUP($AX32&"_"&$CW$14,データシート1!$A:$BT,MATCH($CW$12&"_"&DC$20,データシート1!$A$1:$BT$1,0),0) -> 0 | DD32: 0 | DF32: =VLOOKUP($AX32&"_"&$DF$14,データシート1!$A:$BT,MATCH($DF$12&"_"&DF$20,データシート1!$A$1:$BT$1,0),0) -> 0 | DG32: =VLOOKUP($AX32&"_"&$DF$14,データシート1!$A:$BT,MATCH($DF$12&"_"&DG$20,データシート1!$A$1:$BT$1,0),0) -> 0 | DH32: =VLOOKUP($AX32&"_"&$DF$14,データシート1!$A:$BT,MATCH($DF$12&"_"&DH$20,データシート1!$A$1:$BT$1,0),0) -> 0 | DI32: =VLOOKUP($AX32&"_"&$DF$14,データシート1!$A:$BT,MATCH($DF$12&"_"&DI$20,データシート1!$A$1:$BT$1,0),0) -> 0 | DJ32: =VLOOKUP($AX32&"_"&$DF$14,データシート1!$A:$BT,MATCH($DF$12&"_"&DJ$20,データシート1!$A$1:$BT$1,0),0) -> 0 | DK32: =VLOOKUP($AX32&"_"&$DF$14,データシート1!$A:$BT,MATCH($DF$12&"_"&DK$20,データシート1!$A$1:$BT$1,0),0) -> 0 | DL32: 0 | DN32: 0 | DO32: 0 | DP32: 0 | DQ32: 0 | DR32: 0 | DS32: 0
AX33: =比較地域マスタ!$Y18 -> 21505 | AY33: =IF(IFERROR(比較地域マスタ!$Z18,"")=0,"",IFERROR(比較地域マスタ!$Z18,"")) -> 八百津町 | BB33: 21505 | BC33: 八百津町 | BD33: 93 | BE33: 46 | BF33: =VLOOKUP($AX33&"_"&$BC$14,データシート1!$A:$BT,MATCH($BC$12&"_"&BF$20,データシート1!$A$1:$BT$1,0),0) -> 42 | BG33: =VLOOKUP($AX33&"_"&$BC$14,データシート1!$A:$BT,MATCH($BC$12&"_"&BG$20,データシート1!$A$1:$BT$1,0),0) -> 1 | BH33: =VLOOKUP($AX33&"_"&$BC$14,データシート1!$A:$BT,MATCH($BC$12&"_"&BH$20,データシート1!$A$1:$BT$1,0),0) -> 4 | BI33: =VLOOKUP($AX33&"_"&$BC$14,データシート1!$A:$BT,MATCH($BC$12&"_"&BI$20,データシート1!$A$1:$BT$1,0),0) -> 9 | BJ33: =VLOOKUP($AX33&"_"&$BC$14,データシート1!$A:$BT,MATCH($BC$12&"_"&BJ$20,データシート1!$A$1:$BT$1,0),0) -> 13 | BK33: 23 | BL33: 22 | BM33: =VLOOKUP($AX33&"_"&$BC$14,データシート1!$A:$BT,MATCH($BC$12&"_"&BM$20,データシート1!$A$1:$BT$1,0),0) -> 10 | BN33: =VLOOKUP($AX33&"_"&$BC$14,データシート1!$A:$BT,MATCH($BC$12&"_"&BN$20,データシート1!$A$1:$BT$1,0),0) -> 12 | BO33: =VLOOKUP($AX33&"_"&$BC$14,データシート1!$A:$BT,MATCH($BC$12&"_"&BO$20,データシート1!$A$1:$BT$1,0),0) -> 1 | BP33: =VLOOKUP($AX33&"_"&$BC$14,データシート1!$A:$BT,MATCH($BC$12&"_"&BP$20,データシート1!$A$1:$BT$1,0),0) -> 0 | BQ33: =VLOOKUP($AX33&"_"&$BC$14,データシート1!$A:$BT,MATCH($BC$12&"_"&BQ$20,データシート1!$A$1:$BT$1,0),0) -> 1 | BR33: 93 | BT33: 八百津町 | BU33: 93 | BV33: 50% | BW33: 45% | BX33: 1% | BY33: 4% | BZ33: 10% | CA33: 14% | CB33: 24% | CC33: 24% | CD33: 11% | CE33: 13% | CF33: 1% | CG33: 0% | CH33: 1% | CI33: 100% | CK33: 八百津町 | CL33: 46 | CM33: (20%) | CN33: 42 | CO33: (22%) | CP33: 1 | CQ33: 0 | CR33: 4 | CS33: 0 | CT33: 9 | CU33: 0 | CW33: 9.366 | CX33: =VLOOKUP($AX33&"_"&$CW$14,データシート1!$A:$BT,MATCH($CW$12&"_"&CX$20,データシート1!$A$1:$BT$1,0),0) -> 9.366 | CY33: =VLOOKUP($AX33&"_"&$CW$14,データシート1!$A:$BT,MATCH($CW$12&"_"&CY$20,データシート1!$A$1:$BT$1,0),0) -> 0 | CZ33: =VLOOKUP($AX33&"_"&$CW$14,データシート1!$A:$BT,MATCH($CW$12&"_"&CZ$20,データシート1!$A$1:$BT$1,0),0) -> 0 | DA33: =VLOOKUP($AX33&"_"&$CW$14,データシート1!$A:$BT,MATCH($CW$12&"_"&DA$20,データシート1!$A$1:$BT$1,0),0) -> 0 | DB33: =VLOOKUP($AX33&"_"&$CW$14,データシート1!$A:$BT,MATCH($CW$12&"_"&DB$20,データシート1!$A$1:$BT$1,0),0) -> 0 | DC33: =VLOOKUP($AX33&"_"&$CW$14,データシート1!$A:$BT,MATCH($CW$12&"_"&DC$20,データシート1!$A$1:$BT$1,0),0) -> 0 | DD33: 9.366 | DF33: =VLOOKUP($AX33&"_"&$DF$14,データシート1!$A:$BT,MATCH($DF$12&"_"&DF$20,データシート1!$A$1:$BT$1,0),0) -> 3 | DG33: =VLOOKUP($AX33&"_"&$DF$14,データシート1!$A:$BT,MATCH($DF$12&"_"&DG$20,データシート1!$A$1:$BT$1,0),0) -> 0 | DH33: =VLOOKUP($AX33&"_"&$DF$14,データシート1!$A:$BT,MATCH($DF$12&"_"&DH$20,データシート1!$A$1:$BT$1,0),0) -> 0 | DI33: =VLOOKUP($AX33&"_"&$DF$14,データシート1!$A:$BT,MATCH($DF$12&"_"&DI$20,データシート1!$A$1:$BT$1,0),0) -> 0 | DJ33: =VLOOKUP($AX33&"_"&$DF$14,データシート1!$A:$BT,MATCH($DF$12&"_"&DJ$20,データシート1!$A$1:$BT$1,0),0) -> 0 | DK33: =VLOOKUP($AX33&"_"&$DF$14,データシート1!$A:$BT,MATCH($DF$12&"_"&DK$20,データシート1!$A$1:$BT$1,0),0) -> 0 | DL33: 3 | DN33: 100.0% | DO33: 0 | DP33: 0 | DQ33: 0 | DR33: 0 | DS33: 0
AX34: =比較地域マスタ!$Y19 -> 09384 | AY34: =IF(IFERROR(比較地域マスタ!$Z19,"")=0,"",IFERROR(比較地域マスタ!$Z19,"")) -> 塩谷町 | BB34: 09384 | BC34: 塩谷町 | BD34: 69 | BE34: 23 | BF34: =VLOOKUP($AX34&"_"&$BC$14,データシート1!$A:$BT,MATCH($BC$12&"_"&BF$20,データシート1!$A$1:$BT$1,0),0) -> 20 | BG34: =VLOOKUP($AX34&"_"&$BC$14,データシート1!$A:$BT,MATCH($BC$12&"_"&BG$20,データシート1!$A$1:$BT$1,0),0) -> 1 | BH34: =VLOOKUP($AX34&"_"&$BC$14,データシート1!$A:$BT,MATCH($BC$12&"_"&BH$20,データシート1!$A$1:$BT$1,0),0) -> 2 | BI34: =VLOOKUP($AX34&"_"&$BC$14,データシート1!$A:$BT,MATCH($BC$12&"_"&BI$20,データシート1!$A$1:$BT$1,0),0) -> 8 | BJ34: =VLOOKUP($AX34&"_"&$BC$14,データシート1!$A:$BT,MATCH($BC$12&"_"&BJ$20,データシート1!$A$1:$BT$1,0),0) -> 11 | BK34: 25 | BL34: 25 | BM34: =VLOOKUP($AX34&"_"&$BC$14,データシート1!$A:$BT,MATCH($BC$12&"_"&BM$20,データシート1!$A$1:$BT$1,0),0) -> 11 | BN34: =VLOOKUP($AX34&"_"&$BC$14,データシート1!$A:$BT,MATCH($BC$12&"_"&BN$20,データシート1!$A$1:$BT$1,0),0) -> 13 | BO34: =VLOOKUP($AX34&"_"&$BC$14,データシート1!$A:$BT,MATCH($BC$12&"_"&BO$20,データシート1!$A$1:$BT$1,0),0) -> 1 | BP34: =VLOOKUP($AX34&"_"&$BC$14,データシート1!$A:$BT,MATCH($BC$12&"_"&BP$20,データシート1!$A$1:$BT$1,0),0) -> 0 | BQ34: =VLOOKUP($AX34&"_"&$BC$14,データシート1!$A:$BT,MATCH($BC$12&"_"&BQ$20,データシート1!$A$1:$BT$1,0),0) -> 1 | BR34: 69 | BT34: 塩谷町 | BU34: 69 | BV34: 34% | BW34: 29% | BX34: 2% | BY34: 4% | BZ34: 12% | CA34: 17% | CB34: 36% | CC34: 35% | CD34: 16% | CE34: 19% | CF34: 1% | CG34: 0% | CH34: 2% | CI34: 100% | CK34: 塩谷町 | CL34: 23 | CM34: (38%) | CN34: 20 | CO34: (45%) | CP34: 1 | CQ34: 0 | CR34: 2 | CS34: 0 | CT34: 8 | CU34: 0 | CW34: 8.908 | CX34: =VLOOKUP($AX34&"_"&$CW$14,データシート1!$A:$BT,MATCH($CW$12&"_"&CX$20,データシート1!$A$1:$BT$1,0),0) -> 8.908 | CY34: =VLOOKUP($AX34&"_"&$CW$14,データシート1!$A:$BT,MATCH($CW$12&"_"&CY$20,データシート1!$A$1:$BT$1,0),0) -> 0 | CZ34: =VLOOKUP($AX34&"_"&$CW$14,データシート1!$A:$BT,MATCH($CW$12&"_"&CZ$20,データシート1!$A$1:$BT$1,0),0) -> 0 | DA34: =VLOOKUP($AX34&"_"&$CW$14,データシート1!$A:$BT,MATCH($CW$12&"_"&DA$20,データシート1!$A$1:$BT$1,0),0) -> 0 | DB34: =VLOOKUP($AX34&"_"&$CW$14,データシート1!$A:$BT,MATCH($CW$12&"_"&DB$20,データシート1!$A$1:$BT$1,0),0) -> 0 | DC34: =VLOOKUP($AX34&"_"&$CW$14,データシート1!$A:$BT,MATCH($CW$12&"_"&DC$20,データシート1!$A$1:$BT$1,0),0) -> 0 | DD34: 8.908 | DF34: =VLOOKUP($AX34&"_"&$DF$14,データシート1!$A:$BT,MATCH($DF$12&"_"&DF$20,データシート1!$A$1:$BT$1,0),0) -> 3 | DG34: =VLOOKUP($AX34&"_"&$DF$14,データシート1!$A:$BT,MATCH($DF$12&"_"&DG$20,データシート1!$A$1:$BT$1,0),0) -> 0 | DH34: =VLOOKUP($AX34&"_"&$DF$14,データシート1!$A:$BT,MATCH($DF$12&"_"&DH$20,データシート1!$A$1:$BT$1,0),0) -> 0 | DI34: =VLOOKUP($AX34&"_"&$DF$14,データシート1!$A:$BT,MATCH($DF$12&"_"&DI$20,データシート1!$A$1:$BT$1,0),0) -> 0 | DJ34: =VLOOKUP($AX34&"_"&$DF$14,データシート1!$A:$BT,MATCH($DF$12&"_"&DJ$20,データシート1!$A$1:$BT$1,0),0) -> 0 | DK34: =VLOOKUP($AX34&"_"&$DF$14,データシート1!$A:$BT,MATCH($DF$12&"_"&DK$20,データシート1!$A$1:$BT$1,0),0) -> 0 | DL34: 3 | DN34: 100.0% | DO34: 0 | DP34: 0 | DQ34: 0 | DR34: 0 | DS34: 0
AX35: =比較地域マスタ!$Y20 -> 46530 | AY35: =IF(IFERROR(比較地域マスタ!$Z20,"")=0,"",IFERROR(比較地域マスタ!$Z20,"")) -> 徳之島町 | BB35: 46530 | BC35: 徳之島町 | BD35: 107 | BE35: 5 | BF35: =VLOOKUP($AX35&"_"&$BC$14,データシート1!$A:$BT,MATCH($BC$12&"_"&BF$20,データシート1!$A$1:$BT$1,0),0) -> 2 | BG35: =VLOOKUP($AX35&"_"&$BC$14,データシート1!$A:$BT,MATCH($BC$12&"_"&BG$20,データシート1!$A$1:$BT$1,0),0) -> 1 | BH35: =VLOOKUP($AX35&"_"&$BC$14,データシート1!$A:$BT,MATCH($BC$12&"_"&BH$20,データシート1!$A$1:$BT$1,0),0) -> 3 | BI35: =VLOOKUP($AX35&"_"&$BC$14,データシート1!$A:$BT,MATCH($BC$12&"_"&BI$20,データシート1!$A$1:$BT$1,0),0) -> 14 | BJ35: =VLOOKUP($AX35&"_"&$BC$14,データシート1!$A:$BT,MATCH($BC$12&"_"&BJ$20,データシート1!$A$1:$BT$1,0),0) -> 11 | BK35: 76 | BL35: 26 | BM35: =VLOOKUP($AX35&"_"&$BC$14,データシート1!$A:$BT,MATCH($BC$12&"_"&BM$20,データシート1!$A$1:$BT$1,0),0) -> 7 | BN35: =VLOOKUP($AX35&"_"&$BC$14,データシート1!$A:$BT,MATCH($BC$12&"_"&BN$20,データシート1!$A$1:$BT$1,0),0) -> 19 | BO35: =VLOOKUP($AX35&"_"&$BC$14,データシート1!$A:$BT,MATCH($BC$12&"_"&BO$20,データシート1!$A$1:$BT$1,0),0) -> 1 | BP35: =VLOOKUP($AX35&"_"&$BC$14,データシート1!$A:$BT,MATCH($BC$12&"_"&BP$20,データシート1!$A$1:$BT$1,0),0) -> 50 | BQ35: =VLOOKUP($AX35&"_"&$BC$14,データシート1!$A:$BT,MATCH($BC$12&"_"&BQ$20,データシート1!$A$1:$BT$1,0),0) -> 1 | BR35: 107 | BT35: 徳之島町 | BU35: 107 | BV35: 5% | BW35: 2% | BX35: 1% | BY35: 3% | BZ35: 13% | CA35: 10% | CB35: 71% | CC35: 24% | CD35: 6% | CE35: 17% | CF35: 1% | CG35: 47% | CH35: 1% | CI35: 100% | CK35: 徳之島町 | CL35: 5 | CM35: 0 | CN35: 2 | CO35: 0 | CP35: 1 | CQ35: 0 | CR35: 3 | CS35: 0 | CT35: 14 | CU35: 0 | CW35: 0 | CX35: =VLOOKUP($AX35&"_"&$CW$14,データシート1!$A:$BT,MATCH($CW$12&"_"&CX$20,データシート1!$A$1:$BT$1,0),0) -> 0 | CY35: =VLOOKUP($AX35&"_"&$CW$14,データシート1!$A:$BT,MATCH($CW$12&"_"&CY$20,データシート1!$A$1:$BT$1,0),0) -> 0 | CZ35: =VLOOKUP($AX35&"_"&$CW$14,データシート1!$A:$BT,MATCH($CW$12&"_"&CZ$20,データシート1!$A$1:$BT$1,0),0) -> 0 | DA35: =VLOOKUP($AX35&"_"&$CW$14,データシート1!$A:$BT,MATCH($CW$12&"_"&DA$20,データシート1!$A$1:$BT$1,0),0) -> 0 | DB35: =VLOOKUP($AX35&"_"&$CW$14,データシート1!$A:$BT,MATCH($CW$12&"_"&DB$20,データシート1!$A$1:$BT$1,0),0) -> 0 | DC35: =VLOOKUP($AX35&"_"&$CW$14,データシート1!$A:$BT,MATCH($CW$12&"_"&DC$20,データシート1!$A$1:$BT$1,0),0) -> 0 | DD35: 0 | DF35: =VLOOKUP($AX35&"_"&$DF$14,データシート1!$A:$BT,MATCH($DF$12&"_"&DF$20,データシート1!$A$1:$BT$1,0),0) -> 0 | DG35: =VLOOKUP($AX35&"_"&$DF$14,データシート1!$A:$BT,MATCH($DF$12&"_"&DG$20,データシート1!$A$1:$BT$1,0),0) -> 0 | DH35: =VLOOKUP($AX35&"_"&$DF$14,データシート1!$A:$BT,MATCH($DF$12&"_"&DH$20,データシート1!$A$1:$BT$1,0),0) -> 0 | DI35: =VLOOKUP($AX35&"_"&$DF$14,データシート1!$A:$BT,MATCH($DF$12&"_"&DI$20,データシート1!$A$1:$BT$1,0),0) -> 0 | DJ35: =VLOOKUP($AX35&"_"&$DF$14,データシート1!$A:$BT,MATCH($DF$12&"_"&DJ$20,データシート1!$A$1:$BT$1,0),0) -> 0 | DK35: =VLOOKUP($AX35&"_"&$DF$14,データシート1!$A:$BT,MATCH($DF$12&"_"&DK$20,データシート1!$A$1:$BT$1,0),0) -> 0 | DL35: 0 | DN35: 0 | DO35: 0 | DP35: 0 | DQ35: 0 | DR35: 0 | DS35: 0
AX36: =比較地域マスタ!$Y21 -> 04322 | AY36: =IF(IFERROR(比較地域マスタ!$Z21,"")=0,"",IFERROR(比較地域マスタ!$Z21,"")) -> 村田町 | BB36: 04322 | BC36: 村田町 | BD36: 92 | BE36: 47 | BF36: =VLOOKUP($AX36&"_"&$BC$14,データシート1!$A:$BT,MATCH($BC$12&"_"&BF$20,データシート1!$A$1:$BT$1,0),0) -> 45 | BG36: =VLOOKUP($AX36&"_"&$BC$14,データシート1!$A:$BT,MATCH($BC$12&"_"&BG$20,データシート1!$A$1:$BT$1,0),0) -> 1 | BH36: =VLOOKUP($AX36&"_"&$BC$14,データシート1!$A:$BT,MATCH($BC$12&"_"&BH$20,データシート1!$A$1:$BT$1,0),0) -> 1 | BI36: =VLOOKUP($AX36&"_"&$BC$14,データシート1!$A:$BT,MATCH($BC$12&"_"&BI$20,データシート1!$A$1:$BT$1,0),0) -> 10 | BJ36: =VLOOKUP($AX36&"_"&$BC$14,データシート1!$A:$BT,MATCH($BC$12&"_"&BJ$20,データシート1!$A$1:$BT$1,0),0) -> 12 | BK36: 22 | BL36: 22 | BM36: =VLOOKUP($AX36&"_"&$BC$14,データシート1!$A:$BT,MATCH($BC$12&"_"&BM$20,データシート1!$A$1:$BT$1,0),0) -> 10 | BN36: =VLOOKUP($AX36&"_"&$BC$14,データシート1!$A:$BT,MATCH($BC$12&"_"&BN$20,データシート1!$A$1:$BT$1,0),0) -> 12 | BO36: =VLOOKUP($AX36&"_"&$BC$14,データシート1!$A:$BT,MATCH($BC$12&"_"&BO$20,データシート1!$A$1:$BT$1,0),0) -> 1 | BP36: =VLOOKUP($AX36&"_"&$BC$14,データシート1!$A:$BT,MATCH($BC$12&"_"&BP$20,データシート1!$A$1:$BT$1,0),0) -> 0 | BQ36: =VLOOKUP($AX36&"_"&$BC$14,データシート1!$A:$BT,MATCH($BC$12&"_"&BQ$20,データシート1!$A$1:$BT$1,0),0) -> 1 | BR36: 92 | BT36: 村田町 | BU36: 92 | BV36: 51% | BW36: 48% | BX36: 1% | BY36: 1% | BZ36: 11% | CA36: 13% | CB36: 24% | CC36: 23% | CD36: 11% | CE36: 13% | CF36: 1% | CG36: 0% | CH36: 1% | CI36: 100% | CK36: 村田町 | CL36: 47 | CM36: (40%) | CN36: 45 | CO36: (42%) | CP36: 1 | CQ36: 0 | CR36: 1 | CS36: 0 | CT36: 10 | CU36: 0 | CW36: 18.785 | CX36: =VLOOKUP($AX36&"_"&$CW$14,データシート1!$A:$BT,MATCH($CW$12&"_"&CX$20,データシート1!$A$1:$BT$1,0),0) -> 18.785 | CY36: =VLOOKUP($AX36&"_"&$CW$14,データシート1!$A:$BT,MATCH($CW$12&"_"&CY$20,データシート1!$A$1:$BT$1,0),0) -> 0 | CZ36: =VLOOKUP($AX36&"_"&$CW$14,データシート1!$A:$BT,MATCH($CW$12&"_"&CZ$20,データシート1!$A$1:$BT$1,0),0) -> 0 | DA36: =VLOOKUP($AX36&"_"&$CW$14,データシート1!$A:$BT,MATCH($CW$12&"_"&DA$20,データシート1!$A$1:$BT$1,0),0) -> 0 | DB36: =VLOOKUP($AX36&"_"&$CW$14,データシート1!$A:$BT,MATCH($CW$12&"_"&DB$20,データシート1!$A$1:$BT$1,0),0) -> 0 | DC36: =VLOOKUP($AX36&"_"&$CW$14,データシート1!$A:$BT,MATCH($CW$12&"_"&DC$20,データシート1!$A$1:$BT$1,0),0) -> 0 | DD36: 18.785 | DF36: =VLOOKUP($AX36&"_"&$DF$14,データシート1!$A:$BT,MATCH($DF$12&"_"&DF$20,データシート1!$A$1:$BT$1,0),0) -> 1 | DG36: =VLOOKUP($AX36&"_"&$DF$14,データシート1!$A:$BT,MATCH($DF$12&"_"&DG$20,データシート1!$A$1:$BT$1,0),0) -> 0 | DH36: =VLOOKUP($AX36&"_"&$DF$14,データシート1!$A:$BT,MATCH($DF$12&"_"&DH$20,データシート1!$A$1:$BT$1,0),0) -> 0 | DI36: =VLOOKUP($AX36&"_"&$DF$14,データシート1!$A:$BT,MATCH($DF$12&"_"&DI$20,データシート1!$A$1:$BT$1,0),0) -> 0 | DJ36: =VLOOKUP($AX36&"_"&$DF$14,データシート1!$A:$BT,MATCH($DF$12&"_"&DJ$20,データシート1!$A$1:$BT$1,0),0) -> 0 | DK36: =VLOOKUP($AX36&"_"&$DF$14,データシート1!$A:$BT,MATCH($DF$12&"_"&DK$20,データシート1!$A$1:$BT$1,0),0) -> 0 | DL36: 1 | DN36: 100.0% | DO36: 0 | DP36: 0 | DQ36: 0 | DR36: 0 | DS36: 0
AX37: =比較地域マスタ!$Y22 -> 01428 | AY37: =IF(IFERROR(比較地域マスタ!$Z22,"")=0,"",IFERROR(比較地域マスタ!$Z22,"")) -> 長沼町 | BB37: 01428 | BC37: 長沼町 | BD37: 89 | BE37: 24 | BF37: =VLOOKUP($AX37&"_"&$BC$14,データシート1!$A:$BT,MATCH($BC$12&"_"&BF$20,データシート1!$A$1:$BT$1,0),0) -> 7 | BG37: =VLOOKUP($AX37&"_"&$BC$14,データシート1!$A:$BT,MATCH($BC$12&"_"&BG$20,データシート1!$A$1:$BT$1,0),0) -> 1 | BH37: =VLOOKUP($AX37&"_"&$BC$14,データシート1!$A:$BT,MATCH($BC$12&"_"&BH$20,データシート1!$A$1:$BT$1,0),0) -> 16 | BI37: =VLOOKUP($AX37&"_"&$BC$14,データシート1!$A:$BT,MATCH($BC$12&"_"&BI$20,データシート1!$A$1:$BT$1,0),0) -> 17 | BJ37: =VLOOKUP($AX37&"_"&$BC$14,データシート1!$A:$BT,MATCH($BC$12&"_"&BJ$20,データシート1!$A$1:$BT$1,0),0) -> 22 | BK37: 26 | BL37: 25 | BM37: =VLOOKUP($AX37&"_"&$BC$14,データシート1!$A:$BT,MATCH($BC$12&"_"&BM$20,データシート1!$A$1:$BT$1,0),0) -> 10 | BN37: =VLOOKUP($AX37&"_"&$BC$14,データシート1!$A:$BT,MATCH($BC$12&"_"&BN$20,データシート1!$A$1:$BT$1,0),0) -> 16 | BO37: =VLOOKUP($AX37&"_"&$BC$14,データシート1!$A:$BT,MATCH($BC$12&"_"&BO$20,データシート1!$A$1:$BT$1,0),0) -> 1 | BP37: =VLOOKUP($AX37&"_"&$BC$14,データシート1!$A:$BT,MATCH($BC$12&"_"&BP$20,データシート1!$A$1:$BT$1,0),0) -> 0 | BQ37: =VLOOKUP($AX37&"_"&$BC$14,データシート1!$A:$BT,MATCH($BC$12&"_"&BQ$20,データシート1!$A$1:$BT$1,0),0) -> 0 | BR37: 89 | BT37: 長沼町 | BU37: 89 | BV37: 27% | BW37: 8% | BX37: 1% | BY37: 19% | BZ37: 19% | CA37: 24% | CB37: 29% | CC37: 29% | CD37: 11% | CE37: 18% | CF37: 1% | CG37: 0% | CH37: 0% | CI37: 100% | CK37: 長沼町 | CL37: 24 | CM37: 0 | CN37: 7 | CO37: 0 | CP37: 1 | CQ37: 0 | CR37: 16 | CS37: 0 | CT37: 17 | CU37: 0 | CW37: 0 | CX37: =VLOOKUP($AX37&"_"&$CW$14,データシート1!$A:$BT,MATCH($CW$12&"_"&CX$20,データシート1!$A$1:$BT$1,0),0) -> 0 | CY37: =VLOOKUP($AX37&"_"&$CW$14,データシート1!$A:$BT,MATCH($CW$12&"_"&CY$20,データシート1!$A$1:$BT$1,0),0) -> 0 | CZ37: =VLOOKUP($AX37&"_"&$CW$14,データシート1!$A:$BT,MATCH($CW$12&"_"&CZ$20,データシート1!$A$1:$BT$1,0),0) -> 0 | DA37: =VLOOKUP($AX37&"_"&$CW$14,データシート1!$A:$BT,MATCH($CW$12&"_"&DA$20,データシート1!$A$1:$BT$1,0),0) -> 0 | DB37: =VLOOKUP($AX37&"_"&$CW$14,データシート1!$A:$BT,MATCH($CW$12&"_"&DB$20,データシート1!$A$1:$BT$1,0),0) -> 0 | DC37: =VLOOKUP($AX37&"_"&$CW$14,データシート1!$A:$BT,MATCH($CW$12&"_"&DC$20,データシート1!$A$1:$BT$1,0),0) -> 0 | DD37: 0 | DF37: =VLOOKUP($AX37&"_"&$DF$14,データシート1!$A:$BT,MATCH($DF$12&"_"&DF$20,データシート1!$A$1:$BT$1,0),0) -> 0 | DG37: =VLOOKUP($AX37&"_"&$DF$14,データシート1!$A:$BT,MATCH($DF$12&"_"&DG$20,データシート1!$A$1:$BT$1,0),0) -> 0 | DH37: =VLOOKUP($AX37&"_"&$DF$14,データシート1!$A:$BT,MATCH($DF$12&"_"&DH$20,データシート1!$A$1:$BT$1,0),0) -> 0 | DI37: =VLOOKUP($AX37&"_"&$DF$14,データシート1!$A:$BT,MATCH($DF$12&"_"&DI$20,データシート1!$A$1:$BT$1,0),0) -> 0 | DJ37: =VLOOKUP($AX37&"_"&$DF$14,データシート1!$A:$BT,MATCH($DF$12&"_"&DJ$20,データシート1!$A$1:$BT$1,0),0) -> 0 | DK37: =VLOOKUP($AX37&"_"&$DF$14,データシート1!$A:$BT,MATCH($DF$12&"_"&DK$20,データシート1!$A$1:$BT$1,0),0) -> 0 | DL37: 0 | DN37: 0 | DO37: 0 | DP37: =IF($DD37=0,0,ROUND(CZ37/$DD37,2)) -> 0 | DQ37: =IF($DD37=0,0,ROUND(DA37/$DD37,2)) -> 0 | DR37: =IF($DD37=0,0,ROUND(DB37/$DD37,2)) -> 0 | DS37: 0
AX38: =比較地域マスタ!$Y23 -> 19365 | AY38: =IF(IFERROR(比較地域マスタ!$Z23,"")=0,"",IFERROR(比較地域マスタ!$Z23,"")) -> 身延町 | BB38: 19365 | BC38: 身延町 | BD38: 71 | BE38: 14 | BF38: =VLOOKUP($AX38&"_"&$BC$14,データシート1!$A:$BT,MATCH($BC$12&"_"&BF$20,データシート1!$A$1:$BT$1,0),0) -> 11 | BG38: =VLOOKUP($AX38&"_"&$BC$14,データシート1!$A:$BT,MATCH($BC$12&"_"&BG$20,データシート1!$A$1:$BT$1,0),0) -> 1 | BH38: =VLOOKUP($AX38&"_"&$BC$14,データシート1!$A:$BT,MATCH($BC$12&"_"&BH$20,データシート1!$A$1:$BT$1,0),0) -> 2 | BI38: =VLOOKUP($AX38&"_"&$BC$14,データシート1!$A:$BT,MATCH($BC$12&"_"&BI$20,データシート1!$A$1:$BT$1,0),0) -> 15 | BJ38: =VLOOKUP($AX38&"_"&$BC$14,データシート1!$A:$BT,MATCH($BC$12&"_"&BJ$20,データシート1!$A$1:$BT$1,0),0) -> 15 | BK38: 26 | BL38: 26 | BM38: =VLOOKUP($AX38&"_"&$BC$14,データシート1!$A:$BT,MATCH($BC$12&"_"&BM$20,データシート1!$A$1:$BT$1,0),0) -> 11 | BN38: =VLOOKUP($AX38&"_"&$BC$14,データシート1!$A:$BT,MATCH($BC$12&"_"&BN$20,データシート1!$A$1:$BT$1,0),0) -> 15 | BO38: =VLOOKUP($AX38&"_"&$BC$14,データシート1!$A:$BT,MATCH($BC$12&"_"&BO$20,データシート1!$A$1:$BT$1,0),0) -> 1 | BP38: =VLOOKUP($AX38&"_"&$BC$14,データシート1!$A:$BT,MATCH($BC$12&"_"&BP$20,データシート1!$A$1:$BT$1,0),0) -> 0 | BQ38: =VLOOKUP($AX38&"_"&$BC$14,データシート1!$A:$BT,MATCH($BC$12&"_"&BQ$20,データシート1!$A$1:$BT$1,0),0) -> 1 | BR38: 71 | BT38: 身延町 | BU38: 71 | BV38: 20% | BW38: 15% | BX38: 2% | BY38: 3% | BZ38: 21% | CA38: 20% | CB38: 37% | CC38: 36% | CD38: 15% | CE38: 21% | CF38: 1% | CG38: 0% | CH38: 2% | CI38: 100% | CK38: 身延町 | CL38: 14 | CM38: (100%) | CN38: 11 | CO38: (100%) | CP38: 1 | CQ38: 0 | CR38: 2 | CS38: 0 | CT38: 15 | CU38: 0 | CW38: 29.054 | CX38: =VLOOKUP($AX38&"_"&$CW$14,データシート1!$A:$BT,MATCH($CW$12&"_"&CX$20,データシート1!$A$1:$BT$1,0),0) -> 29.054 | CY38: =VLOOKUP($AX38&"_"&$CW$14,データシート1!$A:$BT,MATCH($CW$12&"_"&CY$20,データシート1!$A$1:$BT$1,0),0) -> 0 | CZ38: =VLOOKUP($AX38&"_"&$CW$14,データシート1!$A:$BT,MATCH($CW$12&"_"&CZ$20,データシート1!$A$1:$BT$1,0),0) -> 0 | DA38: =VLOOKUP($AX38&"_"&$CW$14,データシート1!$A:$BT,MATCH($CW$12&"_"&DA$20,データシート1!$A$1:$BT$1,0),0) -> 0 | DB38: =VLOOKUP($AX38&"_"&$CW$14,データシート1!$A:$BT,MATCH($CW$12&"_"&DB$20,データシート1!$A$1:$BT$1,0),0) -> 0 | DC38: =VLOOKUP($AX38&"_"&$CW$14,データシート1!$A:$BT,MATCH($CW$12&"_"&DC$20,データシート1!$A$1:$BT$1,0),0) -> 0 | DD38: 29.054 | DF38: =VLOOKUP($AX38&"_"&$DF$14,データシート1!$A:$BT,MATCH($DF$12&"_"&DF$20,データシート1!$A$1:$BT$1,0),0) -> 5 | DG38: =VLOOKUP($AX38&"_"&$DF$14,データシート1!$A:$BT,MATCH($DF$12&"_"&DG$20,データシート1!$A$1:$BT$1,0),0) -> 0 | DH38: =VLOOKUP($AX38&"_"&$DF$14,データシート1!$A:$BT,MATCH($DF$12&"_"&DH$20,データシート1!$A$1:$BT$1,0),0) -> 0 | DI38: =VLOOKUP($AX38&"_"&$DF$14,データシート1!$A:$BT,MATCH($DF$12&"_"&DI$20,データシート1!$A$1:$BT$1,0),0) -> 0 | DJ38: =VLOOKUP($AX38&"_"&$DF$14,データシート1!$A:$BT,MATCH($DF$12&"_"&DJ$20,データシート1!$A$1:$BT$1,0),0) -> 0 | DK38: =VLOOKUP($AX38&"_"&$DF$14,データシート1!$A:$BT,MATCH($DF$12&"_"&DK$20,データシート1!$A$1:$BT$1,0),0) -> 0 | DL38: 5 | DN38: 100.0% | DO38: 0 | DP38: 0 | DQ38: 0 | DR38: 0 | DS38: 0
AX39: =比較地域マスタ!$Y24 -> 20432 | AY39: =IF(IFERROR(比較地域マスタ!$Z24,"")=0,"",IFERROR(比較地域マスタ!$Z24,"")) -> 木曽町 | BB39: 20432 | BC39: 木曽町 | BD39: 75 | BE39: 10 | BF39: =VLOOKUP($AX39&"_"&$BC$14,データシート1!$A:$BT,MATCH($BC$12&"_"&BF$20,データシート1!$A$1:$BT$1,0),0) -> 3 | BG39: =VLOOKUP($AX39&"_"&$BC$14,データシート1!$A:$BT,MATCH($BC$12&"_"&BG$20,データシート1!$A$1:$BT$1,0),0) -> 1 | BH39: =VLOOKUP($AX39&"_"&$BC$14,データシート1!$A:$BT,MATCH($BC$12&"_"&BH$20,データシート1!$A$1:$BT$1,0),0) -> 6 | BI39: =VLOOKUP($AX39&"_"&$BC$14,データシート1!$A:$BT,MATCH($BC$12&"_"&BI$20,データシート1!$A$1:$BT$1,0),0) -> 20 | BJ39: =VLOOKUP($AX39&"_"&$BC$14,データシート1!$A:$BT,MATCH($BC$12&"_"&BJ$20,データシート1!$A$1:$BT$1,0),0) -> 18 | BK39: 26 | BL39: 25 | BM39: =VLOOKUP($AX39&"_"&$BC$14,データシート1!$A:$BT,MATCH($BC$12&"_"&BM$20,データシート1!$A$1:$BT$1,0),0) -> 10 | BN39: =VLOOKUP($AX39&"_"&$BC$14,データシート1!$A:$BT,MATCH($BC$12&"_"&BN$20,データシート1!$A$1:$BT$1,0),0) -> 15 | BO39: =VLOOKUP($AX39&"_"&$BC$14,データシート1!$A:$BT,MATCH($BC$12&"_"&BO$20,データシート1!$A$1:$BT$1,0),0) -> 1 | BP39: =VLOOKUP($AX39&"_"&$BC$14,データシート1!$A:$BT,MATCH($BC$12&"_"&BP$20,データシート1!$A$1:$BT$1,0),0) -> 0 | BQ39: =VLOOKUP($AX39&"_"&$BC$14,データシート1!$A:$BT,MATCH($BC$12&"_"&BQ$20,データシート1!$A$1:$BT$1,0),0) -> 1 | BR39: 75 | BT39: 木曽町 | BU39: 75 | BV39: 13% | BW39: 4% | BX39: 2% | BY39: 8% | BZ39: 26% | CA39: 25% | CB39: 34% | CC39: 33% | CD39: 13% | CE39: 20% | CF39: 1% | CG39: 0% | CH39: 2% | CI39: 100% | CK39: 木曽町 | CL39: 10 | CM39: 0 | CN39: 3 | CO39: 0 | CP39: 1 | CQ39: 0 | CR39: 6 | CS39: 0 | CT39: 20 | CU39: 0 | CW39: 0 | CX39: =VLOOKUP($AX39&"_"&$CW$14,データシート1!$A:$BT,MATCH($CW$12&"_"&CX$20,データシート1!$A$1:$BT$1,0),0) -> 0 | CY39: =VLOOKUP($AX39&"_"&$CW$14,データシート1!$A:$BT,MATCH($CW$12&"_"&CY$20,データシート1!$A$1:$BT$1,0),0) -> 0 | CZ39: =VLOOKUP($AX39&"_"&$CW$14,データシート1!$A:$BT,MATCH($CW$12&"_"&CZ$20,データシート1!$A$1:$BT$1,0),0) -> 0 | DA39: =VLOOKUP($AX39&"_"&$CW$14,データシート1!$A:$BT,MATCH($CW$12&"_"&DA$20,データシート1!$A$1:$BT$1,0),0) -> 0 | DB39: =VLOOKUP($AX39&"_"&$CW$14,データシート1!$A:$BT,MATCH($CW$12&"_"&DB$20,データシート1!$A$1:$BT$1,0),0) -> 0 | DC39: =VLOOKUP($AX39&"_"&$CW$14,データシート1!$A:$BT,MATCH($CW$12&"_"&DC$20,データシート1!$A$1:$BT$1,0),0) -> 0 | DD39: 0 | DF39: =VLOOKUP($AX39&"_"&$DF$14,データシート1!$A:$BT,MATCH($DF$12&"_"&DF$20,データシート1!$A$1:$BT$1,0),0) -> 0 | DG39: =VLOOKUP($AX39&"_"&$DF$14,データシート1!$A:$BT,MATCH($DF$12&"_"&DG$20,データシート1!$A$1:$BT$1,0),0) -> 0 | DH39: =VLOOKUP($AX39&"_"&$DF$14,データシート1!$A:$BT,MATCH($DF$12&"_"&DH$20,データシート1!$A$1:$BT$1,0),0) -> 0 | DI39: =VLOOKUP($AX39&"_"&$DF$14,データシート1!$A:$BT,MATCH($DF$12&"_"&DI$20,データシート1!$A$1:$BT$1,0),0) -> 0 | DJ39: =VLOOKUP($AX39&"_"&$DF$14,データシート1!$A:$BT,MATCH($DF$12&"_"&DJ$20,データシート1!$A$1:$BT$1,0),0) -> 0 | DK39: =VLOOKUP($AX39&"_"&$DF$14,データシート1!$A:$BT,MATCH($DF$12&"_"&DK$20,データシート1!$A$1:$BT$1,0),0) -> 0 | DL39: 0 | DN39: 0 | DO39: 0 | DP39: 0 | DQ39: 0 | DR39: 0 | DS39: 0
AX40: =比較地域マスタ!$Y25 -> 01460 | AY40: =IF(IFERROR(比較地域マスタ!$Z25,"")=0,"",IFERROR(比較地域マスタ!$Z25,"")) -> 上富良野町 | BB40: 01460 | BC40: 上富良野町 | BD40: 86 | BE40: 26 | BF40: =VLOOKUP($AX40&"_"&$BC$14,データシート1!$A:$BT,MATCH($BC$12&"_"&BF$20,データシート1!$A$1:$BT$1,0),0) -> 14 | BG40: =VLOOKUP($AX40&"_"&$BC$14,データシート1!$A:$BT,MATCH($BC$12&"_"&BG$20,データシート1!$A$1:$BT$1,0),0) -> 1 | BH40: =VLOOKUP($AX40&"_"&$BC$14,データシート1!$A:$BT,MATCH($BC$12&"_"&BH$20,データシート1!$A$1:$BT$1,0),0) -> 12 | BI40: =VLOOKUP($AX40&"_"&$BC$14,データシート1!$A:$BT,MATCH($BC$12&"_"&BI$20,データシート1!$A$1:$BT$1,0),0) -> 19 | BJ40: =VLOOKUP($AX40&"_"&$BC$14,データシート1!$A:$BT,MATCH($BC$12&"_"&BJ$20,データシート1!$A$1:$BT$1,0),0) -> 23 | BK40: 17 | BL40: 17 | BM40: =VLOOKUP($AX40&"_"&$BC$14,データシート1!$A:$BT,MATCH($BC$12&"_"&BM$20,データシート1!$A$1:$BT$1,0),0) -> 9 | BN40: =VLOOKUP($AX40&"_"&$BC$14,データシート1!$A:$BT,MATCH($BC$12&"_"&BN$20,データシート1!$A$1:$BT$1,0),0) -> 8 | BO40: =VLOOKUP($AX40&"_"&$BC$14,データシート1!$A:$BT,MATCH($BC$12&"_"&BO$20,データシート1!$A$1:$BT$1,0),0) -> 1 | BP40: =VLOOKUP($AX40&"_"&$BC$14,データシート1!$A:$BT,MATCH($BC$12&"_"&BP$20,データシート1!$A$1:$BT$1,0),0) -> 0 | BQ40: =VLOOKUP($AX40&"_"&$BC$14,データシート1!$A:$BT,MATCH($BC$12&"_"&BQ$20,データシート1!$A$1:$BT$1,0),0) -> 1 | BR40: 86 | BT40: 上富良野町 | BU40: 86 | BV40: 30% | BW40: 16% | BX40: 1% | BY40: 13% | BZ40: 21% | CA40: 27% | CB40: 20% | CC40: 19% | CD40: 10% | CE40: 9% | CF40: 1% | CG40: 0% | CH40: 1% | CI40: 100% | CK40: 上富良野町 | CL40: 26 | CM40: 0 | CN40: 14 | CO40: 0 | CP40: 1 | CQ40: 0 | CR40: 12 | CS40: 0 | CT40: 19 | CU40: (32%) | CW40: 0 | CX40: =VLOOKUP($AX40&"_"&$CW$14,データシート1!$A:$BT,MATCH($CW$12&"_"&CX$20,データシート1!$A$1:$BT$1,0),0) -> 0 | CY40: =VLOOKUP($AX40&"_"&$CW$14,データシート1!$A:$BT,MATCH($CW$12&"_"&CY$20,データシート1!$A$1:$BT$1,0),0) -> 0 | CZ40: =VLOOKUP($AX40&"_"&$CW$14,データシート1!$A:$BT,MATCH($CW$12&"_"&CZ$20,データシート1!$A$1:$BT$1,0),0) -> 0 | DA40: =VLOOKUP($AX40&"_"&$CW$14,データシート1!$A:$BT,MATCH($CW$12&"_"&DA$20,データシート1!$A$1:$BT$1,0),0) -> 5.977 | DB40: =VLOOKUP($AX40&"_"&$CW$14,データシート1!$A:$BT,MATCH($CW$12&"_"&DB$20,データシート1!$A$1:$BT$1,0),0) -> 0 | DC40: =VLOOKUP($AX40&"_"&$CW$14,データシート1!$A:$BT,MATCH($CW$12&"_"&DC$20,データシート1!$A$1:$BT$1,0),0) -> 0 | DD40: 5.977 | DF40: =VLOOKUP($AX40&"_"&$DF$14,データシート1!$A:$BT,MATCH($DF$12&"_"&DF$20,データシート1!$A$1:$BT$1,0),0) -> 0 | DG40: =VLOOKUP($AX40&"_"&$DF$14,データシート1!$A:$BT,MATCH($DF$12&"_"&DG$20,データシート1!$A$1:$BT$1,0),0) -> 0 | DH40: =VLOOKUP($AX40&"_"&$DF$14,データシート1!$A:$BT,MATCH($DF$12&"_"&DH$20,データシート1!$A$1:$BT$1,0),0) -> 0 | DI40: =VLOOKUP($AX40&"_"&$DF$14,データシート1!$A:$BT,MATCH($DF$12&"_"&DI$20,データシート1!$A$1:$BT$1,0),0) -> 1 | DJ40: =VLOOKUP($AX40&"_"&$DF$14,データシート1!$A:$BT,MATCH($DF$12&"_"&DJ$20,データシート1!$A$1:$BT$1,0),0) -> 0 | DK40: =VLOOKUP($AX40&"_"&$DF$14,データシート1!$A:$BT,MATCH($DF$12&"_"&DK$20,データシート1!$A$1:$BT$1,0),0) -> 0 | DL40: 1 | DN40: 0 | DO40: 0 | DP40: 0 | DQ40: 100.0% | DR40: 0 | DS40: 0
AX41: =比較地域マスタ!$Y26 -> 07545 | AY41: =IF(IFERROR(比較地域マスタ!$Z26,"")=0,"",IFERROR(比較地域マスタ!$Z26,"")) -> 大熊町 | BB41: 07545 | BC41: 大熊町 | BD41: 26 | BE41: 1 | BF41: =VLOOKUP($AX41&"_"&$BC$14,データシート1!$A:$BT,MATCH($BC$12&"_"&BF$20,データシート1!$A$1:$BT$1,0),0) -> 0 | BG41: =VLOOKUP($AX41&"_"&$BC$14,データシート1!$A:$BT,MATCH($BC$12&"_"&BG$20,データシート1!$A$1:$BT$1,0),0) -> 0 | BH41: =VLOOKUP($AX41&"_"&$BC$14,データシート1!$A:$BT,MATCH($BC$12&"_"&BH$20,データシート1!$A$1:$BT$1,0),0) -> 1 | BI41: =VLOOKUP($AX41&"_"&$BC$14,データシート1!$A:$BT,MATCH($BC$12&"_"&BI$20,データシート1!$A$1:$BT$1,0),0) -> 1 | BJ41: =VLOOKUP($AX41&"_"&$BC$14,データシート1!$A:$BT,MATCH($BC$12&"_"&BJ$20,データシート1!$A$1:$BT$1,0),0) -> 15 | BK41: 8 | BL41: 8 | BM41: =VLOOKUP($AX41&"_"&$BC$14,データシート1!$A:$BT,MATCH($BC$12&"_"&BM$20,データシート1!$A$1:$BT$1,0),0) -> 3 | BN41: =VLOOKUP($AX41&"_"&$BC$14,データシート1!$A:$BT,MATCH($BC$12&"_"&BN$20,データシート1!$A$1:$BT$1,0),0) -> 5 | BO41: =VLOOKUP($AX41&"_"&$BC$14,データシート1!$A:$BT,MATCH($BC$12&"_"&BO$20,データシート1!$A$1:$BT$1,0),0) -> 1 | BP41: =VLOOKUP($AX41&"_"&$BC$14,データシート1!$A:$BT,MATCH($BC$12&"_"&BP$20,データシート1!$A$1:$BT$1,0),0) -> 0 | BQ41: =VLOOKUP($AX41&"_"&$BC$14,データシート1!$A:$BT,MATCH($BC$12&"_"&BQ$20,データシート1!$A$1:$BT$1,0),0) -> 0 | BR41: 26 | BT41: 大熊町 | BU41: 26 | BV41: 4% | BW41: 0% | BX41: 1% | BY41: 3% | BZ41: 5% | CA41: 57% | CB41: 32% | CC41: 29% | CD41: 11% | CE41: 18% | CF41: 2% | CG41: 0% | CH41: 2% | CI41: 100% | CK41: 大熊町 | CL41: 1 | CM41: 0 | CN41: 0 | CO41: 0 | CP41: 0 | CQ41: 0 | CR41: 1 | CS41: 0 | CT41: 1 | CU41: (100%) | CW41: 0 | CX41: =VLOOKUP($AX41&"_"&$CW$14,データシート1!$A:$BT,MATCH($CW$12&"_"&CX$20,データシート1!$A$1:$BT$1,0),0) -> 0 | CY41: =VLOOKUP($AX41&"_"&$CW$14,データシート1!$A:$BT,MATCH($CW$12&"_"&CY$20,データシート1!$A$1:$BT$1,0),0) -> 0 | CZ41: =VLOOKUP($AX41&"_"&$CW$14,データシート1!$A:$BT,MATCH($CW$12&"_"&CZ$20,データシート1!$A$1:$BT$1,0),0) -> 0 | DA41: =VLOOKUP($AX41&"_"&$CW$14,データシート1!$A:$BT,MATCH($CW$12&"_"&DA$20,データシート1!$A$1:$BT$1,0),0) -> 74.848 | DB41: =VLOOKUP($AX41&"_"&$CW$14,データシート1!$A:$BT,MATCH($CW$12&"_"&DB$20,データシート1!$A$1:$BT$1,0),0) -> 0 | DC41: =VLOOKUP($AX41&"_"&$CW$14,データシート1!$A:$BT,MATCH($CW$12&"_"&DC$20,データシート1!$A$1:$BT$1,0),0) -> 0 | DD41: 74.848 | DF41: =VLOOKUP($AX41&"_"&$DF$14,データシート1!$A:$BT,MATCH($DF$12&"_"&DF$20,データシート1!$A$1:$BT$1,0),0) -> 0 | DG41: =VLOOKUP($AX41&"_"&$DF$14,データシート1!$A:$BT,MATCH($DF$12&"_"&DG$20,データシート1!$A$1:$BT$1,0),0) -> 0 | DH41: =VLOOKUP($AX41&"_"&$DF$14,データシート1!$A:$BT,MATCH($DF$12&"_"&DH$20,データシート1!$A$1:$BT$1,0),0) -> 0 | DI41: =VLOOKUP($AX41&"_"&$DF$14,データシート1!$A:$BT,MATCH($DF$12&"_"&DI$20,データシート1!$A$1:$BT$1,0),0) -> 2 | DJ41: =VLOOKUP($AX41&"_"&$DF$14,データシート1!$A:$BT,MATCH($DF$12&"_"&DJ$20,データシート1!$A$1:$BT$1,0),0) -> 0 | DK41: =VLOOKUP($AX41&"_"&$DF$14,データシート1!$A:$BT,MATCH($DF$12&"_"&DK$20,データシート1!$A$1:$BT$1,0),0) -> 0 | DL41: 2 | DN41: 0 | DO41: 0 | DP41: 0 | DQ41: 100.0% | DR41: 0 | DS41: 0
AX42: =比較地域マスタ!$Y27 -> 02301 | AY42: =IF(IFERROR(比較地域マスタ!$Z27,"")=0,"",IFERROR(比較地域マスタ!$Z27,"")) -> 平内町 | BB42: 02301 | BC42: 平内町 | BD42: 76 | BE42: 26 | BF42: =VLOOKUP($AX42&"_"&$BC$14,データシート1!$A:$BT,MATCH($BC$12&"_"&BF$20,データシート1!$A$1:$BT$1,0),0) -> 23 | BG42: =VLOOKUP($AX42&"_"&$BC$14,データシート1!$A:$BT,MATCH($BC$12&"_"&BG$20,データシート1!$A$1:$BT$1,0),0) -> 1 | BH42: =VLOOKUP($AX42&"_"&$BC$14,データシート1!$A:$BT,MATCH($BC$12&"_"&BH$20,データシート1!$A$1:$BT$1,0),0) -> 2 | BI42: =VLOOKUP($AX42&"_"&$BC$14,データシート1!$A:$BT,MATCH($BC$12&"_"&BI$20,データシート1!$A$1:$BT$1,0),0) -> 9 | BJ42: =VLOOKUP($AX42&"_"&$BC$14,データシート1!$A:$BT,MATCH($BC$12&"_"&BJ$20,データシート1!$A$1:$BT$1,0),0) -> 22 | BK42: 19 | BL42: 18 | BM42: =VLOOKUP($AX42&"_"&$BC$14,データシート1!$A:$BT,MATCH($BC$12&"_"&BM$20,データシート1!$A$1:$BT$1,0),0) -> 8 | BN42: =VLOOKUP($AX42&"_"&$BC$14,データシート1!$A:$BT,MATCH($BC$12&"_"&BN$20,データシート1!$A$1:$BT$1,0),0) -> 11 | BO42: =VLOOKUP($AX42&"_"&$BC$14,データシート1!$A:$BT,MATCH($BC$12&"_"&BO$20,データシート1!$A$1:$BT$1,0),0) -> 1 | BP42: =VLOOKUP($AX42&"_"&$BC$14,データシート1!$A:$BT,MATCH($BC$12&"_"&BP$20,データシート1!$A$1:$BT$1,0),0) -> 0 | BQ42: =VLOOKUP($AX42&"_"&$BC$14,データシート1!$A:$BT,MATCH($BC$12&"_"&BQ$20,データシート1!$A$1:$BT$1,0),0) -> 0 | BR42: 76 | BT42: 平内町 | BU42: 76 | BV42: 34% | BW42: 30% | BX42: 1% | BY42: 3% | BZ42: 12% | CA42: =BJ42/$BR42 -> 29% | CB42: 24% | CC42: 24% | CD42: 10% | CE42: 14% | CF42: 1% | CG42: 0% | CH42: 0% | CI42: 100% | CK42: 平内町 | CL42: 26 | CM42: 0 | CN42: 23 | CO42: 0 | CP42: 1 | CQ42: 0 | CR42: 2 | CS42: 0 | CT42: 9 | CU42: 0 | CW42: 0 | CX42: =VLOOKUP($AX42&"_"&$CW$14,データシート1!$A:$BT,MATCH($CW$12&"_"&CX$20,データシート1!$A$1:$BT$1,0),0) -> 0 | CY42: =VLOOKUP($AX42&"_"&$CW$14,データシート1!$A:$BT,MATCH($CW$12&"_"&CY$20,データシート1!$A$1:$BT$1,0),0) -> 0 | CZ42: =VLOOKUP($AX42&"_"&$CW$14,データシート1!$A:$BT,MATCH($CW$12&"_"&CZ$20,データシート1!$A$1:$BT$1,0),0) -> 0 | DA42: =VLOOKUP($AX42&"_"&$CW$14,データシート1!$A:$BT,MATCH($CW$12&"_"&DA$20,データシート1!$A$1:$BT$1,0),0) -> 0 | DB42: =VLOOKUP($AX42&"_"&$CW$14,データシート1!$A:$BT,MATCH($CW$12&"_"&DB$20,データシート1!$A$1:$BT$1,0),0) -> 0 | DC42: =VLOOKUP($AX42&"_"&$CW$14,データシート1!$A:$BT,MATCH($CW$12&"_"&DC$20,データシート1!$A$1:$BT$1,0),0) -> 0 | DD42: 0 | DF42: =VLOOKUP($AX42&"_"&$DF$14,データシート1!$A:$BT,MATCH($DF$12&"_"&DF$20,データシート1!$A$1:$BT$1,0),0) -> 0 | DG42: =VLOOKUP($AX42&"_"&$DF$14,データシート1!$A:$BT,MATCH($DF$12&"_"&DG$20,データシート1!$A$1:$BT$1,0),0) -> 0 | DH42: =VLOOKUP($AX42&"_"&$DF$14,データシート1!$A:$BT,MATCH($DF$12&"_"&DH$20,データシート1!$A$1:$BT$1,0),0) -> 0 | DI42: =VLOOKUP($AX42&"_"&$DF$14,データシート1!$A:$BT,MATCH($DF$12&"_"&DI$20,データシート1!$A$1:$BT$1,0),0) -> 0 | DJ42: =VLOOKUP($AX42&"_"&$DF$14,データシート1!$A:$BT,MATCH($DF$12&"_"&DJ$20,データシート1!$A$1:$BT$1,0),0) -> 0 | DK42: =VLOOKUP($AX42&"_"&$DF$14,データシート1!$A:$BT,MATCH($DF$12&"_"&DK$20,データシート1!$A$1:$BT$1,0),0) -> 0 | DL42: 0 | DN42: 0 | DO42: 0 | DP42: 0 | DQ42: 0 | DR42: 0 | DS42: 0
AX43: =比較地域マスタ!$Y28 -> 01453 | AY43: =IF(IFERROR(比較地域マスタ!$Z28,"")=0,"",IFERROR(比較地域マスタ!$Z28,"")) -> 東神楽町 | BB43: 01453 | BC43: 東神楽町 | BD43: 70 | BE43: 19 | BF43: =VLOOKUP($AX43&"_"&$BC$14,データシート1!$A:$BT,MATCH($BC$12&"_"&BF$20,データシート1!$A$1:$BT$1,0),0) -> 9 | BG43: =VLOOKUP($AX43&"_"&$BC$14,データシート1!$A:$BT,MATCH($BC$12&"_"&BG$20,データシート1!$A$1:$BT$1,0),0) -> 1 | BH43: =VLOOKUP($AX43&"_"&$BC$14,データシート1!$A:$BT,MATCH($BC$12&"_"&BH$20,データシート1!$A$1:$BT$1,0),0) -> 10 | BI43: =VLOOKUP($AX43&"_"&$BC$14,データシート1!$A:$BT,MATCH($BC$12&"_"&BI$20,データシート1!$A$1:$BT$1,0),0) -> 13 | BJ43: =VLOOKUP($AX43&"_"&$BC$14,データシート1!$A:$BT,MATCH($BC$12&"_"&BJ$20,データシート1!$A$1:$BT$1,0),0) -> 19 | BK43: 18 | BL43: 17 | BM43: =VLOOKUP($AX43&"_"&$BC$14,データシート1!$A:$BT,MATCH($BC$12&"_"&BM$20,データシート1!$A$1:$BT$1,0),0) -> 10 | BN43: =VLOOKUP($AX43&"_"&$BC$14,データシート1!$A:$BT,MATCH($BC$12&"_"&BN$20,データシート1!$A$1:$BT$1,0),0) -> 8 | BO43: =VLOOKUP($AX43&"_"&$BC$14,データシート1!$A:$BT,MATCH($BC$12&"_"&BO$20,データシート1!$A$1:$BT$1,0),0) -> 1 | BP43: =VLOOKUP($AX43&"_"&$BC$14,データシート1!$A:$BT,MATCH($BC$12&"_"&BP$20,データシート1!$A$1:$BT$1,0),0) -> 0 | BQ43: =VLOOKUP($AX43&"_"&$BC$14,データシート1!$A:$BT,MATCH($BC$12&"_"&BQ$20,データシート1!$A$1:$BT$1,0),0) -> 1 | BR43: 70 | BT43: 東神楽町 | BU43: 70 | BV43: 27% | BW43: 12% | BX43: 1% | BY43: 14% | BZ43: 18% | CA43: 27% | CB43: 26% | CC43: 25% | CD43: 14% | CE43: 11% | CF43: 1% | CG43: 0% | CH43: 2% | CI43: 100% | CK43: 東神楽町 | CL43: 19 | CM43: 0 | CN43: 9 | CO43: 0 | CP43: 1 | CQ43: 0 | CR43: 10 | CS43: 0 | CT43: 13 | CU43: 0 | CW43: 0 | CX43: =VLOOKUP($AX43&"_"&$CW$14,データシート1!$A:$BT,MATCH($CW$12&"_"&CX$20,データシート1!$A$1:$BT$1,0),0) -> 0 | CY43: =VLOOKUP($AX43&"_"&$CW$14,データシート1!$A:$BT,MATCH($CW$12&"_"&CY$20,データシート1!$A$1:$BT$1,0),0) -> 0 | CZ43: =VLOOKUP($AX43&"_"&$CW$14,データシート1!$A:$BT,MATCH($CW$12&"_"&CZ$20,データシート1!$A$1:$BT$1,0),0) -> 0 | DA43: =VLOOKUP($AX43&"_"&$CW$14,データシート1!$A:$BT,MATCH($CW$12&"_"&DA$20,データシート1!$A$1:$BT$1,0),0) -> 0 | DB43: =VLOOKUP($AX43&"_"&$CW$14,データシート1!$A:$BT,MATCH($CW$12&"_"&DB$20,データシート1!$A$1:$BT$1,0),0) -> 0 | DC43: =VLOOKUP($AX43&"_"&$CW$14,データシート1!$A:$BT,MATCH($CW$12&"_"&DC$20,データシート1!$A$1:$BT$1,0),0) -> 0 | DD43: 0 | DF43: =VLOOKUP($AX43&"_"&$DF$14,データシート1!$A:$BT,MATCH($DF$12&"_"&DF$20,データシート1!$A$1:$BT$1,0),0) -> 0 | DG43: =VLOOKUP($AX43&"_"&$DF$14,データシート1!$A:$BT,MATCH($DF$12&"_"&DG$20,データシート1!$A$1:$BT$1,0),0) -> 0 | DH43: =VLOOKUP($AX43&"_"&$DF$14,データシート1!$A:$BT,MATCH($DF$12&"_"&DH$20,データシート1!$A$1:$BT$1,0),0) -> 0 | DI43: =VLOOKUP($AX43&"_"&$DF$14,データシート1!$A:$BT,MATCH($DF$12&"_"&DI$20,データシート1!$A$1:$BT$1,0),0) -> 0 | DJ43: =VLOOKUP($AX43&"_"&$DF$14,データシート1!$A:$BT,MATCH($DF$12&"_"&DJ$20,データシート1!$A$1:$BT$1,0),0) -> 0 | DK43: =VLOOKUP($AX43&"_"&$DF$14,データシート1!$A:$BT,MATCH($DF$12&"_"&DK$20,データシート1!$A$1:$BT$1,0),0) -> 0 | DL43: 0 | DN43: 0 | DO43: 0 | DP43: 0 | DQ43: 0 | DR43: 0 | DS43: 0
AX44: =比較地域マスタ!$Y29 -> 21503 | AY44: =IF(IFERROR(比較地域マスタ!$Z29,"")=0,"",IFERROR(比較地域マスタ!$Z29,"")) -> 川辺町 | BB44: 21503 | BC44: 川辺町 | BD44: 71 | BE44: 30 | BF44: =VLOOKUP($AX44&"_"&$BC$14,データシート1!$A:$BT,MATCH($BC$12&"_"&BF$20,データシート1!$A$1:$BT$1,0),0) -> 28 | BG44: =VLOOKUP($AX44&"_"&$BC$14,データシート1!$A:$BT,MATCH($BC$12&"_"&BG$20,データシート1!$A$1:$BT$1,0),0) -> 1 | BH44: =VLOOKUP($AX44&"_"&$BC$14,データシート1!$A:$BT,MATCH($BC$12&"_"&BH$20,データシート1!$A$1:$BT$1,0),0) -> 2 | BI44: =VLOOKUP($AX44&"_"&$BC$14,データシート1!$A:$BT,MATCH($BC$12&"_"&BI$20,データシート1!$A$1:$BT$1,0),0) -> 8 | BJ44: =VLOOKUP($AX44&"_"&$BC$14,データシート1!$A:$BT,MATCH($BC$12&"_"&BJ$20,データシート1!$A$1:$BT$1,0),0) -> 12 | BK44: 19 | BL44: 18 | BM44: =VLOOKUP($AX44&"_"&$BC$14,データシート1!$A:$BT,MATCH($BC$12&"_"&BM$20,データシート1!$A$1:$BT$1,0),0) -> 9 | BN44: =VLOOKUP($AX44&"_"&$BC$14,データシート1!$A:$BT,MATCH($BC$12&"_"&BN$20,データシート1!$A$1:$BT$1,0),0) -> 9 | BO44: =VLOOKUP($AX44&"_"&$BC$14,データシート1!$A:$BT,MATCH($BC$12&"_"&BO$20,データシート1!$A$1:$BT$1,0),0) -> 1 | BP44: =VLOOKUP($AX44&"_"&$BC$14,データシート1!$A:$BT,MATCH($BC$12&"_"&BP$20,データシート1!$A$1:$BT$1,0),0) -> 0 | BQ44: =VLOOKUP($AX44&"_"&$BC$14,データシート1!$A:$BT,MATCH($BC$12&"_"&BQ$20,データシート1!$A$1:$BT$1,0),0) -> 1 | BR44: 71 | BT44: 川辺町 | BU44: 71 | BV44: 43% | BW44: 40% | BX44: 1% | BY44: 2% | BZ44: 11% | CA44: 17% | CB44: 27% | CC44: 26% | CD44: 13% | CE44: 13% | CF44: 1% | CG44: 0% | CH44: 2% | CI44: 100% | CK44: 川辺町 | CL44: 30 | CM44: (41%) | CN44: 28 | CO44: (45%) | CP44: 1 | CQ44: 0 | CR44: 2 | CS44: 0 | CT44: 8 | CU44: 0 | CW44: 12.577 | CX44: =VLOOKUP($AX44&"_"&$CW$14,データシート1!$A:$BT,MATCH($CW$12&"_"&CX$20,データシート1!$A$1:$BT$1,0),0) -> 12.577 | CY44: =VLOOKUP($AX44&"_"&$CW$14,データシート1!$A:$BT,MATCH($CW$12&"_"&CY$20,データシート1!$A$1:$BT$1,0),0) -> 0 | CZ44: =VLOOKUP($AX44&"_"&$CW$14,データシート1!$A:$BT,MATCH($CW$12&"_"&CZ$20,データシート1!$A$1:$BT$1,0),0) -> 0 | DA44: =VLOOKUP($AX44&"_"&$CW$14,データシート1!$A:$BT,MATCH($CW$12&"_"&DA$20,データシート1!$A$1:$BT$1,0),0) -> 0 | DB44: =VLOOKUP($AX44&"_"&$CW$14,データシート1!$A:$BT,MATCH($CW$12&"_"&DB$20,データシート1!$A$1:$BT$1,0),0) -> 0 | DC44: =VLOOKUP($AX44&"_"&$CW$14,データシート1!$A:$BT,MATCH($CW$12&"_"&DC$20,データシート1!$A$1:$BT$1,0),0) -> 0 | DD44: 12.577 | DF44: =VLOOKUP($AX44&"_"&$DF$14,データシート1!$A:$BT,MATCH($DF$12&"_"&DF$20,データシート1!$A$1:$BT$1,0),0) -> 2 | DG44: =VLOOKUP($AX44&"_"&$DF$14,データシート1!$A:$BT,MATCH($DF$12&"_"&DG$20,データシート1!$A$1:$BT$1,0),0) -> 0 | DH44: =VLOOKUP($AX44&"_"&$DF$14,データシート1!$A:$BT,MATCH($DF$12&"_"&DH$20,データシート1!$A$1:$BT$1,0),0) -> 0 | DI44: =VLOOKUP($AX44&"_"&$DF$14,データシート1!$A:$BT,MATCH($DF$12&"_"&DI$20,データシート1!$A$1:$BT$1,0),0) -> 0 | DJ44: =VLOOKUP($AX44&"_"&$DF$14,データシート1!$A:$BT,MATCH($DF$12&"_"&DJ$20,データシート1!$A$1:$BT$1,0),0) -> 0 | DK44: =VLOOKUP($AX44&"_"&$DF$14,データシート1!$A:$BT,MATCH($DF$12&"_"&DK$20,データシート1!$A$1:$BT$1,0),0) -> 0 | DL44: 2 | DN44: 100.0% | DO44: 0 | DP44: 0 | DQ44: 0 | DR44: 0 | DS44: 0
AX45: =比較地域マスタ!$Y30 -> 41345 | AY45: =IF(IFERROR(比較地域マスタ!$Z30,"")=0,"",IFERROR(比較地域マスタ!$Z30,"")) -> 上峰町 | BB45: 41345 | BC45: 上峰町 | BD45: 74 | BE45: 40 | BF45: =VLOOKUP($AX45&"_"&$BC$14,データシート1!$A:$BT,MATCH($BC$12&"_"&BF$20,データシート1!$A$1:$BT$1,0),0) -> 39 | BG45: =VLOOKUP($AX45&"_"&$BC$14,データシート1!$A:$BT,MATCH($BC$12&"_"&BG$20,データシート1!$A$1:$BT$1,0),0) -> 0 | BH45: =VLOOKUP($AX45&"_"&$BC$14,データシート1!$A:$BT,MATCH($BC$12&"_"&BH$20,データシート1!$A$1:$BT$1,0),0) -> 0 | BI45: =VLOOKUP($AX45&"_"&$BC$14,データシート1!$A:$BT,MATCH($BC$12&"_"&BI$20,データシート1!$A$1:$BT$1,0),0) -> 7 | BJ45: =VLOOKUP($AX45&"_"&$BC$14,データシート1!$A:$BT,MATCH($BC$12&"_"&BJ$20,データシート1!$A$1:$BT$1,0),0) -> 9 | BK45: 17 | BL45: 16 | BM45: =VLOOKUP($AX45&"_"&$BC$14,データシート1!$A:$BT,MATCH($BC$12&"_"&BM$20,データシート1!$A$1:$BT$1,0),0) -> 9 | BN45: =VLOOKUP($AX45&"_"&$BC$14,データシート1!$A:$BT,MATCH($BC$12&"_"&BN$20,データシート1!$A$1:$BT$1,0),0) -> 8 | BO45: =VLOOKUP($AX45&"_"&$BC$14,データシート1!$A:$BT,MATCH($BC$12&"_"&BO$20,データシート1!$A$1:$BT$1,0),0) -> 1 | BP45: =VLOOKUP($AX45&"_"&$BC$14,データシート1!$A:$BT,MATCH($BC$12&"_"&BP$20,データシート1!$A$1:$BT$1,0),0) -> 0 | BQ45: =VLOOKUP($AX45&"_"&$BC$14,データシート1!$A:$BT,MATCH($BC$12&"_"&BQ$20,データシート1!$A$1:$BT$1,0),0) -> 2 | BR45: 74 | BT45: 上峰町 | BU45: 74 | BV45: 53% | BW45: 53% | BX45: 0% | BY45: 0% | BZ45: 10% | CA45: 12% | CB45: 23% | CC45: 22% | CD45: 12% | CE45: 10% | CF45: 1% | CG45: 0% | CH45: 2% | CI45: 100% | CK45: 上峰町 | CL45: 40 | CM45: (100%) | CN45: 39 | CO45: (100%) | CP45: 0 | CQ45: 0 | CR45: 0 | CS45: 0 | CT45: 7 | CU45: 0 | CW45: 90.593 | CX45: =VLOOKUP($AX45&"_"&$CW$14,データシート1!$A:$BT,MATCH($CW$12&"_"&CX$20,データシート1!$A$1:$BT$1,0),0) -> 90.593 | CY45: =VLOOKUP($AX45&"_"&$CW$14,データシート1!$A:$BT,MATCH($CW$12&"_"&CY$20,データシート1!$A$1:$BT$1,0),0) -> 0 | CZ45: =VLOOKUP($AX45&"_"&$CW$14,データシート1!$A:$BT,MATCH($CW$12&"_"&CZ$20,データシート1!$A$1:$BT$1,0),0) -> 0 | DA45: =VLOOKUP($AX45&"_"&$CW$14,データシート1!$A:$BT,MATCH($CW$12&"_"&DA$20,データシート1!$A$1:$BT$1,0),0) -> 0 | DB45: =VLOOKUP($AX45&"_"&$CW$14,データシート1!$A:$BT,MATCH($CW$12&"_"&DB$20,データシート1!$A$1:$BT$1,0),0) -> 0 | DC45: =VLOOKUP($AX45&"_"&$CW$14,データシート1!$A:$BT,MATCH($CW$12&"_"&DC$20,データシート1!$A$1:$BT$1,0),0) -> 0 | DD45: 90.593 | DF45: =VLOOKUP($AX45&"_"&$DF$14,データシート1!$A:$BT,MATCH($DF$12&"_"&DF$20,データシート1!$A$1:$BT$1,0),0) -> 3 | DG45: =VLOOKUP($AX45&"_"&$DF$14,データシート1!$A:$BT,MATCH($DF$12&"_"&DG$20,データシート1!$A$1:$BT$1,0),0) -> 0 | DH45: =VLOOKUP($AX45&"_"&$DF$14,データシート1!$A:$BT,MATCH($DF$12&"_"&DH$20,データシート1!$A$1:$BT$1,0),0) -> 0 | DI45: =VLOOKUP($AX45&"_"&$DF$14,データシート1!$A:$BT,MATCH($DF$12&"_"&DI$20,データシート1!$A$1:$BT$1,0),0) -> 0 | DJ45: =VLOOKUP($AX45&"_"&$DF$14,データシート1!$A:$BT,MATCH($DF$12&"_"&DJ$20,データシート1!$A$1:$BT$1,0),0) -> 0 | DK45: =VLOOKUP($AX45&"_"&$DF$14,データシート1!$A:$BT,MATCH($DF$12&"_"&DK$20,データシート1!$A$1:$BT$1,0),0) -> 0 | DL45: 3 | DN45: 100.0% | DO45: 0 | DP45: 0 | DQ45: 0 | DR45: 0 | DS45: 0
AX46: =比較地域マスタ!$Y31 -> 19424 | AY46: =IF(IFERROR(比較地域マスタ!$Z31,"")=0,"",IFERROR(比較地域マスタ!$Z31,"")) -> 忍野村 | BB46: 19424 | BC46: 忍野村 | BD46: 214 | BE46: 173 | BF46: =VLOOKUP($AX46&"_"&$BC$14,データシート1!$A:$BT,MATCH($BC$12&"_"&BF$20,データシート1!$A$1:$BT$1,0),0) -> 171 | BG46: =VLOOKUP($AX46&"_"&$BC$14,データシート1!$A:$BT,MATCH($BC$12&"_"&BG$20,データシート1!$A$1:$BT$1,0),0) -> 1 | BH46: =VLOOKUP($AX46&"_"&$BC$14,データシート1!$A:$BT,MATCH($BC$12&"_"&BH$20,データシート1!$A$1:$BT$1,0),0) -> 0 | BI46: =VLOOKUP($AX46&"_"&$BC$14,データシート1!$A:$BT,MATCH($BC$12&"_"&BI$20,データシート1!$A$1:$BT$1,0),0) -> 10 | BJ46: =VLOOKUP($AX46&"_"&$BC$14,データシート1!$A:$BT,MATCH($BC$12&"_"&BJ$20,データシート1!$A$1:$BT$1,0),0) -> 12 | BK46: 19 | BL46: 19 | BM46: =VLOOKUP($AX46&"_"&$BC$14,データシート1!$A:$BT,MATCH($BC$12&"_"&BM$20,データシート1!$A$1:$BT$1,0),0) -> 10 | BN46: =VLOOKUP($AX46&"_"&$BC$14,データシート1!$A:$BT,MATCH($BC$12&"_"&BN$20,データシート1!$A$1:$BT$1,0),0) -> 9 | BO46: =VLOOKUP($AX46&"_"&$BC$14,データシート1!$A:$BT,MATCH($BC$12&"_"&BO$20,データシート1!$A$1:$BT$1,0),0) -> 1 | BP46: =VLOOKUP($AX46&"_"&$BC$14,データシート1!$A:$BT,MATCH($BC$12&"_"&BP$20,データシート1!$A$1:$BT$1,0),0) -> 0 | BQ46: =VLOOKUP($AX46&"_"&$BC$14,データシート1!$A:$BT,MATCH($BC$12&"_"&BQ$20,データシート1!$A$1:$BT$1,0),0) -> 0 | BR46: 214 | BT46: 忍野村 | BU46: 214 | BV46: 81% | BW46: 80% | BX46: 1% | BY46: 0% | BZ46: 5% | CA46: 5% | CB46: 9% | CC46: 9% | CD46: 5% | CE46: 4% | CF46: 0% | CG46: 0% | CH46: 0% | CI46: 100% | CK46: 忍野村 | CL46: 173 | CM46: (54%) | CN46: 171 | CO46: (54%) | CP46: 1 | CQ46: 0 | CR46: 0 | CS46: 0 | CT46: 10 | CU46: 0 | CW46: 92.89 | CX46: =VLOOKUP($AX46&"_"&$CW$14,データシート1!$A:$BT,MATCH($CW$12&"_"&CX$20,データシート1!$A$1:$BT$1,0),0) -> 92.89 | CY46: =VLOOKUP($AX46&"_"&$CW$14,データシート1!$A:$BT,MATCH($CW$12&"_"&CY$20,データシート1!$A$1:$BT$1,0),0) -> 0 | CZ46: =VLOOKUP($AX46&"_"&$CW$14,データシート1!$A:$BT,MATCH($CW$12&"_"&CZ$20,データシート1!$A$1:$BT$1,0),0) -> 0 | DA46: =VLOOKUP($AX46&"_"&$CW$14,データシート1!$A:$BT,MATCH($CW$12&"_"&DA$20,データシート1!$A$1:$BT$1,0),0) -> 0 | DB46: =VLOOKUP($AX46&"_"&$CW$14,データシート1!$A:$BT,MATCH($CW$12&"_"&DB$20,データシート1!$A$1:$BT$1,0),0) -> 0 | DC46: =VLOOKUP($AX46&"_"&$CW$14,データシート1!$A:$BT,MATCH($CW$12&"_"&DC$20,データシート1!$A$1:$BT$1,0),0) -> 0 | DD46: 92.89 | DF46: =VLOOKUP($AX46&"_"&$DF$14,データシート1!$A:$BT,MATCH($DF$12&"_"&DF$20,データシート1!$A$1:$BT$1,0),0) -> 1 | DG46: =VLOOKUP($AX46&"_"&$DF$14,データシート1!$A:$BT,MATCH($DF$12&"_"&DG$20,データシート1!$A$1:$BT$1,0),0) -> 0 | DH46: =VLOOKUP($AX46&"_"&$DF$14,データシート1!$A:$BT,MATCH($DF$12&"_"&DH$20,データシート1!$A$1:$BT$1,0),0) -> 0 | DI46: =VLOOKUP($AX46&"_"&$DF$14,データシート1!$A:$BT,MATCH($DF$12&"_"&DI$20,データシート1!$A$1:$BT$1,0),0) -> 0 | DJ46: =VLOOKUP($AX46&"_"&$DF$14,データシート1!$A:$BT,MATCH($DF$12&"_"&DJ$20,データシート1!$A$1:$BT$1,0),0) -> 0 | DK46: =VLOOKUP($AX46&"_"&$DF$14,データシート1!$A:$BT,MATCH($DF$12&"_"&DK$20,データシート1!$A$1:$BT$1,0),0) -> 0 | DL46: 1 | DN46: 100.0% | DO46: 0 | DP46: 0 | DQ46: 0 | DR46: 0 | DS46: 0
AX47: =比較地域マスタ!$Y32 -> 02411 | AY47: =IF(IFERROR(比較地域マスタ!$Z32,"")=0,"",IFERROR(比較地域マスタ!$Z32,"")) -> 六ヶ所村 | BB47: 02411 | BC47: 六ヶ所村 | BD47: 576 | BE47: 493 | BF47: =VLOOKUP($AX47&"_"&$BC$14,データシート1!$A:$BT,MATCH($BC$12&"_"&BF$20,データシート1!$A$1:$BT$1,0),0) -> 476 | BG47: =VLOOKUP($AX47&"_"&$BC$14,データシート1!$A:$BT,MATCH($BC$12&"_"&BG$20,データシート1!$A$1:$BT$1,0),0) -> 7 | BH47: =VLOOKUP($AX47&"_"&$BC$14,データシート1!$A:$BT,MATCH($BC$12&"_"&BH$20,データシート1!$A$1:$BT$1,0),0) -> 10 | BI47: =VLOOKUP($AX47&"_"&$BC$14,データシート1!$A:$BT,MATCH($BC$12&"_"&BI$20,データシート1!$A$1:$BT$1,0),0) -> 27 | BJ47: =VLOOKUP($AX47&"_"&$BC$14,データシート1!$A:$BT,MATCH($BC$12&"_"&BJ$20,データシート1!$A$1:$BT$1,0),0) -> 23 | BK47: 31 | BL47: 28 | BM47: =VLOOKUP($AX47&"_"&$BC$14,データシート1!$A:$BT,MATCH($BC$12&"_"&BM$20,データシート1!$A$1:$BT$1,0),0) -> 11 | BN47: =VLOOKUP($AX47&"_"&$BC$14,データシート1!$A:$BT,MATCH($BC$12&"_"&BN$20,データシート1!$A$1:$BT$1,0),0) -> 17 | BO47: =VLOOKUP($AX47&"_"&$BC$14,データシート1!$A:$BT,MATCH($BC$12&"_"&BO$20,データシート1!$A$1:$BT$1,0),0) -> 1 | BP47: =VLOOKUP($AX47&"_"&$BC$14,データシート1!$A:$BT,MATCH($BC$12&"_"&BP$20,データシート1!$A$1:$BT$1,0),0) -> 3 | BQ47: =VLOOKUP($AX47&"_"&$BC$14,データシート1!$A:$BT,MATCH($BC$12&"_"&BQ$20,データシート1!$A$1:$BT$1,0),0) -> 2 | BR47: 576 | BT47: 六ヶ所村 | BU47: 576 | BV47: 86% | BW47: 83% | BX47: 1% | BY47: 2% | BZ47: 5% | CA47: 4% | CB47: 5% | CC47: 5% | CD47: 2% | CE47: 3% | CF47: 0% | CG47: 0% | CH47: 0% | CI47: 100% | CK47: 六ヶ所村 | CL47: 493 | CM47: (41%) | CN47: 476 | CO47: (42%) | CP47: 7 | CQ47: 0 | CR47: 10 | CS47: 0 | CT47: 27 | CU47: (63%) | CW47: 201.535 | CX47: =VLOOKUP($AX47&"_"&$CW$14,データシート1!$A:$BT,MATCH($CW$12&"_"&CX$20,データシート1!$A$1:$BT$1,0),0) -> 201.535 | CY47: =VLOOKUP($AX47&"_"&$CW$14,データシート1!$A:$BT,MATCH($CW$12&"_"&CY$20,データシート1!$A$1:$BT$1,0),0) -> 0 | CZ47: =VLOOKUP($AX47&"_"&$CW$14,データシート1!$A:$BT,MATCH($CW$12&"_"&CZ$20,データシート1!$A$1:$BT$1,0),0) -> 0 | DA47: =VLOOKUP($AX47&"_"&$CW$14,データシート1!$A:$BT,MATCH($CW$12&"_"&DA$20,データシート1!$A$1:$BT$1,0),0) -> 17.087 | DB47: =VLOOKUP($AX47&"_"&$CW$14,データシート1!$A:$BT,MATCH($CW$12&"_"&DB$20,データシート1!$A$1:$BT$1,0),0) -> 0 | DC47: =VLOOKUP($AX47&"_"&$CW$14,データシート1!$A:$BT,MATCH($CW$12&"_"&DC$20,データシート1!$A$1:$BT$1,0),0) -> 0 | DD47: 218.622 | DF47: =VLOOKUP($AX47&"_"&$DF$14,データシート1!$A:$BT,MATCH($DF$12&"_"&DF$20,データシート1!$A$1:$BT$1,0),0) -> 3 | DG47: =VLOOKUP($AX47&"_"&$DF$14,データシート1!$A:$BT,MATCH($DF$12&"_"&DG$20,データシート1!$A$1:$BT$1,0),0) -> 0 | DH47: =VLOOKUP($AX47&"_"&$DF$14,データシート1!$A:$BT,MATCH($DF$12&"_"&DH$20,データシート1!$A$1:$BT$1,0),0) -> 0 | DI47: =VLOOKUP($AX47&"_"&$DF$14,データシート1!$A:$BT,MATCH($DF$12&"_"&DI$20,データシート1!$A$1:$BT$1,0),0) -> 3 | DJ47: =VLOOKUP($AX47&"_"&$DF$14,データシート1!$A:$BT,MATCH($DF$12&"_"&DJ$20,データシート1!$A$1:$BT$1,0),0) -> 0 | DK47: =VLOOKUP($AX47&"_"&$DF$14,データシート1!$A:$BT,MATCH($DF$12&"_"&DK$20,データシート1!$A$1:$BT$1,0),0) -> 0 | DL47: 6 | DN47: 92.0% | DO47: 0 | DP47: 0 | DQ47: 8.0% | DR47: 0 | DS47: 0
AX48: =比較地域マスタ!$Y33 -> 32449 | AY48: =IF(IFERROR(比較地域マスタ!$Z33,"")=0,"",IFERROR(比較地域マスタ!$Z33,"")) -> 邑南町 | BB48: 32449 | BC48: 邑南町 | BD48: 78 | BE48: 21 | BF48: =VLOOKUP($AX48&"_"&$BC$14,データシート1!$A:$BT,MATCH($BC$12&"_"&BF$20,データシート1!$A$1:$BT$1,0),0) -> 9 | BG48: =VLOOKUP($AX48&"_"&$BC$14,データシート1!$A:$BT,MATCH($BC$12&"_"&BG$20,データシート1!$A$1:$BT$1,0),0) -> 1 | BH48: =VLOOKUP($AX48&"_"&$BC$14,データシート1!$A:$BT,MATCH($BC$12&"_"&BH$20,データシート1!$A$1:$BT$1,0),0) -> 11 | BI48: =VLOOKUP($AX48&"_"&$BC$14,データシート1!$A:$BT,MATCH($BC$12&"_"&BI$20,データシート1!$A$1:$BT$1,0),0) -> 16 | BJ48: =VLOOKUP($AX48&"_"&$BC$14,データシート1!$A:$BT,MATCH($BC$12&"_"&BJ$20,データシート1!$A$1:$BT$1,0),0) -> 17 | BK48: 23 | BL48: 22 | BM48: =VLOOKUP($AX48&"_"&$BC$14,データシート1!$A:$BT,MATCH($BC$12&"_"&BM$20,データシート1!$A$1:$BT$1,0),0) -> 8 | BN48: =VLOOKUP($AX48&"_"&$BC$14,データシート1!$A:$BT,MATCH($BC$12&"_"&BN$20,データシート1!$A$1:$BT$1,0),0) -> 15 | BO48: =VLOOKUP($AX48&"_"&$BC$14,データシート1!$A:$BT,MATCH($BC$12&"_"&BO$20,データシート1!$A$1:$BT$1,0),0) -> 1 | BP48: =VLOOKUP($AX48&"_"&$BC$14,データシート1!$A:$BT,MATCH($BC$12&"_"&BP$20,データシート1!$A$1:$BT$1,0),0) -> 0 | BQ48: =VLOOKUP($AX48&"_"&$BC$14,データシート1!$A:$BT,MATCH($BC$12&"_"&BQ$20,データシート1!$A$1:$BT$1,0),0) -> 1 | BR48: 78 | BT48: 邑南町 | BU48: 78 | BV48: 27% | BW48: 11% | BX48: 1% | BY48: 15% | BZ48: 20% | CA48: 22% | CB48: 29% | CC48: 29% | CD48: 10% | CE48: 19% | CF48: 1% | CG48: 0% | CH48: 1% | CI48: 100% | CK48: 邑南町 | CL48: 21 | CM48: 0 | CN48: 9 | CO48: 0 | CP48: 1 | CQ48: 0 | CR48: 11 | CS48: 0 | CT48: 16 | CU48: 0 | CW48: 0 | CX48: =VLOOKUP($AX48&"_"&$CW$14,データシート1!$A:$BT,MATCH($CW$12&"_"&CX$20,データシート1!$A$1:$BT$1,0),0) -> 0 | CY48: =VLOOKUP($AX48&"_"&$CW$14,データシート1!$A:$BT,MATCH($CW$12&"_"&CY$20,データシート1!$A$1:$BT$1,0),0) -> 0 | CZ48: =VLOOKUP($AX48&"_"&$CW$14,データシート1!$A:$BT,MATCH($CW$12&"_"&CZ$20,データシート1!$A$1:$BT$1,0),0) -> 0 | DA48: =VLOOKUP($AX48&"_"&$CW$14,データシート1!$A:$BT,MATCH($CW$12&"_"&DA$20,データシート1!$A$1:$BT$1,0),0) -> 0 | DB48: =VLOOKUP($AX48&"_"&$CW$14,データシート1!$A:$BT,MATCH($CW$12&"_"&DB$20,データシート1!$A$1:$BT$1,0),0) -> 0 | DC48: =VLOOKUP($AX48&"_"&$CW$14,データシート1!$A:$BT,MATCH($CW$12&"_"&DC$20,データシート1!$A$1:$BT$1,0),0) -> 0 | DD48: 0 | DF48: =VLOOKUP($AX48&"_"&$DF$14,データシート1!$A:$BT,MATCH($DF$12&"_"&DF$20,データシート1!$A$1:$BT$1,0),0) -> 0 | DG48: =VLOOKUP($AX48&"_"&$DF$14,データシート1!$A:$BT,MATCH($DF$12&"_"&DG$20,データシート1!$A$1:$BT$1,0),0) -> 0 | DH48: =VLOOKUP($AX48&"_"&$DF$14,データシート1!$A:$BT,MATCH($DF$12&"_"&DH$20,データシート1!$A$1:$BT$1,0),0) -> 0 | DI48: =VLOOKUP($AX48&"_"&$DF$14,データシート1!$A:$BT,MATCH($DF$12&"_"&DI$20,データシート1!$A$1:$BT$1,0),0) -> 0 | DJ48: =VLOOKUP($AX48&"_"&$DF$14,データシート1!$A:$BT,MATCH($DF$12&"_"&DJ$20,データシート1!$A$1:$BT$1,0),0) -> 0 | DK48: =VLOOKUP($AX48&"_"&$DF$14,データシート1!$A:$BT,MATCH($DF$12&"_"&DK$20,データシート1!$A$1:$BT$1,0),0) -> 0 | DL48: 0 | DN48: 0 | DO48: 0 | DP48: 0 | DQ48: 0 | DR48: 0 | DS48: 0
AX49: =比較地域マスタ!$Y34 -> 18481 | AY49: =IF(IFERROR(比較地域マスタ!$Z34,"")=0,"",IFERROR(比較地域マスタ!$Z34,"")) -> 高浜町 | BB49: 18481 | BC49: 高浜町 | BD49: 72 | BE49: 17 | BF49: =VLOOKUP($AX49&"_"&$BC$14,データシート1!$A:$BT,MATCH($BC$12&"_"&BF$20,データシート1!$A$1:$BT$1,0),0) -> 6 | BG49: =VLOOKUP($AX49&"_"&$BC$14,データシート1!$A:$BT,MATCH($BC$12&"_"&BG$20,データシート1!$A$1:$BT$1,0),0) -> 3 | BH49: =VLOOKUP($AX49&"_"&$BC$14,データシート1!$A:$BT,MATCH($BC$12&"_"&BH$20,データシート1!$A$1:$BT$1,0),0) -> 8 | BI49: =VLOOKUP($AX49&"_"&$BC$14,データシート1!$A:$BT,MATCH($BC$12&"_"&BI$20,データシート1!$A$1:$BT$1,0),0) -> 15 | BJ49: =VLOOKUP($AX49&"_"&$BC$14,データシート1!$A:$BT,MATCH($BC$12&"_"&BJ$20,データシート1!$A$1:$BT$1,0),0) -> 20 | BK49: 19 | BL49: 18 | BM49: =VLOOKUP($AX49&"_"&$BC$14,データシート1!$A:$BT,MATCH($BC$12&"_"&BM$20,データシート1!$A$1:$BT$1,0),0) -> 8 | BN49: =VLOOKUP($AX49&"_"&$BC$14,データシート1!$A:$BT,MATCH($BC$12&"_"&BN$20,データシート1!$A$1:$BT$1,0),0) -> 10 | BO49: =VLOOKUP($AX49&"_"&$BC$14,データシート1!$A:$BT,MATCH($BC$12&"_"&BO$20,データシート1!$A$1:$BT$1,0),0) -> 1 | BP49: =VLOOKUP($AX49&"_"&$BC$14,データシート1!$A:$BT,MATCH($BC$12&"_"&BP$20,データシート1!$A$1:$BT$1,0),0) -> 0 | BQ49: =VLOOKUP($AX49&"_"&$BC$14,データシート1!$A:$BT,MATCH($BC$12&"_"&BQ$20,データシート1!$A$1:$BT$1,0),0) -> 0 | BR49: 72 | BT49: 高浜町 | BU49: 72 | BV49: 24% | BW49: 9% | BX49: 4% | BY49: 11% | BZ49: 21% | CA49: 28% | CB49: 27% | CC49: 26% | CD49: 11% | CE49: 14% | CF49: 1% | CG49: 0% | CH49: 0% | CI49: 100% | CK49: 高浜町 | CL49: 17 | CM49: 0 | CN49: 6 | CO49: 0 | CP49: 3 | CQ49: 0 | CR49: 8 | CS49: 0 | CT49: 15 | CU49: 0 | CW49: 0 | CX49: =VLOOKUP($AX49&"_"&$CW$14,データシート1!$A:$BT,MATCH($CW$12&"_"&CX$20,データシート1!$A$1:$BT$1,0),0) -> 0 | CY49: =VLOOKUP($AX49&"_"&$CW$14,データシート1!$A:$BT,MATCH($CW$12&"_"&CY$20,データシート1!$A$1:$BT$1,0),0) -> 0 | CZ49: =VLOOKUP($AX49&"_"&$CW$14,データシート1!$A:$BT,MATCH($CW$12&"_"&CZ$20,データシート1!$A$1:$BT$1,0),0) -> 0 | DA49: =VLOOKUP($AX49&"_"&$CW$14,データシート1!$A:$BT,MATCH($CW$12&"_"&DA$20,データシート1!$A$1:$BT$1,0),0) -> 0 | DB49: =VLOOKUP($AX49&"_"&$CW$14,データシート1!$A:$BT,MATCH($CW$12&"_"&DB$20,データシート1!$A$1:$BT$1,0),0) -> 0.292 | DC49: =VLOOKUP($AX49&"_"&$CW$14,データシート1!$A:$BT,MATCH($CW$12&"_"&DC$20,データシート1!$A$1:$BT$1,0),0) -> 0 | DD49: 0.292 | DF49: =VLOOKUP($AX49&"_"&$DF$14,データシート1!$A:$BT,MATCH($DF$12&"_"&DF$20,データシート1!$A$1:$BT$1,0),0) -> 0 | DG49: =VLOOKUP($AX49&"_"&$DF$14,データシート1!$A:$BT,MATCH($DF$12&"_"&DG$20,データシート1!$A$1:$BT$1,0),0) -> 0 | DH49: =VLOOKUP($AX49&"_"&$DF$14,データシート1!$A:$BT,MATCH($DF$12&"_"&DH$20,データシート1!$A$1:$BT$1,0),0) -> 0 | DI49: =VLOOKUP($AX49&"_"&$DF$14,データシート1!$A:$BT,MATCH($DF$12&"_"&DI$20,データシート1!$A$1:$BT$1,0),0) -> 0 | DJ49: =VLOOKUP($AX49&"_"&$DF$14,データシート1!$A:$BT,MATCH($DF$12&"_"&DJ$20,データシート1!$A$1:$BT$1,0),0) -> 1 | DK49: =VLOOKUP($AX49&"_"&$DF$14,データシート1!$A:$BT,MATCH($DF$12&"_"&DK$20,データシート1!$A$1:$BT$1,0),0) -> 0 | DL49: 1 | DN49: 0 | DO49: 0 | DP49: 0 | DQ49: 0 | DR49: 100.0% | DS49: 0
AX50: =比較地域マスタ!$Y35 -> 0 | AY50: =IF(IFERROR(比較地域マスタ!$Z35,"")=0,"",IFERROR(比較地域マスタ!$Z35,"")) ->  | BB50: 0 | BF50: =VLOOKUP($AX50&"_"&$BC$14,データシート1!$A:$BT,MATCH($BC$12&"_"&BF$20,データシート1!$A$1:$BT$1,0),0) ->  | BG50: =VLOOKUP($AX50&"_"&$BC$14,データシート1!$A:$BT,MATCH($BC$12&"_"&BG$20,データシート1!$A$1:$BT$1,0),0) ->  | BH50: =VLOOKUP($AX50&"_"&$BC$14,データシート1!$A:$BT,MATCH($BC$12&"_"&BH$20,データシート1!$A$1:$BT$1,0),0) ->  | BI50: =VLOOKUP($AX50&"_"&$BC$14,データシート1!$A:$BT,MATCH($BC$12&"_"&BI$20,データシート1!$A$1:$BT$1,0),0) ->  | BJ50: =VLOOKUP($AX50&"_"&$BC$14,データシート1!$A:$BT,MATCH($BC$12&"_"&BJ$20,データシート1!$A$1:$BT$1,0),0) ->  | BM50: =VLOOKUP($AX50&"_"&$BC$14,データシート1!$A:$BT,MATCH($BC$12&"_"&BM$20,データシート1!$A$1:$BT$1,0),0) ->  | BN50: =VLOOKUP($AX50&"_"&$BC$14,データシート1!$A:$BT,MATCH($BC$12&"_"&BN$20,データシート1!$A$1:$BT$1,0),0) ->  | BO50: =VLOOKUP($AX50&"_"&$BC$14,データシート1!$A:$BT,MATCH($BC$12&"_"&BO$20,データシート1!$A$1:$BT$1,0),0) ->  | BP50: =VLOOKUP($AX50&"_"&$BC$14,データシート1!$A:$BT,MATCH($BC$12&"_"&BP$20,データシート1!$A$1:$BT$1,0),0) ->  | BQ50: =VLOOKUP($AX50&"_"&$BC$14,データシート1!$A:$BT,MATCH($BC$12&"_"&BQ$20,データシート1!$A$1:$BT$1,0),0) ->  | CX50: =VLOOKUP($AX50&"_"&$CW$14,データシート1!$A:$BT,MATCH($CW$12&"_"&CX$20,データシート1!$A$1:$BT$1,0),0) ->  | CY50: =VLOOKUP($AX50&"_"&$CW$14,データシート1!$A:$BT,MATCH($CW$12&"_"&CY$20,データシート1!$A$1:$BT$1,0),0) ->  | CZ50: =VLOOKUP($AX50&"_"&$CW$14,データシート1!$A:$BT,MATCH($CW$12&"_"&CZ$20,データシート1!$A$1:$BT$1,0),0) ->  | DA50: =VLOOKUP($AX50&"_"&$CW$14,データシート1!$A:$BT,MATCH($CW$12&"_"&DA$20,データシート1!$A$1:$BT$1,0),0) ->  | DB50: =VLOOKUP($AX50&"_"&$CW$14,データシート1!$A:$BT,MATCH($CW$12&"_"&DB$20,データシート1!$A$1:$BT$1,0),0) ->  | DC50: =VLOOKUP($AX50&"_"&$CW$14,データシート1!$A:$BT,MATCH($CW$12&"_"&DC$20,データシート1!$A$1:$BT$1,0),0) ->  | DF50: =VLOOKUP($AX50&"_"&$DF$14,データシート1!$A:$BT,MATCH($DF$12&"_"&DF$20,データシート1!$A$1:$BT$1,0),0) ->  | DG50: =VLOOKUP($AX50&"_"&$DF$14,データシート1!$A:$BT,MATCH($DF$12&"_"&DG$20,データシート1!$A$1:$BT$1,0),0) ->  | DH50: =VLOOKUP($AX50&"_"&$DF$14,データシート1!$A:$BT,MATCH($DF$12&"_"&DH$20,データシート1!$A$1:$BT$1,0),0) ->  | DI50: =VLOOKUP($AX50&"_"&$DF$14,データシート1!$A:$BT,MATCH($DF$12&"_"&DI$20,データシート1!$A$1:$BT$1,0),0) ->  | DJ50: =VLOOKUP($AX50&"_"&$DF$14,データシート1!$A:$BT,MATCH($DF$12&"_"&DJ$20,データシート1!$A$1:$BT$1,0),0) ->  | DK50: =VLOOKUP($AX50&"_"&$DF$14,データシート1!$A:$BT,MATCH($DF$12&"_"&DK$20,データシート1!$A$1:$BT$1,0),0) -> 
AX51: =比較地域マスタ!$Y36 -> 0 | AY51: =IF(IFERROR(比較地域マスタ!$Z36,"")=0,"",IFERROR(比較地域マスタ!$Z36,"")) ->  | BB51: 0 | BF51: =VLOOKUP($AX51&"_"&$BC$14,データシート1!$A:$BT,MATCH($BC$12&"_"&BF$20,データシート1!$A$1:$BT$1,0),0) ->  | BG51: =VLOOKUP($AX51&"_"&$BC$14,データシート1!$A:$BT,MATCH($BC$12&"_"&BG$20,データシート1!$A$1:$BT$1,0),0) ->  | BH51: =VLOOKUP($AX51&"_"&$BC$14,データシート1!$A:$BT,MATCH($BC$12&"_"&BH$20,データシート1!$A$1:$BT$1,0),0) ->  | BI51: =VLOOKUP($AX51&"_"&$BC$14,データシート1!$A:$BT,MATCH($BC$12&"_"&BI$20,データシート1!$A$1:$BT$1,0),0) ->  | BJ51: =VLOOKUP($AX51&"_"&$BC$14,データシート1!$A:$BT,MATCH($BC$12&"_"&BJ$20,データシート1!$A$1:$BT$1,0),0) ->  | BM51: =VLOOKUP($AX51&"_"&$BC$14,データシート1!$A:$BT,MATCH($BC$12&"_"&BM$20,データシート1!$A$1:$BT$1,0),0) ->  | BN51: =VLOOKUP($AX51&"_"&$BC$14,データシート1!$A:$BT,MATCH($BC$12&"_"&BN$20,データシート1!$A$1:$BT$1,0),0) ->  | BO51: =VLOOKUP($AX51&"_"&$BC$14,データシート1!$A:$BT,MATCH($BC$12&"_"&BO$20,データシート1!$A$1:$BT$1,0),0) ->  | BP51: =VLOOKUP($AX51&"_"&$BC$14,データシート1!$A:$BT,MATCH($BC$12&"_"&BP$20,データシート1!$A$1:$BT$1,0),0) ->  | BQ51: =VLOOKUP($AX51&"_"&$BC$14,データシート1!$A:$BT,MATCH($BC$12&"_"&BQ$20,データシート1!$A$1:$BT$1,0),0) ->  | CX51: =VLOOKUP($AX51&"_"&$CW$14,データシート1!$A:$BT,MATCH($CW$12&"_"&CX$20,データシート1!$A$1:$BT$1,0),0) ->  | CY51: =VLOOKUP($AX51&"_"&$CW$14,データシート1!$A:$BT,MATCH($CW$12&"_"&CY$20,データシート1!$A$1:$BT$1,0),0) ->  | CZ51: =VLOOKUP($AX51&"_"&$CW$14,データシート1!$A:$BT,MATCH($CW$12&"_"&CZ$20,データシート1!$A$1:$BT$1,0),0) ->  | DA51: =VLOOKUP($AX51&"_"&$CW$14,データシート1!$A:$BT,MATCH($CW$12&"_"&DA$20,データシート1!$A$1:$BT$1,0),0) ->  | DB51: =VLOOKUP($AX51&"_"&$CW$14,データシート1!$A:$BT,MATCH($CW$12&"_"&DB$20,データシート1!$A$1:$BT$1,0),0) ->  | DC51: =VLOOKUP($AX51&"_"&$CW$14,データシート1!$A:$BT,MATCH($CW$12&"_"&DC$20,データシート1!$A$1:$BT$1,0),0) ->  | DF51: =VLOOKUP($AX51&"_"&$DF$14,データシート1!$A:$BT,MATCH($DF$12&"_"&DF$20,データシート1!$A$1:$BT$1,0),0) ->  | DG51: =VLOOKUP($AX51&"_"&$DF$14,データシート1!$A:$BT,MATCH($DF$12&"_"&DG$20,データシート1!$A$1:$BT$1,0),0) ->  | DH51: =VLOOKUP($AX51&"_"&$DF$14,データシート1!$A:$BT,MATCH($DF$12&"_"&DH$20,データシート1!$A$1:$BT$1,0),0) ->  | DI51: =VLOOKUP($AX51&"_"&$DF$14,データシート1!$A:$BT,MATCH($DF$12&"_"&DI$20,データシート1!$A$1:$BT$1,0),0) ->  | DJ51: =VLOOKUP($AX51&"_"&$DF$14,データシート1!$A:$BT,MATCH($DF$12&"_"&DJ$20,データシート1!$A$1:$BT$1,0),0) ->  | DK51: =VLOOKUP($AX51&"_"&$DF$14,データシート1!$A:$BT,MATCH($DF$12&"_"&DK$20,データシート1!$A$1:$BT$1,0),0) -> 
AX52: =比較地域マスタ!$Y37 -> 0 | AY52: =IF(IFERROR(比較地域マスタ!$Z37,"")=0,"",IFERROR(比較地域マスタ!$Z37,"")) ->  | BB52: 0 | BF52: =VLOOKUP($AX52&"_"&$BC$14,データシート1!$A:$BT,MATCH($BC$12&"_"&BF$20,データシート1!$A$1:$BT$1,0),0) ->  | BG52: =VLOOKUP($AX52&"_"&$BC$14,データシート1!$A:$BT,MATCH($BC$12&"_"&BG$20,データシート1!$A$1:$BT$1,0),0) ->  | BH52: =VLOOKUP($AX52&"_"&$BC$14,データシート1!$A:$BT,MATCH($BC$12&"_"&BH$20,データシート1!$A$1:$BT$1,0),0) ->  | BI52: =VLOOKUP($AX52&"_"&$BC$14,データシート1!$A:$BT,MATCH($BC$12&"_"&BI$20,データシート1!$A$1:$BT$1,0),0) ->  | BJ52: =VLOOKUP($AX52&"_"&$BC$14,データシート1!$A:$BT,MATCH($BC$12&"_"&BJ$20,データシート1!$A$1:$BT$1,0),0) ->  | BM52: =VLOOKUP($AX52&"_"&$BC$14,データシート1!$A:$BT,MATCH($BC$12&"_"&BM$20,データシート1!$A$1:$BT$1,0),0) ->  | BN52: =VLOOKUP($AX52&"_"&$BC$14,データシート1!$A:$BT,MATCH($BC$12&"_"&BN$20,データシート1!$A$1:$BT$1,0),0) ->  | BO52: =VLOOKUP($AX52&"_"&$BC$14,データシート1!$A:$BT,MATCH($BC$12&"_"&BO$20,データシート1!$A$1:$BT$1,0),0) ->  | BP52: =VLOOKUP($AX52&"_"&$BC$14,データシート1!$A:$BT,MATCH($BC$12&"_"&BP$20,データシート1!$A$1:$BT$1,0),0) ->  | BQ52: =VLOOKUP($AX52&"_"&$BC$14,データシート1!$A:$BT,MATCH($BC$12&"_"&BQ$20,データシート1!$A$1:$BT$1,0),0) ->  | CX52: =VLOOKUP($AX52&"_"&$CW$14,データシート1!$A:$BT,MATCH($CW$12&"_"&CX$20,データシート1!$A$1:$BT$1,0),0) ->  | CY52: =VLOOKUP($AX52&"_"&$CW$14,データシート1!$A:$BT,MATCH($CW$12&"_"&CY$20,データシート1!$A$1:$BT$1,0),0) ->  | CZ52: =VLOOKUP($AX52&"_"&$CW$14,データシート1!$A:$BT,MATCH($CW$12&"_"&CZ$20,データシート1!$A$1:$BT$1,0),0) ->  | DA52: =VLOOKUP($AX52&"_"&$CW$14,データシート1!$A:$BT,MATCH($CW$12&"_"&DA$20,データシート1!$A$1:$BT$1,0),0) ->  | DB52: =VLOOKUP($AX52&"_"&$CW$14,データシート1!$A:$BT,MATCH($CW$12&"_"&DB$20,データシート1!$A$1:$BT$1,0),0) ->  | DC52: =VLOOKUP($AX52&"_"&$CW$14,データシート1!$A:$BT,MATCH($CW$12&"_"&DC$20,データシート1!$A$1:$BT$1,0),0) ->  | DF52: =VLOOKUP($AX52&"_"&$DF$14,データシート1!$A:$BT,MATCH($DF$12&"_"&DF$20,データシート1!$A$1:$BT$1,0),0) ->  | DG52: =VLOOKUP($AX52&"_"&$DF$14,データシート1!$A:$BT,MATCH($DF$12&"_"&DG$20,データシート1!$A$1:$BT$1,0),0) ->  | DH52: =VLOOKUP($AX52&"_"&$DF$14,データシート1!$A:$BT,MATCH($DF$12&"_"&DH$20,データシート1!$A$1:$BT$1,0),0) ->  | DI52: =VLOOKUP($AX52&"_"&$DF$14,データシート1!$A:$BT,MATCH($DF$12&"_"&DI$20,データシート1!$A$1:$BT$1,0),0) ->  | DJ52: =VLOOKUP($AX52&"_"&$DF$14,データシート1!$A:$BT,MATCH($DF$12&"_"&DJ$20,データシート1!$A$1:$BT$1,0),0) ->  | DK52: =VLOOKUP($AX52&"_"&$DF$14,データシート1!$A:$BT,MATCH($DF$12&"_"&DK$20,データシート1!$A$1:$BT$1,0),0) -> 
AX53: =比較地域マスタ!$Y38 -> 0 | AY53: =IF(IFERROR(比較地域マスタ!$Z38,"")=0,"",IFERROR(比較地域マスタ!$Z38,"")) ->  | BB53: 0 | BF53: =VLOOKUP($AX53&"_"&$BC$14,データシート1!$A:$BT,MATCH($BC$12&"_"&BF$20,データシート1!$A$1:$BT$1,0),0) ->  | BG53: =VLOOKUP($AX53&"_"&$BC$14,データシート1!$A:$BT,MATCH($BC$12&"_"&BG$20,データシート1!$A$1:$BT$1,0),0) ->  | BH53: =VLOOKUP($AX53&"_"&$BC$14,データシート1!$A:$BT,MATCH($BC$12&"_"&BH$20,データシート1!$A$1:$BT$1,0),0) ->  | BI53: =VLOOKUP($AX53&"_"&$BC$14,データシート1!$A:$BT,MATCH($BC$12&"_"&BI$20,データシート1!$A$1:$BT$1,0),0) ->  | BJ53: =VLOOKUP($AX53&"_"&$BC$14,データシート1!$A:$BT,MATCH($BC$12&"_"&BJ$20,データシート1!$A$1:$BT$1,0),0) ->  | BM53: =VLOOKUP($AX53&"_"&$BC$14,データシート1!$A:$BT,MATCH($BC$12&"_"&BM$20,データシート1!$A$1:$BT$1,0),0) ->  | BN53: =VLOOKUP($AX53&"_"&$BC$14,データシート1!$A:$BT,MATCH($BC$12&"_"&BN$20,データシート1!$A$1:$BT$1,0),0) ->  | BO53: =VLOOKUP($AX53&"_"&$BC$14,データシート1!$A:$BT,MATCH($BC$12&"_"&BO$20,データシート1!$A$1:$BT$1,0),0) ->  | BP53: =VLOOKUP($AX53&"_"&$BC$14,データシート1!$A:$BT,MATCH($BC$12&"_"&BP$20,データシート1!$A$1:$BT$1,0),0) ->  | BQ53: =VLOOKUP($AX53&"_"&$BC$14,データシート1!$A:$BT,MATCH($BC$12&"_"&BQ$20,データシート1!$A$1:$BT$1,0),0) ->  | CX53: =VLOOKUP($AX53&"_"&$CW$14,データシート1!$A:$BT,MATCH($CW$12&"_"&CX$20,データシート1!$A$1:$BT$1,0),0) ->  | CY53: =VLOOKUP($AX53&"_"&$CW$14,データシート1!$A:$BT,MATCH($CW$12&"_"&CY$20,データシート1!$A$1:$BT$1,0),0) ->  | CZ53: =VLOOKUP($AX53&"_"&$CW$14,データシート1!$A:$BT,MATCH($CW$12&"_"&CZ$20,データシート1!$A$1:$BT$1,0),0) ->  | DA53: =VLOOKUP($AX53&"_"&$CW$14,データシート1!$A:$BT,MATCH($CW$12&"_"&DA$20,データシート1!$A$1:$BT$1,0),0) ->  | DB53: =VLOOKUP($AX53&"_"&$CW$14,データシート1!$A:$BT,MATCH($CW$12&"_"&DB$20,データシート1!$A$1:$BT$1,0),0) ->  | DC53: =VLOOKUP($AX53&"_"&$CW$14,データシート1!$A:$BT,MATCH($CW$12&"_"&DC$20,データシート1!$A$1:$BT$1,0),0) ->  | DF53: =VLOOKUP($AX53&"_"&$DF$14,データシート1!$A:$BT,MATCH($DF$12&"_"&DF$20,データシート1!$A$1:$BT$1,0),0) ->  | DG53: =VLOOKUP($AX53&"_"&$DF$14,データシート1!$A:$BT,MATCH($DF$12&"_"&DG$20,データシート1!$A$1:$BT$1,0),0) ->  | DH53: =VLOOKUP($AX53&"_"&$DF$14,データシート1!$A:$BT,MATCH($DF$12&"_"&DH$20,データシート1!$A$1:$BT$1,0),0) ->  | DI53: =VLOOKUP($AX53&"_"&$DF$14,データシート1!$A:$BT,MATCH($DF$12&"_"&DI$20,データシート1!$A$1:$BT$1,0),0) ->  | DJ53: =VLOOKUP($AX53&"_"&$DF$14,データシート1!$A:$BT,MATCH($DF$12&"_"&DJ$20,データシート1!$A$1:$BT$1,0),0) ->  | DK53: =VLOOKUP($AX53&"_"&$DF$14,データシート1!$A:$BT,MATCH($DF$12&"_"&DK$20,データシート1!$A$1:$BT$1,0),0) -> 
AX54: =比較地域マスタ!$Y39 -> 0 | AY54: =IF(IFERROR(比較地域マスタ!$Z39,"")=0,"",IFERROR(比較地域マスタ!$Z39,"")) ->  | BB54: 0 | BF54: =VLOOKUP($AX54&"_"&$BC$14,データシート1!$A:$BT,MATCH($BC$12&"_"&BF$20,データシート1!$A$1:$BT$1,0),0) ->  | BG54: =VLOOKUP($AX54&"_"&$BC$14,データシート1!$A:$BT,MATCH($BC$12&"_"&BG$20,データシート1!$A$1:$BT$1,0),0) ->  | BH54: =VLOOKUP($AX54&"_"&$BC$14,データシート1!$A:$BT,MATCH($BC$12&"_"&BH$20,データシート1!$A$1:$BT$1,0),0) ->  | BI54: =VLOOKUP($AX54&"_"&$BC$14,データシート1!$A:$BT,MATCH($BC$12&"_"&BI$20,データシート1!$A$1:$BT$1,0),0) ->  | BJ54: =VLOOKUP($AX54&"_"&$BC$14,データシート1!$A:$BT,MATCH($BC$12&"_"&BJ$20,データシート1!$A$1:$BT$1,0),0) ->  | BM54: =VLOOKUP($AX54&"_"&$BC$14,データシート1!$A:$BT,MATCH($BC$12&"_"&BM$20,データシート1!$A$1:$BT$1,0),0) ->  | BN54: =VLOOKUP($AX54&"_"&$BC$14,データシート1!$A:$BT,MATCH($BC$12&"_"&BN$20,データシート1!$A$1:$BT$1,0),0) ->  | BO54: =VLOOKUP($AX54&"_"&$BC$14,データシート1!$A:$BT,MATCH($BC$12&"_"&BO$20,データシート1!$A$1:$BT$1,0),0) ->  | BP54: =VLOOKUP($AX54&"_"&$BC$14,データシート1!$A:$BT,MATCH($BC$12&"_"&BP$20,データシート1!$A$1:$BT$1,0),0) ->  | BQ54: =VLOOKUP($AX54&"_"&$BC$14,データシート1!$A:$BT,MATCH($BC$12&"_"&BQ$20,データシート1!$A$1:$BT$1,0),0) ->  | CX54: =VLOOKUP($AX54&"_"&$CW$14,データシート1!$A:$BT,MATCH($CW$12&"_"&CX$20,データシート1!$A$1:$BT$1,0),0) ->  | CY54: =VLOOKUP($AX54&"_"&$CW$14,データシート1!$A:$BT,MATCH($CW$12&"_"&CY$20,データシート1!$A$1:$BT$1,0),0) ->  | CZ54: =VLOOKUP($AX54&"_"&$CW$14,データシート1!$A:$BT,MATCH($CW$12&"_"&CZ$20,データシート1!$A$1:$BT$1,0),0) ->  | DA54: =VLOOKUP($AX54&"_"&$CW$14,データシート1!$A:$BT,MATCH($CW$12&"_"&DA$20,データシート1!$A$1:$BT$1,0),0) ->  | DB54: =VLOOKUP($AX54&"_"&$CW$14,データシート1!$A:$BT,MATCH($CW$12&"_"&DB$20,データシート1!$A$1:$BT$1,0),0) ->  | DC54: =VLOOKUP($AX54&"_"&$CW$14,データシート1!$A:$BT,MATCH($CW$12&"_"&DC$20,データシート1!$A$1:$BT$1,0),0) ->  | DF54: =VLOOKUP($AX54&"_"&$DF$14,データシート1!$A:$BT,MATCH($DF$12&"_"&DF$20,データシート1!$A$1:$BT$1,0),0) ->  | DG54: =VLOOKUP($AX54&"_"&$DF$14,データシート1!$A:$BT,MATCH($DF$12&"_"&DG$20,データシート1!$A$1:$BT$1,0),0) ->  | DH54: =VLOOKUP($AX54&"_"&$DF$14,データシート1!$A:$BT,MATCH($DF$12&"_"&DH$20,データシート1!$A$1:$BT$1,0),0) ->  | DI54: =VLOOKUP($AX54&"_"&$DF$14,データシート1!$A:$BT,MATCH($DF$12&"_"&DI$20,データシート1!$A$1:$BT$1,0),0) ->  | DJ54: =VLOOKUP($AX54&"_"&$DF$14,データシート1!$A:$BT,MATCH($DF$12&"_"&DJ$20,データシート1!$A$1:$BT$1,0),0) ->  | DK54: =VLOOKUP($AX54&"_"&$DF$14,データシート1!$A:$BT,MATCH($DF$12&"_"&DK$20,データシート1!$A$1:$BT$1,0),0) -> 
AX55: =比較地域マスタ!$Y40 -> 0 | AY55: =IF(IFERROR(比較地域マスタ!$Z40,"")=0,"",IFERROR(比較地域マスタ!$Z40,"")) ->  | BB55: 0 | BF55: =VLOOKUP($AX55&"_"&$BC$14,データシート1!$A:$BT,MATCH($BC$12&"_"&BF$20,データシート1!$A$1:$BT$1,0),0) ->  | BG55: =VLOOKUP($AX55&"_"&$BC$14,データシート1!$A:$BT,MATCH($BC$12&"_"&BG$20,データシート1!$A$1:$BT$1,0),0) ->  | BH55: =VLOOKUP($AX55&"_"&$BC$14,データシート1!$A:$BT,MATCH($BC$12&"_"&BH$20,データシート1!$A$1:$BT$1,0),0) ->  | BI55: =VLOOKUP($AX55&"_"&$BC$14,データシート1!$A:$BT,MATCH($BC$12&"_"&BI$20,データシート1!$A$1:$BT$1,0),0) ->  | BJ55: =VLOOKUP($AX55&"_"&$BC$14,データシート1!$A:$BT,MATCH($BC$12&"_"&BJ$20,データシート1!$A$1:$BT$1,0),0) ->  | BM55: =VLOOKUP($AX55&"_"&$BC$14,データシート1!$A:$BT,MATCH($BC$12&"_"&BM$20,データシート1!$A$1:$BT$1,0),0) ->  | BN55: =VLOOKUP($AX55&"_"&$BC$14,データシート1!$A:$BT,MATCH($BC$12&"_"&BN$20,データシート1!$A$1:$BT$1,0),0) ->  | BO55: =VLOOKUP($AX55&"_"&$BC$14,データシート1!$A:$BT,MATCH($BC$12&"_"&BO$20,データシート1!$A$1:$BT$1,0),0) ->  | BP55: =VLOOKUP($AX55&"_"&$BC$14,データシート1!$A:$BT,MATCH($BC$12&"_"&BP$20,データシート1!$A$1:$BT$1,0),0) ->  | BQ55: =VLOOKUP($AX55&"_"&$BC$14,データシート1!$A:$BT,MATCH($BC$12&"_"&BQ$20,データシート1!$A$1:$BT$1,0),0) ->  | CX55: =VLOOKUP($AX55&"_"&$CW$14,データシート1!$A:$BT,MATCH($CW$12&"_"&CX$20,データシート1!$A$1:$BT$1,0),0) ->  | CY55: =VLOOKUP($AX55&"_"&$CW$14,データシート1!$A:$BT,MATCH($CW$12&"_"&CY$20,データシート1!$A$1:$BT$1,0),0) ->  | CZ55: =VLOOKUP($AX55&"_"&$CW$14,データシート1!$A:$BT,MATCH($CW$12&"_"&CZ$20,データシート1!$A$1:$BT$1,0),0) ->  | DA55: =VLOOKUP($AX55&"_"&$CW$14,データシート1!$A:$BT,MATCH($CW$12&"_"&DA$20,データシート1!$A$1:$BT$1,0),0) ->  | DB55: =VLOOKUP($AX55&"_"&$CW$14,データシート1!$A:$BT,MATCH($CW$12&"_"&DB$20,データシート1!$A$1:$BT$1,0),0) ->  | DC55: =VLOOKUP($AX55&"_"&$CW$14,データシート1!$A:$BT,MATCH($CW$12&"_"&DC$20,データシート1!$A$1:$BT$1,0),0) ->  | DF55: =VLOOKUP($AX55&"_"&$DF$14,データシート1!$A:$BT,MATCH($DF$12&"_"&DF$20,データシート1!$A$1:$BT$1,0),0) ->  | DG55: =VLOOKUP($AX55&"_"&$DF$14,データシート1!$A:$BT,MATCH($DF$12&"_"&DG$20,データシート1!$A$1:$BT$1,0),0) ->  | DH55: =VLOOKUP($AX55&"_"&$DF$14,データシート1!$A:$BT,MATCH($DF$12&"_"&DH$20,データシート1!$A$1:$BT$1,0),0) ->  | DI55: =VLOOKUP($AX55&"_"&$DF$14,データシート1!$A:$BT,MATCH($DF$12&"_"&DI$20,データシート1!$A$1:$BT$1,0),0) ->  | DJ55: =VLOOKUP($AX55&"_"&$DF$14,データシート1!$A:$BT,MATCH($DF$12&"_"&DJ$20,データシート1!$A$1:$BT$1,0),0) ->  | DK55: =VLOOKUP($AX55&"_"&$DF$14,データシート1!$A:$BT,MATCH($DF$12&"_"&DK$20,データシート1!$A$1:$BT$1,0),0) -> 
AX56: =比較地域マスタ!$Y41 -> 0 | AY56: =IF(IFERROR(比較地域マスタ!$Z41,"")=0,"",IFERROR(比較地域マスタ!$Z41,"")) ->  | BB56: 0 | BF56: =VLOOKUP($AX56&"_"&$BC$14,データシート1!$A:$BT,MATCH($BC$12&"_"&BF$20,データシート1!$A$1:$BT$1,0),0) ->  | BG56: =VLOOKUP($AX56&"_"&$BC$14,データシート1!$A:$BT,MATCH($BC$12&"_"&BG$20,データシート1!$A$1:$BT$1,0),0) ->  | BH56: =VLOOKUP($AX56&"_"&$BC$14,データシート1!$A:$BT,MATCH($BC$12&"_"&BH$20,データシート1!$A$1:$BT$1,0),0) ->  | BI56: =VLOOKUP($AX56&"_"&$BC$14,データシート1!$A:$BT,MATCH($BC$12&"_"&BI$20,データシート1!$A$1:$BT$1,0),0) ->  | BJ56: =VLOOKUP($AX56&"_"&$BC$14,データシート1!$A:$BT,MATCH($BC$12&"_"&BJ$20,データシート1!$A$1:$BT$1,0),0) ->  | BM56: =VLOOKUP($AX56&"_"&$BC$14,データシート1!$A:$BT,MATCH($BC$12&"_"&BM$20,データシート1!$A$1:$BT$1,0),0) ->  | BN56: =VLOOKUP($AX56&"_"&$BC$14,データシート1!$A:$BT,MATCH($BC$12&"_"&BN$20,データシート1!$A$1:$BT$1,0),0) ->  | BO56: =VLOOKUP($AX56&"_"&$BC$14,データシート1!$A:$BT,MATCH($BC$12&"_"&BO$20,データシート1!$A$1:$BT$1,0),0) ->  | BP56: =VLOOKUP($AX56&"_"&$BC$14,データシート1!$A:$BT,MATCH($BC$12&"_"&BP$20,データシート1!$A$1:$BT$1,0),0) ->  | BQ56: =VLOOKUP($AX56&"_"&$BC$14,データシート1!$A:$BT,MATCH($BC$12&"_"&BQ$20,データシート1!$A$1:$BT$1,0),0) ->  | CX56: =VLOOKUP($AX56&"_"&$CW$14,データシート1!$A:$BT,MATCH($CW$12&"_"&CX$20,データシート1!$A$1:$BT$1,0),0) ->  | CY56: =VLOOKUP($AX56&"_"&$CW$14,データシート1!$A:$BT,MATCH($CW$12&"_"&CY$20,データシート1!$A$1:$BT$1,0),0) ->  | CZ56: =VLOOKUP($AX56&"_"&$CW$14,データシート1!$A:$BT,MATCH($CW$12&"_"&CZ$20,データシート1!$A$1:$BT$1,0),0) ->  | DA56: =VLOOKUP($AX56&"_"&$CW$14,データシート1!$A:$BT,MATCH($CW$12&"_"&DA$20,データシート1!$A$1:$BT$1,0),0) ->  | DB56: =VLOOKUP($AX56&"_"&$CW$14,データシート1!$A:$BT,MATCH($CW$12&"_"&DB$20,データシート1!$A$1:$BT$1,0),0) ->  | DC56: =VLOOKUP($AX56&"_"&$CW$14,データシート1!$A:$BT,MATCH($CW$12&"_"&DC$20,データシート1!$A$1:$BT$1,0),0) ->  | DF56: =VLOOKUP($AX56&"_"&$DF$14,データシート1!$A:$BT,MATCH($DF$12&"_"&DF$20,データシート1!$A$1:$BT$1,0),0) ->  | DG56: =VLOOKUP($AX56&"_"&$DF$14,データシート1!$A:$BT,MATCH($DF$12&"_"&DG$20,データシート1!$A$1:$BT$1,0),0) ->  | DH56: =VLOOKUP($AX56&"_"&$DF$14,データシート1!$A:$BT,MATCH($DF$12&"_"&DH$20,データシート1!$A$1:$BT$1,0),0) ->  | DI56: =VLOOKUP($AX56&"_"&$DF$14,データシート1!$A:$BT,MATCH($DF$12&"_"&DI$20,データシート1!$A$1:$BT$1,0),0) ->  | DJ56: =VLOOKUP($AX56&"_"&$DF$14,データシート1!$A:$BT,MATCH($DF$12&"_"&DJ$20,データシート1!$A$1:$BT$1,0),0) ->  | DK56: =VLOOKUP($AX56&"_"&$DF$14,データシート1!$A:$BT,MATCH($DF$12&"_"&DK$20,データシート1!$A$1:$BT$1,0),0) -> 
AX57: =比較地域マスタ!$Y42 -> 0 | AY57: =IF(IFERROR(比較地域マスタ!$Z42,"")=0,"",IFERROR(比較地域マスタ!$Z42,"")) ->  | BB57: 0 | BF57: =VLOOKUP($AX57&"_"&$BC$14,データシート1!$A:$BT,MATCH($BC$12&"_"&BF$20,データシート1!$A$1:$BT$1,0),0) ->  | BG57: =VLOOKUP($AX57&"_"&$BC$14,データシート1!$A:$BT,MATCH($BC$12&"_"&BG$20,データシート1!$A$1:$BT$1,0),0) ->  | BH57: =VLOOKUP($AX57&"_"&$BC$14,データシート1!$A:$BT,MATCH($BC$12&"_"&BH$20,データシート1!$A$1:$BT$1,0),0) ->  | BI57: =VLOOKUP($AX57&"_"&$BC$14,データシート1!$A:$BT,MATCH($BC$12&"_"&BI$20,データシート1!$A$1:$BT$1,0),0) ->  | BJ57: =VLOOKUP($AX57&"_"&$BC$14,データシート1!$A:$BT,MATCH($BC$12&"_"&BJ$20,データシート1!$A$1:$BT$1,0),0) ->  | BM57: =VLOOKUP($AX57&"_"&$BC$14,データシート1!$A:$BT,MATCH($BC$12&"_"&BM$20,データシート1!$A$1:$BT$1,0),0) ->  | BN57: =VLOOKUP($AX57&"_"&$BC$14,データシート1!$A:$BT,MATCH($BC$12&"_"&BN$20,データシート1!$A$1:$BT$1,0),0) ->  | BO57: =VLOOKUP($AX57&"_"&$BC$14,データシート1!$A:$BT,MATCH($BC$12&"_"&BO$20,データシート1!$A$1:$BT$1,0),0) ->  | BP57: =VLOOKUP($AX57&"_"&$BC$14,データシート1!$A:$BT,MATCH($BC$12&"_"&BP$20,データシート1!$A$1:$BT$1,0),0) ->  | BQ57: =VLOOKUP($AX57&"_"&$BC$14,データシート1!$A:$BT,MATCH($BC$12&"_"&BQ$20,データシート1!$A$1:$BT$1,0),0) ->  | CX57: =VLOOKUP($AX57&"_"&$CW$14,データシート1!$A:$BT,MATCH($CW$12&"_"&CX$20,データシート1!$A$1:$BT$1,0),0) ->  | CY57: =VLOOKUP($AX57&"_"&$CW$14,データシート1!$A:$BT,MATCH($CW$12&"_"&CY$20,データシート1!$A$1:$BT$1,0),0) ->  | CZ57: =VLOOKUP($AX57&"_"&$CW$14,データシート1!$A:$BT,MATCH($CW$12&"_"&CZ$20,データシート1!$A$1:$BT$1,0),0) ->  | DA57: =VLOOKUP($AX57&"_"&$CW$14,データシート1!$A:$BT,MATCH($CW$12&"_"&DA$20,データシート1!$A$1:$BT$1,0),0) ->  | DB57: =VLOOKUP($AX57&"_"&$CW$14,データシート1!$A:$BT,MATCH($CW$12&"_"&DB$20,データシート1!$A$1:$BT$1,0),0) ->  | DC57: =VLOOKUP($AX57&"_"&$CW$14,データシート1!$A:$BT,MATCH($CW$12&"_"&DC$20,データシート1!$A$1:$BT$1,0),0) ->  | DF57: =VLOOKUP($AX57&"_"&$DF$14,データシート1!$A:$BT,MATCH($DF$12&"_"&DF$20,データシート1!$A$1:$BT$1,0),0) ->  | DG57: =VLOOKUP($AX57&"_"&$DF$14,データシート1!$A:$BT,MATCH($DF$12&"_"&DG$20,データシート1!$A$1:$BT$1,0),0) ->  | DH57: =VLOOKUP($AX57&"_"&$DF$14,データシート1!$A:$BT,MATCH($DF$12&"_"&DH$20,データシート1!$A$1:$BT$1,0),0) ->  | DI57: =VLOOKUP($AX57&"_"&$DF$14,データシート1!$A:$BT,MATCH($DF$12&"_"&DI$20,データシート1!$A$1:$BT$1,0),0) ->  | DJ57: =VLOOKUP($AX57&"_"&$DF$14,データシート1!$A:$BT,MATCH($DF$12&"_"&DJ$20,データシート1!$A$1:$BT$1,0),0) ->  | DK57: =VLOOKUP($AX57&"_"&$DF$14,データシート1!$A:$BT,MATCH($DF$12&"_"&DK$20,データシート1!$A$1:$BT$1,0),0) -> 
AX58: =比較地域マスタ!$Y43 -> 0 | AY58: =IF(IFERROR(比較地域マスタ!$Z43,"")=0,"",IFERROR(比較地域マスタ!$Z43,"")) ->  | BB58: 0 | BF58: =VLOOKUP($AX58&"_"&$BC$14,データシート1!$A:$BT,MATCH($BC$12&"_"&BF$20,データシート1!$A$1:$BT$1,0),0) ->  | BG58: =VLOOKUP($AX58&"_"&$BC$14,データシート1!$A:$BT,MATCH($BC$12&"_"&BG$20,データシート1!$A$1:$BT$1,0),0) ->  | BH58: =VLOOKUP($AX58&"_"&$BC$14,データシート1!$A:$BT,MATCH($BC$12&"_"&BH$20,データシート1!$A$1:$BT$1,0),0) ->  | BI58: =VLOOKUP($AX58&"_"&$BC$14,データシート1!$A:$BT,MATCH($BC$12&"_"&BI$20,データシート1!$A$1:$BT$1,0),0) ->  | BJ58: =VLOOKUP($AX58&"_"&$BC$14,データシート1!$A:$BT,MATCH($BC$12&"_"&BJ$20,データシート1!$A$1:$BT$1,0),0) ->  | BM58: =VLOOKUP($AX58&"_"&$BC$14,データシート1!$A:$BT,MATCH($BC$12&"_"&BM$20,データシート1!$A$1:$BT$1,0),0) ->  | BN58: =VLOOKUP($AX58&"_"&$BC$14,データシート1!$A:$BT,MATCH($BC$12&"_"&BN$20,データシート1!$A$1:$BT$1,0),0) ->  | BO58: =VLOOKUP($AX58&"_"&$BC$14,データシート1!$A:$BT,MATCH($BC$12&"_"&BO$20,データシート1!$A$1:$BT$1,0),0) ->  | BP58: =VLOOKUP($AX58&"_"&$BC$14,データシート1!$A:$BT,MATCH($BC$12&"_"&BP$20,データシート1!$A$1:$BT$1,0),0) ->  | BQ58: =VLOOKUP($AX58&"_"&$BC$14,データシート1!$A:$BT,MATCH($BC$12&"_"&BQ$20,データシート1!$A$1:$BT$1,0),0) ->  | CX58: =VLOOKUP($AX58&"_"&$CW$14,データシート1!$A:$BT,MATCH($CW$12&"_"&CX$20,データシート1!$A$1:$BT$1,0),0) ->  | CY58: =VLOOKUP($AX58&"_"&$CW$14,データシート1!$A:$BT,MATCH($CW$12&"_"&CY$20,データシート1!$A$1:$BT$1,0),0) ->  | CZ58: =VLOOKUP($AX58&"_"&$CW$14,データシート1!$A:$BT,MATCH($CW$12&"_"&CZ$20,データシート1!$A$1:$BT$1,0),0) ->  | DA58: =VLOOKUP($AX58&"_"&$CW$14,データシート1!$A:$BT,MATCH($CW$12&"_"&DA$20,データシート1!$A$1:$BT$1,0),0) ->  | DB58: =VLOOKUP($AX58&"_"&$CW$14,データシート1!$A:$BT,MATCH($CW$12&"_"&DB$20,データシート1!$A$1:$BT$1,0),0) ->  | DC58: =VLOOKUP($AX58&"_"&$CW$14,データシート1!$A:$BT,MATCH($CW$12&"_"&DC$20,データシート1!$A$1:$BT$1,0),0) ->  | DF58: =VLOOKUP($AX58&"_"&$DF$14,データシート1!$A:$BT,MATCH($DF$12&"_"&DF$20,データシート1!$A$1:$BT$1,0),0) ->  | DG58: =VLOOKUP($AX58&"_"&$DF$14,データシート1!$A:$BT,MATCH($DF$12&"_"&DG$20,データシート1!$A$1:$BT$1,0),0) ->  | DH58: =VLOOKUP($AX58&"_"&$DF$14,データシート1!$A:$BT,MATCH($DF$12&"_"&DH$20,データシート1!$A$1:$BT$1,0),0) ->  | DI58: =VLOOKUP($AX58&"_"&$DF$14,データシート1!$A:$BT,MATCH($DF$12&"_"&DI$20,データシート1!$A$1:$BT$1,0),0) ->  | DJ58: =VLOOKUP($AX58&"_"&$DF$14,データシート1!$A:$BT,MATCH($DF$12&"_"&DJ$20,データシート1!$A$1:$BT$1,0),0) ->  | DK58: =VLOOKUP($AX58&"_"&$DF$14,データシート1!$A:$BT,MATCH($DF$12&"_"&DK$20,データシート1!$A$1:$BT$1,0),0) -> 
AX59: =比較地域マスタ!$Y44 -> 0 | AY59: =IF(IFERROR(比較地域マスタ!$Z44,"")=0,"",IFERROR(比較地域マスタ!$Z44,"")) ->  | BB59: 0 | BF59: =VLOOKUP($AX59&"_"&$BC$14,データシート1!$A:$BT,MATCH($BC$12&"_"&BF$20,データシート1!$A$1:$BT$1,0),0) ->  | BG59: =VLOOKUP($AX59&"_"&$BC$14,データシート1!$A:$BT,MATCH($BC$12&"_"&BG$20,データシート1!$A$1:$BT$1,0),0) ->  | BH59: =VLOOKUP($AX59&"_"&$BC$14,データシート1!$A:$BT,MATCH($BC$12&"_"&BH$20,データシート1!$A$1:$BT$1,0),0) ->  | BI59: =VLOOKUP($AX59&"_"&$BC$14,データシート1!$A:$BT,MATCH($BC$12&"_"&BI$20,データシート1!$A$1:$BT$1,0),0) ->  | BJ59: =VLOOKUP($AX59&"_"&$BC$14,データシート1!$A:$BT,MATCH($BC$12&"_"&BJ$20,データシート1!$A$1:$BT$1,0),0) ->  | BM59: =VLOOKUP($AX59&"_"&$BC$14,データシート1!$A:$BT,MATCH($BC$12&"_"&BM$20,データシート1!$A$1:$BT$1,0),0) ->  | BN59: =VLOOKUP($AX59&"_"&$BC$14,データシート1!$A:$BT,MATCH($BC$12&"_"&BN$20,データシート1!$A$1:$BT$1,0),0) ->  | BO59: =VLOOKUP($AX59&"_"&$BC$14,データシート1!$A:$BT,MATCH($BC$12&"_"&BO$20,データシート1!$A$1:$BT$1,0),0) ->  | BP59: =VLOOKUP($AX59&"_"&$BC$14,データシート1!$A:$BT,MATCH($BC$12&"_"&BP$20,データシート1!$A$1:$BT$1,0),0) ->  | BQ59: =VLOOKUP($AX59&"_"&$BC$14,データシート1!$A:$BT,MATCH($BC$12&"_"&BQ$20,データシート1!$A$1:$BT$1,0),0) ->  | CX59: =VLOOKUP($AX59&"_"&$CW$14,データシート1!$A:$BT,MATCH($CW$12&"_"&CX$20,データシート1!$A$1:$BT$1,0),0) ->  | CY59: =VLOOKUP($AX59&"_"&$CW$14,データシート1!$A:$BT,MATCH($CW$12&"_"&CY$20,データシート1!$A$1:$BT$1,0),0) ->  | CZ59: =VLOOKUP($AX59&"_"&$CW$14,データシート1!$A:$BT,MATCH($CW$12&"_"&CZ$20,データシート1!$A$1:$BT$1,0),0) ->  | DA59: =VLOOKUP($AX59&"_"&$CW$14,データシート1!$A:$BT,MATCH($CW$12&"_"&DA$20,データシート1!$A$1:$BT$1,0),0) ->  | DB59: =VLOOKUP($AX59&"_"&$CW$14,データシート1!$A:$BT,MATCH($CW$12&"_"&DB$20,データシート1!$A$1:$BT$1,0),0) ->  | DC59: =VLOOKUP($AX59&"_"&$CW$14,データシート1!$A:$BT,MATCH($CW$12&"_"&DC$20,データシート1!$A$1:$BT$1,0),0) ->  | DF59: =VLOOKUP($AX59&"_"&$DF$14,データシート1!$A:$BT,MATCH($DF$12&"_"&DF$20,データシート1!$A$1:$BT$1,0),0) ->  | DG59: =VLOOKUP($AX59&"_"&$DF$14,データシート1!$A:$BT,MATCH($DF$12&"_"&DG$20,データシート1!$A$1:$BT$1,0),0) ->  | DH59: =VLOOKUP($AX59&"_"&$DF$14,データシート1!$A:$BT,MATCH($DF$12&"_"&DH$20,データシート1!$A$1:$BT$1,0),0) ->  | DI59: =VLOOKUP($AX59&"_"&$DF$14,データシート1!$A:$BT,MATCH($DF$12&"_"&DI$20,データシート1!$A$1:$BT$1,0),0) ->  | DJ59: =VLOOKUP($AX59&"_"&$DF$14,データシート1!$A:$BT,MATCH($DF$12&"_"&DJ$20,データシート1!$A$1:$BT$1,0),0) ->  | DK59: =VLOOKUP($AX59&"_"&$DF$14,データシート1!$A:$BT,MATCH($DF$12&"_"&DK$20,データシート1!$A$1:$BT$1,0),0) -> 
AX60: =比較地域マスタ!$Y45 -> 0 | AY60: =IF(IFERROR(比較地域マスタ!$Z45,"")=0,"",IFERROR(比較地域マスタ!$Z45,"")) ->  | BB60: 0 | BF60: =VLOOKUP($AX60&"_"&$BC$14,データシート1!$A:$BT,MATCH($BC$12&"_"&BF$20,データシート1!$A$1:$BT$1,0),0) ->  | BG60: =VLOOKUP($AX60&"_"&$BC$14,データシート1!$A:$BT,MATCH($BC$12&"_"&BG$20,データシート1!$A$1:$BT$1,0),0) ->  | BH60: =VLOOKUP($AX60&"_"&$BC$14,データシート1!$A:$BT,MATCH($BC$12&"_"&BH$20,データシート1!$A$1:$BT$1,0),0) ->  | BI60: =VLOOKUP($AX60&"_"&$BC$14,データシート1!$A:$BT,MATCH($BC$12&"_"&BI$20,データシート1!$A$1:$BT$1,0),0) ->  | BJ60: =VLOOKUP($AX60&"_"&$BC$14,データシート1!$A:$BT,MATCH($BC$12&"_"&BJ$20,データシート1!$A$1:$BT$1,0),0) ->  | BM60: =VLOOKUP($AX60&"_"&$BC$14,データシート1!$A:$BT,MATCH($BC$12&"_"&BM$20,データシート1!$A$1:$BT$1,0),0) ->  | BN60: =VLOOKUP($AX60&"_"&$BC$14,データシート1!$A:$BT,MATCH($BC$12&"_"&BN$20,データシート1!$A$1:$BT$1,0),0) ->  | BO60: =VLOOKUP($AX60&"_"&$BC$14,データシート1!$A:$BT,MATCH($BC$12&"_"&BO$20,データシート1!$A$1:$BT$1,0),0) ->  | BP60: =VLOOKUP($AX60&"_"&$BC$14,データシート1!$A:$BT,MATCH($BC$12&"_"&BP$20,データシート1!$A$1:$BT$1,0),0) ->  | BQ60: =VLOOKUP($AX60&"_"&$BC$14,データシート1!$A:$BT,MATCH($BC$12&"_"&BQ$20,データシート1!$A$1:$BT$1,0),0) ->  | CX60: =VLOOKUP($AX60&"_"&$CW$14,データシート1!$A:$BT,MATCH($CW$12&"_"&CX$20,データシート1!$A$1:$BT$1,0),0) ->  | CY60: =VLOOKUP($AX60&"_"&$CW$14,データシート1!$A:$BT,MATCH($CW$12&"_"&CY$20,データシート1!$A$1:$BT$1,0),0) ->  | CZ60: =VLOOKUP($AX60&"_"&$CW$14,データシート1!$A:$BT,MATCH($CW$12&"_"&CZ$20,データシート1!$A$1:$BT$1,0),0) ->  | DA60: =VLOOKUP($AX60&"_"&$CW$14,データシート1!$A:$BT,MATCH($CW$12&"_"&DA$20,データシート1!$A$1:$BT$1,0),0) ->  | DB60: =VLOOKUP($AX60&"_"&$CW$14,データシート1!$A:$BT,MATCH($CW$12&"_"&DB$20,データシート1!$A$1:$BT$1,0),0) ->  | DC60: =VLOOKUP($AX60&"_"&$CW$14,データシート1!$A:$BT,MATCH($CW$12&"_"&DC$20,データシート1!$A$1:$BT$1,0),0) ->  | DF60: =VLOOKUP($AX60&"_"&$DF$14,データシート1!$A:$BT,MATCH($DF$12&"_"&DF$20,データシート1!$A$1:$BT$1,0),0) ->  | DG60: =VLOOKUP($AX60&"_"&$DF$14,データシート1!$A:$BT,MATCH($DF$12&"_"&DG$20,データシート1!$A$1:$BT$1,0),0) ->  | DH60: =VLOOKUP($AX60&"_"&$DF$14,データシート1!$A:$BT,MATCH($DF$12&"_"&DH$20,データシート1!$A$1:$BT$1,0),0) ->  | DI60: =VLOOKUP($AX60&"_"&$DF$14,データシート1!$A:$BT,MATCH($DF$12&"_"&DI$20,データシート1!$A$1:$BT$1,0),0) ->  | DJ60: =VLOOKUP($AX60&"_"&$DF$14,データシート1!$A:$BT,MATCH($DF$12&"_"&DJ$20,データシート1!$A$1:$BT$1,0),0) ->  | DK60: =VLOOKUP($AX60&"_"&$DF$14,データシート1!$A:$BT,MATCH($DF$12&"_"&DK$20,データシート1!$A$1:$BT$1,0),0) -> 
AX61: =比較地域マスタ!$Y46 -> 0 | AY61: =IF(IFERROR(比較地域マスタ!$Z46,"")=0,"",IFERROR(比較地域マスタ!$Z46,"")) ->  | BB61: 0 | BF61: =VLOOKUP($AX61&"_"&$BC$14,データシート1!$A:$BT,MATCH($BC$12&"_"&BF$20,データシート1!$A$1:$BT$1,0),0) ->  | BG61: =VLOOKUP($AX61&"_"&$BC$14,データシート1!$A:$BT,MATCH($BC$12&"_"&BG$20,データシート1!$A$1:$BT$1,0),0) ->  | BH61: =VLOOKUP($AX61&"_"&$BC$14,データシート1!$A:$BT,MATCH($BC$12&"_"&BH$20,データシート1!$A$1:$BT$1,0),0) ->  | BI61: =VLOOKUP($AX61&"_"&$BC$14,データシート1!$A:$BT,MATCH($BC$12&"_"&BI$20,データシート1!$A$1:$BT$1,0),0) ->  | BJ61: =VLOOKUP($AX61&"_"&$BC$14,データシート1!$A:$BT,MATCH($BC$12&"_"&BJ$20,データシート1!$A$1:$BT$1,0),0) ->  | BM61: =VLOOKUP($AX61&"_"&$BC$14,データシート1!$A:$BT,MATCH($BC$12&"_"&BM$20,データシート1!$A$1:$BT$1,0),0) ->  | BN61: =VLOOKUP($AX61&"_"&$BC$14,データシート1!$A:$BT,MATCH($BC$12&"_"&BN$20,データシート1!$A$1:$BT$1,0),0) ->  | BO61: =VLOOKUP($AX61&"_"&$BC$14,データシート1!$A:$BT,MATCH($BC$12&"_"&BO$20,データシート1!$A$1:$BT$1,0),0) ->  | BP61: =VLOOKUP($AX61&"_"&$BC$14,データシート1!$A:$BT,MATCH($BC$12&"_"&BP$20,データシート1!$A$1:$BT$1,0),0) ->  | BQ61: =VLOOKUP($AX61&"_"&$BC$14,データシート1!$A:$BT,MATCH($BC$12&"_"&BQ$20,データシート1!$A$1:$BT$1,0),0) ->  | CX61: =VLOOKUP($AX61&"_"&$CW$14,データシート1!$A:$BT,MATCH($CW$12&"_"&CX$20,データシート1!$A$1:$BT$1,0),0) ->  | CY61: =VLOOKUP($AX61&"_"&$CW$14,データシート1!$A:$BT,MATCH($CW$12&"_"&CY$20,データシート1!$A$1:$BT$1,0),0) ->  | CZ61: =VLOOKUP($AX61&"_"&$CW$14,データシート1!$A:$BT,MATCH($CW$12&"_"&CZ$20,データシート1!$A$1:$BT$1,0),0) ->  | DA61: =VLOOKUP($AX61&"_"&$CW$14,データシート1!$A:$BT,MATCH($CW$12&"_"&DA$20,データシート1!$A$1:$BT$1,0),0) ->  | DB61: =VLOOKUP($AX61&"_"&$CW$14,データシート1!$A:$BT,MATCH($CW$12&"_"&DB$20,データシート1!$A$1:$BT$1,0),0) ->  | DC61: =VLOOKUP($AX61&"_"&$CW$14,データシート1!$A:$BT,MATCH($CW$12&"_"&DC$20,データシート1!$A$1:$BT$1,0),0) ->  | DF61: =VLOOKUP($AX61&"_"&$DF$14,データシート1!$A:$BT,MATCH($DF$12&"_"&DF$20,データシート1!$A$1:$BT$1,0),0) ->  | DG61: =VLOOKUP($AX61&"_"&$DF$14,データシート1!$A:$BT,MATCH($DF$12&"_"&DG$20,データシート1!$A$1:$BT$1,0),0) ->  | DH61: =VLOOKUP($AX61&"_"&$DF$14,データシート1!$A:$BT,MATCH($DF$12&"_"&DH$20,データシート1!$A$1:$BT$1,0),0) ->  | DI61: =VLOOKUP($AX61&"_"&$DF$14,データシート1!$A:$BT,MATCH($DF$12&"_"&DI$20,データシート1!$A$1:$BT$1,0),0) ->  | DJ61: =VLOOKUP($AX61&"_"&$DF$14,データシート1!$A:$BT,MATCH($DF$12&"_"&DJ$20,データシート1!$A$1:$BT$1,0),0) ->  | DK61: =VLOOKUP($AX61&"_"&$DF$14,データシート1!$A:$BT,MATCH($DF$12&"_"&DK$20,データシート1!$A$1:$BT$1,0),0) -> 
AX62: =比較地域マスタ!$Y47 -> 0 | AY62: =IF(IFERROR(比較地域マスタ!$Z47,"")=0,"",IFERROR(比較地域マスタ!$Z47,"")) ->  | BB62: 0 | BF62: =VLOOKUP($AX62&"_"&$BC$14,データシート1!$A:$BT,MATCH($BC$12&"_"&BF$20,データシート1!$A$1:$BT$1,0),0) ->  | BG62: =VLOOKUP($AX62&"_"&$BC$14,データシート1!$A:$BT,MATCH($BC$12&"_"&BG$20,データシート1!$A$1:$BT$1,0),0) ->  | BH62: =VLOOKUP($AX62&"_"&$BC$14,データシート1!$A:$BT,MATCH($BC$12&"_"&BH$20,データシート1!$A$1:$BT$1,0),0) ->  | BI62: =VLOOKUP($AX62&"_"&$BC$14,データシート1!$A:$BT,MATCH($BC$12&"_"&BI$20,データシート1!$A$1:$BT$1,0),0) ->  | BJ62: =VLOOKUP($AX62&"_"&$BC$14,データシート1!$A:$BT,MATCH($BC$12&"_"&BJ$20,データシート1!$A$1:$BT$1,0),0) ->  | BM62: =VLOOKUP($AX62&"_"&$BC$14,データシート1!$A:$BT,MATCH($BC$12&"_"&BM$20,データシート1!$A$1:$BT$1,0),0) ->  | BN62: =VLOOKUP($AX62&"_"&$BC$14,データシート1!$A:$BT,MATCH($BC$12&"_"&BN$20,データシート1!$A$1:$BT$1,0),0) ->  | BO62: =VLOOKUP($AX62&"_"&$BC$14,データシート1!$A:$BT,MATCH($BC$12&"_"&BO$20,データシート1!$A$1:$BT$1,0),0) ->  | BP62: =VLOOKUP($AX62&"_"&$BC$14,データシート1!$A:$BT,MATCH($BC$12&"_"&BP$20,データシート1!$A$1:$BT$1,0),0) ->  | BQ62: =VLOOKUP($AX62&"_"&$BC$14,データシート1!$A:$BT,MATCH($BC$12&"_"&BQ$20,データシート1!$A$1:$BT$1,0),0) ->  | CX62: =VLOOKUP($AX62&"_"&$CW$14,データシート1!$A:$BT,MATCH($CW$12&"_"&CX$20,データシート1!$A$1:$BT$1,0),0) ->  | CY62: =VLOOKUP($AX62&"_"&$CW$14,データシート1!$A:$BT,MATCH($CW$12&"_"&CY$20,データシート1!$A$1:$BT$1,0),0) ->  | CZ62: =VLOOKUP($AX62&"_"&$CW$14,データシート1!$A:$BT,MATCH($CW$12&"_"&CZ$20,データシート1!$A$1:$BT$1,0),0) ->  | DA62: =VLOOKUP($AX62&"_"&$CW$14,データシート1!$A:$BT,MATCH($CW$12&"_"&DA$20,データシート1!$A$1:$BT$1,0),0) ->  | DB62: =VLOOKUP($AX62&"_"&$CW$14,データシート1!$A:$BT,MATCH($CW$12&"_"&DB$20,データシート1!$A$1:$BT$1,0),0) ->  | DC62: =VLOOKUP($AX62&"_"&$CW$14,データシート1!$A:$BT,MATCH($CW$12&"_"&DC$20,データシート1!$A$1:$BT$1,0),0) ->  | DF62: =VLOOKUP($AX62&"_"&$DF$14,データシート1!$A:$BT,MATCH($DF$12&"_"&DF$20,データシート1!$A$1:$BT$1,0),0) ->  | DG62: =VLOOKUP($AX62&"_"&$DF$14,データシート1!$A:$BT,MATCH($DF$12&"_"&DG$20,データシート1!$A$1:$BT$1,0),0) ->  | DH62: =VLOOKUP($AX62&"_"&$DF$14,データシート1!$A:$BT,MATCH($DF$12&"_"&DH$20,データシート1!$A$1:$BT$1,0),0) ->  | DI62: =VLOOKUP($AX62&"_"&$DF$14,データシート1!$A:$BT,MATCH($DF$12&"_"&DI$20,データシート1!$A$1:$BT$1,0),0) ->  | DJ62: =VLOOKUP($AX62&"_"&$DF$14,データシート1!$A:$BT,MATCH($DF$12&"_"&DJ$20,データシート1!$A$1:$BT$1,0),0) ->  | DK62: =VLOOKUP($AX62&"_"&$DF$14,データシート1!$A:$BT,MATCH($DF$12&"_"&DK$20,データシート1!$A$1:$BT$1,0),0) -> 
AX63: =比較地域マスタ!$Y48 -> 0 | AY63: =IF(IFERROR(比較地域マスタ!$Z48,"")=0,"",IFERROR(比較地域マスタ!$Z48,"")) ->  | BB63: 0 | BF63: =VLOOKUP($AX63&"_"&$BC$14,データシート1!$A:$BT,MATCH($BC$12&"_"&BF$20,データシート1!$A$1:$BT$1,0),0) ->  | BG63: =VLOOKUP($AX63&"_"&$BC$14,データシート1!$A:$BT,MATCH($BC$12&"_"&BG$20,データシート1!$A$1:$BT$1,0),0) ->  | BH63: =VLOOKUP($AX63&"_"&$BC$14,データシート1!$A:$BT,MATCH($BC$12&"_"&BH$20,データシート1!$A$1:$BT$1,0),0) ->  | BI63: =VLOOKUP($AX63&"_"&$BC$14,データシート1!$A:$BT,MATCH($BC$12&"_"&BI$20,データシート1!$A$1:$BT$1,0),0) ->  | BJ63: =VLOOKUP($AX63&"_"&$BC$14,データシート1!$A:$BT,MATCH($BC$12&"_"&BJ$20,データシート1!$A$1:$BT$1,0),0) ->  | BM63: =VLOOKUP($AX63&"_"&$BC$14,データシート1!$A:$BT,MATCH($BC$12&"_"&BM$20,データシート1!$A$1:$BT$1,0),0) ->  | BN63: =VLOOKUP($AX63&"_"&$BC$14,データシート1!$A:$BT,MATCH($BC$12&"_"&BN$20,データシート1!$A$1:$BT$1,0),0) ->  | BO63: =VLOOKUP($AX63&"_"&$BC$14,データシート1!$A:$BT,MATCH($BC$12&"_"&BO$20,データシート1!$A$1:$BT$1,0),0) ->  | BP63: =VLOOKUP($AX63&"_"&$BC$14,データシート1!$A:$BT,MATCH($BC$12&"_"&BP$20,データシート1!$A$1:$BT$1,0),0) ->  | BQ63: =VLOOKUP($AX63&"_"&$BC$14,データシート1!$A:$BT,MATCH($BC$12&"_"&BQ$20,データシート1!$A$1:$BT$1,0),0) ->  | CX63: =VLOOKUP($AX63&"_"&$CW$14,データシート1!$A:$BT,MATCH($CW$12&"_"&CX$20,データシート1!$A$1:$BT$1,0),0) ->  | CY63: =VLOOKUP($AX63&"_"&$CW$14,データシート1!$A:$BT,MATCH($CW$12&"_"&CY$20,データシート1!$A$1:$BT$1,0),0) ->  | CZ63: =VLOOKUP($AX63&"_"&$CW$14,データシート1!$A:$BT,MATCH($CW$12&"_"&CZ$20,データシート1!$A$1:$BT$1,0),0) ->  | DA63: =VLOOKUP($AX63&"_"&$CW$14,データシート1!$A:$BT,MATCH($CW$12&"_"&DA$20,データシート1!$A$1:$BT$1,0),0) ->  | DB63: =VLOOKUP($AX63&"_"&$CW$14,データシート1!$A:$BT,MATCH($CW$12&"_"&DB$20,データシート1!$A$1:$BT$1,0),0) ->  | DC63: =VLOOKUP($AX63&"_"&$CW$14,データシート1!$A:$BT,MATCH($CW$12&"_"&DC$20,データシート1!$A$1:$BT$1,0),0) ->  | DF63: =VLOOKUP($AX63&"_"&$DF$14,データシート1!$A:$BT,MATCH($DF$12&"_"&DF$20,データシート1!$A$1:$BT$1,0),0) ->  | DG63: =VLOOKUP($AX63&"_"&$DF$14,データシート1!$A:$BT,MATCH($DF$12&"_"&DG$20,データシート1!$A$1:$BT$1,0),0) ->  | DH63: =VLOOKUP($AX63&"_"&$DF$14,データシート1!$A:$BT,MATCH($DF$12&"_"&DH$20,データシート1!$A$1:$BT$1,0),0) ->  | DI63: =VLOOKUP($AX63&"_"&$DF$14,データシート1!$A:$BT,MATCH($DF$12&"_"&DI$20,データシート1!$A$1:$BT$1,0),0) ->  | DJ63: =VLOOKUP($AX63&"_"&$DF$14,データシート1!$A:$BT,MATCH($DF$12&"_"&DJ$20,データシート1!$A$1:$BT$1,0),0) ->  | DK63: =VLOOKUP($AX63&"_"&$DF$14,データシート1!$A:$BT,MATCH($DF$12&"_"&DK$20,データシート1!$A$1:$BT$1,0),0) -> 
AX64: =比較地域マスタ!$Y49 -> 0 | AY64: =IF(IFERROR(比較地域マスタ!$Z49,"")=0,"",IFERROR(比較地域マスタ!$Z49,"")) ->  | BB64: 0 | BF64: =VLOOKUP($AX64&"_"&$BC$14,データシート1!$A:$BT,MATCH($BC$12&"_"&BF$20,データシート1!$A$1:$BT$1,0),0) ->  | BG64: =VLOOKUP($AX64&"_"&$BC$14,データシート1!$A:$BT,MATCH($BC$12&"_"&BG$20,データシート1!$A$1:$BT$1,0),0) ->  | BH64: =VLOOKUP($AX64&"_"&$BC$14,データシート1!$A:$BT,MATCH($BC$12&"_"&BH$20,データシート1!$A$1:$BT$1,0),0) ->  | BI64: =VLOOKUP($AX64&"_"&$BC$14,データシート1!$A:$BT,MATCH($BC$12&"_"&BI$20,データシート1!$A$1:$BT$1,0),0) ->  | BJ64: =VLOOKUP($AX64&"_"&$BC$14,データシート1!$A:$BT,MATCH($BC$12&"_"&BJ$20,データシート1!$A$1:$BT$1,0),0) ->  | BM64: =VLOOKUP($AX64&"_"&$BC$14,データシート1!$A:$BT,MATCH($BC$12&"_"&BM$20,データシート1!$A$1:$BT$1,0),0) ->  | BN64: =VLOOKUP($AX64&"_"&$BC$14,データシート1!$A:$BT,MATCH($BC$12&"_"&BN$20,データシート1!$A$1:$BT$1,0),0) ->  | BO64: =VLOOKUP($AX64&"_"&$BC$14,データシート1!$A:$BT,MATCH($BC$12&"_"&BO$20,データシート1!$A$1:$BT$1,0),0) ->  | BP64: =VLOOKUP($AX64&"_"&$BC$14,データシート1!$A:$BT,MATCH($BC$12&"_"&BP$20,データシート1!$A$1:$BT$1,0),0) ->  | BQ64: =VLOOKUP($AX64&"_"&$BC$14,データシート1!$A:$BT,MATCH($BC$12&"_"&BQ$20,データシート1!$A$1:$BT$1,0),0) ->  | CX64: =VLOOKUP($AX64&"_"&$CW$14,データシート1!$A:$BT,MATCH($CW$12&"_"&CX$20,データシート1!$A$1:$BT$1,0),0) ->  | CY64: =VLOOKUP($AX64&"_"&$CW$14,データシート1!$A:$BT,MATCH($CW$12&"_"&CY$20,データシート1!$A$1:$BT$1,0),0) ->  | CZ64: =VLOOKUP($AX64&"_"&$CW$14,データシート1!$A:$BT,MATCH($CW$12&"_"&CZ$20,データシート1!$A$1:$BT$1,0),0) ->  | DA64: =VLOOKUP($AX64&"_"&$CW$14,データシート1!$A:$BT,MATCH($CW$12&"_"&DA$20,データシート1!$A$1:$BT$1,0),0) ->  | DB64: =VLOOKUP($AX64&"_"&$CW$14,データシート1!$A:$BT,MATCH($CW$12&"_"&DB$20,データシート1!$A$1:$BT$1,0),0) ->  | DC64: =VLOOKUP($AX64&"_"&$CW$14,データシート1!$A:$BT,MATCH($CW$12&"_"&DC$20,データシート1!$A$1:$BT$1,0),0) ->  | DF64: =VLOOKUP($AX64&"_"&$DF$14,データシート1!$A:$BT,MATCH($DF$12&"_"&DF$20,データシート1!$A$1:$BT$1,0),0) ->  | DG64: =VLOOKUP($AX64&"_"&$DF$14,データシート1!$A:$BT,MATCH($DF$12&"_"&DG$20,データシート1!$A$1:$BT$1,0),0) ->  | DH64: =VLOOKUP($AX64&"_"&$DF$14,データシート1!$A:$BT,MATCH($DF$12&"_"&DH$20,データシート1!$A$1:$BT$1,0),0) ->  | DI64: =VLOOKUP($AX64&"_"&$DF$14,データシート1!$A:$BT,MATCH($DF$12&"_"&DI$20,データシート1!$A$1:$BT$1,0),0) ->  | DJ64: =VLOOKUP($AX64&"_"&$DF$14,データシート1!$A:$BT,MATCH($DF$12&"_"&DJ$20,データシート1!$A$1:$BT$1,0),0) ->  | DK64: =VLOOKUP($AX64&"_"&$DF$14,データシート1!$A:$BT,MATCH($DF$12&"_"&DK$20,データシート1!$A$1:$BT$1,0),0) -> 
AX65: =比較地域マスタ!$Y50 -> 0 | AY65: =IF(IFERROR(比較地域マスタ!$Z50,"")=0,"",IFERROR(比較地域マスタ!$Z50,"")) ->  | BB65: 0 | BF65: =VLOOKUP($AX65&"_"&$BC$14,データシート1!$A:$BT,MATCH($BC$12&"_"&BF$20,データシート1!$A$1:$BT$1,0),0) ->  | BG65: =VLOOKUP($AX65&"_"&$BC$14,データシート1!$A:$BT,MATCH($BC$12&"_"&BG$20,データシート1!$A$1:$BT$1,0),0) ->  | BH65: =VLOOKUP($AX65&"_"&$BC$14,データシート1!$A:$BT,MATCH($BC$12&"_"&BH$20,データシート1!$A$1:$BT$1,0),0) ->  | BI65: =VLOOKUP($AX65&"_"&$BC$14,データシート1!$A:$BT,MATCH($BC$12&"_"&BI$20,データシート1!$A$1:$BT$1,0),0) ->  | BJ65: =VLOOKUP($AX65&"_"&$BC$14,データシート1!$A:$BT,MATCH($BC$12&"_"&BJ$20,データシート1!$A$1:$BT$1,0),0) ->  | BM65: =VLOOKUP($AX65&"_"&$BC$14,データシート1!$A:$BT,MATCH($BC$12&"_"&BM$20,データシート1!$A$1:$BT$1,0),0) ->  | BN65: =VLOOKUP($AX65&"_"&$BC$14,データシート1!$A:$BT,MATCH($BC$12&"_"&BN$20,データシート1!$A$1:$BT$1,0),0) ->  | BO65: =VLOOKUP($AX65&"_"&$BC$14,データシート1!$A:$BT,MATCH($BC$12&"_"&BO$20,データシート1!$A$1:$BT$1,0),0) ->  | BP65: =VLOOKUP($AX65&"_"&$BC$14,データシート1!$A:$BT,MATCH($BC$12&"_"&BP$20,データシート1!$A$1:$BT$1,0),0) ->  | BQ65: =VLOOKUP($AX65&"_"&$BC$14,データシート1!$A:$BT,MATCH($BC$12&"_"&BQ$20,データシート1!$A$1:$BT$1,0),0) ->  | CX65: =VLOOKUP($AX65&"_"&$CW$14,データシート1!$A:$BT,MATCH($CW$12&"_"&CX$20,データシート1!$A$1:$BT$1,0),0) ->  | CY65: =VLOOKUP($AX65&"_"&$CW$14,データシート1!$A:$BT,MATCH($CW$12&"_"&CY$20,データシート1!$A$1:$BT$1,0),0) ->  | CZ65: =VLOOKUP($AX65&"_"&$CW$14,データシート1!$A:$BT,MATCH($CW$12&"_"&CZ$20,データシート1!$A$1:$BT$1,0),0) ->  | DA65: =VLOOKUP($AX65&"_"&$CW$14,データシート1!$A:$BT,MATCH($CW$12&"_"&DA$20,データシート1!$A$1:$BT$1,0),0) ->  | DB65: =VLOOKUP($AX65&"_"&$CW$14,データシート1!$A:$BT,MATCH($CW$12&"_"&DB$20,データシート1!$A$1:$BT$1,0),0) ->  | DC65: =VLOOKUP($AX65&"_"&$CW$14,データシート1!$A:$BT,MATCH($CW$12&"_"&DC$20,データシート1!$A$1:$BT$1,0),0) ->  | DF65: =VLOOKUP($AX65&"_"&$DF$14,データシート1!$A:$BT,MATCH($DF$12&"_"&DF$20,データシート1!$A$1:$BT$1,0),0) ->  | DG65: =VLOOKUP($AX65&"_"&$DF$14,データシート1!$A:$BT,MATCH($DF$12&"_"&DG$20,データシート1!$A$1:$BT$1,0),0) ->  | DH65: =VLOOKUP($AX65&"_"&$DF$14,データシート1!$A:$BT,MATCH($DF$12&"_"&DH$20,データシート1!$A$1:$BT$1,0),0) ->  | DI65: =VLOOKUP($AX65&"_"&$DF$14,データシート1!$A:$BT,MATCH($DF$12&"_"&DI$20,データシート1!$A$1:$BT$1,0),0) ->  | DJ65: =VLOOKUP($AX65&"_"&$DF$14,データシート1!$A:$BT,MATCH($DF$12&"_"&DJ$20,データシート1!$A$1:$BT$1,0),0) ->  | DK65: =VLOOKUP($AX65&"_"&$DF$14,データシート1!$A:$BT,MATCH($DF$12&"_"&DK$20,データシート1!$A$1:$BT$1,0),0) -> 
AX66: =比較地域マスタ!$Y51 -> 0 | AY66: =IF(IFERROR(比較地域マスタ!$Z51,"")=0,"",IFERROR(比較地域マスタ!$Z51,"")) ->  | BB66: 0 | BF66: =VLOOKUP($AX66&"_"&$BC$14,データシート1!$A:$BT,MATCH($BC$12&"_"&BF$20,データシート1!$A$1:$BT$1,0),0) ->  | BG66: =VLOOKUP($AX66&"_"&$BC$14,データシート1!$A:$BT,MATCH($BC$12&"_"&BG$20,データシート1!$A$1:$BT$1,0),0) ->  | BH66: =VLOOKUP($AX66&"_"&$BC$14,データシート1!$A:$BT,MATCH($BC$12&"_"&BH$20,データシート1!$A$1:$BT$1,0),0) ->  | BI66: =VLOOKUP($AX66&"_"&$BC$14,データシート1!$A:$BT,MATCH($BC$12&"_"&BI$20,データシート1!$A$1:$BT$1,0),0) ->  | BJ66: =VLOOKUP($AX66&"_"&$BC$14,データシート1!$A:$BT,MATCH($BC$12&"_"&BJ$20,データシート1!$A$1:$BT$1,0),0) ->  | BM66: =VLOOKUP($AX66&"_"&$BC$14,データシート1!$A:$BT,MATCH($BC$12&"_"&BM$20,データシート1!$A$1:$BT$1,0),0) ->  | BN66: =VLOOKUP($AX66&"_"&$BC$14,データシート1!$A:$BT,MATCH($BC$12&"_"&BN$20,データシート1!$A$1:$BT$1,0),0) ->  | BO66: =VLOOKUP($AX66&"_"&$BC$14,データシート1!$A:$BT,MATCH($BC$12&"_"&BO$20,データシート1!$A$1:$BT$1,0),0) ->  | BP66: =VLOOKUP($AX66&"_"&$BC$14,データシート1!$A:$BT,MATCH($BC$12&"_"&BP$20,データシート1!$A$1:$BT$1,0),0) ->  | BQ66: =VLOOKUP($AX66&"_"&$BC$14,データシート1!$A:$BT,MATCH($BC$12&"_"&BQ$20,データシート1!$A$1:$BT$1,0),0) ->  | CX66: =VLOOKUP($AX66&"_"&$CW$14,データシート1!$A:$BT,MATCH($CW$12&"_"&CX$20,データシート1!$A$1:$BT$1,0),0) ->  | CY66: =VLOOKUP($AX66&"_"&$CW$14,データシート1!$A:$BT,MATCH($CW$12&"_"&CY$20,データシート1!$A$1:$BT$1,0),0) ->  | CZ66: =VLOOKUP($AX66&"_"&$CW$14,データシート1!$A:$BT,MATCH($CW$12&"_"&CZ$20,データシート1!$A$1:$BT$1,0),0) ->  | DA66: =VLOOKUP($AX66&"_"&$CW$14,データシート1!$A:$BT,MATCH($CW$12&"_"&DA$20,データシート1!$A$1:$BT$1,0),0) ->  | DB66: =VLOOKUP($AX66&"_"&$CW$14,データシート1!$A:$BT,MATCH($CW$12&"_"&DB$20,データシート1!$A$1:$BT$1,0),0) ->  | DC66: =VLOOKUP($AX66&"_"&$CW$14,データシート1!$A:$BT,MATCH($CW$12&"_"&DC$20,データシート1!$A$1:$BT$1,0),0) ->  | DF66: =VLOOKUP($AX66&"_"&$DF$14,データシート1!$A:$BT,MATCH($DF$12&"_"&DF$20,データシート1!$A$1:$BT$1,0),0) ->  | DG66: =VLOOKUP($AX66&"_"&$DF$14,データシート1!$A:$BT,MATCH($DF$12&"_"&DG$20,データシート1!$A$1:$BT$1,0),0) ->  | DH66: =VLOOKUP($AX66&"_"&$DF$14,データシート1!$A:$BT,MATCH($DF$12&"_"&DH$20,データシート1!$A$1:$BT$1,0),0) ->  | DI66: =VLOOKUP($AX66&"_"&$DF$14,データシート1!$A:$BT,MATCH($DF$12&"_"&DI$20,データシート1!$A$1:$BT$1,0),0) ->  | DJ66: =VLOOKUP($AX66&"_"&$DF$14,データシート1!$A:$BT,MATCH($DF$12&"_"&DJ$20,データシート1!$A$1:$BT$1,0),0) ->  | DK66: =VLOOKUP($AX66&"_"&$DF$14,データシート1!$A:$BT,MATCH($DF$12&"_"&DK$20,データシート1!$A$1:$BT$1,0),0) -> 
AX67: =比較地域マスタ!$Y52 -> 0 | AY67: =IF(IFERROR(比較地域マスタ!$Z52,"")=0,"",IFERROR(比較地域マスタ!$Z52,"")) ->  | BB67: 0 | BF67: =VLOOKUP($AX67&"_"&$BC$14,データシート1!$A:$BT,MATCH($BC$12&"_"&BF$20,データシート1!$A$1:$BT$1,0),0) ->  | BG67: =VLOOKUP($AX67&"_"&$BC$14,データシート1!$A:$BT,MATCH($BC$12&"_"&BG$20,データシート1!$A$1:$BT$1,0),0) ->  | BH67: =VLOOKUP($AX67&"_"&$BC$14,データシート1!$A:$BT,MATCH($BC$12&"_"&BH$20,データシート1!$A$1:$BT$1,0),0) ->  | BI67: =VLOOKUP($AX67&"_"&$BC$14,データシート1!$A:$BT,MATCH($BC$12&"_"&BI$20,データシート1!$A$1:$BT$1,0),0) ->  | BJ67: =VLOOKUP($AX67&"_"&$BC$14,データシート1!$A:$BT,MATCH($BC$12&"_"&BJ$20,データシート1!$A$1:$BT$1,0),0) ->  | BM67: =VLOOKUP($AX67&"_"&$BC$14,データシート1!$A:$BT,MATCH($BC$12&"_"&BM$20,データシート1!$A$1:$BT$1,0),0) ->  | BN67: =VLOOKUP($AX67&"_"&$BC$14,データシート1!$A:$BT,MATCH($BC$12&"_"&BN$20,データシート1!$A$1:$BT$1,0),0) ->  | BO67: =VLOOKUP($AX67&"_"&$BC$14,データシート1!$A:$BT,MATCH($BC$12&"_"&BO$20,データシート1!$A$1:$BT$1,0),0) ->  | BP67: =VLOOKUP($AX67&"_"&$BC$14,データシート1!$A:$BT,MATCH($BC$12&"_"&BP$20,データシート1!$A$1:$BT$1,0),0) ->  | BQ67: =VLOOKUP($AX67&"_"&$BC$14,データシート1!$A:$BT,MATCH($BC$12&"_"&BQ$20,データシート1!$A$1:$BT$1,0),0) ->  | CX67: =VLOOKUP($AX67&"_"&$CW$14,データシート1!$A:$BT,MATCH($CW$12&"_"&CX$20,データシート1!$A$1:$BT$1,0),0) ->  | CY67: =VLOOKUP($AX67&"_"&$CW$14,データシート1!$A:$BT,MATCH($CW$12&"_"&CY$20,データシート1!$A$1:$BT$1,0),0) ->  | CZ67: =VLOOKUP($AX67&"_"&$CW$14,データシート1!$A:$BT,MATCH($CW$12&"_"&CZ$20,データシート1!$A$1:$BT$1,0),0) ->  | DA67: =VLOOKUP($AX67&"_"&$CW$14,データシート1!$A:$BT,MATCH($CW$12&"_"&DA$20,データシート1!$A$1:$BT$1,0),0) ->  | DB67: =VLOOKUP($AX67&"_"&$CW$14,データシート1!$A:$BT,MATCH($CW$12&"_"&DB$20,データシート1!$A$1:$BT$1,0),0) ->  | DC67: =VLOOKUP($AX67&"_"&$CW$14,データシート1!$A:$BT,MATCH($CW$12&"_"&DC$20,データシート1!$A$1:$BT$1,0),0) ->  | DF67: =VLOOKUP($AX67&"_"&$DF$14,データシート1!$A:$BT,MATCH($DF$12&"_"&DF$20,データシート1!$A$1:$BT$1,0),0) ->  | DG67: =VLOOKUP($AX67&"_"&$DF$14,データシート1!$A:$BT,MATCH($DF$12&"_"&DG$20,データシート1!$A$1:$BT$1,0),0) ->  | DH67: =VLOOKUP($AX67&"_"&$DF$14,データシート1!$A:$BT,MATCH($DF$12&"_"&DH$20,データシート1!$A$1:$BT$1,0),0) ->  | DI67: =VLOOKUP($AX67&"_"&$DF$14,データシート1!$A:$BT,MATCH($DF$12&"_"&DI$20,データシート1!$A$1:$BT$1,0),0) ->  | DJ67: =VLOOKUP($AX67&"_"&$DF$14,データシート1!$A:$BT,MATCH($DF$12&"_"&DJ$20,データシート1!$A$1:$BT$1,0),0) ->  | DK67: =VLOOKUP($AX67&"_"&$DF$14,データシート1!$A:$BT,MATCH($DF$12&"_"&DK$20,データシート1!$A$1:$BT$1,0),0) -> 
AX68: =比較地域マスタ!$Y53 -> 0 | AY68: =IF(IFERROR(比較地域マスタ!$Z53,"")=0,"",IFERROR(比較地域マスタ!$Z53,"")) ->  | BB68: 0 | BE68: =SUM(BF68:BH68) ->  | BF68: =VLOOKUP($AX68&"_"&$BC$14,データシート1!$A:$BT,MATCH($BC$12&"_"&BF$20,データシート1!$A$1:$BT$1,0),0) ->  | BG68: =VLOOKUP($AX68&"_"&$BC$14,データシート1!$A:$BT,MATCH($BC$12&"_"&BG$20,データシート1!$A$1:$BT$1,0),0) ->  | BH68: =VLOOKUP($AX68&"_"&$BC$14,データシート1!$A:$BT,MATCH($BC$12&"_"&BH$20,データシート1!$A$1:$BT$1,0),0) ->  | BI68: =VLOOKUP($AX68&"_"&$BC$14,データシート1!$A:$BT,MATCH($BC$12&"_"&BI$20,データシート1!$A$1:$BT$1,0),0) ->  | BJ68: =VLOOKUP($AX68&"_"&$BC$14,データシート1!$A:$BT,MATCH($BC$12&"_"&BJ$20,データシート1!$A$1:$BT$1,0),0) ->  | BL68: =SUM(BM68:BN68) ->  | BM68: =VLOOKUP($AX68&"_"&$BC$14,データシート1!$A:$BT,MATCH($BC$12&"_"&BM$20,データシート1!$A$1:$BT$1,0),0) ->  | BN68: =VLOOKUP($AX68&"_"&$BC$14,データシート1!$A:$BT,MATCH($BC$12&"_"&BN$20,データシート1!$A$1:$BT$1,0),0) ->  | BO68: =VLOOKUP($AX68&"_"&$BC$14,データシート1!$A:$BT,MATCH($BC$12&"_"&BO$20,データシート1!$A$1:$BT$1,0),0) ->  | BP68: =VLOOKUP($AX68&"_"&$BC$14,データシート1!$A:$BT,MATCH($BC$12&"_"&BP$20,データシート1!$A$1:$BT$1,0),0) ->  | BQ68: =VLOOKUP($AX68&"_"&$BC$14,データシート1!$A:$BT,MATCH($BC$12&"_"&BQ$20,データシート1!$A$1:$BT$1,0),0) ->  | CX68: =VLOOKUP($AX68&"_"&$CW$14,データシート1!$A:$BT,MATCH($CW$12&"_"&CX$20,データシート1!$A$1:$BT$1,0),0) ->  | CY68: =VLOOKUP($AX68&"_"&$CW$14,データシート1!$A:$BT,MATCH($CW$12&"_"&CY$20,データシート1!$A$1:$BT$1,0),0) ->  | CZ68: =VLOOKUP($AX68&"_"&$CW$14,データシート1!$A:$BT,MATCH($CW$12&"_"&CZ$20,データシート1!$A$1:$BT$1,0),0) ->  | DA68: =VLOOKUP($AX68&"_"&$CW$14,データシート1!$A:$BT,MATCH($CW$12&"_"&DA$20,データシート1!$A$1:$BT$1,0),0) ->  | DB68: =VLOOKUP($AX68&"_"&$CW$14,データシート1!$A:$BT,MATCH($CW$12&"_"&DB$20,データシート1!$A$1:$BT$1,0),0) ->  | DC68: =VLOOKUP($AX68&"_"&$CW$14,データシート1!$A:$BT,MATCH($CW$12&"_"&DC$20,データシート1!$A$1:$BT$1,0),0) ->  | DF68: =VLOOKUP($AX68&"_"&$DF$14,データシート1!$A:$BT,MATCH($DF$12&"_"&DF$20,データシート1!$A$1:$BT$1,0),0) ->  | DG68: =VLOOKUP($AX68&"_"&$DF$14,データシート1!$A:$BT,MATCH($DF$12&"_"&DG$20,データシート1!$A$1:$BT$1,0),0) ->  | DH68: =VLOOKUP($AX68&"_"&$DF$14,データシート1!$A:$BT,MATCH($DF$12&"_"&DH$20,データシート1!$A$1:$BT$1,0),0) ->  | DI68: =VLOOKUP($AX68&"_"&$DF$14,データシート1!$A:$BT,MATCH($DF$12&"_"&DI$20,データシート1!$A$1:$BT$1,0),0) ->  | DJ68: =VLOOKUP($AX68&"_"&$DF$14,データシート1!$A:$BT,MATCH($DF$12&"_"&DJ$20,データシート1!$A$1:$BT$1,0),0) ->  | DK68: =VLOOKUP($AX68&"_"&$DF$14,データシート1!$A:$BT,MATCH($DF$12&"_"&DK$20,データシート1!$A$1:$BT$1,0),0) ->  | DN68: =IF($DD68=0,0,ROUND(CX68/$DD68,2)) ->  | DO68: =IF($DD68=0,0,ROUND(CY68/$DD68,2)) ->  | DS68: =IF($DD68=0,0,ROUND(DC68/$DD68,2)) -> 
B71: ="3 特定事業所排出量の比較（" & $BC$14 & "（" & $BC$15 & "年度））" -> 3 特定事業所排出量の比較（令和3年度（2021年度））
B72: 5）特定事業所排出量の比較 | Q72: 6）特定事業所数の比較 | AF72: 7）特定事業所排出量の部門別構成比の比較
L74: （千t-CO2）

Sheet 再エネ比較シート
B1: 自治体排出量カルテ 他の地方公共団体との比較（再エネ導入量・再エネポテンシャル） | AT1: =AY4 -> 東神楽町
B2: ="1 再エネ導入量の比較（"&AZ7&"（"&AY7&"年度））" -> 1 再エネ導入量の比較（令和5年度（2023年度））
B3: 1）他の地方公共団体との再エネ別導入設備容量の比較 | M3: 2）他の地方公共団体との再エネ別発電電力量の比較 | Y3: 3）他の地方公共団体との対電気使用量FIT・FIP導入比の比較 | AK3: 4）対世帯数FIT・FIP太陽光発電（10kW未満）導入比の比較 | AX3: 年度マスタ
AX4: =年度マスタ!$I4 -> 北海道 | AY4: =年度マスタ!$J4 -> 東神楽町 | AZ4: =年度マスタ!$K4 -> 01453
AX5: =年度マスタ!$I5 -> A.現況推計データ | AY5: =年度マスタ!$J5 -> 2022 | AZ5: =年度マスタ!$K5 -> 令和4年度
AX6: =年度マスタ!$I6 -> B.SHKデータ | AY6: =年度マスタ!$J6 -> 2021 | AZ6: =年度マスタ!$K6 -> 令和3年度
AX7: =年度マスタ!$I7 -> C.FITデータ | AY7: =年度マスタ!$J7 -> 2023 | AZ7: =年度マスタ!$K7 -> 令和5年度
AX8: =年度マスタ!$I8 -> D.区域電力使用量データ | AY8: =年度マスタ!$J8 -> 2022 | AZ8: =年度マスタ!$K8 -> 令和4年度
AX9: =年度マスタ!$I9 -> E.REPOSデータ | AY9: =年度マスタ!$J9 -> 2024 | AZ9: =年度マスタ!$K9 -> 令和6年度
BC10: 1）他の地方公共団体との再エネ別導入設備容量の比較 | BM10: 2）他の地方公共団体との再エネ別発電電力量の比較 | CA10: 3）他の地方公共団体との対電気使用量FIT・FIP導入比の比較 | CK10: 4）対世帯数FIT・FIP太陽光発電（10kW未満）導入比の比較
BK11: [kW] | BU11: [MWh/年] | BY11: [MWh/年] | CI11: [%]
AX12: 該当コード | AY12: 該当地域名 | BD12: 該当地域名 | BE12: 太陽光発電（10kW未満） | BF12: 太陽光発電（10kW以上） | BG12: 風力発電 | BH12: 水力発電 | BI12: 地熱発電 | BJ12: バイオマス発電 | BK12: 合計 | BN12: 該当地域名 | BO12: 太陽光発電（10kW未満） | BP12: 太陽光発電（10kW以上） | BQ12: 風力発電 | BR12: 水力発電 | BS12: 地熱発電 | BT12: バイオマス発電 | BU12: 合計 | BX12: 該当地域名 | BY12: 区域の電気使用量 | CB12: 該当地域名 | CC12: 太陽光発電（10kW未満） | CD12: 太陽光発電（10kW以上） | CE12: 風力発電 | CF12: 水力発電 | CG12: 地熱発電 | CH12: バイオマス発電 | CI12: 区域の電気使用量 | CL12: 該当地域名 | CM12: 太陽光発電（10kW未満）導入件数 | CN12: 世帯数 | CO12: 導入比
AX13: =比較地域マスタ!$Y6 -> 11365 | AY13: =IF(IFERROR(比較地域マスタ!$Z6,"")=0,"",IFERROR(比較地域マスタ!$Z6,"")) -> 小鹿野町 | BC13: =AX13 -> 11365 | BD13: =AY13 -> 小鹿野町 | BE13: =VLOOKUP($BC13&"_"&$AZ$7,データシート1!$A:$BT,MATCH("cb_"&BE$12,データシート1!$A$1:$BT$1,0),0) -> 1,485 | BF13: =VLOOKUP($BC13&"_"&$AZ$7,データシート1!$A:$BT,MATCH("cb_"&BF$12,データシート1!$A$1:$BT$1,0),0) -> 9,529 | BG13: =VLOOKUP($BC13&"_"&$AZ$7,データシート1!$A:$BT,MATCH("cb_"&BG$12,データシート1!$A$1:$BT$1,0),0) -> 0 | BH13: =VLOOKUP($BC13&"_"&$AZ$7,データシート1!$A:$BT,MATCH("cb_"&BH$12,データシート1!$A$1:$BT$1,0),0) -> 0 | BI13: =VLOOKUP($BC13&"_"&$AZ$7,データシート1!$A:$BT,MATCH("cb_"&BI$12,データシート1!$A$1:$BT$1,0),0) -> 0 | BJ13: =VLOOKUP($BC13&"_"&$AZ$7,データシート1!$A:$BT,MATCH("cb_"&BJ$12,データシート1!$A$1:$BT$1,0),0) -> 0 | BK13: =SUM(BE13:BJ13) -> 11,014 | BM13: =AX13 -> 11365 | BN13: =AY13 -> 小鹿野町 | BO13: =BE13*VLOOKUP(BO$12,別紙!$B$4:$E$10,MATCH("設備利用率",別紙!$B$4:$E$4,0),0)/100*8760/10^3 -> 1,782 | BP13: =BF13*VLOOKUP(BP$12,別紙!$B$4:$E$10,MATCH("設備利用率",別紙!$B$4:$E$4,0),0)/100*8760/10^3 -> 12,605 | BQ13: =BG13*VLOOKUP(BQ$12,別紙!$B$4:$E$10,MATCH("設備利用率",別紙!$B$4:$E$4,0),0)/100*8760/10^3 -> 0 | BR13: =BH13*VLOOKUP(BR$12,別紙!$B$4:$E$10,MATCH("設備利用率",別紙!$B$4:$E$4,0),0)/100*8760/10^3 -> 0 | BS13: =BI13*VLOOKUP(BS$12,別紙!$B$4:$E$10,MATCH("設備利用率",別紙!$B$4:$E$4,0),0)/100*8760/10^3 -> 0 | BT13: =BJ13*VLOOKUP(BT$12,別紙!$B$4:$E$10,MATCH("設備利用率",別紙!$B$4:$E$4,0),0)/100*8760/10^3 -> 0 | BU13: =SUM(BO13:BT13) -> 14,387 | BW13: =AX13 -> 11365 | BX13: =AY13 -> 小鹿野町 | BY13: =(VLOOKUP($BW13&"_"&$AZ$8,データシート1!$A:$BT,MATCH("da_製造業",データシート1!$A$1:$BT$1,0),0)+VLOOKUP($BW13&"_"&$AZ$8,データシート1!$A:$BT,MATCH("da_建設業・鉱業",データシート1!$A$1:$BT$1,0),0)+VLOOKUP($BW13&"_"&$AZ$8,データシート1!$A:$BT,MATCH("da_農林水産業",データシート1!$A$1:$BT$1,0),0)+VLOOKUP($BW13&"_"&$AZ$8,データシート1!$A:$BT,MATCH("da_業務",データシート1!$A$1:$BT$1,0),0)+VLOOKUP($BW13&"_"&$AZ$8,データシート1!$A:$BT,MATCH("da_家庭",データシート1!$A$1:$BT$1,0),0)+VLOOKUP($BW13&"_"&$AZ$8,データシート1!$A:$BT,MATCH("da_鉄道",データシート1!$A$1:$BT$1,0),0))/10^3 -> 52,868 | CA13: =AX13 -> 11365 | CB13: =AY13 -> 小鹿野町 | CC13: =BO13/$BY13 -> 3.4% | CD13: =BP13/$BY13 -> 23.8% | CE13: 0.0% | CF13: 0.0% | CG13: 0.0% | CH13: 0.0% | CI13: =BU13/BY13 -> 27.2% | CK13: =AX13 -> 11365 | CL13: =AY13 -> 小鹿野町 | CM13: =VLOOKUP($CK13&"_"&$AZ$7,データシート1!$A:$BT,MATCH("ca_太陽光発電（10kW未満）",データシート1!$A$1:$BT$1,0),0) -> 287 | CN13: =VLOOKUP($CK13&"_"&$AZ$5,データシート1!$A:$BT,MATCH("ab_家庭",データシート1!$A$1:$BT$1,0),0) -> 4553 | CO13: =CM13/CN13 -> 6.3%
AX14: =比較地域マスタ!$Y7 -> 24562 | AY14: =IF(IFERROR(比較地域マスタ!$Z7,"")=0,"",IFERROR(比較地域マスタ!$Z7,"")) -> 紀宝町 | BC14: 24562 | BD14: =AY14 -> 紀宝町 | BE14: =VLOOKUP($BC14&"_"&$AZ$7,データシート1!$A:$BT,MATCH("cb_"&BE$12,データシート1!$A$1:$BT$1,0),0) -> 1,631 | BF14: =VLOOKUP($BC14&"_"&$AZ$7,データシート1!$A:$BT,MATCH("cb_"&BF$12,データシート1!$A$1:$BT$1,0),0) -> 6,341 | BG14: =VLOOKUP($BC14&"_"&$AZ$7,データシート1!$A:$BT,MATCH("cb_"&BG$12,データシート1!$A$1:$BT$1,0),0) -> 0 | BH14: =VLOOKUP($BC14&"_"&$AZ$7,データシート1!$A:$BT,MATCH("cb_"&BH$12,データシート1!$A$1:$BT$1,0),0) -> 0 | BI14: =VLOOKUP($BC14&"_"&$AZ$7,データシート1!$A:$BT,MATCH("cb_"&BI$12,データシート1!$A$1:$BT$1,0),0) -> 0 | BJ14: =VLOOKUP($BC14&"_"&$AZ$7,データシート1!$A:$BT,MATCH("cb_"&BJ$12,データシート1!$A$1:$BT$1,0),0) -> 0 | BK14: =SUM(BE14:BJ14) -> 7,972 | BM14: =AX14 -> 24562 | BN14: =AY14 -> 紀宝町 | BO14: =BE14*VLOOKUP(BO$12,別紙!$B$4:$E$10,MATCH("設備利用率",別紙!$B$4:$E$4,0),0)/100*8760/10^3 -> 1,958 | BP14: =BF14*VLOOKUP(BP$12,別紙!$B$4:$E$10,MATCH("設備利用率",別紙!$B$4:$E$4,0),0)/100*8760/10^3 -> 8,388 | BQ14: =BG14*VLOOKUP(BQ$12,別紙!$B$4:$E$10,MATCH("設備利用率",別紙!$B$4:$E$4,0),0)/100*8760/10^3 -> 0 | BR14: =BH14*VLOOKUP(BR$12,別紙!$B$4:$E$10,MATCH("設備利用率",別紙!$B$4:$E$4,0),0)/100*8760/10^3 -> 0 | BS14: =BI14*VLOOKUP(BS$12,別紙!$B$4:$E$10,MATCH("設備利用率",別紙!$B$4:$E$4,0),0)/100*8760/10^3 -> 0 | BT14: =BJ14*VLOOKUP(BT$12,別紙!$B$4:$E$10,MATCH("設備利用率",別紙!$B$4:$E$4,0),0)/100*8760/10^3 -> 0 | BU14: =SUM(BO14:BT14) -> 10,345 | BW14: =AX14 -> 24562 | BX14: =AY14 -> 紀宝町 | BY14: =(VLOOKUP($BW14&"_"&$AZ$8,データシート1!$A:$BT,MATCH("da_製造業",データシート1!$A$1:$BT$1,0),0)+VLOOKUP($BW14&"_"&$AZ$8,データシート1!$A:$BT,MATCH("da_建設業・鉱業",データシート1!$A$1:$BT$1,0),0)+VLOOKUP($BW14&"_"&$AZ$8,データシート1!$A:$BT,MATCH("da_農林水産業",データシート1!$A$1:$BT$1,0),0)+VLOOKUP($BW14&"_"&$AZ$8,データシート1!$A:$BT,MATCH("da_業務",データシート1!$A$1:$BT$1,0),0)+VLOOKUP($BW14&"_"&$AZ$8,データシート1!$A:$BT,MATCH("da_家庭",データシート1!$A$1:$BT$1,0),0)+VLOOKUP($BW14&"_"&$AZ$8,データシート1!$A:$BT,MATCH("da_鉄道",データシート1!$A$1:$BT$1,0),0))/10^3 -> 72,722 | CA14: =AX14 -> 24562 | CB14: =AY14 -> 紀宝町 | CC14: =BO14/$BY14 -> 2.7% | CD14: 11.5% | CE14: 0.0% | CF14: 0.0% | CG14: 0.0% | CH14: 0.0% | CI14: =BU14/BY14 -> 14.2% | CK14: =AX14 -> 24562 | CL14: =AY14 -> 紀宝町 | CM14: =VLOOKUP($CK14&"_"&$AZ$7,データシート1!$A:$BT,MATCH("ca_太陽光発電（10kW未満）",データシート1!$A$1:$BT$1,0),0) -> 331 | CN14: =VLOOKUP($CK14&"_"&$AZ$5,データシート1!$A:$BT,MATCH("ab_家庭",データシート1!$A$1:$BT$1,0),0) -> 5203 | CO14: =CM14/CN14 -> 6.4%
AX15: =比較地域マスタ!$Y8 -> 20309 | AY15: =IF(IFERROR(比較地域マスタ!$Z8,"")=0,"",IFERROR(比較地域マスタ!$Z8,"")) -> 佐久穂町 | BC15: 20309 | BD15: 佐久穂町 | BE15: =VLOOKUP($BC15&"_"&$AZ$7,データシート1!$A:$BT,MATCH("cb_"&BE$12,データシート1!$A$1:$BT$1,0),0) -> 2,952 | BF15: =VLOOKUP($BC15&"_"&$AZ$7,データシート1!$A:$BT,MATCH("cb_"&BF$12,データシート1!$A$1:$BT$1,0),0) -> 6,400 | BG15: =VLOOKUP($BC15&"_"&$AZ$7,データシート1!$A:$BT,MATCH("cb_"&BG$12,データシート1!$A$1:$BT$1,0),0) -> 0 | BH15: =VLOOKUP($BC15&"_"&$AZ$7,データシート1!$A:$BT,MATCH("cb_"&BH$12,データシート1!$A$1:$BT$1,0),0) -> 199 | BI15: =VLOOKUP($BC15&"_"&$AZ$7,データシート1!$A:$BT,MATCH("cb_"&BI$12,データシート1!$A$1:$BT$1,0),0) -> 0 | BJ15: =VLOOKUP($BC15&"_"&$AZ$7,データシート1!$A:$BT,MATCH("cb_"&BJ$12,データシート1!$A$1:$BT$1,0),0) -> 0 | BK15: 9,550 | BM15: 20309 | BN15: 佐久穂町 | BO15: =BE15*VLOOKUP(BO$12,別紙!$B$4:$E$10,MATCH("設備利用率",別紙!$B$4:$E$4,0),0)/100*8760/10^3 -> 3,542 | BP15: =BF15*VLOOKUP(BP$12,別紙!$B$4:$E$10,MATCH("設備利用率",別紙!$B$4:$E$4,0),0)/100*8760/10^3 -> 8,465 | BQ15: =BG15*VLOOKUP(BQ$12,別紙!$B$4:$E$10,MATCH("設備利用率",別紙!$B$4:$E$4,0),0)/100*8760/10^3 -> 0 | BR15: =BH15*VLOOKUP(BR$12,別紙!$B$4:$E$10,MATCH("設備利用率",別紙!$B$4:$E$4,0),0)/100*8760/10^3 -> 1,046 | BS15: =BI15*VLOOKUP(BS$12,別紙!$B$4:$E$10,MATCH("設備利用率",別紙!$B$4:$E$4,0),0)/100*8760/10^3 -> 0 | BT15: =BJ15*VLOOKUP(BT$12,別紙!$B$4:$E$10,MATCH("設備利用率",別紙!$B$4:$E$4,0),0)/100*8760/10^3 -> 0 | BU15: 13,053 | BW15: 20309 | BX15: 佐久穂町 | BY15: =(VLOOKUP($BW15&"_"&$AZ$8,データシート1!$A:$BT,MATCH("da_製造業",データシート1!$A$1:$BT$1,0),0)+VLOOKUP($BW15&"_"&$AZ$8,データシート1!$A:$BT,MATCH("da_建設業・鉱業",データシート1!$A$1:$BT$1,0),0)+VLOOKUP($BW15&"_"&$AZ$8,データシート1!$A:$BT,MATCH("da_農林水産業",データシート1!$A$1:$BT$1,0),0)+VLOOKUP($BW15&"_"&$AZ$8,データシート1!$A:$BT,MATCH("da_業務",データシート1!$A$1:$BT$1,0),0)+VLOOKUP($BW15&"_"&$AZ$8,データシート1!$A:$BT,MATCH("da_家庭",データシート1!$A$1:$BT$1,0),0)+VLOOKUP($BW15&"_"&$AZ$8,データシート1!$A:$BT,MATCH("da_鉄道",データシート1!$A$1:$BT$1,0),0))/10^3 -> 38,919 | CA15: 20309 | CB15: 佐久穂町 | CC15: 9.1% | CD15: 21.8% | CE15: 0.0% | CF15: 2.7% | CG15: 0.0% | CH15: 0.0% | CI15: 33.5% | CK15: 20309 | CL15: 佐久穂町 | CM15: =VLOOKUP($CK15&"_"&$AZ$7,データシート1!$A:$BT,MATCH("ca_太陽光発電（10kW未満）",データシート1!$A$1:$BT$1,0),0) -> 616 | CN15: =VLOOKUP($CK15&"_"&$AZ$5,データシート1!$A:$BT,MATCH("ab_家庭",データシート1!$A$1:$BT$1,0),0) -> 4298 | CO15: 14.3%
AX16: =比較地域マスタ!$Y9 -> 31390 | AY16: =IF(IFERROR(比較地域マスタ!$Z9,"")=0,"",IFERROR(比較地域マスタ!$Z9,"")) -> 伯耆町 | BC16: 31390 | BD16: 伯耆町 | BE16: =VLOOKUP($BC16&"_"&$AZ$7,データシート1!$A:$BT,MATCH("cb_"&BE$12,データシート1!$A$1:$BT$1,0),0) -> 1,209 | BF16: =VLOOKUP($BC16&"_"&$AZ$7,データシート1!$A:$BT,MATCH("cb_"&BF$12,データシート1!$A$1:$BT$1,0),0) -> 19,974 | BG16: =VLOOKUP($BC16&"_"&$AZ$7,データシート1!$A:$BT,MATCH("cb_"&BG$12,データシート1!$A$1:$BT$1,0),0) -> 0 | BH16: =VLOOKUP($BC16&"_"&$AZ$7,データシート1!$A:$BT,MATCH("cb_"&BH$12,データシート1!$A$1:$BT$1,0),0) -> 874 | BI16: =VLOOKUP($BC16&"_"&$AZ$7,データシート1!$A:$BT,MATCH("cb_"&BI$12,データシート1!$A$1:$BT$1,0),0) -> 0 | BJ16: =VLOOKUP($BC16&"_"&$AZ$7,データシート1!$A:$BT,MATCH("cb_"&BJ$12,データシート1!$A$1:$BT$1,0),0) -> 0 | BK16: 22,057 | BM16: 31390 | BN16: 伯耆町 | BO16: =BE16*VLOOKUP(BO$12,別紙!$B$4:$E$10,MATCH("設備利用率",別紙!$B$4:$E$4,0),0)/100*8760/10^3 -> 1,451 | BP16: =BF16*VLOOKUP(BP$12,別紙!$B$4:$E$10,MATCH("設備利用率",別紙!$B$4:$E$4,0),0)/100*8760/10^3 -> 26,421 | BQ16: =BG16*VLOOKUP(BQ$12,別紙!$B$4:$E$10,MATCH("設備利用率",別紙!$B$4:$E$4,0),0)/100*8760/10^3 -> 0 | BR16: =BH16*VLOOKUP(BR$12,別紙!$B$4:$E$10,MATCH("設備利用率",別紙!$B$4:$E$4,0),0)/100*8760/10^3 -> 4,594 | BS16: =BI16*VLOOKUP(BS$12,別紙!$B$4:$E$10,MATCH("設備利用率",別紙!$B$4:$E$4,0),0)/100*8760/10^3 -> 0 | BT16: =BJ16*VLOOKUP(BT$12,別紙!$B$4:$E$10,MATCH("設備利用率",別紙!$B$4:$E$4,0),0)/100*8760/10^3 -> 0 | BU16: 32,466 | BW16: 31390 | BX16: 伯耆町 | BY16: =(VLOOKUP($BW16&"_"&$AZ$8,データシート1!$A:$BT,MATCH("da_製造業",データシート1!$A$1:$BT$1,0),0)+VLOOKUP($BW16&"_"&$AZ$8,データシート1!$A:$BT,MATCH("da_建設業・鉱業",データシート1!$A$1:$BT$1,0),0)+VLOOKUP($BW16&"_"&$AZ$8,データシート1!$A:$BT,MATCH("da_農林水産業",データシート1!$A$1:$BT$1,0),0)+VLOOKUP($BW16&"_"&$AZ$8,データシート1!$A:$BT,MATCH("da_業務",データシート1!$A$1:$BT$1,0),0)+VLOOKUP($BW16&"_"&$AZ$8,データシート1!$A:$BT,MATCH("da_家庭",データシート1!$A$1:$BT$1,0),0)+VLOOKUP($BW16&"_"&$AZ$8,データシート1!$A:$BT,MATCH("da_鉄道",データシート1!$A$1:$BT$1,0),0))/10^3 -> 48,276 | CA16: 31390 | CB16: 伯耆町 | CC16: 3.0% | CD16: 54.7% | CE16: 0.0% | CF16: 9.5% | CG16: 0.0% | CH16: 0.0% | CI16: 67.3% | CK16: 31390 | CL16: 伯耆町 | CM16: =VLOOKUP($CK16&"_"&$AZ$7,データシート1!$A:$BT,MATCH("ca_太陽光発電（10kW未満）",データシート1!$A$1:$BT$1,0),0) -> 242 | CN16: =VLOOKUP($CK16&"_"&$AZ$5,データシート1!$A:$BT,MATCH("ab_家庭",データシート1!$A$1:$BT$1,0),0) -> 3871 | CO16: 6.3%
AX17: =比較地域マスタ!$Y10 -> 31389 | AY17: =IF(IFERROR(比較地域マスタ!$Z10,"")=0,"",IFERROR(比較地域マスタ!$Z10,"")) -> 南部町 | BC17: 31389 | BD17: 南部町 | BE17: =VLOOKUP($BC17&"_"&$AZ$7,データシート1!$A:$BT,MATCH("cb_"&BE$12,データシート1!$A$1:$BT$1,0),0) -> 1,212 | BF17: =VLOOKUP($BC17&"_"&$AZ$7,データシート1!$A:$BT,MATCH("cb_"&BF$12,データシート1!$A$1:$BT$1,0),0) -> 7,491 | BG17: =VLOOKUP($BC17&"_"&$AZ$7,データシート1!$A:$BT,MATCH("cb_"&BG$12,データシート1!$A$1:$BT$1,0),0) -> 0 | BH17: =VLOOKUP($BC17&"_"&$AZ$7,データシート1!$A:$BT,MATCH("cb_"&BH$12,データシート1!$A$1:$BT$1,0),0) -> 337 | BI17: =VLOOKUP($BC17&"_"&$AZ$7,データシート1!$A:$BT,MATCH("cb_"&BI$12,データシート1!$A$1:$BT$1,0),0) -> 0 | BJ17: =VLOOKUP($BC17&"_"&$AZ$7,データシート1!$A:$BT,MATCH("cb_"&BJ$12,データシート1!$A$1:$BT$1,0),0) -> 0 | BK17: 9,040 | BM17: 31389 | BN17: 南部町 | BO17: =BE17*VLOOKUP(BO$12,別紙!$B$4:$E$10,MATCH("設備利用率",別紙!$B$4:$E$4,0),0)/100*8760/10^3 -> 1,455 | BP17: =BF17*VLOOKUP(BP$12,別紙!$B$4:$E$10,MATCH("設備利用率",別紙!$B$4:$E$4,0),0)/100*8760/10^3 -> 9,908 | BQ17: =BG17*VLOOKUP(BQ$12,別紙!$B$4:$E$10,MATCH("設備利用率",別紙!$B$4:$E$4,0),0)/100*8760/10^3 -> 0 | BR17: =BH17*VLOOKUP(BR$12,別紙!$B$4:$E$10,MATCH("設備利用率",別紙!$B$4:$E$4,0),0)/100*8760/10^3 -> 1,771 | BS17: =BI17*VLOOKUP(BS$12,別紙!$B$4:$E$10,MATCH("設備利用率",別紙!$B$4:$E$4,0),0)/100*8760/10^3 -> 0 | BT17: =BJ17*VLOOKUP(BT$12,別紙!$B$4:$E$10,MATCH("設備利用率",別紙!$B$4:$E$4,0),0)/100*8760/10^3 -> 0 | BU17: 13,134 | BW17: 31389 | BX17: 南部町 | BY17: =(VLOOKUP($BW17&"_"&$AZ$8,データシート1!$A:$BT,MATCH("da_製造業",データシート1!$A$1:$BT$1,0),0)+VLOOKUP($BW17&"_"&$AZ$8,データシート1!$A:$BT,MATCH("da_建設業・鉱業",データシート1!$A$1:$BT$1,0),0)+VLOOKUP($BW17&"_"&$AZ$8,データシート1!$A:$BT,MATCH("da_農林水産業",データシート1!$A$1:$BT$1,0),0)+VLOOKUP($BW17&"_"&$AZ$8,データシート1!$A:$BT,MATCH("da_業務",データシート1!$A$1:$BT$1,0),0)+VLOOKUP($BW17&"_"&$AZ$8,データシート1!$A:$BT,MATCH("da_家庭",データシート1!$A$1:$BT$1,0),0)+VLOOKUP($BW17&"_"&$AZ$8,データシート1!$A:$BT,MATCH("da_鉄道",データシート1!$A$1:$BT$1,0),0))/10^3 -> 78,577 | CA17: 31389 | CB17: 南部町 | CC17: 1.9% | CD17: 12.6% | CE17: 0.0% | CF17: 2.3% | CG17: 0.0% | CH17: 0.0% | CI17: 16.7% | CK17: 31389 | CL17: 南部町 | CM17: =VLOOKUP($CK17&"_"&$AZ$7,データシート1!$A:$BT,MATCH("ca_太陽光発電（10kW未満）",データシート1!$A$1:$BT$1,0),0) -> 239 | CN17: =VLOOKUP($CK17&"_"&$AZ$5,データシート1!$A:$BT,MATCH("ab_家庭",データシート1!$A$1:$BT$1,0),0) -> 3894 | CO17: 6.1%
AX18: =比較地域マスタ!$Y11 -> 43501 | AY18: =IF(IFERROR(比較地域マスタ!$Z11,"")=0,"",IFERROR(比較地域マスタ!$Z11,"")) -> 錦町 | BC18: 43501 | BD18: 錦町 | BE18: =VLOOKUP($BC18&"_"&$AZ$7,データシート1!$A:$BT,MATCH("cb_"&BE$12,データシート1!$A$1:$BT$1,0),0) -> 3,734 | BF18: =VLOOKUP($BC18&"_"&$AZ$7,データシート1!$A:$BT,MATCH("cb_"&BF$12,データシート1!$A$1:$BT$1,0),0) -> 52,601 | BG18: =VLOOKUP($BC18&"_"&$AZ$7,データシート1!$A:$BT,MATCH("cb_"&BG$12,データシート1!$A$1:$BT$1,0),0) -> 0 | BH18: =VLOOKUP($BC18&"_"&$AZ$7,データシート1!$A:$BT,MATCH("cb_"&BH$12,データシート1!$A$1:$BT$1,0),0) -> 0 | BI18: =VLOOKUP($BC18&"_"&$AZ$7,データシート1!$A:$BT,MATCH("cb_"&BI$12,データシート1!$A$1:$BT$1,0),0) -> 0 | BJ18: =VLOOKUP($BC18&"_"&$AZ$7,データシート1!$A:$BT,MATCH("cb_"&BJ$12,データシート1!$A$1:$BT$1,0),0) -> 1,990 | BK18: 58,325 | BM18: 43501 | BN18: 錦町 | BO18: =BE18*VLOOKUP(BO$12,別紙!$B$4:$E$10,MATCH("設備利用率",別紙!$B$4:$E$4,0),0)/100*8760/10^3 -> 4,481 | BP18: =BF18*VLOOKUP(BP$12,別紙!$B$4:$E$10,MATCH("設備利用率",別紙!$B$4:$E$4,0),0)/100*8760/10^3 -> 69,579 | BQ18: =BG18*VLOOKUP(BQ$12,別紙!$B$4:$E$10,MATCH("設備利用率",別紙!$B$4:$E$4,0),0)/100*8760/10^3 -> 0 | BR18: =BH18*VLOOKUP(BR$12,別紙!$B$4:$E$10,MATCH("設備利用率",別紙!$B$4:$E$4,0),0)/100*8760/10^3 -> 0 | BS18: =BI18*VLOOKUP(BS$12,別紙!$B$4:$E$10,MATCH("設備利用率",別紙!$B$4:$E$4,0),0)/100*8760/10^3 -> 0 | BT18: =BJ18*VLOOKUP(BT$12,別紙!$B$4:$E$10,MATCH("設備利用率",別紙!$B$4:$E$4,0),0)/100*8760/10^3 -> 13,946 | BU18: 88,005 | BW18: 43501 | BX18: 錦町 | BY18: =(VLOOKUP($BW18&"_"&$AZ$8,データシート1!$A:$BT,MATCH("da_製造業",データシート1!$A$1:$BT$1,0),0)+VLOOKUP($BW18&"_"&$AZ$8,データシート1!$A:$BT,MATCH("da_建設業・鉱業",データシート1!$A$1:$BT$1,0),0)+VLOOKUP($BW18&"_"&$AZ$8,データシート1!$A:$BT,MATCH("da_農林水産業",データシート1!$A$1:$BT$1,0),0)+VLOOKUP($BW18&"_"&$AZ$8,データシート1!$A:$BT,MATCH("da_業務",データシート1!$A$1:$BT$1,0),0)+VLOOKUP($BW18&"_"&$AZ$8,データシート1!$A:$BT,MATCH("da_家庭",データシート1!$A$1:$BT$1,0),0)+VLOOKUP($BW18&"_"&$AZ$8,データシート1!$A:$BT,MATCH("da_鉄道",データシート1!$A$1:$BT$1,0),0))/10^3 -> 63,337 | CA18: 43501 | CB18: 錦町 | CC18: 7.1% | CD18: 109.9% | CE18: 0.0% | CF18: 0.0% | CG18: 0.0% | CH18: 22.0% | CI18: 138.9% | CK18: 43501 | CL18: 錦町 | CM18: =VLOOKUP($CK18&"_"&$AZ$7,データシート1!$A:$BT,MATCH("ca_太陽光発電（10kW未満）",データシート1!$A$1:$BT$1,0),0) -> 645 | CN18: =VLOOKUP($CK18&"_"&$AZ$5,データシート1!$A:$BT,MATCH("ab_家庭",データシート1!$A$1:$BT$1,0),0) -> 3954 | CO18: 16.3%
AX19: =比較地域マスタ!$Y12 -> 40601 | AY19: =IF(IFERROR(比較地域マスタ!$Z12,"")=0,"",IFERROR(比較地域マスタ!$Z12,"")) -> 香春町 | BC19: 40601 | BD19: 香春町 | BE19: =VLOOKUP($BC19&"_"&$AZ$7,データシート1!$A:$BT,MATCH("cb_"&BE$12,データシート1!$A$1:$BT$1,0),0) -> 1,852 | BF19: =VLOOKUP($BC19&"_"&$AZ$7,データシート1!$A:$BT,MATCH("cb_"&BF$12,データシート1!$A$1:$BT$1,0),0) -> 13,251 | BG19: =VLOOKUP($BC19&"_"&$AZ$7,データシート1!$A:$BT,MATCH("cb_"&BG$12,データシート1!$A$1:$BT$1,0),0) -> 0 | BH19: =VLOOKUP($BC19&"_"&$AZ$7,データシート1!$A:$BT,MATCH("cb_"&BH$12,データシート1!$A$1:$BT$1,0),0) -> 0 | BI19: =VLOOKUP($BC19&"_"&$AZ$7,データシート1!$A:$BT,MATCH("cb_"&BI$12,データシート1!$A$1:$BT$1,0),0) -> 0 | BJ19: =VLOOKUP($BC19&"_"&$AZ$7,データシート1!$A:$BT,MATCH("cb_"&BJ$12,データシート1!$A$1:$BT$1,0),0) -> 0 | BK19: 15,103 | BM19: 40601 | BN19: 香春町 | BO19: =BE19*VLOOKUP(BO$12,別紙!$B$4:$E$10,MATCH("設備利用率",別紙!$B$4:$E$4,0),0)/100*8760/10^3 -> 2,223 | BP19: =BF19*VLOOKUP(BP$12,別紙!$B$4:$E$10,MATCH("設備利用率",別紙!$B$4:$E$4,0),0)/100*8760/10^3 -> 17,527 | BQ19: =BG19*VLOOKUP(BQ$12,別紙!$B$4:$E$10,MATCH("設備利用率",別紙!$B$4:$E$4,0),0)/100*8760/10^3 -> 0 | BR19: =BH19*VLOOKUP(BR$12,別紙!$B$4:$E$10,MATCH("設備利用率",別紙!$B$4:$E$4,0),0)/100*8760/10^3 -> 0 | BS19: =BI19*VLOOKUP(BS$12,別紙!$B$4:$E$10,MATCH("設備利用率",別紙!$B$4:$E$4,0),0)/100*8760/10^3 -> 0 | BT19: =BJ19*VLOOKUP(BT$12,別紙!$B$4:$E$10,MATCH("設備利用率",別紙!$B$4:$E$4,0),0)/100*8760/10^3 -> 0 | BU19: 19,750 | BW19: 40601 | BX19: 香春町 | BY19: =(VLOOKUP($BW19&"_"&$AZ$8,データシート1!$A:$BT,MATCH("da_製造業",データシート1!$A$1:$BT$1,0),0)+VLOOKUP($BW19&"_"&$AZ$8,データシート1!$A:$BT,MATCH("da_建設業・鉱業",データシート1!$A$1:$BT$1,0),0)+VLOOKUP($BW19&"_"&$AZ$8,データシート1!$A:$BT,MATCH("da_農林水産業",データシート1!$A$1:$BT$1,0),0)+VLOOKUP($BW19&"_"&$AZ$8,データシート1!$A:$BT,MATCH("da_業務",データシート1!$A$1:$BT$1,0),0)+VLOOKUP($BW19&"_"&$AZ$8,データシート1!$A:$BT,MATCH("da_家庭",データシート1!$A$1:$BT$1,0),0)+VLOOKUP($BW19&"_"&$AZ$8,データシート1!$A:$BT,MATCH("da_鉄道",データシート1!$A$1:$BT$1,0),0))/10^3 -> 48,267 | CA19: 40601 | CB19: 香春町 | CC19: 4.6% | CD19: 36.3% | CE19: 0.0% | CF19: 0.0% | CG19: 0.0% | CH19: 0.0% | CI19: 40.9% | CK19: 40601 | CL19: 香春町 | CM19: =VLOOKUP($CK19&"_"&$AZ$7,データシート1!$A:$BT,MATCH("ca_太陽光発電（10kW未満）",データシート1!$A$1:$BT$1,0),0) -> 390 | CN19: =VLOOKUP($CK19&"_"&$AZ$5,データシート1!$A:$BT,MATCH("ab_家庭",データシート1!$A$1:$BT$1,0),0) -> 5425 | CO19: 7.2%
AX20: =比較地域マスタ!$Y13 -> 43442 | AY20: =IF(IFERROR(比較地域マスタ!$Z13,"")=0,"",IFERROR(比較地域マスタ!$Z13,"")) -> 嘉島町 | BC20: 43442 | BD20: 嘉島町 | BE20: =VLOOKUP($BC20&"_"&$AZ$7,データシート1!$A:$BT,MATCH("cb_"&BE$12,データシート1!$A$1:$BT$1,0),0) -> 4,256 | BF20: =VLOOKUP($BC20&"_"&$AZ$7,データシート1!$A:$BT,MATCH("cb_"&BF$12,データシート1!$A$1:$BT$1,0),0) -> 3,268 | BG20: =VLOOKUP($BC20&"_"&$AZ$7,データシート1!$A:$BT,MATCH("cb_"&BG$12,データシート1!$A$1:$BT$1,0),0) -> 0 | BH20: =VLOOKUP($BC20&"_"&$AZ$7,データシート1!$A:$BT,MATCH("cb_"&BH$12,データシート1!$A$1:$BT$1,0),0) -> 0 | BI20: =VLOOKUP($BC20&"_"&$AZ$7,データシート1!$A:$BT,MATCH("cb_"&BI$12,データシート1!$A$1:$BT$1,0),0) -> 0 | BJ20: =VLOOKUP($BC20&"_"&$AZ$7,データシート1!$A:$BT,MATCH("cb_"&BJ$12,データシート1!$A$1:$BT$1,0),0) -> 0 | BK20: 7,524 | BM20: 43442 | BN20: 嘉島町 | BO20: =BE20*VLOOKUP(BO$12,別紙!$B$4:$E$10,MATCH("設備利用率",別紙!$B$4:$E$4,0),0)/100*8760/10^3 -> 5,107 | BP20: =BF20*VLOOKUP(BP$12,別紙!$B$4:$E$10,MATCH("設備利用率",別紙!$B$4:$E$4,0),0)/100*8760/10^3 -> 4,323 | BQ20: =BG20*VLOOKUP(BQ$12,別紙!$B$4:$E$10,MATCH("設備利用率",別紙!$B$4:$E$4,0),0)/100*8760/10^3 -> 0 | BR20: =BH20*VLOOKUP(BR$12,別紙!$B$4:$E$10,MATCH("設備利用率",別紙!$B$4:$E$4,0),0)/100*8760/10^3 -> 0 | BS20: =BI20*VLOOKUP(BS$12,別紙!$B$4:$E$10,MATCH("設備利用率",別紙!$B$4:$E$4,0),0)/100*8760/10^3 -> 0 | BT20: =BJ20*VLOOKUP(BT$12,別紙!$B$4:$E$10,MATCH("設備利用率",別紙!$B$4:$E$4,0),0)/100*8760/10^3 -> 0 | BU20: 9,431 | BW20: 43442 | BX20: 嘉島町 | BY20: =(VLOOKUP($BW20&"_"&$AZ$8,データシート1!$A:$BT,MATCH("da_製造業",データシート1!$A$1:$BT$1,0),0)+VLOOKUP($BW20&"_"&$AZ$8,データシート1!$A:$BT,MATCH("da_建設業・鉱業",データシート1!$A$1:$BT$1,0),0)+VLOOKUP($BW20&"_"&$AZ$8,データシート1!$A:$BT,MATCH("da_農林水産業",データシート1!$A$1:$BT$1,0),0)+VLOOKUP($BW20&"_"&$AZ$8,データシート1!$A:$BT,MATCH("da_業務",データシート1!$A$1:$BT$1,0),0)+VLOOKUP($BW20&"_"&$AZ$8,データシート1!$A:$BT,MATCH("da_家庭",データシート1!$A$1:$BT$1,0),0)+VLOOKUP($BW20&"_"&$AZ$8,データシート1!$A:$BT,MATCH("da_鉄道",データシート1!$A$1:$BT$1,0),0))/10^3 -> 92,373 | CA20: 43442 | CB20: 嘉島町 | CC20: 5.5% | CD20: 4.7% | CE20: 0.0% | CF20: 0.0% | CG20: 0.0% | CH20: 0.0% | CI20: 10.2% | CK20: 43442 | CL20: 嘉島町 | CM20: =VLOOKUP($CK20&"_"&$AZ$7,データシート1!$A:$BT,MATCH("ca_太陽光発電（10kW未満）",データシート1!$A$1:$BT$1,0),0) -> 800 | CN20: =VLOOKUP($CK20&"_"&$AZ$5,データシート1!$A:$BT,MATCH("ab_家庭",データシート1!$A$1:$BT$1,0),0) -> 4039 | CO20: 19.8%
AX21: =比較地域マスタ!$Y14 -> 45406 | AY21: =IF(IFERROR(比較地域マスタ!$Z14,"")=0,"",IFERROR(比較地域マスタ!$Z14,"")) -> 都農町 | BC21: 45406 | BD21: 都農町 | BE21: =VLOOKUP($BC21&"_"&$AZ$7,データシート1!$A:$BT,MATCH("cb_"&BE$12,データシート1!$A$1:$BT$1,0),0) -> 3,342 | BF21: =VLOOKUP($BC21&"_"&$AZ$7,データシート1!$A:$BT,MATCH("cb_"&BF$12,データシート1!$A$1:$BT$1,0),0) -> 23,759 | BG21: =VLOOKUP($BC21&"_"&$AZ$7,データシート1!$A:$BT,MATCH("cb_"&BG$12,データシート1!$A$1:$BT$1,0),0) -> 0 | BH21: =VLOOKUP($BC21&"_"&$AZ$7,データシート1!$A:$BT,MATCH("cb_"&BH$12,データシート1!$A$1:$BT$1,0),0) -> 3,000 | BI21: =VLOOKUP($BC21&"_"&$AZ$7,データシート1!$A:$BT,MATCH("cb_"&BI$12,データシート1!$A$1:$BT$1,0),0) -> 0 | BJ21: =VLOOKUP($BC21&"_"&$AZ$7,データシート1!$A:$BT,MATCH("cb_"&BJ$12,データシート1!$A$1:$BT$1,0),0) -> 5,750 | BK21: 35,850 | BM21: 45406 | BN21: 都農町 | BO21: =BE21*VLOOKUP(BO$12,別紙!$B$4:$E$10,MATCH("設備利用率",別紙!$B$4:$E$4,0),0)/100*8760/10^3 -> 4,010 | BP21: =BF21*VLOOKUP(BP$12,別紙!$B$4:$E$10,MATCH("設備利用率",別紙!$B$4:$E$4,0),0)/100*8760/10^3 -> 31,427 | BQ21: =BG21*VLOOKUP(BQ$12,別紙!$B$4:$E$10,MATCH("設備利用率",別紙!$B$4:$E$4,0),0)/100*8760/10^3 -> 0 | BR21: =BH21*VLOOKUP(BR$12,別紙!$B$4:$E$10,MATCH("設備利用率",別紙!$B$4:$E$4,0),0)/100*8760/10^3 -> 15,768 | BS21: =BI21*VLOOKUP(BS$12,別紙!$B$4:$E$10,MATCH("設備利用率",別紙!$B$4:$E$4,0),0)/100*8760/10^3 -> 0 | BT21: =BJ21*VLOOKUP(BT$12,別紙!$B$4:$E$10,MATCH("設備利用率",別紙!$B$4:$E$4,0),0)/100*8760/10^3 -> 40,296 | BU21: 91,501 | BW21: 45406 | BX21: 都農町 | BY21: =(VLOOKUP($BW21&"_"&$AZ$8,データシート1!$A:$BT,MATCH("da_製造業",データシート1!$A$1:$BT$1,0),0)+VLOOKUP($BW21&"_"&$AZ$8,データシート1!$A:$BT,MATCH("da_建設業・鉱業",データシート1!$A$1:$BT$1,0),0)+VLOOKUP($BW21&"_"&$AZ$8,データシート1!$A:$BT,MATCH("da_農林水産業",データシート1!$A$1:$BT$1,0),0)+VLOOKUP($BW21&"_"&$AZ$8,データシート1!$A:$BT,MATCH("da_業務",データシート1!$A$1:$BT$1,0),0)+VLOOKUP($BW21&"_"&$AZ$8,データシート1!$A:$BT,MATCH("da_家庭",データシート1!$A$1:$BT$1,0),0)+VLOOKUP($BW21&"_"&$AZ$8,データシート1!$A:$BT,MATCH("da_鉄道",データシート1!$A$1:$BT$1,0),0))/10^3 -> 57,842 | CA21: 45406 | CB21: 都農町 | CC21: 6.9% | CD21: 54.3% | CE21: 0.0% | CF21: 27.3% | CG21: 0.0% | CH21: 69.7% | CI21: 158.2% | CK21: 45406 | CL21: 都農町 | CM21: =VLOOKUP($CK21&"_"&$AZ$7,データシート1!$A:$BT,MATCH("ca_太陽光発電（10kW未満）",データシート1!$A$1:$BT$1,0),0) -> 607 | CN21: =VLOOKUP($CK21&"_"&$AZ$5,データシート1!$A:$BT,MATCH("ab_家庭",データシート1!$A$1:$BT$1,0),0) -> 4778 | CO21: 12.7%
AX22: =比較地域マスタ!$Y15 -> 43444 | AY22: =IF(IFERROR(比較地域マスタ!$Z15,"")=0,"",IFERROR(比較地域マスタ!$Z15,"")) -> 甲佐町 | BC22: 43444 | BD22: 甲佐町 | BE22: =VLOOKUP($BC22&"_"&$AZ$7,データシート1!$A:$BT,MATCH("cb_"&BE$12,データシート1!$A$1:$BT$1,0),0) -> 3,319 | BF22: =VLOOKUP($BC22&"_"&$AZ$7,データシート1!$A:$BT,MATCH("cb_"&BF$12,データシート1!$A$1:$BT$1,0),0) -> 13,327 | BG22: =VLOOKUP($BC22&"_"&$AZ$7,データシート1!$A:$BT,MATCH("cb_"&BG$12,データシート1!$A$1:$BT$1,0),0) -> 0 | BH22: =VLOOKUP($BC22&"_"&$AZ$7,データシート1!$A:$BT,MATCH("cb_"&BH$12,データシート1!$A$1:$BT$1,0),0) -> 7,200 | BI22: =VLOOKUP($BC22&"_"&$AZ$7,データシート1!$A:$BT,MATCH("cb_"&BI$12,データシート1!$A$1:$BT$1,0),0) -> 0 | BJ22: =VLOOKUP($BC22&"_"&$AZ$7,データシート1!$A:$BT,MATCH("cb_"&BJ$12,データシート1!$A$1:$BT$1,0),0) -> 1,990 | BK22: 25,836 | BM22: 43444 | BN22: 甲佐町 | BO22: =BE22*VLOOKUP(BO$12,別紙!$B$4:$E$10,MATCH("設備利用率",別紙!$B$4:$E$4,0),0)/100*8760/10^3 -> 3,984 | BP22: =BF22*VLOOKUP(BP$12,別紙!$B$4:$E$10,MATCH("設備利用率",別紙!$B$4:$E$4,0),0)/100*8760/10^3 -> 17,628 | BQ22: =BG22*VLOOKUP(BQ$12,別紙!$B$4:$E$10,MATCH("設備利用率",別紙!$B$4:$E$4,0),0)/100*8760/10^3 -> 0 | BR22: =BH22*VLOOKUP(BR$12,別紙!$B$4:$E$10,MATCH("設備利用率",別紙!$B$4:$E$4,0),0)/100*8760/10^3 -> 37,843 | BS22: =BI22*VLOOKUP(BS$12,別紙!$B$4:$E$10,MATCH("設備利用率",別紙!$B$4:$E$4,0),0)/100*8760/10^3 -> 0 | BT22: =BJ22*VLOOKUP(BT$12,別紙!$B$4:$E$10,MATCH("設備利用率",別紙!$B$4:$E$4,0),0)/100*8760/10^3 -> 13,946 | BU22: 73,401 | BW22: 43444 | BX22: 甲佐町 | BY22: =(VLOOKUP($BW22&"_"&$AZ$8,データシート1!$A:$BT,MATCH("da_製造業",データシート1!$A$1:$BT$1,0),0)+VLOOKUP($BW22&"_"&$AZ$8,データシート1!$A:$BT,MATCH("da_建設業・鉱業",データシート1!$A$1:$BT$1,0),0)+VLOOKUP($BW22&"_"&$AZ$8,データシート1!$A:$BT,MATCH("da_農林水産業",データシート1!$A$1:$BT$1,0),0)+VLOOKUP($BW22&"_"&$AZ$8,データシート1!$A:$BT,MATCH("da_業務",データシート1!$A$1:$BT$1,0),0)+VLOOKUP($BW22&"_"&$AZ$8,データシート1!$A:$BT,MATCH("da_家庭",データシート1!$A$1:$BT$1,0),0)+VLOOKUP($BW22&"_"&$AZ$8,データシート1!$A:$BT,MATCH("da_鉄道",データシート1!$A$1:$BT$1,0),0))/10^3 -> 50,324 | CA22: 43444 | CB22: 甲佐町 | CC22: 7.9% | CD22: 35.0% | CE22: 0.0% | CF22: 75.2% | CG22: 0.0% | CH22: 27.7% | CI22: 145.9% | CK22: 43444 | CL22: 甲佐町 | CM22: =VLOOKUP($CK22&"_"&$AZ$7,データシート1!$A:$BT,MATCH("ca_太陽光発電（10kW未満）",データシート1!$A$1:$BT$1,0),0) -> 631 | CN22: =VLOOKUP($CK22&"_"&$AZ$5,データシート1!$A:$BT,MATCH("ab_家庭",データシート1!$A$1:$BT$1,0),0) -> 4437 | CO22: 14.2%
AX23: =比較地域マスタ!$Y16 -> 43433 | AY23: =IF(IFERROR(比較地域マスタ!$Z16,"")=0,"",IFERROR(比較地域マスタ!$Z16,"")) -> 南阿蘇村 | BC23: 43433 | BD23: 南阿蘇村 | BE23: =VLOOKUP($BC23&"_"&$AZ$7,データシート1!$A:$BT,MATCH("cb_"&BE$12,データシート1!$A$1:$BT$1,0),0) -> 2,950 | BF23: =VLOOKUP($BC23&"_"&$AZ$7,データシート1!$A:$BT,MATCH("cb_"&BF$12,データシート1!$A$1:$BT$1,0),0) -> 8,540 | BG23: =VLOOKUP($BC23&"_"&$AZ$7,データシート1!$A:$BT,MATCH("cb_"&BG$12,データシート1!$A$1:$BT$1,0),0) -> 9 | BH23: =VLOOKUP($BC23&"_"&$AZ$7,データシート1!$A:$BT,MATCH("cb_"&BH$12,データシート1!$A$1:$BT$1,0),0) -> 198 | BI23: =VLOOKUP($BC23&"_"&$AZ$7,データシート1!$A:$BT,MATCH("cb_"&BI$12,データシート1!$A$1:$BT$1,0),0) -> 2,168 | BJ23: =VLOOKUP($BC23&"_"&$AZ$7,データシート1!$A:$BT,MATCH("cb_"&BJ$12,データシート1!$A$1:$BT$1,0),0) -> 0 | BK23: 13,864 | BM23: 43433 | BN23: 南阿蘇村 | BO23: =BE23*VLOOKUP(BO$12,別紙!$B$4:$E$10,MATCH("設備利用率",別紙!$B$4:$E$4,0),0)/100*8760/10^3 -> 3,540 | BP23: =BF23*VLOOKUP(BP$12,別紙!$B$4:$E$10,MATCH("設備利用率",別紙!$B$4:$E$4,0),0)/100*8760/10^3 -> 11,296 | BQ23: =BG23*VLOOKUP(BQ$12,別紙!$B$4:$E$10,MATCH("設備利用率",別紙!$B$4:$E$4,0),0)/100*8760/10^3 -> 20 | BR23: =BH23*VLOOKUP(BR$12,別紙!$B$4:$E$10,MATCH("設備利用率",別紙!$B$4:$E$4,0),0)/100*8760/10^3 -> 1,041 | BS23: =BI23*VLOOKUP(BS$12,別紙!$B$4:$E$10,MATCH("設備利用率",別紙!$B$4:$E$4,0),0)/100*8760/10^3 -> 15,193 | BT23: =BJ23*VLOOKUP(BT$12,別紙!$B$4:$E$10,MATCH("設備利用率",別紙!$B$4:$E$4,0),0)/100*8760/10^3 -> 0 | BU23: 31,090 | BW23: 43433 | BX23: 南阿蘇村 | BY23: =(VLOOKUP($BW23&"_"&$AZ$8,データシート1!$A:$BT,MATCH("da_製造業",データシート1!$A$1:$BT$1,0),0)+VLOOKUP($BW23&"_"&$AZ$8,データシート1!$A:$BT,MATCH("da_建設業・鉱業",データシート1!$A$1:$BT$1,0),0)+VLOOKUP($BW23&"_"&$AZ$8,データシート1!$A:$BT,MATCH("da_農林水産業",データシート1!$A$1:$BT$1,0),0)+VLOOKUP($BW23&"_"&$AZ$8,データシート1!$A:$BT,MATCH("da_業務",データシート1!$A$1:$BT$1,0),0)+VLOOKUP($BW23&"_"&$AZ$8,データシート1!$A:$BT,MATCH("da_家庭",データシート1!$A$1:$BT$1,0),0)+VLOOKUP($BW23&"_"&$AZ$8,データシート1!$A:$BT,MATCH("da_鉄道",データシート1!$A$1:$BT$1,0),0))/10^3 -> 47,107 | CA23: 43433 | CB23: 南阿蘇村 | CC23: 7.5% | CD23: 24.0% | CE23: 0.0% | CF23: 2.2% | CG23: 32.3% | CH23: 0.0% | CI23: 66.0% | CK23: 43433 | CL23: 南阿蘇村 | CM23: =VLOOKUP($CK23&"_"&$AZ$7,データシート1!$A:$BT,MATCH("ca_太陽光発電（10kW未満）",データシート1!$A$1:$BT$1,0),0) -> 552 | CN23: =VLOOKUP($CK23&"_"&$AZ$5,データシート1!$A:$BT,MATCH("ab_家庭",データシート1!$A$1:$BT$1,0),0) -> 4703 | CO23: 11.7%
AX24: =比較地域マスタ!$Y17 -> 39428 | AY24: =IF(IFERROR(比較地域マスタ!$Z17,"")=0,"",IFERROR(比較地域マスタ!$Z17,"")) -> 黒潮町 | BC24: 39428 | BD24: 黒潮町 | BE24: =VLOOKUP($BC24&"_"&$AZ$7,データシート1!$A:$BT,MATCH("cb_"&BE$12,データシート1!$A$1:$BT$1,0),0) -> 1,316 | BF24: =VLOOKUP($BC24&"_"&$AZ$7,データシート1!$A:$BT,MATCH("cb_"&BF$12,データシート1!$A$1:$BT$1,0),0) -> 5,160 | BG24: =VLOOKUP($BC24&"_"&$AZ$7,データシート1!$A:$BT,MATCH("cb_"&BG$12,データシート1!$A$1:$BT$1,0),0) -> 0 | BH24: =VLOOKUP($BC24&"_"&$AZ$7,データシート1!$A:$BT,MATCH("cb_"&BH$12,データシート1!$A$1:$BT$1,0),0) -> 0 | BI24: =VLOOKUP($BC24&"_"&$AZ$7,データシート1!$A:$BT,MATCH("cb_"&BI$12,データシート1!$A$1:$BT$1,0),0) -> 0 | BJ24: =VLOOKUP($BC24&"_"&$AZ$7,データシート1!$A:$BT,MATCH("cb_"&BJ$12,データシート1!$A$1:$BT$1,0),0) -> 0 | BK24: 6,476 | BM24: 39428 | BN24: 黒潮町 | BO24: =BE24*VLOOKUP(BO$12,別紙!$B$4:$E$10,MATCH("設備利用率",別紙!$B$4:$E$4,0),0)/100*8760/10^3 -> 1,579 | BP24: =BF24*VLOOKUP(BP$12,別紙!$B$4:$E$10,MATCH("設備利用率",別紙!$B$4:$E$4,0),0)/100*8760/10^3 -> 6,825 | BQ24: =BG24*VLOOKUP(BQ$12,別紙!$B$4:$E$10,MATCH("設備利用率",別紙!$B$4:$E$4,0),0)/100*8760/10^3 -> 0 | BR24: =BH24*VLOOKUP(BR$12,別紙!$B$4:$E$10,MATCH("設備利用率",別紙!$B$4:$E$4,0),0)/100*8760/10^3 -> 0 | BS24: =BI24*VLOOKUP(BS$12,別紙!$B$4:$E$10,MATCH("設備利用率",別紙!$B$4:$E$4,0),0)/100*8760/10^3 -> 0 | BT24: =BJ24*VLOOKUP(BT$12,別紙!$B$4:$E$10,MATCH("設備利用率",別紙!$B$4:$E$4,0),0)/100*8760/10^3 -> 0 | BU24: 8,404 | BW24: 39428 | BX24: 黒潮町 | BY24: =(VLOOKUP($BW24&"_"&$AZ$8,データシート1!$A:$BT,MATCH("da_製造業",データシート1!$A$1:$BT$1,0),0)+VLOOKUP($BW24&"_"&$AZ$8,データシート1!$A:$BT,MATCH("da_建設業・鉱業",データシート1!$A$1:$BT$1,0),0)+VLOOKUP($BW24&"_"&$AZ$8,データシート1!$A:$BT,MATCH("da_農林水産業",データシート1!$A$1:$BT$1,0),0)+VLOOKUP($BW24&"_"&$AZ$8,データシート1!$A:$BT,MATCH("da_業務",データシート1!$A$1:$BT$1,0),0)+VLOOKUP($BW24&"_"&$AZ$8,データシート1!$A:$BT,MATCH("da_家庭",データシート1!$A$1:$BT$1,0),0)+VLOOKUP($BW24&"_"&$AZ$8,データシート1!$A:$BT,MATCH("da_鉄道",データシート1!$A$1:$BT$1,0),0))/10^3 -> 46,513 | CA24: 39428 | CB24: 黒潮町 | CC24: 3.4% | CD24: 14.7% | CE24: 0.0% | CF24: 0.0% | CG24: 0.0% | CH24: 0.0% | CI24: 18.1% | CK24: 39428 | CL24: 黒潮町 | CM24: =VLOOKUP($CK24&"_"&$AZ$7,データシート1!$A:$BT,MATCH("ca_太陽光発電（10kW未満）",データシート1!$A$1:$BT$1,0),0) -> 270 | CN24: =VLOOKUP($CK24&"_"&$AZ$5,データシート1!$A:$BT,MATCH("ab_家庭",データシート1!$A$1:$BT$1,0),0) -> 5380 | CO24: 5.0%
AX25: =比較地域マスタ!$Y18 -> 21505 | AY25: =IF(IFERROR(比較地域マスタ!$Z18,"")=0,"",IFERROR(比較地域マスタ!$Z18,"")) -> 八百津町 | BC25: 21505 | BD25: 八百津町 | BE25: =VLOOKUP($BC25&"_"&$AZ$7,データシート1!$A:$BT,MATCH("cb_"&BE$12,データシート1!$A$1:$BT$1,0),0) -> 1,989 | BF25: =VLOOKUP($BC25&"_"&$AZ$7,データシート1!$A:$BT,MATCH("cb_"&BF$12,データシート1!$A$1:$BT$1,0),0) -> 24,946 | BG25: =VLOOKUP($BC25&"_"&$AZ$7,データシート1!$A:$BT,MATCH("cb_"&BG$12,データシート1!$A$1:$BT$1,0),0) -> 0 | BH25: =VLOOKUP($BC25&"_"&$AZ$7,データシート1!$A:$BT,MATCH("cb_"&BH$12,データシート1!$A$1:$BT$1,0),0) -> 0 | BI25: =VLOOKUP($BC25&"_"&$AZ$7,データシート1!$A:$BT,MATCH("cb_"&BI$12,データシート1!$A$1:$BT$1,0),0) -> 0 | BJ25: =VLOOKUP($BC25&"_"&$AZ$7,データシート1!$A:$BT,MATCH("cb_"&BJ$12,データシート1!$A$1:$BT$1,0),0) -> 0 | BK25: 26,935 | BM25: 21505 | BN25: 八百津町 | BO25: =BE25*VLOOKUP(BO$12,別紙!$B$4:$E$10,MATCH("設備利用率",別紙!$B$4:$E$4,0),0)/100*8760/10^3 -> 2,387 | BP25: =BF25*VLOOKUP(BP$12,別紙!$B$4:$E$10,MATCH("設備利用率",別紙!$B$4:$E$4,0),0)/100*8760/10^3 -> 32,998 | BQ25: =BG25*VLOOKUP(BQ$12,別紙!$B$4:$E$10,MATCH("設備利用率",別紙!$B$4:$E$4,0),0)/100*8760/10^3 -> 0 | BR25: =BH25*VLOOKUP(BR$12,別紙!$B$4:$E$10,MATCH("設備利用率",別紙!$B$4:$E$4,0),0)/100*8760/10^3 -> 0 | BS25: =BI25*VLOOKUP(BS$12,別紙!$B$4:$E$10,MATCH("設備利用率",別紙!$B$4:$E$4,0),0)/100*8760/10^3 -> 0 | BT25: =BJ25*VLOOKUP(BT$12,別紙!$B$4:$E$10,MATCH("設備利用率",別紙!$B$4:$E$4,0),0)/100*8760/10^3 -> 0 | BU25: 35,385 | BW25: 21505 | BX25: 八百津町 | BY25: =(VLOOKUP($BW25&"_"&$AZ$8,データシート1!$A:$BT,MATCH("da_製造業",データシート1!$A$1:$BT$1,0),0)+VLOOKUP($BW25&"_"&$AZ$8,データシート1!$A:$BT,MATCH("da_建設業・鉱業",データシート1!$A$1:$BT$1,0),0)+VLOOKUP($BW25&"_"&$AZ$8,データシート1!$A:$BT,MATCH("da_農林水産業",データシート1!$A$1:$BT$1,0),0)+VLOOKUP($BW25&"_"&$AZ$8,データシート1!$A:$BT,MATCH("da_業務",データシート1!$A$1:$BT$1,0),0)+VLOOKUP($BW25&"_"&$AZ$8,データシート1!$A:$BT,MATCH("da_家庭",データシート1!$A$1:$BT$1,0),0)+VLOOKUP($BW25&"_"&$AZ$8,データシート1!$A:$BT,MATCH("da_鉄道",データシート1!$A$1:$BT$1,0),0))/10^3 -> 86,991 | CA25: 21505 | CB25: 八百津町 | CC25: 2.7% | CD25: 37.9% | CE25: 0.0% | CF25: 0.0% | CG25: 0.0% | CH25: 0.0% | CI25: 40.7% | CK25: 21505 | CL25: 八百津町 | CM25: =VLOOKUP($CK25&"_"&$AZ$7,データシート1!$A:$BT,MATCH("ca_太陽光発電（10kW未満）",データシート1!$A$1:$BT$1,0),0) -> 398 | CN25: =VLOOKUP($CK25&"_"&$AZ$5,データシート1!$A:$BT,MATCH("ab_家庭",データシート1!$A$1:$BT$1,0),0) -> 4302 | CO25: 9.3%
AX26: =比較地域マスタ!$Y19 -> 09384 | AY26: =IF(IFERROR(比較地域マスタ!$Z19,"")=0,"",IFERROR(比較地域マスタ!$Z19,"")) -> 塩谷町 | BC26: 09384 | BD26: 塩谷町 | BE26: =VLOOKUP($BC26&"_"&$AZ$7,データシート1!$A:$BT,MATCH("cb_"&BE$12,データシート1!$A$1:$BT$1,0),0) -> 1,176 | BF26: =VLOOKUP($BC26&"_"&$AZ$7,データシート1!$A:$BT,MATCH("cb_"&BF$12,データシート1!$A$1:$BT$1,0),0) -> 58,690 | BG26: =VLOOKUP($BC26&"_"&$AZ$7,データシート1!$A:$BT,MATCH("cb_"&BG$12,データシート1!$A$1:$BT$1,0),0) -> 0 | BH26: =VLOOKUP($BC26&"_"&$AZ$7,データシート1!$A:$BT,MATCH("cb_"&BH$12,データシート1!$A$1:$BT$1,0),0) -> 0 | BI26: =VLOOKUP($BC26&"_"&$AZ$7,データシート1!$A:$BT,MATCH("cb_"&BI$12,データシート1!$A$1:$BT$1,0),0) -> 0 | BJ26: =VLOOKUP($BC26&"_"&$AZ$7,データシート1!$A:$BT,MATCH("cb_"&BJ$12,データシート1!$A$1:$BT$1,0),0) -> 0 | BK26: 59,866 | BM26: 09384 | BN26: 塩谷町 | BO26: =BE26*VLOOKUP(BO$12,別紙!$B$4:$E$10,MATCH("設備利用率",別紙!$B$4:$E$4,0),0)/100*8760/10^3 -> 1,411 | BP26: =BF26*VLOOKUP(BP$12,別紙!$B$4:$E$10,MATCH("設備利用率",別紙!$B$4:$E$4,0),0)/100*8760/10^3 -> 77,633 | BQ26: =BG26*VLOOKUP(BQ$12,別紙!$B$4:$E$10,MATCH("設備利用率",別紙!$B$4:$E$4,0),0)/100*8760/10^3 -> 0 | BR26: =BH26*VLOOKUP(BR$12,別紙!$B$4:$E$10,MATCH("設備利用率",別紙!$B$4:$E$4,0),0)/100*8760/10^3 -> 0 | BS26: =BI26*VLOOKUP(BS$12,別紙!$B$4:$E$10,MATCH("設備利用率",別紙!$B$4:$E$4,0),0)/100*8760/10^3 -> 0 | BT26: =BJ26*VLOOKUP(BT$12,別紙!$B$4:$E$10,MATCH("設備利用率",別紙!$B$4:$E$4,0),0)/100*8760/10^3 -> 0 | BU26: 79,044 | BW26: 09384 | BX26: 塩谷町 | BY26: =(VLOOKUP($BW26&"_"&$AZ$8,データシート1!$A:$BT,MATCH("da_製造業",データシート1!$A$1:$BT$1,0),0)+VLOOKUP($BW26&"_"&$AZ$8,データシート1!$A:$BT,MATCH("da_建設業・鉱業",データシート1!$A$1:$BT$1,0),0)+VLOOKUP($BW26&"_"&$AZ$8,データシート1!$A:$BT,MATCH("da_農林水産業",データシート1!$A$1:$BT$1,0),0)+VLOOKUP($BW26&"_"&$AZ$8,データシート1!$A:$BT,MATCH("da_業務",データシート1!$A$1:$BT$1,0),0)+VLOOKUP($BW26&"_"&$AZ$8,データシート1!$A:$BT,MATCH("da_家庭",データシート1!$A$1:$BT$1,0),0)+VLOOKUP($BW26&"_"&$AZ$8,データシート1!$A:$BT,MATCH("da_鉄道",データシート1!$A$1:$BT$1,0),0))/10^3 -> 58,597 | CA26: 09384 | CB26: 塩谷町 | CC26: 2.4% | CD26: 132.5% | CE26: 0.0% | CF26: 0.0% | CG26: 0.0% | CH26: 0.0% | CI26: 134.9% | CK26: 09384 | CL26: 塩谷町 | CM26: =VLOOKUP($CK26&"_"&$AZ$7,データシート1!$A:$BT,MATCH("ca_太陽光発電（10kW未満）",データシート1!$A$1:$BT$1,0),0) -> 218 | CN26: =VLOOKUP($CK26&"_"&$AZ$5,データシート1!$A:$BT,MATCH("ab_家庭",データシート1!$A$1:$BT$1,0),0) -> 4032 | CO26: 5.4%
AX27: =比較地域マスタ!$Y20 -> 46530 | AY27: =IF(IFERROR(比較地域マスタ!$Z20,"")=0,"",IFERROR(比較地域マスタ!$Z20,"")) -> 徳之島町 | BC27: 46530 | BD27: 徳之島町 | BE27: =VLOOKUP($BC27&"_"&$AZ$7,データシート1!$A:$BT,MATCH("cb_"&BE$12,データシート1!$A$1:$BT$1,0),0) -> 386 | BF27: =VLOOKUP($BC27&"_"&$AZ$7,データシート1!$A:$BT,MATCH("cb_"&BF$12,データシート1!$A$1:$BT$1,0),0) -> 2,167 | BG27: =VLOOKUP($BC27&"_"&$AZ$7,データシート1!$A:$BT,MATCH("cb_"&BG$12,データシート1!$A$1:$BT$1,0),0) -> 114 | BH27: =VLOOKUP($BC27&"_"&$AZ$7,データシート1!$A:$BT,MATCH("cb_"&BH$12,データシート1!$A$1:$BT$1,0),0) -> 0 | BI27: =VLOOKUP($BC27&"_"&$AZ$7,データシート1!$A:$BT,MATCH("cb_"&BI$12,データシート1!$A$1:$BT$1,0),0) -> 0 | BJ27: =VLOOKUP($BC27&"_"&$AZ$7,データシート1!$A:$BT,MATCH("cb_"&BJ$12,データシート1!$A$1:$BT$1,0),0) -> 0 | BK27: 2,667 | BM27: 46530 | BN27: 徳之島町 | BO27: =BE27*VLOOKUP(BO$12,別紙!$B$4:$E$10,MATCH("設備利用率",別紙!$B$4:$E$4,0),0)/100*8760/10^3 -> 463 | BP27: =BF27*VLOOKUP(BP$12,別紙!$B$4:$E$10,MATCH("設備利用率",別紙!$B$4:$E$4,0),0)/100*8760/10^3 -> 2,866 | BQ27: =BG27*VLOOKUP(BQ$12,別紙!$B$4:$E$10,MATCH("設備利用率",別紙!$B$4:$E$4,0),0)/100*8760/10^3 -> 248 | BR27: =BH27*VLOOKUP(BR$12,別紙!$B$4:$E$10,MATCH("設備利用率",別紙!$B$4:$E$4,0),0)/100*8760/10^3 -> 0 | BS27: =BI27*VLOOKUP(BS$12,別紙!$B$4:$E$10,MATCH("設備利用率",別紙!$B$4:$E$4,0),0)/100*8760/10^3 -> 0 | BT27: =BJ27*VLOOKUP(BT$12,別紙!$B$4:$E$10,MATCH("設備利用率",別紙!$B$4:$E$4,0),0)/100*8760/10^3 -> 0 | BU27: 3,577 | BW27: 46530 | BX27: 徳之島町 | BY27: =(VLOOKUP($BW27&"_"&$AZ$8,データシート1!$A:$BT,MATCH("da_製造業",データシート1!$A$1:$BT$1,0),0)+VLOOKUP($BW27&"_"&$AZ$8,データシート1!$A:$BT,MATCH("da_建設業・鉱業",データシート1!$A$1:$BT$1,0),0)+VLOOKUP($BW27&"_"&$AZ$8,データシート1!$A:$BT,MATCH("da_農林水産業",データシート1!$A$1:$BT$1,0),0)+VLOOKUP($BW27&"_"&$AZ$8,データシート1!$A:$BT,MATCH("da_業務",データシート1!$A$1:$BT$1,0),0)+VLOOKUP($BW27&"_"&$AZ$8,データシート1!$A:$BT,MATCH("da_家庭",データシート1!$A$1:$BT$1,0),0)+VLOOKUP($BW27&"_"&$AZ$8,データシート1!$A:$BT,MATCH("da_鉄道",データシート1!$A$1:$BT$1,0),0))/10^3 -> 58,378 | CA27: 46530 | CB27: 徳之島町 | CC27: 0.8% | CD27: 4.9% | CE27: 0.4% | CF27: 0.0% | CG27: 0.0% | CH27: 0.0% | CI27: 6.1% | CK27: 46530 | CL27: 徳之島町 | CM27: =VLOOKUP($CK27&"_"&$AZ$7,データシート1!$A:$BT,MATCH("ca_太陽光発電（10kW未満）",データシート1!$A$1:$BT$1,0),0) -> 80 | CN27: =VLOOKUP($CK27&"_"&$AZ$5,データシート1!$A:$BT,MATCH("ab_家庭",データシート1!$A$1:$BT$1,0),0) -> 5736 | CO27: 1.4%
AX28: =比較地域マスタ!$Y21 -> 04322 | AY28: =IF(IFERROR(比較地域マスタ!$Z21,"")=0,"",IFERROR(比較地域マスタ!$Z21,"")) -> 村田町 | BC28: 04322 | BD28: 村田町 | BE28: =VLOOKUP($BC28&"_"&$AZ$7,データシート1!$A:$BT,MATCH("cb_"&BE$12,データシート1!$A$1:$BT$1,0),0) -> 1,597 | BF28: =VLOOKUP($BC28&"_"&$AZ$7,データシート1!$A:$BT,MATCH("cb_"&BF$12,データシート1!$A$1:$BT$1,0),0) -> 7,132 | BG28: =VLOOKUP($BC28&"_"&$AZ$7,データシート1!$A:$BT,MATCH("cb_"&BG$12,データシート1!$A$1:$BT$1,0),0) -> 0 | BH28: =VLOOKUP($BC28&"_"&$AZ$7,データシート1!$A:$BT,MATCH("cb_"&BH$12,データシート1!$A$1:$BT$1,0),0) -> 0 | BI28: =VLOOKUP($BC28&"_"&$AZ$7,データシート1!$A:$BT,MATCH("cb_"&BI$12,データシート1!$A$1:$BT$1,0),0) -> 0 | BJ28: =VLOOKUP($BC28&"_"&$AZ$7,データシート1!$A:$BT,MATCH("cb_"&BJ$12,データシート1!$A$1:$BT$1,0),0) -> 0 | BK28: 8,729 | BM28: 04322 | BN28: 村田町 | BO28: =BE28*VLOOKUP(BO$12,別紙!$B$4:$E$10,MATCH("設備利用率",別紙!$B$4:$E$4,0),0)/100*8760/10^3 -> 1,916 | BP28: =BF28*VLOOKUP(BP$12,別紙!$B$4:$E$10,MATCH("設備利用率",別紙!$B$4:$E$4,0),0)/100*8760/10^3 -> 9,433 | BQ28: =BG28*VLOOKUP(BQ$12,別紙!$B$4:$E$10,MATCH("設備利用率",別紙!$B$4:$E$4,0),0)/100*8760/10^3 -> 0 | BR28: =BH28*VLOOKUP(BR$12,別紙!$B$4:$E$10,MATCH("設備利用率",別紙!$B$4:$E$4,0),0)/100*8760/10^3 -> 0 | BS28: =BI28*VLOOKUP(BS$12,別紙!$B$4:$E$10,MATCH("設備利用率",別紙!$B$4:$E$4,0),0)/100*8760/10^3 -> 0 | BT28: =BJ28*VLOOKUP(BT$12,別紙!$B$4:$E$10,MATCH("設備利用率",別紙!$B$4:$E$4,0),0)/100*8760/10^3 -> 0 | BU28: 11,350 | BW28: 04322 | BX28: 村田町 | BY28: =(VLOOKUP($BW28&"_"&$AZ$8,データシート1!$A:$BT,MATCH("da_製造業",データシート1!$A$1:$BT$1,0),0)+VLOOKUP($BW28&"_"&$AZ$8,データシート1!$A:$BT,MATCH("da_建設業・鉱業",データシート1!$A$1:$BT$1,0),0)+VLOOKUP($BW28&"_"&$AZ$8,データシート1!$A:$BT,MATCH("da_農林水産業",データシート1!$A$1:$BT$1,0),0)+VLOOKUP($BW28&"_"&$AZ$8,データシート1!$A:$BT,MATCH("da_業務",データシート1!$A$1:$BT$1,0),0)+VLOOKUP($BW28&"_"&$AZ$8,データシート1!$A:$BT,MATCH("da_家庭",データシート1!$A$1:$BT$1,0),0)+VLOOKUP($BW28&"_"&$AZ$8,データシート1!$A:$BT,MATCH("da_鉄道",データシート1!$A$1:$BT$1,0),0))/10^3 -> 63,877 | CA28: 04322 | CB28: 村田町 | CC28: 3.0% | CD28: 14.8% | CE28: 0.0% | CF28: 0.0% | CG28: 0.0% | CH28: 0.0% | CI28: 17.8% | CK28: 04322 | CL28: 村田町 | CM28: =VLOOKUP($CK28&"_"&$AZ$7,データシート1!$A:$BT,MATCH("ca_太陽光発電（10kW未満）",データシート1!$A$1:$BT$1,0),0) -> 338 | CN28: =VLOOKUP($CK28&"_"&$AZ$5,データシート1!$A:$BT,MATCH("ab_家庭",データシート1!$A$1:$BT$1,0),0) -> 4085 | CO28: 8.3%
AX29: =比較地域マスタ!$Y22 -> 01428 | AY29: =IF(IFERROR(比較地域マスタ!$Z22,"")=0,"",IFERROR(比較地域マスタ!$Z22,"")) -> 長沼町 | BC29: 01428 | BD29: 長沼町 | BE29: =VLOOKUP($BC29&"_"&$AZ$7,データシート1!$A:$BT,MATCH("cb_"&BE$12,データシート1!$A$1:$BT$1,0),0) -> 1,144 | BF29: =VLOOKUP($BC29&"_"&$AZ$7,データシート1!$A:$BT,MATCH("cb_"&BF$12,データシート1!$A$1:$BT$1,0),0) -> 8,011 | BG29: =VLOOKUP($BC29&"_"&$AZ$7,データシート1!$A:$BT,MATCH("cb_"&BG$12,データシート1!$A$1:$BT$1,0),0) -> 0 | BH29: =VLOOKUP($BC29&"_"&$AZ$7,データシート1!$A:$BT,MATCH("cb_"&BH$12,データシート1!$A$1:$BT$1,0),0) -> 0 | BI29: =VLOOKUP($BC29&"_"&$AZ$7,データシート1!$A:$BT,MATCH("cb_"&BI$12,データシート1!$A$1:$BT$1,0),0) -> 0 | BJ29: =VLOOKUP($BC29&"_"&$AZ$7,データシート1!$A:$BT,MATCH("cb_"&BJ$12,データシート1!$A$1:$BT$1,0),0) -> 0 | BK29: 9,155 | BM29: 01428 | BN29: 長沼町 | BO29: =BE29*VLOOKUP(BO$12,別紙!$B$4:$E$10,MATCH("設備利用率",別紙!$B$4:$E$4,0),0)/100*8760/10^3 -> 1,373 | BP29: =BF29*VLOOKUP(BP$12,別紙!$B$4:$E$10,MATCH("設備利用率",別紙!$B$4:$E$4,0),0)/100*8760/10^3 -> 10,596 | BQ29: =BG29*VLOOKUP(BQ$12,別紙!$B$4:$E$10,MATCH("設備利用率",別紙!$B$4:$E$4,0),0)/100*8760/10^3 -> 0 | BR29: =BH29*VLOOKUP(BR$12,別紙!$B$4:$E$10,MATCH("設備利用率",別紙!$B$4:$E$4,0),0)/100*8760/10^3 -> 0 | BS29: =BI29*VLOOKUP(BS$12,別紙!$B$4:$E$10,MATCH("設備利用率",別紙!$B$4:$E$4,0),0)/100*8760/10^3 -> 0 | BT29: =BJ29*VLOOKUP(BT$12,別紙!$B$4:$E$10,MATCH("設備利用率",別紙!$B$4:$E$4,0),0)/100*8760/10^3 -> 0 | BU29: 11,969 | BW29: 01428 | BX29: 長沼町 | BY29: =(VLOOKUP($BW29&"_"&$AZ$8,データシート1!$A:$BT,MATCH("da_製造業",データシート1!$A$1:$BT$1,0),0)+VLOOKUP($BW29&"_"&$AZ$8,データシート1!$A:$BT,MATCH("da_建設業・鉱業",データシート1!$A$1:$BT$1,0),0)+VLOOKUP($BW29&"_"&$AZ$8,データシート1!$A:$BT,MATCH("da_農林水産業",データシート1!$A$1:$BT$1,0),0)+VLOOKUP($BW29&"_"&$AZ$8,データシート1!$A:$BT,MATCH("da_業務",データシート1!$A$1:$BT$1,0),0)+VLOOKUP($BW29&"_"&$AZ$8,データシート1!$A:$BT,MATCH("da_家庭",データシート1!$A$1:$BT$1,0),0)+VLOOKUP($BW29&"_"&$AZ$8,データシート1!$A:$BT,MATCH("da_鉄道",データシート1!$A$1:$BT$1,0),0))/10^3 -> 50,102 | CA29: 01428 | CB29: 長沼町 | CC29: 2.7% | CD29: =BP29/$BY29 -> 21.1% | CE29: =BQ29/$BY29 -> 0.0% | CF29: =BR29/$BY29 -> 0.0% | CG29: =BS29/$BY29 -> 0.0% | CH29: =BT29/$BY29 -> 0.0% | CI29: 23.9% | CK29: 01428 | CL29: 長沼町 | CM29: =VLOOKUP($CK29&"_"&$AZ$7,データシート1!$A:$BT,MATCH("ca_太陽光発電（10kW未満）",データシート1!$A$1:$BT$1,0),0) -> 204 | CN29: =VLOOKUP($CK29&"_"&$AZ$5,データシート1!$A:$BT,MATCH("ab_家庭",データシート1!$A$1:$BT$1,0),0) -> 4914 | CO29: 4.2%
AX30: =比較地域マスタ!$Y23 -> 19365 | AY30: =IF(IFERROR(比較地域マスタ!$Z23,"")=0,"",IFERROR(比較地域マスタ!$Z23,"")) -> 身延町 | BC30: 19365 | BD30: 身延町 | BE30: =VLOOKUP($BC30&"_"&$AZ$7,データシート1!$A:$BT,MATCH("cb_"&BE$12,データシート1!$A$1:$BT$1,0),0) -> 830 | BF30: =VLOOKUP($BC30&"_"&$AZ$7,データシート1!$A:$BT,MATCH("cb_"&BF$12,データシート1!$A$1:$BT$1,0),0) -> 5,621 | BG30: =VLOOKUP($BC30&"_"&$AZ$7,データシート1!$A:$BT,MATCH("cb_"&BG$12,データシート1!$A$1:$BT$1,0),0) -> 0 | BH30: =VLOOKUP($BC30&"_"&$AZ$7,データシート1!$A:$BT,MATCH("cb_"&BH$12,データシート1!$A$1:$BT$1,0),0) -> 21,946 | BI30: =VLOOKUP($BC30&"_"&$AZ$7,データシート1!$A:$BT,MATCH("cb_"&BI$12,データシート1!$A$1:$BT$1,0),0) -> 0 | BJ30: =VLOOKUP($BC30&"_"&$AZ$7,データシート1!$A:$BT,MATCH("cb_"&BJ$12,データシート1!$A$1:$BT$1,0),0) -> 0 | BK30: 28,397 | BM30: 19365 | BN30: 身延町 | BO30: =BE30*VLOOKUP(BO$12,別紙!$B$4:$E$10,MATCH("設備利用率",別紙!$B$4:$E$4,0),0)/100*8760/10^3 -> 996 | BP30: =BF30*VLOOKUP(BP$12,別紙!$B$4:$E$10,MATCH("設備利用率",別紙!$B$4:$E$4,0),0)/100*8760/10^3 -> 7,435 | BQ30: =BG30*VLOOKUP(BQ$12,別紙!$B$4:$E$10,MATCH("設備利用率",別紙!$B$4:$E$4,0),0)/100*8760/10^3 -> 0 | BR30: =BH30*VLOOKUP(BR$12,別紙!$B$4:$E$10,MATCH("設備利用率",別紙!$B$4:$E$4,0),0)/100*8760/10^3 -> 115,348 | BS30: =BI30*VLOOKUP(BS$12,別紙!$B$4:$E$10,MATCH("設備利用率",別紙!$B$4:$E$4,0),0)/100*8760/10^3 -> 0 | BT30: =BJ30*VLOOKUP(BT$12,別紙!$B$4:$E$10,MATCH("設備利用率",別紙!$B$4:$E$4,0),0)/100*8760/10^3 -> 0 | BU30: 123,780 | BW30: 19365 | BX30: 身延町 | BY30: =(VLOOKUP($BW30&"_"&$AZ$8,データシート1!$A:$BT,MATCH("da_製造業",データシート1!$A$1:$BT$1,0),0)+VLOOKUP($BW30&"_"&$AZ$8,データシート1!$A:$BT,MATCH("da_建設業・鉱業",データシート1!$A$1:$BT$1,0),0)+VLOOKUP($BW30&"_"&$AZ$8,データシート1!$A:$BT,MATCH("da_農林水産業",データシート1!$A$1:$BT$1,0),0)+VLOOKUP($BW30&"_"&$AZ$8,データシート1!$A:$BT,MATCH("da_業務",データシート1!$A$1:$BT$1,0),0)+VLOOKUP($BW30&"_"&$AZ$8,データシート1!$A:$BT,MATCH("da_家庭",データシート1!$A$1:$BT$1,0),0)+VLOOKUP($BW30&"_"&$AZ$8,データシート1!$A:$BT,MATCH("da_鉄道",データシート1!$A$1:$BT$1,0),0))/10^3 -> 64,904 | CA30: 19365 | CB30: 身延町 | CC30: 1.5% | CD30: 11.5% | CE30: 0.0% | CF30: 177.7% | CG30: 0.0% | CH30: 0.0% | CI30: 190.7% | CK30: 19365 | CL30: 身延町 | CM30: =VLOOKUP($CK30&"_"&$AZ$7,データシート1!$A:$BT,MATCH("ca_太陽光発電（10kW未満）",データシート1!$A$1:$BT$1,0),0) -> 159 | CN30: =VLOOKUP($CK30&"_"&$AZ$5,データシート1!$A:$BT,MATCH("ab_家庭",データシート1!$A$1:$BT$1,0),0) -> 5150 | CO30: 3.1%
AX31: =比較地域マスタ!$Y24 -> 20432 | AY31: =IF(IFERROR(比較地域マスタ!$Z24,"")=0,"",IFERROR(比較地域マスタ!$Z24,"")) -> 木曽町 | BC31: 20432 | BD31: 木曽町 | BE31: =VLOOKUP($BC31&"_"&$AZ$7,データシート1!$A:$BT,MATCH("cb_"&BE$12,データシート1!$A$1:$BT$1,0),0) -> 1,066 | BF31: =VLOOKUP($BC31&"_"&$AZ$7,データシート1!$A:$BT,MATCH("cb_"&BF$12,データシート1!$A$1:$BT$1,0),0) -> 5,535 | BG31: =VLOOKUP($BC31&"_"&$AZ$7,データシート1!$A:$BT,MATCH("cb_"&BG$12,データシート1!$A$1:$BT$1,0),0) -> 0 | BH31: =VLOOKUP($BC31&"_"&$AZ$7,データシート1!$A:$BT,MATCH("cb_"&BH$12,データシート1!$A$1:$BT$1,0),0) -> 0 | BI31: =VLOOKUP($BC31&"_"&$AZ$7,データシート1!$A:$BT,MATCH("cb_"&BI$12,データシート1!$A$1:$BT$1,0),0) -> 0 | BJ31: =VLOOKUP($BC31&"_"&$AZ$7,データシート1!$A:$BT,MATCH("cb_"&BJ$12,データシート1!$A$1:$BT$1,0),0) -> 0 | BK31: 6,600 | BM31: 20432 | BN31: 木曽町 | BO31: =BE31*VLOOKUP(BO$12,別紙!$B$4:$E$10,MATCH("設備利用率",別紙!$B$4:$E$4,0),0)/100*8760/10^3 -> 1,279 | BP31: =BF31*VLOOKUP(BP$12,別紙!$B$4:$E$10,MATCH("設備利用率",別紙!$B$4:$E$4,0),0)/100*8760/10^3 -> 7,321 | BQ31: =BG31*VLOOKUP(BQ$12,別紙!$B$4:$E$10,MATCH("設備利用率",別紙!$B$4:$E$4,0),0)/100*8760/10^3 -> 0 | BR31: =BH31*VLOOKUP(BR$12,別紙!$B$4:$E$10,MATCH("設備利用率",別紙!$B$4:$E$4,0),0)/100*8760/10^3 -> 0 | BS31: =BI31*VLOOKUP(BS$12,別紙!$B$4:$E$10,MATCH("設備利用率",別紙!$B$4:$E$4,0),0)/100*8760/10^3 -> 0 | BT31: =BJ31*VLOOKUP(BT$12,別紙!$B$4:$E$10,MATCH("設備利用率",別紙!$B$4:$E$4,0),0)/100*8760/10^3 -> 0 | BU31: 8,600 | BW31: 20432 | BX31: 木曽町 | BY31: =(VLOOKUP($BW31&"_"&$AZ$8,データシート1!$A:$BT,MATCH("da_製造業",データシート1!$A$1:$BT$1,0),0)+VLOOKUP($BW31&"_"&$AZ$8,データシート1!$A:$BT,MATCH("da_建設業・鉱業",データシート1!$A$1:$BT$1,0),0)+VLOOKUP($BW31&"_"&$AZ$8,データシート1!$A:$BT,MATCH("da_農林水産業",データシート1!$A$1:$BT$1,0),0)+VLOOKUP($BW31&"_"&$AZ$8,データシート1!$A:$BT,MATCH("da_業務",データシート1!$A$1:$BT$1,0),0)+VLOOKUP($BW31&"_"&$AZ$8,データシート1!$A:$BT,MATCH("da_家庭",データシート1!$A$1:$BT$1,0),0)+VLOOKUP($BW31&"_"&$AZ$8,データシート1!$A:$BT,MATCH("da_鉄道",データシート1!$A$1:$BT$1,0),0))/10^3 -> 62,585 | CA31: 20432 | CB31: 木曽町 | CC31: 2.0% | CD31: 11.7% | CE31: 0.0% | CF31: 0.0% | CG31: 0.0% | CH31: 0.0% | CI31: 13.7% | CK31: 20432 | CL31: 木曽町 | CM31: =VLOOKUP($CK31&"_"&$AZ$7,データシート1!$A:$BT,MATCH("ca_太陽光発電（10kW未満）",データシート1!$A$1:$BT$1,0),0) -> 223 | CN31: =VLOOKUP($CK31&"_"&$AZ$5,データシート1!$A:$BT,MATCH("ab_家庭",データシート1!$A$1:$BT$1,0),0) -> 4804 | CO31: 4.6%
AX32: =比較地域マスタ!$Y25 -> 01460 | AY32: =IF(IFERROR(比較地域マスタ!$Z25,"")=0,"",IFERROR(比較地域マスタ!$Z25,"")) -> 上富良野町 | BC32: 01460 | BD32: 上富良野町 | BE32: =VLOOKUP($BC32&"_"&$AZ$7,データシート1!$A:$BT,MATCH("cb_"&BE$12,データシート1!$A$1:$BT$1,0),0) -> 571 | BF32: =VLOOKUP($BC32&"_"&$AZ$7,データシート1!$A:$BT,MATCH("cb_"&BF$12,データシート1!$A$1:$BT$1,0),0) -> 2,048 | BG32: =VLOOKUP($BC32&"_"&$AZ$7,データシート1!$A:$BT,MATCH("cb_"&BG$12,データシート1!$A$1:$BT$1,0),0) -> 0 | BH32: =VLOOKUP($BC32&"_"&$AZ$7,データシート1!$A:$BT,MATCH("cb_"&BH$12,データシート1!$A$1:$BT$1,0),0) -> 0 | BI32: =VLOOKUP($BC32&"_"&$AZ$7,データシート1!$A:$BT,MATCH("cb_"&BI$12,データシート1!$A$1:$BT$1,0),0) -> 0 | BJ32: =VLOOKUP($BC32&"_"&$AZ$7,データシート1!$A:$BT,MATCH("cb_"&BJ$12,データシート1!$A$1:$BT$1,0),0) -> 0 | BK32: 2,620 | BM32: 01460 | BN32: 上富良野町 | BO32: =BE32*VLOOKUP(BO$12,別紙!$B$4:$E$10,MATCH("設備利用率",別紙!$B$4:$E$4,0),0)/100*8760/10^3 -> 686 | BP32: =BF32*VLOOKUP(BP$12,別紙!$B$4:$E$10,MATCH("設備利用率",別紙!$B$4:$E$4,0),0)/100*8760/10^3 -> 2,709 | BQ32: =BG32*VLOOKUP(BQ$12,別紙!$B$4:$E$10,MATCH("設備利用率",別紙!$B$4:$E$4,0),0)/100*8760/10^3 -> 0 | BR32: =BH32*VLOOKUP(BR$12,別紙!$B$4:$E$10,MATCH("設備利用率",別紙!$B$4:$E$4,0),0)/100*8760/10^3 -> 0 | BS32: =BI32*VLOOKUP(BS$12,別紙!$B$4:$E$10,MATCH("設備利用率",別紙!$B$4:$E$4,0),0)/100*8760/10^3 -> 0 | BT32: =BJ32*VLOOKUP(BT$12,別紙!$B$4:$E$10,MATCH("設備利用率",別紙!$B$4:$E$4,0),0)/100*8760/10^3 -> 0 | BU32: 3,395 | BW32: 01460 | BX32: 上富良野町 | BY32: =(VLOOKUP($BW32&"_"&$AZ$8,データシート1!$A:$BT,MATCH("da_製造業",データシート1!$A$1:$BT$1,0),0)+VLOOKUP($BW32&"_"&$AZ$8,データシート1!$A:$BT,MATCH("da_建設業・鉱業",データシート1!$A$1:$BT$1,0),0)+VLOOKUP($BW32&"_"&$AZ$8,データシート1!$A:$BT,MATCH("da_農林水産業",データシート1!$A$1:$BT$1,0),0)+VLOOKUP($BW32&"_"&$AZ$8,データシート1!$A:$BT,MATCH("da_業務",データシート1!$A$1:$BT$1,0),0)+VLOOKUP($BW32&"_"&$AZ$8,データシート1!$A:$BT,MATCH("da_家庭",データシート1!$A$1:$BT$1,0),0)+VLOOKUP($BW32&"_"&$AZ$8,データシート1!$A:$BT,MATCH("da_鉄道",データシート1!$A$1:$BT$1,0),0))/10^3 -> 55,583 | CA32: 01460 | CB32: 上富良野町 | CC32: 1.2% | CD32: 4.9% | CE32: 0.0% | CF32: 0.0% | CG32: 0.0% | CH32: 0.0% | CI32: 6.1% | CK32: 01460 | CL32: 上富良野町 | CM32: =VLOOKUP($CK32&"_"&$AZ$7,データシート1!$A:$BT,MATCH("ca_太陽光発電（10kW未満）",データシート1!$A$1:$BT$1,0),0) -> 102 | CN32: =VLOOKUP($CK32&"_"&$AZ$5,データシート1!$A:$BT,MATCH("ab_家庭",データシート1!$A$1:$BT$1,0),0) -> 5262 | CO32: 1.9%
AX33: =比較地域マスタ!$Y26 -> 07545 | AY33: =IF(IFERROR(比較地域マスタ!$Z26,"")=0,"",IFERROR(比較地域マスタ!$Z26,"")) -> 大熊町 | BC33: 07545 | BD33: 大熊町 | BE33: =VLOOKUP($BC33&"_"&$AZ$7,データシート1!$A:$BT,MATCH("cb_"&BE$12,データシート1!$A$1:$BT$1,0),0) -> 554 | BF33: =VLOOKUP($BC33&"_"&$AZ$7,データシート1!$A:$BT,MATCH("cb_"&BF$12,データシート1!$A$1:$BT$1,0),0) -> 11,619 | BG33: =VLOOKUP($BC33&"_"&$AZ$7,データシート1!$A:$BT,MATCH("cb_"&BG$12,データシート1!$A$1:$BT$1,0),0) -> 0 | BH33: =VLOOKUP($BC33&"_"&$AZ$7,データシート1!$A:$BT,MATCH("cb_"&BH$12,データシート1!$A$1:$BT$1,0),0) -> 0 | BI33: =VLOOKUP($BC33&"_"&$AZ$7,データシート1!$A:$BT,MATCH("cb_"&BI$12,データシート1!$A$1:$BT$1,0),0) -> 0 | BJ33: =VLOOKUP($BC33&"_"&$AZ$7,データシート1!$A:$BT,MATCH("cb_"&BJ$12,データシート1!$A$1:$BT$1,0),0) -> 0 | BK33: 12,172 | BM33: 07545 | BN33: 大熊町 | BO33: =BE33*VLOOKUP(BO$12,別紙!$B$4:$E$10,MATCH("設備利用率",別紙!$B$4:$E$4,0),0)/100*8760/10^3 -> 664 | BP33: =BF33*VLOOKUP(BP$12,別紙!$B$4:$E$10,MATCH("設備利用率",別紙!$B$4:$E$4,0),0)/100*8760/10^3 -> 15,369 | BQ33: =BG33*VLOOKUP(BQ$12,別紙!$B$4:$E$10,MATCH("設備利用率",別紙!$B$4:$E$4,0),0)/100*8760/10^3 -> 0 | BR33: =BH33*VLOOKUP(BR$12,別紙!$B$4:$E$10,MATCH("設備利用率",別紙!$B$4:$E$4,0),0)/100*8760/10^3 -> 0 | BS33: =BI33*VLOOKUP(BS$12,別紙!$B$4:$E$10,MATCH("設備利用率",別紙!$B$4:$E$4,0),0)/100*8760/10^3 -> 0 | BT33: =BJ33*VLOOKUP(BT$12,別紙!$B$4:$E$10,MATCH("設備利用率",別紙!$B$4:$E$4,0),0)/100*8760/10^3 -> 0 | BU33: 16,033 | BW33: 07545 | BX33: 大熊町 | BY33: =(VLOOKUP($BW33&"_"&$AZ$8,データシート1!$A:$BT,MATCH("da_製造業",データシート1!$A$1:$BT$1,0),0)+VLOOKUP($BW33&"_"&$AZ$8,データシート1!$A:$BT,MATCH("da_建設業・鉱業",データシート1!$A$1:$BT$1,0),0)+VLOOKUP($BW33&"_"&$AZ$8,データシート1!$A:$BT,MATCH("da_農林水産業",データシート1!$A$1:$BT$1,0),0)+VLOOKUP($BW33&"_"&$AZ$8,データシート1!$A:$BT,MATCH("da_業務",データシート1!$A$1:$BT$1,0),0)+VLOOKUP($BW33&"_"&$AZ$8,データシート1!$A:$BT,MATCH("da_家庭",データシート1!$A$1:$BT$1,0),0)+VLOOKUP($BW33&"_"&$AZ$8,データシート1!$A:$BT,MATCH("da_鉄道",データシート1!$A$1:$BT$1,0),0))/10^3 -> 24,127 | CA33: 07545 | CB33: 大熊町 | CC33: 2.8% | CD33: 63.7% | CE33: 0.0% | CF33: 0.0% | CG33: 0.0% | CH33: 0.0% | CI33: 66.5% | CK33: 07545 | CL33: 大熊町 | CM33: =VLOOKUP($CK33&"_"&$AZ$7,データシート1!$A:$BT,MATCH("ca_太陽光発電（10kW未満）",データシート1!$A$1:$BT$1,0),0) -> 140 | CN33: =VLOOKUP($CK33&"_"&$AZ$5,データシート1!$A:$BT,MATCH("ab_家庭",データシート1!$A$1:$BT$1,0),0) -> 3914 | CO33: 3.6%
AX34: =比較地域マスタ!$Y27 -> 02301 | AY34: =IF(IFERROR(比較地域マスタ!$Z27,"")=0,"",IFERROR(比較地域マスタ!$Z27,"")) -> 平内町 | BC34: 02301 | BD34: 平内町 | BE34: =VLOOKUP($BC34&"_"&$AZ$7,データシート1!$A:$BT,MATCH("cb_"&BE$12,データシート1!$A$1:$BT$1,0),0) -> 437 | BF34: =VLOOKUP($BC34&"_"&$AZ$7,データシート1!$A:$BT,MATCH("cb_"&BF$12,データシート1!$A$1:$BT$1,0),0) -> 2,407 | BG34: =VLOOKUP($BC34&"_"&$AZ$7,データシート1!$A:$BT,MATCH("cb_"&BG$12,データシート1!$A$1:$BT$1,0),0) -> 157 | BH34: =VLOOKUP($BC34&"_"&$AZ$7,データシート1!$A:$BT,MATCH("cb_"&BH$12,データシート1!$A$1:$BT$1,0),0) -> 0 | BI34: =VLOOKUP($BC34&"_"&$AZ$7,データシート1!$A:$BT,MATCH("cb_"&BI$12,データシート1!$A$1:$BT$1,0),0) -> 0 | BJ34: =VLOOKUP($BC34&"_"&$AZ$7,データシート1!$A:$BT,MATCH("cb_"&BJ$12,データシート1!$A$1:$BT$1,0),0) -> 0 | BK34: 3,001 | BM34: 02301 | BN34: 平内町 | BO34: =BE34*VLOOKUP(BO$12,別紙!$B$4:$E$10,MATCH("設備利用率",別紙!$B$4:$E$4,0),0)/100*8760/10^3 -> 525 | BP34: =BF34*VLOOKUP(BP$12,別紙!$B$4:$E$10,MATCH("設備利用率",別紙!$B$4:$E$4,0),0)/100*8760/10^3 -> 3,184 | BQ34: =BG34*VLOOKUP(BQ$12,別紙!$B$4:$E$10,MATCH("設備利用率",別紙!$B$4:$E$4,0),0)/100*8760/10^3 -> 340 | BR34: =BH34*VLOOKUP(BR$12,別紙!$B$4:$E$10,MATCH("設備利用率",別紙!$B$4:$E$4,0),0)/100*8760/10^3 -> 0 | BS34: =BI34*VLOOKUP(BS$12,別紙!$B$4:$E$10,MATCH("設備利用率",別紙!$B$4:$E$4,0),0)/100*8760/10^3 -> 0 | BT34: =BJ34*VLOOKUP(BT$12,別紙!$B$4:$E$10,MATCH("設備利用率",別紙!$B$4:$E$4,0),0)/100*8760/10^3 -> 0 | BU34: 4,049 | BW34: 02301 | BX34: 平内町 | BY34: =(VLOOKUP($BW34&"_"&$AZ$8,データシート1!$A:$BT,MATCH("da_製造業",データシート1!$A$1:$BT$1,0),0)+VLOOKUP($BW34&"_"&$AZ$8,データシート1!$A:$BT,MATCH("da_建設業・鉱業",データシート1!$A$1:$BT$1,0),0)+VLOOKUP($BW34&"_"&$AZ$8,データシート1!$A:$BT,MATCH("da_農林水産業",データシート1!$A$1:$BT$1,0),0)+VLOOKUP($BW34&"_"&$AZ$8,データシート1!$A:$BT,MATCH("da_業務",データシート1!$A$1:$BT$1,0),0)+VLOOKUP($BW34&"_"&$AZ$8,データシート1!$A:$BT,MATCH("da_家庭",データシート1!$A$1:$BT$1,0),0)+VLOOKUP($BW34&"_"&$AZ$8,データシート1!$A:$BT,MATCH("da_鉄道",データシート1!$A$1:$BT$1,0),0))/10^3 -> 52,330 | CA34: 02301 | CB34: 平内町 | CC34: 1.0% | CD34: 6.1% | CE34: 0.7% | CF34: 0.0% | CG34: 0.0% | CH34: 0.0% | CI34: 7.7% | CK34: 02301 | CL34: 平内町 | CM34: =VLOOKUP($CK34&"_"&$AZ$7,データシート1!$A:$BT,MATCH("ca_太陽光発電（10kW未満）",データシート1!$A$1:$BT$1,0),0) -> 84 | CN34: =VLOOKUP($CK34&"_"&$AZ$5,データシート1!$A:$BT,MATCH("ab_家庭",データシート1!$A$1:$BT$1,0),0) -> 4803 | CO34: 1.7%
AX35: =比較地域マスタ!$Y28 -> 01453 | AY35: =IF(IFERROR(比較地域マスタ!$Z28,"")=0,"",IFERROR(比較地域マスタ!$Z28,"")) -> 東神楽町 | BC35: 01453 | BD35: 東神楽町 | BE35: =VLOOKUP($BC35&"_"&$AZ$7,データシート1!$A:$BT,MATCH("cb_"&BE$12,データシート1!$A$1:$BT$1,0),0) -> 737 | BF35: =VLOOKUP($BC35&"_"&$AZ$7,データシート1!$A:$BT,MATCH("cb_"&BF$12,データシート1!$A$1:$BT$1,0),0) -> 1,498 | BG35: =VLOOKUP($BC35&"_"&$AZ$7,データシート1!$A:$BT,MATCH("cb_"&BG$12,データシート1!$A$1:$BT$1,0),0) -> 0 | BH35: =VLOOKUP($BC35&"_"&$AZ$7,データシート1!$A:$BT,MATCH("cb_"&BH$12,データシート1!$A$1:$BT$1,0),0) -> 0 | BI35: =VLOOKUP($BC35&"_"&$AZ$7,データシート1!$A:$BT,MATCH("cb_"&BI$12,データシート1!$A$1:$BT$1,0),0) -> 0 | BJ35: =VLOOKUP($BC35&"_"&$AZ$7,データシート1!$A:$BT,MATCH("cb_"&BJ$12,データシート1!$A$1:$BT$1,0),0) -> 0 | BK35: 2,235 | BM35: 01453 | BN35: 東神楽町 | BO35: =BE35*VLOOKUP(BO$12,別紙!$B$4:$E$10,MATCH("設備利用率",別紙!$B$4:$E$4,0),0)/100*8760/10^3 -> 884 | BP35: =BF35*VLOOKUP(BP$12,別紙!$B$4:$E$10,MATCH("設備利用率",別紙!$B$4:$E$4,0),0)/100*8760/10^3 -> 1,982 | BQ35: =BG35*VLOOKUP(BQ$12,別紙!$B$4:$E$10,MATCH("設備利用率",別紙!$B$4:$E$4,0),0)/100*8760/10^3 -> 0 | BR35: =BH35*VLOOKUP(BR$12,別紙!$B$4:$E$10,MATCH("設備利用率",別紙!$B$4:$E$4,0),0)/100*8760/10^3 -> 0 | BS35: =BI35*VLOOKUP(BS$12,別紙!$B$4:$E$10,MATCH("設備利用率",別紙!$B$4:$E$4,0),0)/100*8760/10^3 -> 0 | BT35: =BJ35*VLOOKUP(BT$12,別紙!$B$4:$E$10,MATCH("設備利用率",別紙!$B$4:$E$4,0),0)/100*8760/10^3 -> 0 | BU35: 2,866 | BW35: 01453 | BX35: 東神楽町 | BY35: =(VLOOKUP($BW35&"_"&$AZ$8,データシート1!$A:$BT,MATCH("da_製造業",データシート1!$A$1:$BT$1,0),0)+VLOOKUP($BW35&"_"&$AZ$8,データシート1!$A:$BT,MATCH("da_建設業・鉱業",データシート1!$A$1:$BT$1,0),0)+VLOOKUP($BW35&"_"&$AZ$8,データシート1!$A:$BT,MATCH("da_農林水産業",データシート1!$A$1:$BT$1,0),0)+VLOOKUP($BW35&"_"&$AZ$8,データシート1!$A:$BT,MATCH("da_業務",データシート1!$A$1:$BT$1,0),0)+VLOOKUP($BW35&"_"&$AZ$8,データシート1!$A:$BT,MATCH("da_家庭",データシート1!$A$1:$BT$1,0),0)+VLOOKUP($BW35&"_"&$AZ$8,データシート1!$A:$BT,MATCH("da_鉄道",データシート1!$A$1:$BT$1,0),0))/10^3 -> 41,316 | CA35: 01453 | CB35: 東神楽町 | CC35: 2.1% | CD35: 4.8% | CE35: 0.0% | CF35: 0.0% | CG35: 0.0% | CH35: 0.0% | CI35: 6.9% | CK35: 01453 | CL35: 東神楽町 | CM35: =VLOOKUP($CK35&"_"&$AZ$7,データシート1!$A:$BT,MATCH("ca_太陽光発電（10kW未満）",データシート1!$A$1:$BT$1,0),0) -> 164 | CN35: =VLOOKUP($CK35&"_"&$AZ$5,データシート1!$A:$BT,MATCH("ab_家庭",データシート1!$A$1:$BT$1,0),0) -> 4362 | CO35: 3.8%
